Workbook

Sheet DC-DC-ripple
C2: Time-domain harmonic composition of buck converter switching ripple
F3: O U T P U T C A P A C I T O R S | M3: Sweep
D4: C1 | E4: C2 | F4: C3 | G4: C4 | H4: C5 | J4: Fmin [Hz] | K4: Vin [V] | M4: Min | N4: D [%] | O4: Ripple [mVpp] | P4: m | V4: Number
C5: C [F] | D5: 0.00047 | E5: 4.7e-05 | F5: 1e-05 | G5: 1e-06 | H5: 3e-09 | J5: 1000 | K5: 12 | L5: 500000 | M5: 1 | N5: =V_out/V_in*100 -> 8.333333333 | O5: =1000*ABS(MAX(BM179:FI179)-MIN(BM179:FI179)) -> 4.531574709 | P5: =100/D_ -> 12 | V5: of
C6: R [Ohm] | D6: 0.01 | E6: 0.003 | F6: 0.01 | G6: 1000000 | H6: 1000000 | J6: Fmax [Hz] | K6: Vout [V] | L6: L | M6: Max | N6: delta_I [A] | O6: Ripple est [mVpp] | P6: Ratio [-] | V6: periods
C7: L [H] | D7: 2e-09 | E7: 2e-09 | F7: 1e-09 | G7: 1e-09 | H7: 1e-10 | J7: 100000000 | K7: 1 | L7: 4.7e-07 | M7: 10 | N7: =(V_in-V_out)*D_/100/L_/f_ -> 3.90070922 | O7: =1000*N7*BG69 -> 2.889195931 | P7: =O5/O7 -> 1.568455313 | V7: 2
C8: N [-] | D8: 3 | E8: 3 | F8: 10 | G8: 0 | H8: 0
BK61: [rad]
BK62: Phase offset
BK63: Ofs_
N64: N_1 | P64: N_2 | R64: N_3 | T64: N_4 | V64: N_5 | BK64: 0
B65: Nsteps | N65: =IF(N_1_>0,N_1_,0.000000001) -> 3 | P65: =IF(N_2_>0,N_2_,0.000000001) -> 3 | R65: =IF(N_3_>0,N_3_,0.000000001) -> 10 | T65: =IF(N_4_>0,N_4_,0.000000001) -> 1e-09 | V65: =IF(N_5_>0,N_5_,0.000000001) -> 1e-09
B66: 200 | D66: Fourier components: Harmonic composition of sawtooth waveform of inductor current | M66: PDN impedance decomposition at switching harmonic frequencies | AN66: PDN impedance decomposition at impedance display frequencies | BK66: Harmonic composition of time series
BG67: Marker | BM67: P_0 | BN67: P_1 | BO67: P_2 | BP67: P_3 | BQ67: P_4 | BR67: P_5 | BS67: P_6 | BT67: P_7 | BU67: P_8 | BV67: P_9 | BW67: P_10 | BX67: P_11 | BY67: P_12 | BZ67: P_13 | CA67: P_14 | CB67: P_15 | CC67: P_16 | CD67: P_17 | CE67: P_18 | CF67: P_19 | CG67: P_20 | CH67: P_21 | CI67: P_22 | CJ67: P_23 | CK67: P_24 | CL67: P_25 | CM67: P_26 | CN67: P_27 | CO67: P_28 | CP67: P_29 | CQ67: P_30 | CR67: P_31 | CS67: P_32 | CT67: P_33 | CU67: P_34 | CV67: P_35 | CW67: P_36 | CX67: P_37 | CY67: P_38 | CZ67: P_39 | DA67: P_40 | DB67: P_41 | DC67: P_42 | DD67: P_43 | DE67: P_44 | DF67: P_45 | DG67: P_46 | DH67: P_47 | DI67: P_48 | DJ67: P_49 | DK67: P_50 | DL67: P_51 | DM67: P_52 | DN67: P_53 | DO67: P_54 | DP67: P_55 | DQ67: P_56 | DR67: P_57 | DS67: P_58 | DT67: P_59 | DU67: P_60 | DV67: P_61 | DW67: P_62 | DX67: P_63 | DY67: P_64 | DZ67: P_65 | EA67: P_66 | EB67: P_67 | EC67: P_68 | ED67: P_69 | EE67: P_70 | EF67: P_71 | EG67: P_72 | EH67: P_73 | EI67: P_74 | EJ67: P_75 | EK67: P_76 | EL67: P_77 | EM67: P_78 | EN67: P_79 | EO67: P_80 | EP67: P_81 | EQ67: P_82 | ER67: P_83 | ES67: P_84 | ET67: P_85 | EU67: P_86 | EV67: P_87 | EW67: P_88 | EX67: P_89 | EY67: P_90 | EZ67: P_91 | FA67: P_92 | FB67: P_93 | FC67: P_94 | FD67: P_95 | FE67: P_96 | FF67: P_97 | FG67: P_98 | FH67: P_99 | FI67: P_100
B68: Harm. | D68: UNFILTERED | G68: FILTERED | M68: 2*PI*f | O68: |Zc1|^2 | Q68: |Zc2|^2 | S68: |Zc3|^2 | U68: |Zc4|^2 | W68: |Zc5|^2 | X68: SGi | Y68: SBi | AM68: N_ | AN68: incr_ | AO68: 2*PI*f | AQ68: |Zc1|^2 | AS68: |Zc2|^2 | AU68: |Zc3|^2 | AW68: |Zc4|^2 | AY68: |Zc5|^2 | AZ68: SGi | BA68: SBi | BG68: =f_ -> 500000 | BK68: Time ser. | BL68: N_ | BM68: 0 | BN68: 1 | BO68: 2 | BP68: 3 | BQ68: 4 | BR68: 5 | BS68: 6 | BT68: 7 | BU68: 8 | BV68: 9 | BW68: 10 | BX68: 11 | BY68: 12 | BZ68: 13 | CA68: 14 | CB68: 15 | CC68: 16 | CD68: 17 | CE68: 18 | CF68: 19 | CG68: 20 | CH68: 21 | CI68: 22 | CJ68: 23 | CK68: 24 | CL68: 25 | CM68: 26 | CN68: 27 | CO68: 28 | CP68: 29 | CQ68: 30 | CR68: 31 | CS68: 32 | CT68: 33 | CU68: 34 | CV68: 35 | CW68: 36 | CX68: 37 | CY68: 38 | CZ68: 39 | DA68: 40 | DB68: 41 | DC68: 42 | DD68: 43 | DE68: 44 | DF68: 45 | DG68: 46 | DH68: 47 | DI68: 48 | DJ68: 49 | DK68: 50 | DL68: 51 | DM68: 52 | DN68: 53 | DO68: 54 | DP68: 55 | DQ68: 56 | DR68: 57 | DS68: 58 | DT68: 59 | DU68: 60 | DV68: 61 | DW68: 62 | DX68: 63 | DY68: 64 | DZ68: 65 | EA68: 66 | EB68: 67 | EC68: 68 | ED68: 69 | EE68: 70 | EF68: 71 | EG68: 72 | EH68: 73 | EI68: 74 | EJ68: 75 | EK68: 76 | EL68: 77 | EM68: 78 | EN68: 79 | EO68: 80 | EP68: 81 | EQ68: 82 | ER68: 83 | ES68: 84 | ET68: 85 | EU68: 86 | EV68: 87 | EW68: 88 | EX68: 89 | EY68: 90 | EZ68: 91 | FA68: 92 | FB68: 93 | FC68: 94 | FD68: 95 | FE68: 96 | FF68: 97 | FG68: 98 | FH68: 99 | FI68: 100
B69: series | C69: Freq. | D69: Re{M} | E69: Im{M} | F69: Magn. | G69: Re{Mag} | H69: Im{Mag} | I69: Magnit. | M69: [rad/sec] | N69: [ohms] | O69: [ohms] | P69: [ohms] | Q69: [ohms] | R69: [ohms] | S69: [ohms] | T69: [ohms] | U69: [ohms] | V69: [ohms] | W69: [ohms] | AM69: 500 | AN69: =10^(LOG(F_max/F_min)/(N__-1)) -> 1.023340212 | AO69: [rad/sec] | AP69: [ohms] | AQ69: [ohms] | AR69: [ohms] | AS69: [ohms] | AT69: [ohms] | AU69: [ohms] | AV69: [ohms] | AW69: [ohms] | AX69: [ohms] | AY69: [ohms] | BG69: =INDEX(BG71:BG571,MATCH($BG$68,AN71:AN571,1),1) -> 0.000740684775 | BK69: argument | BL69: Rad_ | BM69: =periods_*2*PI()*N_/100 -> 0 | BN69: 0.1256637061 | BO69: 0.2513274123 | BP69: 0.3769911184 | BQ69: 0.5026548246 | BR69: 0.6283185307 | BS69: 0.7539822369 | BT69: 0.879645943 | BU69: 1.005309649 | BV69: 1.130973355 | BW69: 1.256637061 | BX69: 1.382300768 | BY69: 1.507964474 | BZ69: 1.63362818 | CA69: 1.759291886 | CB69: 1.884955592 | CC69: 2.010619298 | CD69: 2.136283004 | CE69: 2.261946711 | CF69: 2.387610417 | CG69: 2.513274123 | CH69: 2.638937829 | CI69: 2.764601535 | CJ69: 2.890265241 | CK69: 3.015928947 | CL69: 3.141592654 | CM69: 3.26725636 | CN69: 3.392920066 | CO69: 3.518583772 | CP69: 3.644247478 | CQ69: 3.769911184 | CR69: 3.89557489 | CS69: =periods_*2*PI()*N_/100 -> 4.021238597 | CT69: 4.146902303 | CU69: 4.272566009 | CV69: 4.398229715 | CW69: 4.523893421 | CX69: 4.649557127 | CY69: 4.775220833 | CZ69: 4.90088454 | DA69: 5.026548246 | DB69: 5.152211952 | DC69: 5.277875658 | DD69: 5.403539364 | DE69: 5.52920307 | DF69: 5.654866776 | DG69: 5.780530483 | DH69: 5.906194189 | DI69: 6.031857895 | DJ69: 6.157521601 | DK69: 6.283185307 | DL69: 6.408849013 | DM69: 6.534512719 | DN69: 6.660176426 | DO69: 6.785840132 | DP69: 6.911503838 | DQ69: 7.037167544 | DR69: 7.16283125 | DS69: 7.288494956 | DT69: 7.414158662 | DU69: 7.539822369 | DV69: 7.665486075 | DW69: 7.791149781 | DX69: 7.916813487 | DY69: =periods_*2*PI()*N_/100 -> 8.042477193 | DZ69: 8.168140899 | EA69: 8.293804605 | EB69: 8.419468312 | EC69: 8.545132018 | ED69: 8.670795724 | EE69: 8.79645943 | EF69: 8.922123136 | EG69: 9.047786842 | EH69: 9.173450548 | EI69: 9.299114255 | EJ69: 9.424777961 | EK69: 9.550441667 | EL69: 9.676105373 | EM69: 9.801769079 | EN69: 9.927432785 | EO69: 10.05309649 | EP69: 10.1787602 | EQ69: 10.3044239 | ER69: 10.43008761 | ES69: 10.55575132 | ET69: 10.68141502 | EU69: 10.80707873 | EV69: 10.93274243 | EW69: 11.05840614 | EX69: 11.18406985 | EY69: 11.30973355 | EZ69: 11.43539726 | FA69: 11.56106097 | FB69: 11.68672467 | FC69: 11.81238838 | FD69: 11.93805208 | FE69: 12.06371579 | FF69: 12.1893795 | FG69: 12.3150432 | FH69: 12.44070691 | FI69: 12.56637061
B70: NH_ | C70: [Hz] | D70: Re_H | E70: Im_H | F70: Mg_H dB | G70: Re_H | H70: Im_H | I70: Mg_H dB | M70: Omega | N70: X_1 | O70: Zc1_2 | P70: X_2 | Q70: Zc2_2 | R70: X_3 | S70: Zc3_2 | T70: X_4 | U70: Zc4_2 | V70: X_5 | W70: Zc5_2 | X70: SGi | Y70: SBi | Z70: Zc1 | AA70: Zc2 | AB70: Zc3 | AC70: Zc4 | AD70: Zc5 | AE70: Zmag | AF70: Phase | AG70: Re_Z | AH70: Im_Z | AM70: N | AN70: Freq | AO70: Omega | AP70: X_1 | AQ70: Zc1_2 | AR70: X_2 | AS70: Zc2_2 | AT70: X_3 | AU70: Zc3_2 | AV70: X_4 | AW70: Zc4_2 | AX70: X_5 | AY70: Zc5_2 | AZ70: SGi | BA70: SBi | BB70: Zc1 | BC70: Zc2 | BD70: Zc3 | BE70: Zc4 | BF70: Zc5 | BG70: Ztotal | BK70: V_DC | BM70: =DC_ -> 0 | BN70: =DC_ -> 0 | BO70: 0 | BP70: 0 | BQ70: 0 | BR70: 0 | BS70: 0 | BT70: 0 | BU70: 0 | BV70: 0 | BW70: 0 | BX70: 0 | BY70: 0 | BZ70: 0 | CA70: 0 | CB70: 0 | CC70: 0 | CD70: =DC_ -> 0 | CE70: 0 | CF70: 0 | CG70: 0 | CH70: 0 | CI70: 0 | CJ70: 0 | CK70: 0 | CL70: 0 | CM70: 0 | CN70: 0 | CO70: 0 | CP70: 0 | CQ70: 0 | CR70: 0 | CS70: 0 | CT70: =DC_ -> 0 | CU70: 0 | CV70: 0 | CW70: 0 | CX70: 0 | CY70: 0 | CZ70: 0 | DA70: 0 | DB70: 0 | DC70: 0 | DD70: 0 | DE70: 0 | DF70: 0 | DG70: 0 | DH70: 0 | DI70: 0 | DJ70: =DC_ -> 0 | DK70: 0 | DL70: 0 | DM70: 0 | DN70: 0 | DO70: 0 | DP70: 0 | DQ70: 0 | DR70: 0 | DS70: 0 | DT70: 0 | DU70: 0 | DV70: 0 | DW70: 0 | DX70: 0 | DY70: 0 | DZ70: =DC_ -> 0 | EA70: 0 | EB70: 0 | EC70: 0 | ED70: 0 | EE70: 0 | EF70: 0 | EG70: 0 | EH70: 0 | EI70: 0 | EJ70: 0 | EK70: 0 | EL70: 0 | EM70: 0 | EN70: 0 | EO70: 0 | EP70: =DC_ -> 0 | EQ70: 0 | ER70: 0 | ES70: 0 | ET70: 0 | EU70: 0 | EV70: 0 | EW70: 0 | EX70: 0 | EY70: 0 | EZ70: 0 | FA70: 0 | FB70: 0 | FC70: 0 | FD70: 0 | FE70: 0 | FF70: =DC_ -> 0 | FG70: =DC_ -> 0 | FH70: =DC_ -> 0 | FI70: =DC_ -> 0
B71: 1 | C71: =NH_*f_ -> 500000 | D71: 0 | E71: =-delta_I/2*2*(-1)^NH_*m_^2/NH_^2/(m_-1)/PI()/PI()*SIN(NH_*(m_-1)*PI()/m_) -> 1.339090315 | F71: =IF(SQRT(Re_H_^2+Im_H_^2)>1E-20, 20*LOG(SQRT(Re_H_^2+Im_H_^2)), -200) -> 2.536197379 | G71: =Re_H_*AG71-Im_H_*AH71 -> 0.0002494243083 | H71: =Im_H_*AG71+Re_H_*AH71 -> 0.0009566454236 | I71: =IF(SQRT(Re_H^2+Im_H^2)>1E-20, 20*LOG(SQRT(Re_H^2+Im_H^2)), -200) -> -60.0993524 | M71: =2*PI()*C71 -> 3141592.654 | N71: =M71*L_1/N_1-1/(M71*C_1*N_1) -> 0.00186864341 | O71: =(R_1/N_1)^2+N71^2 -> 1.460293931e-05 | P71: =M71*L_2/N_2-1/(M71*C_2*N_2) -> -0.0001631218209 | Q71: =(R_2/N_2)^2+P71^2 -> 1.026608728e-06 | R71: =M71*L_3/N_3-1/(M71*C_3*N_3) -> -0.002868939596 | S71: =(R_3/N_3)^2+R71^2 -> 9.230814408e-06 | T71: =M71*L_4/N_4-1/(M71*C_4*N_4) -> -315168293.5 | U71: =(R_4/N_4)^2+T71^2 -> 1e+30 | V71: =M71*L_5/N_5-1/(M71*C_5*N_5) -> -1.061029812e+11 | W71: =(R_5/N_5)^2+V71^2 -> 1.000000011e+30 | X71: =R_1/N_1/O71+R_2/N_2/Q71+R_3/N_3/S71+R_4/N_4/U71+R_5/N_5/W71 -> 1310.678295 | Y71: =-N71/O71-P71/Q71-R71/S71-T71/U71-V71/W71 -> 341.7306131 | Z71: =SQRT(O71) -> 0.003821379241 | AA71: =SQRT(Q71) -> 0.001013217019 | AB71: =SQRT(S71) -> 0.003038225536 | AC71: =SQRT(U71) -> 1e+15 | AD71: =SQRT(W71) -> 1.000000006e+15 | AE71: =1/SQRT(X71^2+Y71^2) -> 0.0007382823923 | AF71: =-180/PI()*ATAN2(X71,Y71) -> -14.61328283 | AG71: =AE71*COS(PI()/180*AF71) -> 0.0007143994793 | AH71: =AE71*SIN(PI()/180*AF71) -> -0.0001862639924 | AM71: 1 | AN71: =F_min*incr_^(AM71-1) -> 1000 | AO71: =2*PI()*AN71 -> 6283.185307 | AP71: =$AO71*L_1/N_1-1/($AO71*C_1*N_1) -> -0.1128716574 | AQ71: =(R_1/N_1)^2+AP71^2 -> 0.01275112215 | AR71: =$AO71*L_2/N_2-1/($AO71*C_2*N_2) -> -1.128754273 | AS71: =(R_2/N_2)^2+AR71^2 -> 1.274087208 | AT71: =$AO71*L_3/N_3-1/($AO71*C_3*N_3) -> -1.591548803 | AU71: =(R_3/N_3)^2+AT71^2 -> 2.533028591 | AV71: =$AO71*L_4/N_4-1/($AO71*C_4*N_4) -> -1.591549368e+11 | AW71: =(R_4/N_4)^2+AV71^2 -> 1.000000025e+30 | AX71: =$AO71*L_5/N_5-1/($AO71*C_5*N_5) -> -5.30516477e+13 | AY71: =(R_5/N_5)^2+AX71^2 -> 1.002814477e+30 | AZ71: =R_1/N_1/AQ71+R_2/N_2/AS71+R_3/N_3/AU71+R_4/N_4/AW71+R_5/N_5/AY71 -> 0.2625945609 | BA71: =-AP71/AQ71-AR71/AS71-AT71/AU71-AV71/AW71-AX71/AY71 -> 10.36615019 | BB71: =SQRT(AQ71) -> 0.1129208668 | BC71: =SQRT(AS71) -> 1.128754716 | BD71: =SQRT(AU71) -> 1.591549117 | BE71: =SQRT(AW71) -> 1.000000013e+15 | BF71: =SQRT(AY71) -> 1001406249892286 | BG71: =1/SQRT(AZ71^2+BA71^2) -> 0.09643689149 | BK71: V(t) | BL71: NH_=1 | BM71: =Re_H*COS(NH_*Rad_+NH_*Ofs_)+Im_H*SIN(NH_*Rad_+NH_*Ofs_) -> 0.0002494243083 | BN71: 0.0003673569874 | BO71: 0.0004794962274 | BP71: 0.0005840735255 | BQ71: 0.0006794396351 | BR71: 0.0007640905759 | BS71: 0.0008366913518 | BT71: 0.0008960970052 | BU71: 0.0009413706736 | BV71: 0.0009717983642 | BW71: 0.000986900214 | BX71: 0.0009864380579 | BY71: 0.0009704191843 | BZ71: 0.0009390962205 | CA71: 0.0008929631483 | CB71: 0.0008327475138 | CC71: 0.0007593989536 | CD71: =Re_H*COS(NH_*Rad_+NH_*Ofs_)+Im_H*SIN(NH_*Rad_+NH_*Ofs_) -> 0.0006740742183 | CE71: 0.0005781189298 | CF71: 0.0004730463605 | CG71: 0.0003605135675 | CH71: 0.0002422952601 | CI71: 0.0001202558118 | CJ71: -3.680142496e-06 | CK71: -0.0001275580588 | CL71: -0.0002494243083 | CM71: -0.0003673569874 | CN71: -0.0004794962274 | CO71: -0.0005840735255 | CP71: -0.0006794396351 | CQ71: -0.0007640905759 | CR71: -0.0008366913518 | CS71: -0.0008960970052 | CT71: =Re_H*COS(NH_*Rad_+NH_*Ofs_)+Im_H*SIN(NH_*Rad_+NH_*Ofs_) -> -0.0009413706736 | CU71: -0.0009717983642 | CV71: -0.000986900214 | CW71: -0.0009864380579 | CX71: -0.0009704191843 | CY71: -0.0009390962205 | CZ71: -0.0008929631483 | DA71: -0.0008327475138 | DB71: -0.0007593989536 | DC71: -0.0006740742183 | DD71: -0.0005781189298 | DE71: -0.0004730463605 | DF71: -0.0003605135675 | DG71: -0.0002422952601 | DH71: -0.0001202558118 | DI71: 3.680142496e-06 | DJ71: =Re_H*COS(NH_*Rad_+NH_*Ofs_)+Im_H*SIN(NH_*Rad_+NH_*Ofs_) -> 0.0001275580588 | DK71: 0.0002494243083 | DL71: 0.0003673569874 | DM71: 0.0004794962274 | DN71: 0.0005840735255 | DO71: 0.0006794396351 | DP71: 0.0007640905759 | DQ71: 0.0008366913518 | DR71: 0.0008960970052 | DS71: 0.0009413706736 | DT71: 0.0009717983642 | DU71: 0.000986900214 | DV71: 0.0009864380579 | DW71: 0.0009704191843 | DX71: 0.0009390962205 | DY71: 0.0008929631483 | DZ71: =Re_H*COS(NH_*Rad_+NH_*Ofs_)+Im_H*SIN(NH_*Rad_+NH_*Ofs_) -> 0.0008327475138 | EA71: 0.0007593989536 | EB71: 0.0006740742183 | EC71: 0.0005781189298 | ED71: 0.0004730463605 | EE71: 0.0003605135675 | EF71: 0.0002422952601 | EG71: 0.0001202558118 | EH71: -3.680142496e-06 | EI71: -0.0001275580588 | EJ71: -0.0002494243083 | EK71: -0.0003673569874 | EL71: -0.0004794962274 | EM71: -0.0005840735255 | EN71: -0.0006794396351 | EO71: -0.0007640905759 | EP71: =Re_H*COS(NH_*Rad_+NH_*Ofs_)+Im_H*SIN(NH_*Rad_+NH_*Ofs_) -> -0.0008366913518 | EQ71: -0.0008960970052 | ER71: -0.0009413706736 | ES71: -0.0009717983642 | ET71: -0.000986900214 | EU71: -0.0009864380579 | EV71: -0.0009704191843 | EW71: -0.0009390962205 | EX71: -0.0008929631483 | EY71: -0.0008327475138 | EZ71: -0.0007593989536 | FA71: -0.0006740742183 | FB71: -0.0005781189298 | FC71: -0.0004730463605 | FD71: -0.0003605135675 | FE71: -0.0002422952601 | FF71: =Re_H*COS(NH_*Rad_+NH_*Ofs_)+Im_H*SIN(NH_*Rad_+NH_*Ofs_) -> -0.0001202558118 | FG71: 3.680142496e-06 | FH71: 0.0001275580588 | FI71: 0.0002494243083
B72: 2 | C72: =NH_*f_ -> 1000000 | D72: 0 | E72: 0.6467309594 | F72: -3.785526972 | G72: 6.818403223e-05 | H72: 0.0008740558837 | I72: -61.14286765 | M72: 6283185.307 | N72: 0.004075914359 | O72: 2.772418897e-05 | P72: =M72*L_2/N_2-1/(M72*C_2*N_2) -> 0.003060031743 | Q72: =(R_2/N_2)^2+P72^2 -> 1.036379427e-05 | R72: -0.0009632309002 | S72: 1.927813767e-06 | T72: -152871757.8 | U72: 1e+30 | V72: -5.305101938e+10 | W72: 1.000000003e+30 | X72: 735.4440136 | Y72: =-N72/O72-P72/Q72-R72/S72-T72/U72-V72/W72 -> 57.37108949 | Z72: =SQRT(O72) -> 0.005265376432 | AA72: =SQRT(Q72) -> 0.003219284745 | AB72: =SQRT(S72) -> 0.001388457334 | AC72: =SQRT(U72) -> 1e+15 | AD72: =SQRT(W72) -> 1.000000001e+15 | AE72: =1/SQRT(X72^2+Y72^2) -> 0.001355604388 | AF72: =-180/PI()*ATAN2(X72,Y72) -> -4.460540423 | AG72: =AE72*COS(PI()/180*AF72) -> 0.001351498441 | AH72: =AE72*SIN(PI()/180*AF72) -> -0.0001054287432 | AM72: 2 | AN72: 1023.340212 | AO72: =2*PI()*AN72 -> 6429.836185 | AP72: -0.1102971018 | AQ72: 0.01217656178 | AR72: -1.103009597 | AS72: 1.216631171 | AT72: -1.555248933 | AU72: 2.418800243 | AV72: -1.555249512e+11 | AW72: 1.000000024e+30 | AX72: -5.184165253e+13 | AY72: 1.002687557e+30 | AZ72: =R_1/N_1/AQ72+R_2/N_2/AS72+R_3/N_3/AU72+R_4/N_4/AW72+R_5/N_5/AY72 -> 0.2749853327 | BA72: =-AP72/AQ72-AR72/AS72-AT72/AU72-AV72/AW72-AX72/AY72 -> 10.60774155 | BB72: =SQRT(AQ72) -> 0.1103474593 | BC72: =SQRT(AS72) -> 1.10301005 | BD72: =SQRT(AU72) -> 1.555249254 | BE72: =SQRT(AW72) -> 1.000000012e+15 | BF72: =SQRT(AY72) -> 1001342876809267 | BG72: =1/SQRT(AZ72^2+BA72^2) -> 0.09423911407 | BK72: V(t) | BL72: 2 | BM72: =Re_H*COS(NH_*Rad_+NH_*Ofs_)+Im_H*SIN(NH_*Rad_+NH_*Ofs_) -> 6.818403223e-05 | BN72: 0.0002834107646 | BO72: 0.0004808297563 | BP72: 0.000648036446 | BQ72: 0.0007745246225 | BR72: 0.0008523465685 | BS72: 0.0008766124449 | BT72: 0.0008457975374 | BU72: 0.00076183806 | BV72: 0.0006300094955 | BW72: 0.0004585951173 | BX72: 0.0002583655213 | BY72: 4.190186945e-05 | BZ72: -0.000177194631 | CA72: -0.0003851573411 | CB72: -0.0005689191989 | CC72: =Re_H*COS(NH_*Rad_+NH_*Ofs_)+Im_H*SIN(NH_*Rad_+NH_*Ofs_) -> -0.0007169337712 | CD72: -0.0008199007579 | CE72: -0.0008713503646 | CF72: -0.0008680498233 | CG72: -0.0008102065191 | CH72: -0.0007014549596 | CI72: -0.0005486284052 | CJ72: -0.0003613295104 | CK72: -0.0001513269536 | CL72: 6.818403223e-05 | CM72: 0.0002834107646 | CN72: 0.0004808297563 | CO72: 0.000648036446 | CP72: 0.0007745246225 | CQ72: 0.0008523465685 | CR72: 0.0008766124449 | CS72: 0.0008457975374 | CT72: 0.00076183806 | CU72: 0.0006300094955 | CV72: 0.0004585951173 | CW72: 0.0002583655213 | CX72: 4.190186945e-05 | CY72: -0.000177194631 | CZ72: -0.0003851573411 | DA72: -0.0005689191989 | DB72: -0.0007169337712 | DC72: -0.0008199007579 | DD72: -0.0008713503646 | DE72: -0.0008680498233 | DF72: -0.0008102065191 | DG72: -0.0007014549596 | DH72: -0.0005486284052 | DI72: -0.0003613295104 | DJ72: -0.0001513269536 | DK72: 6.818403223e-05 | DL72: 0.0002834107646 | DM72: 0.0004808297563 | DN72: 0.000648036446 | DO72: 0.0007745246225 | DP72: 0.0008523465685 | DQ72: 0.0008766124449 | DR72: 0.0008457975374 | DS72: 0.00076183806 | DT72: 0.0006300094955 | DU72: 0.0004585951173 | DV72: 0.0002583655213 | DW72: 4.190186945e-05 | DX72: -0.000177194631 | DY72: -0.0003851573411 | DZ72: -0.0005689191989 | EA72: -0.0007169337712 | EB72: -0.0008199007579 | EC72: -0.0008713503646 | ED72: -0.0008680498233 | EE72: -0.0008102065191 | EF72: -0.0007014549596 | EG72: -0.0005486284052 | EH72: -0.0003613295104 | EI72: -0.0001513269536 | EJ72: 6.818403223e-05 | EK72: 0.0002834107646 | EL72: 0.0004808297563 | EM72: 0.000648036446 | EN72: 0.0007745246225 | EO72: 0.0008523465685 | EP72: 0.0008766124449 | EQ72: 0.0008457975374 | ER72: 0.00076183806 | ES72: 0.0006300094955 | ET72: 0.0004585951173 | EU72: 0.0002583655213 | EV72: 4.190186945e-05 | EW72: -0.000177194631 | EX72: -0.0003851573411 | EY72: -0.0005689191989 | EZ72: -0.0007169337712 | FA72: -0.0008199007579 | FB72: -0.0008713503646 | FC72: -0.0008680498233 | FD72: -0.0008102065191 | FE72: -0.0007014549596 | FF72: -0.0005486284052 | FG72: -0.0003613295104 | FH72: -0.0001513269536 | FI72: 6.818403223e-05
B73: 3 | C73: 1500000 | D73: 0 | E73: 0.406495864 | F73: -7.818877378 | G73: -6.15155505e-05 | H73: 0.0003642854965 | I73: -68.64905257 | M73: 9424777.961 | N73: 0.006207934743 | O73: 4.964956489e-05 | P73: 0.005530679666 | Q73: 3.158841757e-05 | R73: -0.0001185551579 | S73: 1.014055325e-06 | T73: -96678517.43 | U73: 1e+30 | V73: -3.536682265e+10 | W73: 1.000000001e+30 | X73: 1084.933873 | Y73: -183.2087884 | Z73: 0.007046244736 | AA73: 0.005620357424 | AB73: 0.001007003141 | AC73: 1e+15 | AD73: 1.000000001e+15 | AE73: 0.0009088479679 | AF73: 9.5849028 | AG73: 0.0008961604009 | AH73: 0.0001513313073 | AM73: 3 | AN73: 1047.22519 | AO73: 6579.909926 | AP73: -0.1077812618 | AQ73: 0.01162791152 | AR73: -1.077852098 | AS73: 1.161766145 | AT73: -1.519776985 | AU73: 2.309723085 | AV73: -1.519777577e+11 | AW73: 1.000000023e+30 | AX73: -5.065925477e+13 | AY73: 1.00256636e+30 | AZ73: 0.2879602655 | BA73: 10.85494617 | BB73: 0.1078327942 | BC73: 1.077852562 | BD73: 1.519777314 | BE73: 1.000000012e+15 | BF73: 1.001282358e+15 | BG73: 0.09209150391 | BK73: V(t) | BL73: 3 | BM73: -6.15155505e-05 | BN73: 7.690672306e-05 | BO73: 0.0002045276759 | BP73: 0.0003034233245 | BQ73: 0.0003597040689 | BR73: 0.0003654654457 | BS73: 0.0003198982868 | BT73: 0.0002294023642 | BU73: 0.0001066875612 | BV73: -3.101119265e-05 | BW73: -0.0001643545167 | BX73: -0.0002746147372 | BY73: -0.0003463061341 | BZ73: -0.0003693598635 | CA73: -0.0003405380978 | CB73: -0.0002638887682 | CC73: -0.0001501770454 | CD73: -1.53734028e-05 | CE73: 0.0001215893885 | CF73: 0.0002414753115 | CG73: 0.0003274467447 | CH73: 0.0003674292556 | CI73: 0.0003558074195 | CJ73: 0.0002942134887 | CK73: 0.0001912981478 | CL73: 6.15155505e-05 | CM73: -7.690672306e-05 | CN73: -0.0002045276759 | CO73: -0.0003034233245 | CP73: -0.0003597040689 | CQ73: -0.0003654654457 | CR73: -0.0003198982868 | CS73: -0.0002294023642 | CT73: -0.0001066875612 | CU73: 3.101119265e-05 | CV73: 0.0001643545167 | CW73: 0.0002746147372 | CX73: 0.0003463061341 | CY73: 0.0003693598635 | CZ73: 0.0003405380978 | DA73: 0.0002638887682 | DB73: 0.0001501770454 | DC73: 1.53734028e-05 | DD73: -0.0001215893885 | DE73: -0.0002414753115 | DF73: -0.0003274467447 | DG73: -0.0003674292556 | DH73: -0.0003558074195 | DI73: -0.0002942134887 | DJ73: -0.0001912981478 | DK73: -6.15155505e-05 | DL73: 7.690672306e-05 | DM73: 0.0002045276759 | DN73: 0.0003034233245 | DO73: 0.0003597040689 | DP73: 0.0003654654457 | DQ73: 0.0003198982868 | DR73: 0.0002294023642 | DS73: 0.0001066875612 | DT73: -3.101119265e-05 | DU73: -0.0001643545167 | DV73: -0.0002746147372 | DW73: -0.0003463061341 | DX73: -0.0003693598635 | DY73: -0.0003405380978 | DZ73: -0.0002638887682 | EA73: -0.0001501770454 | EB73: -1.53734028e-05 | EC73: 0.0001215893885 | ED73: 0.0002414753115 | EE73: 0.0003274467447 | EF73: 0.0003674292556 | EG73: 0.0003558074195 | EH73: 0.0002942134887 | EI73: 0.0001912981478 | EJ73: 6.15155505e-05 | EK73: -7.690672306e-05 | EL73: -0.0002045276759 | EM73: -0.0003034233245 | EN73: -0.0003597040689 | EO73: -0.0003654654457 | EP73: -0.0003198982868 | EQ73: -0.0002294023642 | ER73: -0.0001066875612 | ES73: 3.101119265e-05 | ET73: 0.0001643545167 | EU73: 0.0002746147372 | EV73: 0.0003463061341 | EW73: 0.0003693598635 | EX73: 0.0003405380978 | EY73: 0.0002638887682 | EZ73: 0.0001501770454 | FA73: 1.53734028e-05 | FB73: -0.0001215893885 | FC73: -0.0002414753115 | FD73: -0.0003274467447 | FE73: -0.0003674292556 | FF73: -0.0003558074195 | FG73: -0.0002942134887 | FH73: -0.0001912981478 | FI73: -6.15155505e-05
B74: 4 | C74: 2000000 | D74: 0 | E74: 0.2800427201 | F74: -11.05551425 | G74: -0.0001484131268 | H74: 0.0002148293244 | I74: -71.66355139 | M74: 12566370.61 | N74: 0.008321142486 | O74: 8.035252339e-05 | P74: 0.007813201179 | Q74: 6.204611266e-05 | R74: 0.000460862346 | S74: 1.212394102e-06 | T74: -67011100.93 | U74: 1e+30 | V74: -2.652456721e+10 | W74: 1.000000001e+30 | X74: 882.4152176 | Y74: -609.609521 | Z74: 0.008963956905 | AA74: 0.007876935487 | AB74: 0.00110108769 | AC74: 1e+15 | AD74: 1e+15 | AE74: 0.0009323911509 | AF74: 34.63834666 | AG74: 0.0007671305445 | AH74: 0.0005299660233 | AM74: 4 | AN74: 1071.667648 | AO74: 6733.48642 | AP74: -0.1053227982 | AQ74: 0.01110400294 | AR74: -1.053268383 | AS74: 1.109375287 | AT74: -1.485114076 | AU74: 2.20556482 | AV74: -1.485114682e+11 | AW74: 1.000000022e+30 | AX74: -4.950382499e+13 | AY74: 1.002450629e+30 | AZ74: 0.3015468504 | BA74: 11.10789323 | BB74: 0.1053755329 | BC74: 1.053268858 | BD74: 1.485114413 | BE74: 1000000011027828 | BF74: 1.001224565e+15 | BG74: 0.08999291775 | BK74: V(t) | BL74: 4 | BM74: -0.0001484131268 | BN74: -2.656059805e-05 | BO74: 0.0001018626678 | BP74: 0.0002050864705 | BQ74: 0.0002575746203 | BR74: 0.0002463422504 | BS74: 0.0001741680988 | BT74: 5.890708651e-05 | BU74: -7.092675199e-05 | BV74: -0.0001832142596 | BW74: -0.0002501770072 | BX74: -0.0002552493056 | BY74: -0.0001971763359 | BZ74: -9.032457502e-05 | CA74: 3.887227898e-05 | CB74: 0.0001584526505 | CC74: 0.0002388339532 | CD74: 0.0002601309268 | CE74: 0.0002170749844 | CF74: 0.000120317591 | CG74: -6.204766903e-06 | CH74: -0.0001311921484 | CI74: -0.0002237243451 | CJ74: -0.0002609101278 | CK74: -0.0002335502307 | CL74: -0.0001484131268 | CM74: -2.656059805e-05 | CN74: 0.0001018626678 | CO74: 0.0002050864705 | CP74: 0.0002575746203 | CQ74: 0.0002463422504 | CR74: 0.0001741680988 | CS74: 5.890708651e-05 | CT74: -7.092675199e-05 | CU74: -0.0001832142596 | CV74: -0.0002501770072 | CW74: -0.0002552493056 | CX74: -0.0001971763359 | CY74: -9.032457502e-05 | CZ74: 3.887227898e-05 | DA74: 0.0001584526505 | DB74: 0.0002388339532 | DC74: 0.0002601309268 | DD74: 0.0002170749844 | DE74: 0.000120317591 | DF74: -6.204766903e-06 | DG74: -0.0001311921484 | DH74: -0.0002237243451 | DI74: -0.0002609101278 | DJ74: -0.0002335502307 | DK74: -0.0001484131268 | DL74: -2.656059805e-05 | DM74: 0.0001018626678 | DN74: 0.0002050864705 | DO74: 0.0002575746203 | DP74: 0.0002463422504 | DQ74: 0.0001741680988 | DR74: 5.890708651e-05 | DS74: -7.092675199e-05 | DT74: -0.0001832142596 | DU74: -0.0002501770072 | DV74: -0.0002552493056 | DW74: -0.0001971763359 | DX74: -9.032457502e-05 | DY74: 3.887227898e-05 | DZ74: 0.0001584526505 | EA74: 0.0002388339532 | EB74: 0.0002601309268 | EC74: 0.0002170749844 | ED74: 0.000120317591 | EE74: -6.204766903e-06 | EF74: -0.0001311921484 | EG74: -0.0002237243451 | EH74: -0.0002609101278 | EI74: -0.0002335502307 | EJ74: -0.0001484131268 | EK74: -2.656059805e-05 | EL74: 0.0001018626678 | EM74: 0.0002050864705 | EN74: 0.0002575746203 | EO74: 0.0002463422504 | EP74: 0.0001741680988 | EQ74: 5.890708651e-05 | ER74: -7.092675199e-05 | ES74: -0.0001832142596 | ET74: -0.0002501770072 | EU74: -0.0002552493056 | EV74: -0.0001971763359 | EW74: -9.032457502e-05 | EX74: 3.887227898e-05 | EY74: 0.0001584526505 | EZ74: 0.0002388339532 | FA74: 0.0002601309268 | FB74: 0.0002170749844 | FC74: 0.000120317591 | FD74: -6.204766903e-06 | FE74: -0.0001311921484 | FF74: -0.0002237243451 | FG74: -0.0002609101278 | FH74: -0.0002335502307 | FI74: -0.0001484131268
B75: 5 | C75: 2500000 | D75: 0 | E75: 0.1999021236 | F75: -13.98365184 | G75: -0.0001720342309 | H75: 0.0001436416664 | I75: -72.99048019 | M75: 15707963.27 | N75: 0.01042682517 | O75: 0.0001198297943 | P75: 0.01002047213 | Q75: 0.0001014098617 | R75: 0.0009341765544 | S75: 1.872685835e-06 | T75: -47954013.97 | U75: 1e+30 | V75: -2.121908828e+10 | W75: 1e+30 | X75: 571.6706053 | Y75: -684.6684211 | Z75: 0.0109466796 | AA75: 0.01007024636 | AB75: 0.001368461119 | AC75: 1e+15 | AD75: 1e+15 | AE75: 0.001121136734 | AF75: 50.13947583 | AG75: 0.0007185599821 | AH75: 0.0008605923129 | AM75: 5 | AN75: 1096.680598 | AO75: 6890.647422 | AP75: -0.1029204022 | AQ75: 0.0106037203 | AR75: -1.029245366 | AS75: 1.059347023 | AT75: -1.451241754 | AU75: 2.106103629 | AV75: -1.451242374e+11 | AW75: 1.000000021e+30 | AX75: -4.837474811e+13 | AY75: 1.002340116e+30 | AZ75: 0.3157738672 | BA75: 11.3667148 | BB75: 0.1029743672 | BC75: 1.029245852 | BD75: 1.451242099 | BE75: 1.000000011e+15 | BF75: 1.001169374e+15 | BG75: 0.08794223843 | BK75: V(t) | BL75: 5 | BM75: -0.0001720342309 | BN75: -5.474816332e-05 | BO75: 8.344984186e-05 | BP75: 0.0001897728438 | BQ75: 0.0002236090696 | BR75: 0.0001720342309 | BS75: 5.474816332e-05 | BT75: -8.344984186e-05 | BU75: -0.0001897728438 | BV75: -0.0002236090696 | BW75: -0.0001720342309 | BX75: -5.474816332e-05 | BY75: 8.344984186e-05 | BZ75: 0.0001897728438 | CA75: 0.0002236090696 | CB75: 0.0001720342309 | CC75: 5.474816332e-05 | CD75: -8.344984186e-05 | CE75: -0.0001897728438 | CF75: -0.0002236090696 | CG75: -0.0001720342309 | CH75: -5.474816332e-05 | CI75: 8.344984186e-05 | CJ75: 0.0001897728438 | CK75: 0.0002236090696 | CL75: 0.0001720342309 | CM75: 5.474816332e-05 | CN75: -8.344984186e-05 | CO75: -0.0001897728438 | CP75: -0.0002236090696 | CQ75: -0.0001720342309 | CR75: -5.474816332e-05 | CS75: 8.344984186e-05 | CT75: 0.0001897728438 | CU75: 0.0002236090696 | CV75: 0.0001720342309 | CW75: 5.474816332e-05 | CX75: -8.344984186e-05 | CY75: -0.0001897728438 | CZ75: -0.0002236090696 | DA75: -0.0001720342309 | DB75: -5.474816332e-05 | DC75: 8.344984186e-05 | DD75: 0.0001897728438 | DE75: 0.0002236090696 | DF75: 0.0001720342309 | DG75: 5.474816332e-05 | DH75: -8.344984186e-05 | DI75: -0.0001897728438 | DJ75: -0.0002236090696 | DK75: -0.0001720342309 | DL75: -5.474816332e-05 | DM75: 8.344984186e-05 | DN75: 0.0001897728438 | DO75: 0.0002236090696 | DP75: 0.0001720342309 | DQ75: 5.474816332e-05 | DR75: -8.344984186e-05 | DS75: -0.0001897728438 | DT75: -0.0002236090696 | DU75: -0.0001720342309 | DV75: -5.474816332e-05 | DW75: 8.344984186e-05 | DX75: 0.0001897728438 | DY75: 0.0002236090696 | DZ75: 0.0001720342309 | EA75: 5.474816332e-05 | EB75: -8.344984186e-05 | EC75: -0.0001897728438 | ED75: -0.0002236090696 | EE75: -0.0001720342309 | EF75: -5.474816332e-05 | EG75: 8.344984186e-05 | EH75: 0.0001897728438 | EI75: 0.0002236090696 | EJ75: 0.0001720342309 | EK75: 5.474816332e-05 | EL75: -8.344984186e-05 | EM75: -0.0001897728438 | EN75: -0.0002236090696 | EO75: -0.0001720342309 | EP75: -5.474816332e-05 | EQ75: 8.344984186e-05 | ER75: 0.0001897728438 | ES75: 0.0002236090696 | ET75: 0.0001720342309 | EU75: 5.474816332e-05 | EV75: -8.344984186e-05 | EW75: -0.0001897728438 | EX75: -0.0002236090696 | EY75: -0.0001720342309 | EZ75: -5.474816332e-05 | FA75: 8.344984186e-05 | FB75: 0.0001897728438 | FC75: 0.0002236090696 | FD75: 0.0001720342309 | FE75: 5.474816332e-05 | FF75: -8.344984186e-05 | FG75: -0.0001897728438 | FH75: -0.0002236090696 | FI75: -0.0001720342309
B76: 6 | C76: 3000000 | D76: 0 | E76: 0.143717991 | F76: -16.84977725 | G76: -0.0001669491065 | H76: 9.990410091e-05 | I76: -74.21901605 | M76: 18849555.92 | N76: 0.01252874533 | O76: 0.0001680805707 | P76: 0.01219011779 | Q76: 0.0001495989718 | R76: 0.001354439115 | S76: 2.834505317e-06 | T76: -34202091.78 | U76: 1e+30 | V76: -1.768199761e+10 | W76: 1e+30 | X76: 379.3115425 | Y76: -633.8651018 | Z76: 0.01296458911 | AA76: 0.01223106585 | AB76: 0.001683598918 | AC76: 1e+15 | AD76: 1e+15 | AE76: 0.001353748722 | AF76: 59.1032542 | AG76: 0.0006951398376 | AH76: 0.001161643753 | AM76: 6 | AN76: 1122.277356 | AO76: 7051.476595 | AP76: -0.1005727949 | AQ76: 0.01012599818 | AR76: -1.005770258 | AS76: 1.011574811 | AT76: -1.418141987 | AU76: 2.011127694 | AV76: -1.418142621e+11 | AW76: 1.00000002e+30 | AX76: -4.727142306e+13 | AY76: 1.002234587e+30 | AZ76: 0.330671445 | BA76: 11.6315459 | BB76: 0.1006280189 | BC76: 1.005770755 | BD76: 1.418142339 | BE76: 1.00000001e+15 | BF76: 1.00111667e+15 | BG76: 0.0859383743 | BK76: V(t) | BL76: 6 | BM76: -0.0001669491065 | BN76: -5.331159784e-05 | BO76: 8.922414186e-05 | BP76: 0.0001833947983 | BQ76: 0.0001781539669 | BR76: 7.634250716e-05 | BS76: -6.685138158e-05 | BT76: -0.0001738076269 | BU76: -0.0001865492329 | BV76: -9.816944955e-05 | BW76: 4.342433508e-05 | BX76: 0.0001614794054 | BY76: 0.000192002506 | BZ76: 0.0001184482011 | CA76: -1.931246088e-05 | CB76: -0.0001466045573 | CC76: -0.0001944277849 | CD76: -0.0001368589537 | CE76: -5.103982368e-06 | CF76: 0.0001294176677 | CG76: 0.0001937868215 | CH76: 0.0001531113589 | CI76: 2.943993277e-05 | CJ76: -0.0001101897841 | CK76: -0.0001900897241 | CL76: -0.0001669491065 | CM76: -5.331159784e-05 | CN76: 8.922414186e-05 | CO76: 0.0001833947983 | CP76: 0.0001781539669 | CQ76: 7.634250716e-05 | CR76: -6.685138158e-05 | CS76: -0.0001738076269 | CT76: -0.0001865492329 | CU76: -9.816944955e-05 | CV76: 4.342433508e-05 | CW76: 0.0001614794054 | CX76: 0.000192002506 | CY76: 0.0001184482011 | CZ76: -1.931246088e-05 | DA76: -0.0001466045573 | DB76: -0.0001944277849 | DC76: -0.0001368589537 | DD76: -5.103982368e-06 | DE76: 0.0001294176677 | DF76: 0.0001937868215 | DG76: 0.0001531113589 | DH76: 2.943993277e-05 | DI76: -0.0001101897841 | DJ76: -0.0001900897241 | DK76: -0.0001669491065 | DL76: -5.331159784e-05 | DM76: 8.922414186e-05 | DN76: 0.0001833947983 | DO76: 0.0001781539669 | DP76: 7.634250716e-05 | DQ76: -6.685138158e-05 | DR76: -0.0001738076269 | DS76: -0.0001865492329 | DT76: -9.816944955e-05 | DU76: 4.342433508e-05 | DV76: 0.0001614794054 | DW76: 0.000192002506 | DX76: 0.0001184482011 | DY76: -1.931246088e-05 | DZ76: -0.0001466045573 | EA76: -0.0001944277849 | EB76: -0.0001368589537 | EC76: -5.103982368e-06 | ED76: 0.0001294176677 | EE76: 0.0001937868215 | EF76: 0.0001531113589 | EG76: 2.943993277e-05 | EH76: -0.0001101897841 | EI76: -0.0001900897241 | EJ76: -0.0001669491065 | EK76: -5.331159784e-05 | EL76: 8.922414186e-05 | EM76: 0.0001833947983 | EN76: 0.0001781539669 | EO76: 7.634250716e-05 | EP76: -6.685138158e-05 | EQ76: -0.0001738076269 | ER76: -0.0001865492329 | ES76: -9.816944955e-05 | ET76: 4.342433508e-05 | EU76: 0.0001614794054 | EV76: 0.000192002506 | EW76: 0.0001184482011 | EX76: -1.931246088e-05 | EY76: -0.0001466045573 | EZ76: -0.0001944277849 | FA76: -0.0001368589537 | FB76: -5.103982368e-06 | FC76: 0.0001294176677 | FD76: 0.0001937868215 | FE76: 0.0001531113589 | FF76: 2.943993277e-05 | FG76: -0.0001101897841 | FH76: -0.0001900897241 | FI76: -0.0001669491065
B77: 7 | C77: 3500000 | D77: 0 | E77: 0.1019908794 | F77: -19.82877327 | G77: -0.0001474193294 | H77: 6.955842717e-05 | I77: -75.75594822 | M77: 21991148.58 | N77: 0.01462851547 | O77: 0.0002251045761 | P77: 0.0143382633 | Q77: 0.0002065857944 | R77: 0.001744386449 | S77: 4.042884082e-06 | T77: -23481692.31 | U77: 1e+30 | V77: -1.515541451e+10 | W77: 1e+30 | X77: 266.9967114 | Y77: -565.8620781 | Z77: 0.01500348547 | AA77: 0.01437309272 | AB77: 0.002010692439 | AC77: 1e+15 | AD77: 1e+15 | AE77: 0.001598237264 | AF77: 64.7401582 | AG77: 0.0006820063478 | AH77: 0.001445416789 | AM77: 7 | AN77: 1148.471548 | AO77: 7216.059555 | AP77: -0.09827872655 | AQ77: 0.009669819204 | AR77: -0.9828305619 | AS77: 0.9659569134 | AT77: -1.385797154 | AU77: 1.920434751 | AV77: -1.385797803e+11 | AW77: 1.000000019e+30 | AX77: -4.619326251e+13 | AY77: 1.002133818e+30 | AZ77: 0.3462711244 | BA77: 11.90252454 | BB77: 0.09833523887 | BC77: 0.9828310706 | BD77: 1.385797515 | BE77: 1.00000001e+15 | BF77: 1.00106634e+15 | BG77: 0.08398025859 | BK77: V(t) | BL77: 7 | BM77: -0.0001474193294 | BN77: -4.037292785e-05 | BO77: 9.594998393e-05 | BP77: 0.000162694571 | BQ77: 0.0001114608612 | BR77: -2.059891733e-05 | BS77: -0.0001377213493 | BT77: -0.0001549748666 | BU77: -5.984804622e-05 | BV77: 7.867770579e-05 | BW77: 0.0001601501605 | BX77: 0.0001254894027 | BY77: -1.702489818e-07 | BZ77: -0.0001257064443 | CA77: -0.0001600863575 | CB77: -7.837932515e-05 | CC77: 6.016463322e-05 | CD77: 0.0001550800862 | CE77: 0.0001375389014 | CF77: 2.026110429e-05 | CG77: -0.0001117090735 | CH77: -0.000162673191 | CI77: -9.567451529e-05 | CJ77: 4.070272844e-05 | CK77: 0.0001475643064 | CL77: 0.0001474193294 | CM77: 4.037292785e-05 | CN77: -9.594998393e-05 | CO77: -0.000162694571 | CP77: -0.0001114608612 | CQ77: 2.059891733e-05 | CR77: 0.0001377213493 | CS77: 0.0001549748666 | CT77: 5.984804622e-05 | CU77: -7.867770579e-05 | CV77: -0.0001601501605 | CW77: -0.0001254894027 | CX77: 1.702489818e-07 | CY77: 0.0001257064443 | CZ77: 0.0001600863575 | DA77: 7.837932515e-05 | DB77: -6.016463322e-05 | DC77: -0.0001550800862 | DD77: -0.0001375389014 | DE77: -2.026110429e-05 | DF77: 0.0001117090735 | DG77: 0.000162673191 | DH77: 9.567451529e-05 | DI77: -4.070272844e-05 | DJ77: -0.0001475643064 | DK77: -0.0001474193294 | DL77: -4.037292785e-05 | DM77: 9.594998393e-05 | DN77: 0.000162694571 | DO77: 0.0001114608612 | DP77: -2.059891733e-05 | DQ77: -0.0001377213493 | DR77: -0.0001549748666 | DS77: -5.984804622e-05 | DT77: 7.867770579e-05 | DU77: 0.0001601501605 | DV77: 0.0001254894027 | DW77: -1.702489818e-07 | DX77: -0.0001257064443 | DY77: -0.0001600863575 | DZ77: -7.837932515e-05 | EA77: 6.016463322e-05 | EB77: 0.0001550800862 | EC77: 0.0001375389014 | ED77: 2.026110429e-05 | EE77: -0.0001117090735 | EF77: -0.000162673191 | EG77: -9.567451529e-05 | EH77: 4.070272844e-05 | EI77: 0.0001475643064 | EJ77: 0.0001474193294 | EK77: 4.037292785e-05 | EL77: -9.594998393e-05 | EM77: -0.000162694571 | EN77: -0.0001114608612 | EO77: 2.059891733e-05 | EP77: 0.0001377213493 | EQ77: 0.0001549748666 | ER77: 5.984804622e-05 | ES77: -7.867770579e-05 | ET77: -0.0001601501605 | EU77: -0.0001254894027 | EV77: 1.702489818e-07 | EW77: 0.0001257064443 | EX77: 0.0001600863575 | EY77: 7.837932515e-05 | EZ77: -6.016463322e-05 | FA77: -0.0001550800862 | FB77: -0.0001375389014 | FC77: -2.026110429e-05 | FD77: 0.0001117090735 | FE77: 0.000162673191 | FF77: 9.567451529e-05 | FG77: -4.070272844e-05 | FH77: -0.0001475643064 | FI77: -0.0001474193294
B78: 8 | C78: 4000000 | D78: 0 | E78: 0.07001068003 | F78: -23.09671408 | G78: -0.000120308944 | H78: 4.717835314e-05 | I78: -77.77282514 | M78: 25132741.23 | N78: 0.01672694186 | O78: 0.000290901695 | P78: 0.0164729712 | Q78: 0.0002723587803 | R78: 0.002115386765 | S78: 5.474861166e-06 | T78: -14655994.54 | U78: 1e+30 | V78: -1.326039865e+10 | W78: 1e+30 | X78: 197.7832857 | Y78: -504.364749 | Z78: 0.0170558405 | AA78: 0.01650329604 | AB78: 0.002339842124 | AC78: 1e+15 | AD78: 1e+15 | AE78: 0.001845841673 | AF78: 68.58770122 | AG78: 0.0006738736592 | AH78: 0.001718437015 | AM78: 8 | AN78: 1175.277117 | AO78: 7384.483916 | AP78: -0.09603697597 | AQ78: 0.009234211865 | AR78: -0.9604140666 | AS78: 0.9223961793 | AT78: -1.354190037 | AU78: 1.833831656 | AV78: -1.354190701e+11 | AW78: 1.000000018e+30 | AX78: -4.513969251e+13 | AY78: 1.002037592e+30 | AZ78: 0.3626059234 | BA78: 12.17979181 | BB78: 0.09609480665 | BC78: 0.9604145872 | BD78: 1.354190406 | BE78: 1.000000009e+15 | BF78: 1.001018277e+15 | BG78: 0.08206684893 | BK78: V(t) | BL78: 8 | BM78: -0.000120308944 | BN78: -2.463075483e-05 | BO78: 9.391330715e-05 | BP78: 0.0001252732876 | BQ78: 4.033626121e-05 | BR78: -8.204678845e-05 | BS78: -0.0001282619966 | BT78: -5.540564066e-05 | BU78: 6.888634288e-05 | BV78: 0.0001292279373 | BW78: 6.960124006e-05 | BX78: -5.463951853e-05 | BY78: -0.0001281558762 | BZ78: -8.269918632e-05 | CA78: 3.953099634e-05 | CB78: 0.0001250627205 | CC78: 9.449291701e-05 | CD78: -2.379904672e-05 | CE78: -0.0001199972509 | CF78: -0.000104796438 | CG78: 7.691771916e-06 | CH78: 0.0001130393529 | CI78: 0.0001134472565 | CJ78: 8.536806726e-06 | CK78: -0.0001042987569 | CL78: -0.000120308944 | CM78: -2.463075483e-05 | CN78: 9.391330715e-05 | CO78: 0.0001252732876 | CP78: 4.033626121e-05 | CQ78: -8.204678845e-05 | CR78: -0.0001282619966 | CS78: -5.540564066e-05 | CT78: 6.888634288e-05 | CU78: 0.0001292279373 | CV78: 6.960124006e-05 | CW78: -5.463951853e-05 | CX78: -0.0001281558762 | CY78: -8.269918632e-05 | CZ78: 3.953099634e-05 | DA78: 0.0001250627205 | DB78: 9.449291701e-05 | DC78: -2.379904672e-05 | DD78: -0.0001199972509 | DE78: -0.000104796438 | DF78: 7.691771916e-06 | DG78: 0.0001130393529 | DH78: 0.0001134472565 | DI78: 8.536806726e-06 | DJ78: -0.0001042987569 | DK78: -0.000120308944 | DL78: -2.463075483e-05 | DM78: 9.391330715e-05 | DN78: 0.0001252732876 | DO78: 4.033626121e-05 | DP78: -8.204678845e-05 | DQ78: -0.0001282619966 | DR78: -5.540564066e-05 | DS78: 6.888634288e-05 | DT78: 0.0001292279373 | DU78: 6.960124006e-05 | DV78: -5.463951853e-05 | DW78: -0.0001281558762 | DX78: -8.269918632e-05 | DY78: 3.953099634e-05 | DZ78: 0.0001250627205 | EA78: 9.449291701e-05 | EB78: -2.379904672e-05 | EC78: -0.0001199972509 | ED78: -0.000104796438 | EE78: 7.691771916e-06 | EF78: 0.0001130393529 | EG78: 0.0001134472565 | EH78: 8.536806726e-06 | EI78: -0.0001042987569 | EJ78: -0.000120308944 | EK78: -2.463075483e-05 | EL78: 9.391330715e-05 | EM78: 0.0001252732876 | EN78: 4.033626121e-05 | EO78: -8.204678845e-05 | EP78: -0.0001282619966 | EQ78: -5.540564066e-05 | ER78: 6.888634288e-05 | ES78: 0.0001292279373 | ET78: 6.960124006e-05 | EU78: -5.463951853e-05 | EV78: -0.0001281558762 | EW78: -8.269918632e-05 | EX78: 3.953099634e-05 | EY78: 0.0001250627205 | EZ78: 9.449291701e-05 | FA78: -2.379904672e-05 | FB78: -0.0001199972509 | FC78: -0.000104796438 | FD78: 7.691771916e-06 | FE78: 0.0001130393529 | FF78: 0.0001134472565 | FG78: 8.536806726e-06 | FH78: -0.0001042987569 | FI78: -0.000120308944
B79: 9 | C79: 4500000 | D79: 0 | E79: 0.04516620711 | F79: -26.90372757 | G79: -8.962548164e-05 | H79: 3.019243152e-05 | I79: -80.48453163 | M79: 28274333.88 | N79: 0.0188244724 | O79: 0.0003654718723 | P79: 0.01859872071 | Q79: 0.000346912412 | R79: 0.002473755737 | S79: 7.119467446e-06 | T79: -7093431.249 | U79: 1e+30 | V79: -1.178642761e+10 | W79: 1e+30 | X79: 152.4631451 | Y79: -452.5830523 | Z79: 0.01911731865 | AA79: 0.01862558488 | AB79: 0.002668233019 | AC79: 1000000000000000 | AD79: 1000000000069460 | AE79: 0.002093918611 | AF79: 71.38270295 | AG79: 0.00066847392 | AH79: 0.001984348197 | AM79: 9 | AN79: 1202.708335 | AO79: 7556.839338 | AP79: -0.09384634976 | AQ79: 0.008818248475 | AR79: -0.9385088387 | AS79: 0.8807998403 | AT79: -1.32330381 | AU79: 1.751133974 | AV79: -1.32330449e+11 | AW79: 1.000000018e+30 | AX79: -4.41101522e+13 | AY79: 1.001945706e+30 | AZ79: 0.3797104058 | BA79: 12.46349191 | BB79: 0.09390552952 | BC79: 0.9385093714 | BD79: 1.323304188 | BE79: 1.000000009e+15 | BF79: 1.00097238e+15 | BG79: 0.08019712674 | BK79: V(t) | BL79: 9 | BM79: -8.962548164e-05 | BN79: -1.084174526e-05 | BO79: 8.039310041e-05 | BP79: 7.930117994e-05 | BQ79: -1.286349998e-05 | BR79: -9.025520376e-05 | BS79: -6.399409345e-05 | BT79: 3.576048421e-05 | BU79: 9.444624072e-05 | BV79: 4.466602272e-05 | BW79: -5.64105057e-05 | BX79: -9.270287302e-05 | BY79: -2.253142151e-05 | BZ79: 7.351604765e-05 | CA79: 8.513464288e-05 | CB79: -1.018911781e-06 | CC79: -8.600230595e-05 | CD79: -7.221709002e-05 | CE79: 2.45052231e-05 | CF79: 9.308472308e-05 | CG79: 5.47618718e-05 | CH79: -4.645178112e-05 | CI79: -9.431828472e-05 | CJ79: -3.386576378e-05 | CK79: 6.54796029e-05 | CL79: 8.962548164e-05 | CM79: 1.084174526e-05 | CN79: -8.039310041e-05 | CO79: -7.930117994e-05 | CP79: 1.286349998e-05 | CQ79: 9.025520376e-05 | CR79: 6.399409345e-05 | CS79: -3.576048421e-05 | CT79: -9.444624072e-05 | CU79: -4.466602272e-05 | CV79: 5.64105057e-05 | CW79: 9.270287302e-05 | CX79: 2.253142151e-05 | CY79: -7.351604765e-05 | CZ79: -8.513464288e-05 | DA79: 1.018911781e-06 | DB79: 8.600230595e-05 | DC79: 7.221709002e-05 | DD79: -2.45052231e-05 | DE79: -9.308472308e-05 | DF79: -5.47618718e-05 | DG79: 4.645178112e-05 | DH79: 9.431828472e-05 | DI79: 3.386576378e-05 | DJ79: -6.54796029e-05 | DK79: -8.962548164e-05 | DL79: -1.084174526e-05 | DM79: 8.039310041e-05 | DN79: 7.930117994e-05 | DO79: -1.286349998e-05 | DP79: -9.025520376e-05 | DQ79: -6.399409345e-05 | DR79: 3.576048421e-05 | DS79: 9.444624072e-05 | DT79: 4.466602272e-05 | DU79: -5.64105057e-05 | DV79: -9.270287302e-05 | DW79: -2.253142151e-05 | DX79: 7.351604765e-05 | DY79: 8.513464288e-05 | DZ79: -1.018911781e-06 | EA79: -8.600230595e-05 | EB79: -7.221709002e-05 | EC79: 2.45052231e-05 | ED79: 9.308472308e-05 | EE79: 5.47618718e-05 | EF79: -4.645178112e-05 | EG79: -9.431828472e-05 | EH79: -3.386576378e-05 | EI79: 6.54796029e-05 | EJ79: 8.962548164e-05 | EK79: 1.084174526e-05 | EL79: -8.039310041e-05 | EM79: -7.930117994e-05 | EN79: 1.286349998e-05 | EO79: 9.025520376e-05 | EP79: 6.399409345e-05 | EQ79: -3.576048421e-05 | ER79: -9.444624072e-05 | ES79: -4.466602272e-05 | ET79: 5.64105057e-05 | EU79: 9.270287302e-05 | EV79: 2.253142151e-05 | EW79: -7.351604765e-05 | EX79: -8.513464288e-05 | EY79: 1.018911781e-06 | EZ79: 8.600230595e-05 | FA79: 7.221709002e-05 | FB79: -2.45052231e-05 | FC79: -9.308472308e-05 | FD79: -5.47618718e-05 | FE79: 4.645178112e-05 | FF79: 9.431828472e-05 | FG79: 3.386576378e-05 | FH79: -6.54796029e-05 | FI79: -8.962548164e-05
B80: 10 | C80: 5000000 | D80: 0 | E80: 0.02586923838 | F80: -31.74432715 | G80: -5.808477862e-05 | H80: 1.719524721e-05 | I80: -84.35390974 | M80: 31415926.54 | N80: 0.02092137585 | O80: 0.0004488150788 | P80: 0.02071819933 | Q80: 0.0004302437835 | R80: 0.002823282767 | S80: 8.970925585e-06 | T80: -415062.0825 | U80: 1e+30 | V80: -1.060718795e+10 | W80: 1e+30 | X80: 121.2224453 | Y80: -409.4840168 | Z80: 0.02118525616 | AA80: 0.02074231866 | AB80: 0.002995150344 | AC80: 1000000000000000 | AD80: 1e+15 | AE80: 0.002341644002 | AF80: 73.50929388 | AG80: 0.0006646986262 | AH80: 0.002245322331 | AM80: 10 | AN80: 1230.779803 | AO80: 7733.217571 | AP80: -0.09170568178 | AQ80: 0.008421043181 | AR80: -0.9171032171 | AS80: 0.8410793108 | AT80: -1.293122032 | AU80: 1.67216559 | AV80: -1.293122728e+11 | AW80: 1.000000017e+30 | AX80: -4.310409351e+13 | AY80: 1.001857963e+30 | AZ80: 0.397620753 | BA80: 12.7537722 | BB80: 0.09176624206 | BC80: 0.9171037623 | BD80: 1.293122419 | BE80: 1.000000008e+15 | BF80: 1.00092855e+15 | BG80: 0.07837009666 | BK80: V(t) | BL80: 10 | BM80: -5.808477862e-05 | BN80: -1.595531797e-06 | BO80: 5.709868573e-05 | BP80: 3.688446029e-05 | BQ80: -3.430283562e-05 | BR80: -5.808477862e-05 | BS80: -1.595531797e-06 | BT80: 5.709868573e-05 | BU80: 3.688446029e-05 | BV80: -3.430283562e-05 | BW80: -5.808477862e-05 | BX80: -1.595531797e-06 | BY80: 5.709868573e-05 | BZ80: 3.688446029e-05 | CA80: -3.430283562e-05 | CB80: -5.808477862e-05 | CC80: -1.595531797e-06 | CD80: 5.709868573e-05 | CE80: 3.688446029e-05 | CF80: -3.430283562e-05 | CG80: -5.808477862e-05 | CH80: -1.595531797e-06 | CI80: 5.709868573e-05 | CJ80: 3.688446029e-05 | CK80: -3.430283562e-05 | CL80: -5.808477862e-05 | CM80: -1.595531797e-06 | CN80: 5.709868573e-05 | CO80: 3.688446029e-05 | CP80: -3.430283562e-05 | CQ80: -5.808477862e-05 | CR80: -1.595531797e-06 | CS80: 5.709868573e-05 | CT80: 3.688446029e-05 | CU80: -3.430283562e-05 | CV80: -5.808477862e-05 | CW80: -1.595531797e-06 | CX80: 5.709868573e-05 | CY80: 3.688446029e-05 | CZ80: -3.430283562e-05 | DA80: -5.808477862e-05 | DB80: -1.595531797e-06 | DC80: 5.709868573e-05 | DD80: 3.688446029e-05 | DE80: -3.430283562e-05 | DF80: -5.808477862e-05 | DG80: -1.595531797e-06 | DH80: 5.709868573e-05 | DI80: 3.688446029e-05 | DJ80: -3.430283562e-05 | DK80: -5.808477862e-05 | DL80: -1.595531797e-06 | DM80: 5.709868573e-05 | DN80: 3.688446029e-05 | DO80: -3.430283562e-05 | DP80: -5.808477862e-05 | DQ80: -1.595531797e-06 | DR80: 5.709868573e-05 | DS80: 3.688446029e-05 | DT80: -3.430283562e-05 | DU80: -5.808477862e-05 | DV80: -1.595531797e-06 | DW80: 5.709868573e-05 | DX80: 3.688446029e-05 | DY80: -3.430283562e-05 | DZ80: -5.808477862e-05 | EA80: -1.595531797e-06 | EB80: 5.709868573e-05 | EC80: 3.688446029e-05 | ED80: -3.430283562e-05 | EE80: -5.808477862e-05 | EF80: -1.595531797e-06 | EG80: 5.709868573e-05 | EH80: 3.688446029e-05 | EI80: -3.430283562e-05 | EJ80: -5.808477862e-05 | EK80: -1.595531797e-06 | EL80: 5.709868573e-05 | EM80: 3.688446029e-05 | EN80: -3.430283562e-05 | EO80: -5.808477862e-05 | EP80: -1.595531797e-06 | EQ80: 5.709868573e-05 | ER80: 3.688446029e-05 | ES80: -3.430283562e-05 | ET80: -5.808477862e-05 | EU80: -1.595531797e-06 | EV80: 5.709868573e-05 | EW80: 3.688446029e-05 | EX80: -3.430283562e-05 | EY80: -5.808477862e-05 | EZ80: -1.595531797e-06 | FA80: 5.709868573e-05 | FB80: 3.688446029e-05 | FC80: -3.430283562e-05 | FD80: -5.808477862e-05 | FE80: -1.595531797e-06 | FF80: 5.709868573e-05 | FG80: 3.688446029e-05 | FH80: -3.430283562e-05 | FI80: -5.808477862e-05
B81: 11 | C81: 5500000 | D81: 0 | E81: 0.01106686211 | F81: -39.11951003 | G81: -2.769736574e-05 | H81: 7.325729437e-06 | I81: -90.8575716 | M81: 34557519.19 | N81: 0.02301782325 | O81: 0.0005409312981 | P81: 0.02283311732 | Q81: 0.0005223512463 | R81: 0.003166379295 | S81: 1.102595784e-05 | T81: 5620256.809 | U81: 1e+30 | V81: -9642298375 | W81: 1e+30 | X81: 98.77170097 | Y81: -373.4393893 | Z81: 0.02325792979 | AA81: 0.02285500484 | AB81: 0.003320535776 | AC81: 1000000000000000 | AD81: 1000000000046487 | AE81: 0.002588790592 | AF81: 75.18497705 | AG81: 0.0006619518131 | AH81: 0.002502729814 | AM81: 11 | AN81: 1259.506464 | AO81: 7913.712511 | AP81: -0.08961383244 | AQ81: 0.008041750076 | AR81: -0.8961858067 | AS81: 0.8031500002 | AT81: -1.263628635 | AU81: 1.596758327 | AV81: -1.263629347e+11 | AW81: 1.000000016e+30 | AX81: -4.212098088e+13 | AY81: 1.001774177e+30 | AZ81: 0.416374839 | BA81: 13.05078332 | BB81: 0.08967580541 | BC81: 0.8961863646 | BD81: 1.263629031 | BE81: 1.000000008e+15 | BF81: 1.000886695e+15 | BG81: 0.07658478611 | BK81: V(t) | BL81: 11 | BM81: -2.769736574e-05 | BN81: 2.006001824e-06 | BO81: 2.844914026e-05 | BP81: 8.655672778e-06 | BQ81: -2.520531758e-05 | BR81: -1.810168386e-05 | BS81: 1.842148294e-05 | BT81: 2.500536724e-05 | BU81: -9.050405768e-06 | BV81: -2.83971211e-05 | BW81: -1.591773997e-06 | BX81: 2.780058369e-05 | BY81: 1.201039383e-05 | BZ81: -2.329953692e-05 | CA81: -2.074218955e-05 | CB81: 1.552613943e-05 | CC81: 2.656080638e-05 | CD81: -5.572141799e-06 | CE81: -2.86490369e-05 | CF81: -5.164446591e-06 | CG81: 2.671359531e-05 | CH81: 1.517570381e-05 | CI81: -2.102630865e-05 | CJ81: -2.305557852e-05 | CK81: 1.238593943e-05 | CL81: 2.769736574e-05 | CM81: -2.006001824e-06 | CN81: -2.844914026e-05 | CO81: -8.655672778e-06 | CP81: 2.520531758e-05 | CQ81: 1.810168386e-05 | CR81: -1.842148294e-05 | CS81: -2.500536724e-05 | CT81: 9.050405768e-06 | CU81: 2.83971211e-05 | CV81: 1.591773997e-06 | CW81: -2.780058369e-05 | CX81: -1.201039383e-05 | CY81: 2.329953692e-05 | CZ81: 2.074218955e-05 | DA81: -1.552613943e-05 | DB81: -2.656080638e-05 | DC81: 5.572141799e-06 | DD81: 2.86490369e-05 | DE81: 5.164446591e-06 | DF81: -2.671359531e-05 | DG81: -1.517570381e-05 | DH81: 2.102630865e-05 | DI81: 2.305557852e-05 | DJ81: -1.238593943e-05 | DK81: -2.769736574e-05 | DL81: 2.006001824e-06 | DM81: 2.844914026e-05 | DN81: 8.655672778e-06 | DO81: -2.520531758e-05 | DP81: -1.810168386e-05 | DQ81: 1.842148294e-05 | DR81: 2.500536724e-05 | DS81: -9.050405768e-06 | DT81: -2.83971211e-05 | DU81: -1.591773997e-06 | DV81: 2.780058369e-05 | DW81: 1.201039383e-05 | DX81: -2.329953692e-05 | DY81: -2.074218955e-05 | DZ81: 1.552613943e-05 | EA81: 2.656080638e-05 | EB81: -5.572141799e-06 | EC81: -2.86490369e-05 | ED81: -5.164446591e-06 | EE81: 2.671359531e-05 | EF81: 1.517570381e-05 | EG81: -2.102630865e-05 | EH81: -2.305557852e-05 | EI81: 1.238593943e-05 | EJ81: 2.769736574e-05 | EK81: -2.006001824e-06 | EL81: -2.844914026e-05 | EM81: -8.655672778e-06 | EN81: 2.520531758e-05 | EO81: 1.810168386e-05 | EP81: -1.842148294e-05 | EQ81: -2.500536724e-05 | ER81: 9.050405768e-06 | ES81: 2.83971211e-05 | ET81: 1.591773997e-06 | EU81: -2.780058369e-05 | EV81: -1.201039383e-05 | EW81: 2.329953692e-05 | EX81: 2.074218955e-05 | EY81: -1.552613943e-05 | EZ81: -2.656080638e-05 | FA81: 5.572141799e-06 | FB81: 2.86490369e-05 | FC81: 5.164446591e-06 | FD81: -2.671359531e-05 | FE81: -1.517570381e-05 | FF81: 2.102630865e-05 | FG81: 2.305557852e-05 | FH81: -1.238593943e-05 | FI81: -2.769736574e-05
B82: 12 | C82: 6000000 | D82: 0 | E82: 7.92263526e-17 | F82: -322.0226068 | G82: -2.184648365e-19 | H82: 5.22805971e-20 | I82: -372.970515 | M82: 37699111.84 | N82: 0.02511392859 | O82: 0.0006418205202 | P82: 0.02494461482 | Q82: 0.0006232338084 | R82: 0.003504652946 | S82: 1.328259227e-05 | T82: 11173287.99 | U82: 1e+30 | V82: -8838171372 | W82: 1e+30 | X82: 82.084603 | Y82: -343.006782 | Z82: 0.02533417692 | AA82: 0.02496465118 | AB82: 0.003644529088 | AC82: 1e+15 | AD82: 1e+15 | AE82: 0.00283533636 | AF82: 76.54170881 | AG82: 0.0006598889812 | AH82: 0.002757476892 | AM82: 12 | AN82: 1288.903612 | AO82: 8098.42024 | AP82: -0.08756968819 | AQ82: 0.007679561401 | AR82: -0.8757454724 | AS82: 0.7669311324 | AT82: -1.234807919 | AU82: 1.524751596 | AV82: -1.234808648e+11 | AW82: 1.000000015e+30 | AX82: -4.116029095e+13 | AY82: 1.00169417e+30 | AZ82: 0.4360123088 | BA82: 13.35467919 | BB82: 0.08763310676 | BC82: 0.8757460434 | BD82: 1.234808324 | BE82: 1000000007623762 | BF82: 1.000846726e+15 | BG82: 0.07484024468 | BK82: V(t) | BL82: 12 | BM82: -2.184648365e-19 | BN82: 3.845991271e-20 | BO82: 2.232946723e-19 | BP82: -1.041833574e-20 | BQ82: -2.246030177e-19 | BR82: -1.77875446e-20 | BS82: 2.223692394e-19 | BT82: 4.571290473e-20 | BU82: -2.166285653e-19 | BV82: -7.291734506e-20 | BW82: 2.074715294e-19 | BX82: 9.897183529e-20 | BY82: -1.950425434e-19 | BZ82: -1.234654806e-19 | CA82: 1.795376201e-19 | CB82: 1.460120014e-19 | CC82: -1.612012813e-19 | CD82: -1.662558258e-19 | CE82: 1.403227019e-19 | CF82: 1.838776965e-19 | CG82: -1.172311497e-19 | CH82: -1.985997061e-19 | CI82: 9.229079225e-20 | CJ82: 2.101896797e-19 | CK82: -6.589495387e-20 | CL82: -2.184648365e-19 | CM82: 3.845991271e-20 | CN82: 2.232946723e-19 | CO82: -1.041833574e-20 | CP82: -2.246030177e-19 | CQ82: -1.77875446e-20 | CR82: 2.223692394e-19 | CS82: 4.571290473e-20 | CT82: -2.166285653e-19 | CU82: -7.291734506e-20 | CV82: 2.074715294e-19 | CW82: 9.897183529e-20 | CX82: -1.950425434e-19 | CY82: -1.234654806e-19 | CZ82: 1.795376201e-19 | DA82: 1.460120014e-19 | DB82: -1.612012813e-19 | DC82: -1.662558258e-19 | DD82: 1.403227019e-19 | DE82: 1.838776965e-19 | DF82: -1.172311497e-19 | DG82: -1.985997061e-19 | DH82: 9.229079225e-20 | DI82: 2.101896797e-19 | DJ82: -6.589495387e-20 | DK82: -2.184648365e-19 | DL82: 3.845991271e-20 | DM82: 2.232946723e-19 | DN82: -1.041833574e-20 | DO82: -2.246030177e-19 | DP82: -1.77875446e-20 | DQ82: 2.223692394e-19 | DR82: 4.571290473e-20 | DS82: -2.166285653e-19 | DT82: -7.291734506e-20 | DU82: 2.074715294e-19 | DV82: 9.897183529e-20 | DW82: -1.950425434e-19 | DX82: -1.234654806e-19 | DY82: 1.795376201e-19 | DZ82: 1.460120014e-19 | EA82: -1.612012813e-19 | EB82: -1.662558258e-19 | EC82: 1.403227019e-19 | ED82: 1.838776965e-19 | EE82: -1.172311497e-19 | EF82: -1.985997061e-19 | EG82: 9.229079225e-20 | EH82: 2.101896797e-19 | EI82: -6.589495387e-20 | EJ82: -2.184648365e-19 | EK82: 3.845991271e-20 | EL82: 2.232946723e-19 | EM82: -1.041833574e-20 | EN82: -2.246030177e-19 | EO82: -1.77875446e-20 | EP82: 2.223692394e-19 | EQ82: 4.571290473e-20 | ER82: -2.166285653e-19 | ES82: -7.291734506e-20 | ET82: 2.074715294e-19 | EU82: 9.897183529e-20 | EV82: -1.950425434e-19 | EW82: -1.234654806e-19 | EX82: 1.795376201e-19 | EY82: 1.460120014e-19 | EZ82: -1.612012813e-19 | FA82: -1.662558258e-19 | FB82: 1.403227019e-19 | FC82: 1.838776965e-19 | FD82: -1.172311497e-19 | FE82: -1.985997061e-19 | FF82: 9.229079225e-20 | FG82: 2.101896797e-19 | FH82: -6.589495387e-20 | FI82: -2.184648365e-19
B83: 13 | C83: 6500000 | D83: 0 | E83: -0.00792361133 | F83: -42.02153671 | G83: 2.385154844e-05 | H83: -5.216107852e-06 | I83: -92.24677859 | M83: 40840704.5 | N83: 0.02720977082 | O83: 0.000751482739 | P83: 0.02705348118 | Q83: 0.0007328908441 | R83: 0.003839216691 | S83: 1.57395848e-05 | T83: 16355328.64 | U83: 1e+30 | V83: -8157707883 | W83: 1e+30 | X83: 69.33421232 | Y83: -317.0425862 | Z83: 0.0274131855 | AA83: 0.02707195678 | AB83: 0.003967314558 | AC83: 1e+15 | AD83: 1e+15 | AE83: 0.003081327828 | AF83: 77.66416435 | AG83: 0.0006582993075 | AH83: 0.003010186573 | AM83: 13 | AN83: 1318.986896 | AO83: 8287.439087 | AP83: -0.08557216083 | AQ83: 0.00733370582 | AR83: -0.8557713329 | AS83: 0.7323455743 | AT83: -1.206644541 | AU83: 1.455992048 | AV83: -1.206645287e+11 | AW83: 1.000000015e+30 | AX83: -4.022151232e+13 | AY83: 1.00161777e+30 | AZ83: 0.4565746602 | BA83: 13.66561711 | BB83: 0.08563705869 | BC83: 0.8557719172 | BD83: 1.206644955 | BE83: 1.000000007e+15 | BF83: 1.000808558e+15 | BG83: 0.07313554367 | BK83: V(t) | BL83: 13 | BM83: 2.385154844e-05 | BN83: -6.703466173e-06 | BO83: -2.300972019e-05 | BP83: 9.593050742e-06 | BQ83: 2.180501491e-05 | BR83: -1.233134717e-05 | BS83: -2.025643152e-05 | BT83: 1.487517089e-05 | BU83: 1.83883921e-05 | BV83: -1.718440428e-05 | BW83: -1.623035676e-05 | BX83: 1.922262934e-05 | BY83: 1.381635899e-05 | BZ83: -2.095770206e-05 | CA83: -1.118446899e-05 | CB83: 2.23622593e-05 | CC83: 8.376193232e-06 | CD83: -2.341415035e-05 | CE83: -5.435819903e-06 | CF83: 2.409678626e-05 | CG83: 2.409720447e-06 | CH83: -2.439940146e-05 | CI83: 6.543817406e-07 | CJ83: 2.431722352e-05 | CK83: -3.708163937e-06 | CL83: -2.385154844e-05 | CM83: 6.703466173e-06 | CN83: 2.300972019e-05 | CO83: -9.593050742e-06 | CP83: -2.180501491e-05 | CQ83: 1.233134717e-05 | CR83: 2.025643152e-05 | CS83: -1.487517089e-05 | CT83: -1.83883921e-05 | CU83: 1.718440428e-05 | CV83: 1.623035676e-05 | CW83: -1.922262934e-05 | CX83: -1.381635899e-05 | CY83: 2.095770206e-05 | CZ83: 1.118446899e-05 | DA83: -2.23622593e-05 | DB83: -8.376193232e-06 | DC83: 2.341415035e-05 | DD83: 5.435819903e-06 | DE83: -2.409678626e-05 | DF83: -2.409720447e-06 | DG83: 2.439940146e-05 | DH83: -6.543817406e-07 | DI83: -2.431722352e-05 | DJ83: 3.708163937e-06 | DK83: 2.385154844e-05 | DL83: -6.703466173e-06 | DM83: -2.300972019e-05 | DN83: 9.593050742e-06 | DO83: 2.180501491e-05 | DP83: -1.233134717e-05 | DQ83: -2.025643152e-05 | DR83: 1.487517089e-05 | DS83: 1.83883921e-05 | DT83: -1.718440428e-05 | DU83: -1.623035676e-05 | DV83: 1.922262934e-05 | DW83: 1.381635899e-05 | DX83: -2.095770206e-05 | DY83: -1.118446899e-05 | DZ83: 2.23622593e-05 | EA83: 8.376193232e-06 | EB83: -2.341415035e-05 | EC83: -5.435819903e-06 | ED83: 2.409678626e-05 | EE83: 2.409720447e-06 | EF83: -2.439940146e-05 | EG83: 6.543817406e-07 | EH83: 2.431722352e-05 | EI83: -3.708163937e-06 | EJ83: -2.385154844e-05 | EK83: 6.703466173e-06 | EL83: 2.300972019e-05 | EM83: -9.593050742e-06 | EN83: -2.180501491e-05 | EO83: 1.233134717e-05 | EP83: 2.025643152e-05 | EQ83: -1.487517089e-05 | ER83: -1.83883921e-05 | ES83: 1.718440428e-05 | ET83: 1.623035676e-05 | EU83: -1.922262934e-05 | EV83: -1.381635899e-05 | EW83: 2.095770206e-05 | EX83: 1.118446899e-05 | EY83: -2.23622593e-05 | EZ83: -8.376193232e-06 | FA83: 2.341415035e-05 | FB83: 5.435819903e-06 | FC83: -2.409678626e-05 | FD83: -2.409720447e-06 | FE83: 2.439940146e-05 | FF83: -6.543817406e-07 | FG83: -2.431722352e-05 | FH83: 3.708163937e-06 | FI83: 2.385154844e-05
B84: 14 | C84: 7000000 | D84: 0 | E84: -0.01319859101 | F84: -37.58944857 | G84: 4.304458112e-05 | H84: -8.672103834e-06 | I84: -87.14883656 | M84: 43982297.15 | N84: 0.02930540631 | O84: 0.0008699179503 | P84: 0.02916028022 | Q84: 0.0008513219428 | R84: 0.004170865511 | S84: 1.839611911e-05 | T84: 21245876.71 | U84: 1e+30 | V84: -7574408584 | W84: 1e+30 | X84: 59.36571419 | Y84: -294.6657869 | Z84: 0.0294943715 | AA84: 0.0291774218 | AB84: 0.004289069725 | AC84: 1e+15 | AD84: 1e+15 | AE84: 0.003326829934 | AF84: 78.60921756 | AG84: 0.0006570476976 | AH84: 0.003261301233 | AM84: 14 | AN84: 1349.77233 | AO84: 8480.869673 | AP84: -0.08362018701 | AQ84: 0.007003446786 | AR84: -0.8362527553 | AS84: 0.6993196707 | AT84: -1.179123509 | AU84: 1.390333249 | AV84: -1.179124272e+11 | AW84: 1.000000014e+30 | AX84: -3.930414523e+13 | AY84: 1.001544816e+30 | AZ84: 0.4781053296 | BA84: 13.9837578 | BB84: 0.0836865986 | BC84: 0.8362533532 | BD84: 1.179123933 | BE84: 1.000000007e+15 | BF84: 1.00077211e+15 | BG84: 0.0714697756 | BK84: V(t) | BL84: 14 | BM84: 4.304458112e-05 | BN84: -1.658424723e-05 | BO84: -3.682942503e-05 | BP84: 3.038653938e-05 | BQ84: 2.544168564e-05 | BR84: -3.992113239e-05 | BS84: -1.048073711e-05 | BT84: 4.384892098e-05 | BU84: -5.952199806e-06 | BV84: -4.161825893e-05 | BW84: 2.154916794e-05 | BX84: 3.35424361e-05 | BY84: -3.411961948e-05 | BZ84: -2.075567779e-05 | CA84: 4.189807186e-05 | CB84: 5.053846222e-06 | CC84: -4.379206456e-05 | CD84: 1.135778303e-05 | CE84: 3.953559193e-05 | CF84: -2.617424541e-05 | CG84: -2.972646291e-05 | CH84: 3.73146128e-05 | CI84: 1.574234051e-05 | CJ84: -4.321425372e-05 | CK84: 4.527468359e-07 | CL84: 4.304458112e-05 | CM84: -1.658424723e-05 | CN84: -3.682942503e-05 | CO84: 3.038653938e-05 | CP84: 2.544168564e-05 | CQ84: -3.992113239e-05 | CR84: -1.048073711e-05 | CS84: 4.384892098e-05 | CT84: -5.952199806e-06 | CU84: -4.161825893e-05 | CV84: 2.154916794e-05 | CW84: 3.35424361e-05 | CX84: -3.411961948e-05 | CY84: -2.075567779e-05 | CZ84: 4.189807186e-05 | DA84: 5.053846222e-06 | DB84: -4.379206456e-05 | DC84: 1.135778303e-05 | DD84: 3.953559193e-05 | DE84: -2.617424541e-05 | DF84: -2.972646291e-05 | DG84: 3.73146128e-05 | DH84: 1.574234051e-05 | DI84: -4.321425372e-05 | DJ84: 4.527468359e-07 | DK84: 4.304458112e-05 | DL84: -1.658424723e-05 | DM84: -3.682942503e-05 | DN84: 3.038653938e-05 | DO84: 2.544168564e-05 | DP84: -3.992113239e-05 | DQ84: -1.048073711e-05 | DR84: 4.384892098e-05 | DS84: -5.952199806e-06 | DT84: -4.161825893e-05 | DU84: 2.154916794e-05 | DV84: 3.35424361e-05 | DW84: -3.411961948e-05 | DX84: -2.075567779e-05 | DY84: 4.189807186e-05 | DZ84: 5.053846222e-06 | EA84: -4.379206456e-05 | EB84: 1.135778303e-05 | EC84: 3.953559193e-05 | ED84: -2.617424541e-05 | EE84: -2.972646291e-05 | EF84: 3.73146128e-05 | EG84: 1.574234051e-05 | EH84: -4.321425372e-05 | EI84: 4.527468359e-07 | EJ84: 4.304458112e-05 | EK84: -1.658424723e-05 | EL84: -3.682942503e-05 | EM84: 3.038653938e-05 | EN84: 2.544168564e-05 | EO84: -3.992113239e-05 | EP84: -1.048073711e-05 | EQ84: 4.384892098e-05 | ER84: -5.952199806e-06 | ES84: -4.161825893e-05 | ET84: 2.154916794e-05 | EU84: 3.35424361e-05 | EV84: -3.411961948e-05 | EW84: -2.075567779e-05 | EX84: 4.189807186e-05 | EY84: 5.053846222e-06 | EZ84: -4.379206456e-05 | FA84: 1.135778303e-05 | FB84: 3.953559193e-05 | FC84: -2.617424541e-05 | FD84: -2.972646291e-05 | FE84: 3.73146128e-05 | FF84: 1.574234051e-05 | FG84: -4.321425372e-05 | FH84: 4.527468359e-07 | FI84: 4.304458112e-05
B85: 15 | C85: 7500000 | D85: 0 | E85: -0.01625983456 | F85: -35.77767755 | G85: 5.709061513e-05 | H85: -1.066717072e-05 | I85: -84.71967324 | M85: 47123889.8 | N85: 0.03140087642 | O85: 0.0009971261512 | P85: 0.03126542541 | Q85: 0.0009785268259 | R85: 0.00450018239 | S85: 2.125164154e-05 | T85: 25903230.72 | U85: 1e+30 | V85: -7068840637 | W85: 1e+30 | X85: 51.4200734 | Y85: -275.1998349 | Z85: 0.03157730437 | AA85: 0.03128141343 | AB85: 0.004609950275 | AC85: 1e+15 | AD85: 1e+15 | AE85: 0.003571907597 | AF85: 79.41653072 | AG85: 0.0006560442345 | AH85: 0.003511143666 | AM85: 15 | AN85: 1381.276303 | AO85: 8678.814971 | AP85: -0.0817127276 | AQ85: 0.006688080963 | AR85: -0.8171793489 | AS85: 0.6677830882 | AT85: -1.152230172 | AU85: 1.32763537 | AV85: -1.152230953e+11 | AW85: 1.000000013e+30 | AX85: -3.840770133e+13 | AY85: 1.001475152e+30 | AZ85: 0.5006497813 | BA85: 14.30926548 | BB85: 0.0817806882 | BC85: 0.8171799607 | BD85: 1.152230606 | BE85: 1.000000007e+15 | BF85: 1000737303952244 | BG85: 0.06984205372 | BK85: V(t) | BL85: 15 | BM85: 5.709061513e-05 | BN85: -2.778705252e-05 | BO85: -3.991727223e-05 | BP85: 5.245728349e-05 | BQ85: 7.496888074e-06 | BR85: -5.709061513e-05 | BS85: 2.778705252e-05 | BT85: 3.991727223e-05 | BU85: -5.245728349e-05 | BV85: -7.496888074e-06 | BW85: 5.709061513e-05 | BX85: -2.778705252e-05 | BY85: -3.991727223e-05 | BZ85: 5.245728349e-05 | CA85: 7.496888074e-06 | CB85: -5.709061513e-05 | CC85: 2.778705252e-05 | CD85: 3.991727223e-05 | CE85: -5.245728349e-05 | CF85: -7.496888074e-06 | CG85: 5.709061513e-05 | CH85: -2.778705252e-05 | CI85: -3.991727223e-05 | CJ85: 5.245728349e-05 | CK85: 7.496888074e-06 | CL85: -5.709061513e-05 | CM85: 2.778705252e-05 | CN85: 3.991727223e-05 | CO85: -5.245728349e-05 | CP85: -7.496888074e-06 | CQ85: 5.709061513e-05 | CR85: -2.778705252e-05 | CS85: -3.991727223e-05 | CT85: 5.245728349e-05 | CU85: 7.496888074e-06 | CV85: -5.709061513e-05 | CW85: 2.778705252e-05 | CX85: 3.991727223e-05 | CY85: -5.245728349e-05 | CZ85: -7.496888074e-06 | DA85: 5.709061513e-05 | DB85: -2.778705252e-05 | DC85: -3.991727223e-05 | DD85: 5.245728349e-05 | DE85: 7.496888074e-06 | DF85: -5.709061513e-05 | DG85: 2.778705252e-05 | DH85: 3.991727223e-05 | DI85: -5.245728349e-05 | DJ85: -7.496888074e-06 | DK85: 5.709061513e-05 | DL85: -2.778705252e-05 | DM85: -3.991727223e-05 | DN85: 5.245728349e-05 | DO85: 7.496888074e-06 | DP85: -5.709061513e-05 | DQ85: 2.778705252e-05 | DR85: 3.991727223e-05 | DS85: -5.245728349e-05 | DT85: -7.496888074e-06 | DU85: 5.709061513e-05 | DV85: -2.778705252e-05 | DW85: -3.991727223e-05 | DX85: 5.245728349e-05 | DY85: 7.496888074e-06 | DZ85: -5.709061513e-05 | EA85: 2.778705252e-05 | EB85: 3.991727223e-05 | EC85: -5.245728349e-05 | ED85: -7.496888074e-06 | EE85: 5.709061513e-05 | EF85: -2.778705252e-05 | EG85: -3.991727223e-05 | EH85: 5.245728349e-05 | EI85: 7.496888074e-06 | EJ85: -5.709061513e-05 | EK85: 2.778705252e-05 | EL85: 3.991727223e-05 | EM85: -5.245728349e-05 | EN85: -7.496888074e-06 | EO85: 5.709061513e-05 | EP85: -2.778705252e-05 | EQ85: -3.991727223e-05 | ER85: 5.245728349e-05 | ES85: 7.496888074e-06 | ET85: -5.709061513e-05 | EU85: 2.778705252e-05 | EV85: 3.991727223e-05 | EW85: -5.245728349e-05 | EX85: -7.496888074e-06 | EY85: 5.709061513e-05 | EZ85: -2.778705252e-05 | FA85: -3.991727223e-05 | FB85: 5.245728349e-05 | FC85: 7.496888074e-06 | FD85: -5.709061513e-05 | FE85: 2.778705252e-05 | FF85: 3.991727223e-05 | FG85: -5.245728349e-05 | FH85: -7.496888074e-06 | FI85: 5.709061513e-05
B86: 16 | C86: 8000000 | D86: 0 | E86: -0.01750267001 | F86: -35.1379139 | G86: 6.580925095e-05 | H86: -1.146822431e-05 | I86: -83.50433675 | M86: 50265482.46 | N86: 0.03349621216 | O86: 0.00113310734 | P86: 0.03336922683 | Q86: 0.001114505299 | R86: 0.004827604567 | S86: 2.430576585e-05 | T86: 30371114.57 | U86: 1e+30 | V86: -6626429414 | W86: 1e+30 | X86: 44.98152332 | Y86: -258.1219443 | Z86: 0.03366165979 | AA86: 0.03338420733 | AB86: 0.004930087814 | AC86: 1e+15 | AD86: 1e+15 | AE86: 0.003816619435 | AF86: 80.11464158 | AG86: 0.000655227134 | AH86: 0.003759954962 | AM86: 16 | AN86: 1413.515585 | AO86: 8881.380354 | AP86: -0.07984876719 | AQ86: 0.006386936733 | AR86: -0.7985409602 | AS86: 0.6376686651 | AT86: -1.125950214 | AU86: 1.267764885 | AV86: -1.125951014e+11 | AW86: 1.000000013e+30 | AX86: -3.753170341e+13 | AY86: 1.001408629e+30 | AZ86: 0.5242556014 | BA86: 14.64230791 | BB86: 0.07991831287 | BC86: 0.7985415863 | BD86: 1.125950658 | BE86: 1.000000006e+15 | BF86: 1.000704067e+15 | BG86: 0.0682515115 | BK86: V(t) | BL86: 16 | BM86: 6.580925095e-05 | BN86: -3.839697584e-05 | BO86: -3.31119766e-05 | BP86: 6.659376372e-05 | BQ86: -2.359651448e-05 | BR86: -4.649994928e-05 | BS86: 6.319394541e-05 | BT86: -7.31339733e-06 | BU86: -5.696615914e-05 | BV86: 5.582341909e-05 | BW86: 9.429247472e-06 | BX86: -6.385297571e-05 | BY86: 4.494530205e-05 | BZ86: 2.557941798e-05 | CA86: -6.672767498e-05 | CB86: 3.124310639e-05 | CC86: 4.012233957e-05 | CD86: -6.540962903e-05 | CE86: 1.557779144e-05 | CF86: 5.214422702e-05 | CG86: -5.998165552e-05 | CH86: -1.066333429e-06 | CI86: 6.08897009e-05 | CJ86: -5.0784814e-05 | CK86: -1.764345665e-05 | CL86: 6.580925095e-05 | CM86: -3.839697584e-05 | CN86: -3.31119766e-05 | CO86: 6.659376372e-05 | CP86: -2.359651448e-05 | CQ86: -4.649994928e-05 | CR86: 6.319394541e-05 | CS86: =Re_H*COS(NH_*Rad_+NH_*Ofs_)+Im_H*SIN(NH_*Rad_+NH_*Ofs_) -> -7.31339733e-06 | CT86: -5.696615914e-05 | CU86: 5.582341909e-05 | CV86: 9.429247472e-06 | CW86: -6.385297571e-05 | CX86: 4.494530205e-05 | CY86: 2.557941798e-05 | CZ86: -6.672767498e-05 | DA86: 3.124310639e-05 | DB86: 4.012233957e-05 | DC86: -6.540962903e-05 | DD86: 1.557779144e-05 | DE86: 5.214422702e-05 | DF86: -5.998165552e-05 | DG86: -1.066333429e-06 | DH86: 6.08897009e-05 | DI86: -5.0784814e-05 | DJ86: -1.764345665e-05 | DK86: 6.580925095e-05 | DL86: -3.839697584e-05 | DM86: -3.31119766e-05 | DN86: 6.659376372e-05 | DO86: -2.359651448e-05 | DP86: -4.649994928e-05 | DQ86: 6.319394541e-05 | DR86: -7.31339733e-06 | DS86: -5.696615914e-05 | DT86: 5.582341909e-05 | DU86: 9.429247472e-06 | DV86: -6.385297571e-05 | DW86: 4.494530205e-05 | DX86: 2.557941798e-05 | DY86: =Re_H*COS(NH_*Rad_+NH_*Ofs_)+Im_H*SIN(NH_*Rad_+NH_*Ofs_) -> -6.672767498e-05 | DZ86: 3.124310639e-05 | EA86: 4.012233957e-05 | EB86: -6.540962903e-05 | EC86: 1.557779144e-05 | ED86: 5.214422702e-05 | EE86: -5.998165552e-05 | EF86: -1.066333429e-06 | EG86: 6.08897009e-05 | EH86: -5.0784814e-05 | EI86: -1.764345665e-05 | EJ86: 6.580925095e-05 | EK86: -3.839697584e-05 | EL86: -3.31119766e-05 | EM86: 6.659376372e-05 | EN86: -2.359651448e-05 | EO86: -4.649994928e-05 | EP86: 6.319394541e-05 | EQ86: -7.31339733e-06 | ER86: -5.696615914e-05 | ES86: 5.582341909e-05 | ET86: 9.429247472e-06 | EU86: -6.385297571e-05 | EV86: 4.494530205e-05 | EW86: 2.557941798e-05 | EX86: -6.672767498e-05 | EY86: 3.124310639e-05 | EZ86: 4.012233957e-05 | FA86: -6.540962903e-05 | FB86: 1.557779144e-05 | FC86: 5.214422702e-05 | FD86: -5.998165552e-05 | FE86: =Re_H*COS(NH_*Rad_+NH_*Ofs_)+Im_H*SIN(NH_*Rad_+NH_*Ofs_) -> -1.066333429e-06 | FF86: 6.08897009e-05 | FG86: -5.0784814e-05 | FH86: -1.764345665e-05 | FI86: 6.580925095e-05
B87: 17 | C87: 8500000 | D87: 0 | E87: -0.01729257125 | F87: -35.24280853 | G87: 6.930722196e-05 | H87: -1.13189005e-05 | I87: -83.07011405 | M87: 53407075.11 | N87: 0.03559143723 | O87: 0.001277861515 | P87: 0.03547192163 | Q87: 0.001259257224 | R87: 0.005153466402 | S87: 2.755821595e-05 | T87: 34682964.16 | U87: 1e+30 | V87: -6236029610 | W87: 1e+30 | X87: 39.68946285 | Y87: -243.0241711 | Z87: 0.03574718891 | AA87: 0.03548601448 | AB87: 0.00524959198 | AC87: 1e+15 | AD87: 1000000000019444 | AE87: 0.004061016215 | AF87: 80.72463173 | AG87: 0.000654552775 | AH87: 0.004007918832 | AM87: 17 | AN87: 1446.507339 | AO87: 9088.673656 | AP87: -0.07802731352 | AQ87: 0.006099372766 | AR87: -0.7803276672 | AS87: 0.6089122682 | AT87: -1.100269645 | AU87: 1.210594292 | AV87: -1.100270463e+11 | AW87: 1.000000012e+30 | AX87: -3.667568514e+13 | AY87: 1.001345106e+30 | AZ87: 0.5489725952 | BA87: 14.98305648 | BB87: 0.0780984812 | BC87: 0.780328308 | BD87: 1.1002701 | BE87: 1.000000006e+15 | BF87: 1000672326928385 | BG87: 0.06669730223 | BK87: V(t) | BL87: 17 | BM87: 6.930722196e-05 | BN87: -4.669353039e-05 | BO87: -1.926793249e-05 | BP87: 6.734207942e-05 | BQ87: -5.289944867e-05 | BR87: -1.065219534e-05 | BS87: 6.431491205e-05 | BT87: -5.827111104e-05 | BU87: -1.868466711e-06 | BV87: 6.02734601e-05 | BW87: -6.272380319e-05 | BX87: 6.944728759e-06 | BY87: 5.528145968e-05 | BZ87: -6.618730348e-05 | CA87: 1.564840171e-05 | CB87: =Re_H*COS(NH_*Rad_+NH_*Ofs_)+Im_H*SIN(NH_*Rad_+NH_*Ofs_) -> 4.941763762e-05 | CC87: -6.860699047e-05 | CD87: 2.410529001e-05 | CE87: 4.277446989e-05 | CF87: -6.994470423e-05 | CG87: 3.21820235e-05 | CH87: 3.545672322e-05 | CI87: -7.017934822e-05 | CJ87: 3.975122724e-05 | CK87: 2.757980284e-05 | CL87: -6.930722196e-05 | CM87: 4.669353039e-05 | CN87: 1.926793249e-05 | CO87: -6.734207942e-05 | CP87: 5.289944867e-05 | CQ87: 1.065219534e-05 | CR87: =Re_H*COS(NH_*Rad_+NH_*Ofs_)+Im_H*SIN(NH_*Rad_+NH_*Ofs_) -> -6.431491205e-05 | CS87: 5.827111104e-05 | CT87: 1.868466711e-06 | CU87: -6.02734601e-05 | CV87: 6.272380319e-05 | CW87: -6.944728759e-06 | CX87: -5.528145968e-05 | CY87: 6.618730348e-05 | CZ87: -1.564840171e-05 | DA87: -4.941763762e-05 | DB87: 6.860699047e-05 | DC87: -2.410529001e-05 | DD87: -4.277446989e-05 | DE87: 6.994470423e-05 | DF87: -3.21820235e-05 | DG87: -3.545672322e-05 | DH87: =Re_H*COS(NH_*Rad_+NH_*Ofs_)+Im_H*SIN(NH_*Rad_+NH_*Ofs_) -> 7.017934822e-05 | DI87: =Re_H*COS(NH_*Rad_+NH_*Ofs_)+Im_H*SIN(NH_*Rad_+NH_*Ofs_) -> -3.975122724e-05 | DJ87: -2.757980284e-05 | DK87: 6.930722196e-05 | DL87: -4.669353039e-05 | DM87: -1.926793249e-05 | DN87: 6.734207942e-05 | DO87: -5.289944867e-05 | DP87: -1.065219534e-05 | DQ87: 6.431491205e-05 | DR87: -5.827111104e-05 | DS87: -1.868466711e-06 | DT87: 6.02734601e-05 | DU87: -6.272380319e-05 | DV87: 6.944728759e-06 | DW87: 5.528145968e-05 | DX87: -6.618730348e-05 | DY87: 1.564840171e-05 | DZ87: 4.941763762e-05 | EA87: -6.860699047e-05 | EB87: 2.410529001e-05 | EC87: 4.277446989e-05 | ED87: -6.994470423e-05 | EE87: 3.21820235e-05 | EF87: 3.545672322e-05 | EG87: -7.017934822e-05 | EH87: 3.975122724e-05 | EI87: 2.757980284e-05 | EJ87: -6.930722196e-05 | EK87: 4.669353039e-05 | EL87: 1.926793249e-05 | EM87: -6.734207942e-05 | EN87: 5.289944867e-05 | EO87: =Re_H*COS(NH_*Rad_+NH_*Ofs_)+Im_H*SIN(NH_*Rad_+NH_*Ofs_) -> 1.065219534e-05 | EP87: -6.431491205e-05 | EQ87: 5.827111104e-05 | ER87: 1.868466711e-06 | ES87: -6.02734601e-05 | ET87: 6.272380319e-05 | EU87: -6.944728759e-06 | EV87: -5.528145968e-05 | EW87: 6.618730348e-05 | EX87: -1.564840171e-05 | EY87: -4.941763762e-05 | EZ87: 6.860699047e-05 | FA87: -2.410529001e-05 | FB87: -4.277446989e-05 | FC87: 6.994470423e-05 | FD87: -3.21820235e-05 | FE87: -3.545672322e-05 | FF87: 7.017934822e-05 | FG87: -3.975122724e-05 | FH87: -2.757980284e-05 | FI87: 6.930722196e-05
B88: 18 | C88: =NH_*f_ -> 9000000 | D88: 0 | E88: -0.01596866566 | F88: -35.93462744 | G88: 6.794951066e-05 | H88: -1.044334177e-05 | I88: -83.25487961 | M88: 56548667.76 | N88: 0.03768657008 | O88: 0.001431388676 | P88: 0.03757369424 | Q88: 0.001412782499 | R88: 0.005478027951 | S88: 3.100879023e-05 | T88: 38864785.2 | U88: 1e+30 | V88: -5888972655 | W88: 1e+30 | X88: 35.28548407 | Y88: -229.5846893 | Z88: 0.03783369762 | AA88: 0.03758699906 | AB88: 0.005568553693 | AC88: 1e+15 | AD88: 1000000000017340 | AE88: 0.004305141116 | AF88: 81.26242854 | AG88: 0.0006539896313 | AH88: 0.004255177739 | AM88: 18 | AN88: 1480.269127 | AO88: 9300.805228 | AP88: -0.07624739695 | AQ88: 0.005824776653 | AR88: -0.7625297743 | AS88: 0.5814526568 | AT88: -1.075174795 | AU88: 1.156001839 | AV88: -1.075175632e+11 | AW88: 1.000000012e+30 | AX88: -3.583919082e+13 | AY88: 1.001284448e+30 | AZ88: 0.5748528892 | BA88: 15.33168626 | BB88: 0.0763202244 | BC88: 0.7625304301 | BD88: 1.07517526 | BE88: 1.000000006e+15 | BF88: 1.000642018e+15 | BG88: 0.06517859855 | BK88: V(t) | BL88: 18 | BM88: =Re_H*COS(NH_*Rad_+NH_*Ofs_)+Im_H*SIN(NH_*Rad_+NH_*Ofs_) -> 6.794951066e-05 | BN88: -5.135938132e-05 | BO88: -2.474107156e-06 | BP88: 5.451349183e-05 | BQ88: -6.702230776e-05 | BR88: 3.09297618e-05 | BS88: 2.759156342e-05 | BT88: -6.610481068e-05 | BU88: 5.66820209e-05 | BV88: -6.156149145e-06 | BW88: -4.88338666e-05 | BX88: 6.841190532e-05 | BY88: -3.838091266e-05 | BZ88: -1.948207636e-05 | CA88: 6.321759834e-05 | CB88: -6.111075116e-05 | CC88: 1.46893193e-05 | CD88: 4.238410213e-05 | CE88: -6.872260626e-05 | CF88: 4.522677361e-05 | CG88: 1.106534531e-05 | CH88: -5.933340672e-05 | CI88: 6.457572836e-05 | CJ88: -2.299083011e-05 | CK88: -3.526591505e-05 | CL88: 6.794951066e-05 | CM88: -5.135938132e-05 | CN88: -2.474107156e-06 | CO88: 5.451349183e-05 | CP88: -6.702230776e-05 | CQ88: 3.09297618e-05 | CR88: 2.759156342e-05 | CS88: -6.610481068e-05 | CT88: 5.66820209e-05 | CU88: -6.156149145e-06 | CV88: -4.88338666e-05 | CW88: 6.841190532e-05 | CX88: -3.838091266e-05 | CY88: -1.948207636e-05 | CZ88: 6.321759834e-05 | DA88: -6.111075116e-05 | DB88: 1.46893193e-05 | DC88: 4.238410213e-05 | DD88: -6.872260626e-05 | DE88: 4.522677361e-05 | DF88: 1.106534531e-05 | DG88: -5.933340672e-05 | DH88: 6.457572836e-05 | DI88: -2.299083011e-05 | DJ88: -3.526591505e-05 | DK88: 6.794951066e-05 | DL88: -5.135938132e-05 | DM88: -2.474107156e-06 | DN88: 5.451349183e-05 | DO88: -6.702230776e-05 | DP88: 3.09297618e-05 | DQ88: 2.759156342e-05 | DR88: -6.610481068e-05 | DS88: 5.66820209e-05 | DT88: -6.156149145e-06 | DU88: -4.88338666e-05 | DV88: 6.841190532e-05 | DW88: -3.838091266e-05 | DX88: -1.948207636e-05 | DY88: 6.321759834e-05 | DZ88: -6.111075116e-05 | EA88: 1.46893193e-05 | EB88: 4.238410213e-05 | EC88: -6.872260626e-05 | ED88: 4.522677361e-05 | EE88: 1.106534531e-05 | EF88: -5.933340672e-05 | EG88: 6.457572836e-05 | EH88: -2.299083011e-05 | EI88: -3.526591505e-05 | EJ88: 6.794951066e-05 | EK88: -5.135938132e-05 | EL88: -2.474107156e-06 | EM88: 5.451349183e-05 | EN88: -6.702230776e-05 | EO88: 3.09297618e-05 | EP88: 2.759156342e-05 | EQ88: -6.610481068e-05 | ER88: 5.66820209e-05 | ES88: -6.156149145e-06 | ET88: -4.88338666e-05 | EU88: 6.841190532e-05 | EV88: -3.838091266e-05 | EW88: -1.948207636e-05 | EX88: 6.321759834e-05 | EY88: -6.111075116e-05 | EZ88: 1.46893193e-05 | FA88: 4.238410213e-05 | FB88: -6.872260626e-05 | FC88: 4.522677361e-05 | FD88: 1.106534531e-05 | FE88: -5.933340672e-05 | FF88: 6.457572836e-05 | FG88: -2.299083011e-05 | FH88: -3.526591505e-05 | FI88: 6.794951066e-05
B89: 19 | C89: 9500000 | D89: 0 | E89: -0.01384363737 | F89: -37.17499571 | G89: 6.2321894e-05 | H89: -9.047017047e-06 | I89: -84.01661856 | M89: 59690260.42 | N89: 0.03978162528 | O89: 0.001593688821 | P89: 0.03967469027 | Q89: 0.001575081048 | R89: 0.005801494523 | S89: 3.46573387e-05 | T89: 42937108.51 | U89: 1e+30 | V89: -5578414942 | W89: 1e+30 | X89: 31.58038927 | Y89: -217.5468071 | Z89: 0.03992103231 | AA89: 0.03968729076 | AB89: 0.005887048386 | AC89: 1e+15 | AD89: 1e+15 | AE89: 0.004549030593 | AF89: 81.74030046 | AG89: 0.0006535144489 | AH89: 0.004501843867 | AM89: 19 | AN89: 1514.818922 | AO89: 9517.887995 | AP89: -0.07450806997 | AQ89: 0.005562563601 | AR89: -0.745137807 | AS89: 0.5552313514 | AT89: -1.050652303 | AU89: 1.103871262 | AV89: -1.050653159e+11 | AW89: 1.000000011e+30 | AX89: -3.502177515e+13 | AY89: 1.001226525e+30 | AZ89: 0.6019510384 | BA89: 15.68837607 | BB89: 0.07458259583 | BC89: 0.745138478 | BD89: 1.050652779 | BE89: 1.000000006e+15 | BF89: 1.000613074e+15 | BG89: 0.06369459196 | BK89: V(t) | BL89: 19 | BM89: 6.2321894e-05 | BN89: -5.162381486e-05 | BO89: 1.294238893e-05 | BP89: 3.275462388e-05 | BQ89: -6.069657535e-05 | BR89: 5.573717456e-05 | BS89: -2.056472793e-05 | BT89: -2.575509158e-05 | BU89: 5.811403545e-05 | BV89: -5.897152573e-05 | BW89: 2.786274888e-05 | BX89: 1.834938611e-05 | BY89: -5.461500249e-05 | BZ89: 6.12758607e-05 | CA89: -3.472135764e-05 | CB89: -1.065429985e-05 | CC89: 5.025465832e-05 | CD89: -6.261383875e-05 | CE89: 4.103238985e-05 | CF89: 2.791188922e-06 | CG89: -4.510176817e-05 | CH89: 6.296435915e-05 | CI89: -4.669631676e-05 | CJ89: 5.115940723e-06 | CK89: 3.923759619e-05 | CL89: -6.2321894e-05 | CM89: 5.162381486e-05 | CN89: -1.294238893e-05 | CO89: -3.275462388e-05 | CP89: 6.069657535e-05 | CQ89: -5.573717456e-05 | CR89: 2.056472793e-05 | CS89: 2.575509158e-05 | CT89: -5.811403545e-05 | CU89: 5.897152573e-05 | CV89: -2.786274888e-05 | CW89: -1.834938611e-05 | CX89: 5.461500249e-05 | CY89: -6.12758607e-05 | CZ89: 3.472135764e-05 | DA89: 1.065429985e-05 | DB89: -5.025465832e-05 | DC89: 6.261383875e-05 | DD89: -4.103238985e-05 | DE89: -2.791188922e-06 | DF89: 4.510176817e-05 | DG89: -6.296435915e-05 | DH89: 4.669631676e-05 | DI89: -5.115940723e-06 | DJ89: -3.923759619e-05 | DK89: 6.2321894e-05 | DL89: -5.162381486e-05 | DM89: 1.294238893e-05 | DN89: 3.275462388e-05 | DO89: -6.069657535e-05 | DP89: 5.573717456e-05 | DQ89: -2.056472793e-05 | DR89: -2.575509158e-05 | DS89: 5.811403545e-05 | DT89: -5.897152573e-05 | DU89: 2.786274888e-05 | DV89: 1.834938611e-05 | DW89: -5.461500249e-05 | DX89: 6.12758607e-05 | DY89: -3.472135764e-05 | DZ89: -1.065429985e-05 | EA89: 5.025465832e-05 | EB89: -6.261383875e-05 | EC89: 4.103238985e-05 | ED89: 2.791188922e-06 | EE89: -4.510176817e-05 | EF89: 6.296435915e-05 | EG89: -4.669631676e-05 | EH89: 5.115940723e-06 | EI89: 3.923759619e-05 | EJ89: -6.2321894e-05 | EK89: 5.162381486e-05 | EL89: -1.294238893e-05 | EM89: -3.275462388e-05 | EN89: 6.069657535e-05 | EO89: -5.573717456e-05 | EP89: 2.056472793e-05 | EQ89: 2.575509158e-05 | ER89: -5.811403545e-05 | ES89: 5.897152573e-05 | ET89: -2.786274888e-05 | EU89: -1.834938611e-05 | EV89: 5.461500249e-05 | EW89: -6.12758607e-05 | EX89: 3.472135764e-05 | EY89: 1.065429985e-05 | EZ89: -5.025465832e-05 | FA89: 6.261383875e-05 | FB89: -4.103238985e-05 | FC89: -2.791188922e-06 | FD89: 4.510176817e-05 | FE89: -6.296435915e-05 | FF89: 4.669631676e-05 | FG89: -5.115940723e-06 | FH89: -3.923759619e-05 | FI89: 6.2321894e-05
B90: 20 | C90: 10000000 | D90: 0 | E90: -0.01120170881 | F90: -39.01431442 | G90: 5.318578923e-05 | H90: -7.315945406e-06 | I90: -85.40268166 | M90: 62831853.07 | N90: 0.04187661446 | O90: 0.00176476195 | P90: 0.0417750262 | Q90: 0.001746152814 | R90: 0.006124030364 | S90: 3.85037479e-05 | T90: 46916358.76 | U90: 1e+30 | V90: -5298881584 | W90: 1e+30 | X90: 28.43301414 | Y90: -206.7036061 | Z90: 0.04200906985 | AA90: 0.04178699336 | AB90: 0.00620513883 | AC90: 1e+15 | AD90: 1e+15 | AE90: 0.004792715373 | AF90: 82.16785803 | AG90: 0.0006531097651 | AH90: 0.004748006769 | AM90: 20 | AN90: 1550.175117 | AO90: 9740.037521 | AP90: -0.07280840665 | AQ90: 0.00531217519 | AR90: -0.7281425067 | AS90: 0.5301925101 | AT90: -1.026689116 | AU90: 1.054091541 | AV90: -1.026689993e+11 | AW90: 1.000000011e+30 | AX90: -3.4223003e+13 | AY90: 1.001171214e+30 | AZ90: 0.6303241371 | BA90: 16.05330853 | BB90: 0.07288467047 | BC90: 0.7281431934 | BD90: 1.026689603 | BE90: 1.000000005e+15 | BF90: 1.000585436e+15 | BG90: 0.06224449248 | BK90: V(t) | BL90: 20 | BM90: 5.318578923e-05 | BN90: -4.732841216e-05 | BO90: 2.339319028e-05 | BP90: 9.477435181e-06 | BQ90: -3.872800253e-05 | BR90: 5.318578923e-05 | BS90: -4.732841216e-05 | BT90: 2.339319028e-05 | BU90: 9.477435181e-06 | BV90: -3.872800253e-05 | BW90: 5.318578923e-05 | BX90: -4.732841216e-05 | BY90: 2.339319028e-05 | BZ90: 9.477435181e-06 | CA90: -3.872800253e-05 | CB90: 5.318578923e-05 | CC90: -4.732841216e-05 | CD90: 2.339319028e-05 | CE90: 9.477435181e-06 | CF90: -3.872800253e-05 | CG90: 5.318578923e-05 | CH90: -4.732841216e-05 | CI90: 2.339319028e-05 | CJ90: 9.477435181e-06 | CK90: -3.872800253e-05 | CL90: 5.318578923e-05 | CM90: -4.732841216e-05 | CN90: 2.339319028e-05 | CO90: 9.477435181e-06 | CP90: -3.872800253e-05 | CQ90: 5.318578923e-05 | CR90: -4.732841216e-05 | CS90: 2.339319028e-05 | CT90: 9.477435181e-06 | CU90: -3.872800253e-05 | CV90: 5.318578923e-05 | CW90: -4.732841216e-05 | CX90: 2.339319028e-05 | CY90: 9.477435181e-06 | CZ90: -3.872800253e-05 | DA90: 5.318578923e-05 | DB90: -4.732841216e-05 | DC90: 2.339319028e-05 | DD90: 9.477435181e-06 | DE90: -3.872800253e-05 | DF90: 5.318578923e-05 | DG90: -4.732841216e-05 | DH90: 2.339319028e-05 | DI90: 9.477435181e-06 | DJ90: -3.872800253e-05 | DK90: 5.318578923e-05 | DL90: -4.732841216e-05 | DM90: 2.339319028e-05 | DN90: 9.477435181e-06 | DO90: -3.872800253e-05 | DP90: 5.318578923e-05 | DQ90: -4.732841216e-05 | DR90: 2.339319028e-05 | DS90: 9.477435181e-06 | DT90: -3.872800253e-05 | DU90: 5.318578923e-05 | DV90: -4.732841216e-05 | DW90: 2.339319028e-05 | DX90: 9.477435181e-06 | DY90: -3.872800253e-05 | DZ90: 5.318578923e-05 | EA90: -4.732841216e-05 | EB90: 2.339319028e-05 | EC90: 9.477435181e-06 | ED90: -3.872800253e-05 | EE90: 5.318578923e-05 | EF90: -4.732841216e-05 | EG90: 2.339319028e-05 | EH90: 9.477435181e-06 | EI90: -3.872800253e-05 | EJ90: 5.318578923e-05 | EK90: -4.732841216e-05 | EL90: 2.339319028e-05 | EM90: 9.477435181e-06 | EN90: -3.872800253e-05 | EO90: 5.318578923e-05 | EP90: -4.732841216e-05 | EQ90: 2.339319028e-05 | ER90: 9.477435181e-06 | ES90: -3.872800253e-05 | ET90: 5.318578923e-05 | EU90: -4.732841216e-05 | EV90: 2.339319028e-05 | EW90: 9.477435181e-06 | EX90: -3.872800253e-05 | EY90: 5.318578923e-05 | EZ90: -4.732841216e-05 | FA90: 2.339319028e-05 | FB90: 9.477435181e-06 | FC90: -3.872800253e-05 | FD90: 5.318578923e-05 | FE90: -4.732841216e-05 | FF90: 2.339319028e-05 | FG90: 9.477435181e-06 | FH90: -3.872800253e-05 | FI90: 5.318578923e-05
B91: 21 | C91: 10500000 | D91: 0 | E91: -0.008295833959 | F91: -41.62279898 | G91: 4.142722794e-05 | H91: -5.415207291e-06 | I91: -87.58070273 | M91: 65973445.73 | N91: 0.04397154707 | O91: 0.001944608063 | P91: 0.04387479634 | Q91: 0.001925997754 | R91: 0.006445768436 | S91: 4.254793073e-05 | T91: 50815832.1 | U91: 1e+30 | V91: -5045940531 | W91: 1e+30 | X91: 25.73625849 | Y91: -196.8866176 | Z91: 0.0440977104 | AA91: 0.04388619093 | AB91: 0.006522877489 | AC91: 1e+15 | AD91: 1e+15 | AE91: 0.00503622138 | AF91: 82.55274174 | AG91: 0.000652762256 | AH91: 0.004993738802 | AM91: 21 | AN91: 1586.356534 | AO91: 9967.372063 | AP91: -0.0711475022 | AQ91: 0.005073078181 | AR91: -0.7115348263 | AS91: 0.506282809 | AT91: -1.003272478 | AU91: 1.006556664 | AV91: -1.003273375e+11 | AW91: 1.00000001e+30 | AX91: -3.344244914e+13 | AY91: 1.001118397e+30 | AZ91: 0.6600319357 | BA91: 16.42667013 | BB91: 0.07122554444 | BC91: 0.711535529 | BD91: 1.003272976 | BE91: 1.000000005e+15 | BF91: 1.000559042e+15 | BG91: 0.06082752814 | BK91: V(t) | BL91: 21 | BM91: 4.142722794e-05 | BN91: -3.891175259e-05 | BO91: 2.677002951e-05 | BP91: -8.005758781e-06 | BQ91: -1.273902971e-05 | BR91: 3.033235245e-05 | BS91: -4.042185644e-05 | BT91: 4.051153318e-05 | BU91: -3.057919785e-05 | BV91: 1.308197751e-05 | BW91: 7.651549283e-06 | BX91: -2.649218501e-05 | BY91: 3.877900811e-05 | BZ91: -4.147242269e-05 | CA91: 3.390611397e-05 | CB91: -1.795188564e-05 | CC91: -2.44339935e-06 | CD91: 2.223421999e-05 | CE91: -3.652459165e-05 | CF91: 4.177926732e-05 | CG91: -3.669831042e-05 | CH91: 2.253868182e-05 | CI91: -2.803284451e-06 | CJ91: -1.762560803e-05 | CK91: 3.369416057e-05 | CL91: -4.142722794e-05 | CM91: 3.891175259e-05 | CN91: -2.677002951e-05 | CO91: 8.005758781e-06 | CP91: 1.273902971e-05 | CQ91: -3.033235245e-05 | CR91: 4.042185644e-05 | CS91: -4.051153318e-05 | CT91: 3.057919785e-05 | CU91: -1.308197751e-05 | CV91: -7.651549283e-06 | CW91: 2.649218501e-05 | CX91: -3.877900811e-05 | CY91: 4.147242269e-05 | CZ91: -3.390611397e-05 | DA91: 1.795188564e-05 | DB91: 2.44339935e-06 | DC91: -2.223421999e-05 | DD91: 3.652459165e-05 | DE91: -4.177926732e-05 | DF91: 3.669831042e-05 | DG91: -2.253868182e-05 | DH91: 2.803284451e-06 | DI91: 1.762560803e-05 | DJ91: -3.369416057e-05 | DK91: 4.142722794e-05 | DL91: -3.891175259e-05 | DM91: 2.677002951e-05 | DN91: -8.005758781e-06 | DO91: -1.273902971e-05 | DP91: 3.033235245e-05 | DQ91: -4.042185644e-05 | DR91: 4.051153318e-05 | DS91: -3.057919785e-05 | DT91: 1.308197751e-05 | DU91: 7.651549283e-06 | DV91: -2.649218501e-05 | DW91: 3.877900811e-05 | DX91: -4.147242269e-05 | DY91: 3.390611397e-05 | DZ91: -1.795188564e-05 | EA91: -2.44339935e-06 | EB91: 2.223421999e-05 | EC91: -3.652459165e-05 | ED91: 4.177926732e-05 | EE91: -3.669831042e-05 | EF91: 2.253868182e-05 | EG91: -2.803284451e-06 | EH91: -1.762560803e-05 | EI91: 3.369416057e-05 | EJ91: -4.142722794e-05 | EK91: 3.891175259e-05 | EL91: -2.677002951e-05 | EM91: 8.005758781e-06 | EN91: 1.273902971e-05 | EO91: -3.033235245e-05 | EP91: 4.042185644e-05 | EQ91: -4.051153318e-05 | ER91: 3.057919785e-05 | ES91: -1.308197751e-05 | ET91: -7.651549283e-06 | EU91: 2.649218501e-05 | EV91: -3.877900811e-05 | EW91: 4.147242269e-05 | EX91: -3.390611397e-05 | EY91: 1.795188564e-05 | EZ91: 2.44339935e-06 | FA91: -2.223421999e-05 | FB91: 3.652459165e-05 | FC91: -4.177926732e-05 | FD91: 3.669831042e-05 | FE91: -2.253868182e-05 | FF91: 2.803284451e-06 | FG91: 1.762560803e-05 | FH91: -3.369416057e-05 | FI91: 4.142722794e-05
B92: 22 | C92: 11000000 | D92: 0 | E92: -0.005344883962 | F92: -45.44123438 | G92: 2.800237661e-05 | H92: -3.487331598e-06 | I92: -90.98926242 | M92: 69115038.38 | N92: 0.04606643081 | O92: 0.002133227159 | P92: 0.04597407785 | Q92: 0.002114615834 | R92: 0.006766817526 | S92: 4.678981943e-05 | T92: 54646407.19 | U92: 1e+30 | V92: -4815965560 | W92: 1e+30 | X92: 23.40764744 | Y92: -187.957394 | Z92: 0.04618687215 | AA92: 0.04598495225 | AB92: 0.006840308431 | AC92: 1e+15 | AD92: 1e+15 | AE92: 0.005279570556 | AF92: 82.90110572 | AG92: 0.0006524616105 | AH92: 0.005239099073 | AM92: 22 | AN92: 1623.382432 | AO92: 10200.01264 | AP92: -0.06952447245 | AQ92: 0.004844763381 | AR92: -0.6953059246 | AS92: 0.4834513288 | AT92: -0.9803899217 | AU92: 0.9611653986 | AV92: -9.803908397e+10 | AW92: 1.00000001e+30 | AX92: -3.267969806e+13 | AY92: 1.001067963e+30 | AZ92: 0.691136962 | BA92: 16.8086513 | BB92: 0.0696043345 | BC92: 0.6953066437 | BD92: 0.9803904317 | BE92: 1000000004805831 | BF92: 1.000533839e+15 | BG92: 0.05944294463 | BK92: V(t) | BL92: 22 | BM92: 2.800237661e-05 | BN92: -2.731972371e-05 | BO92: 2.28000968e-05 | BP92: -1.507826405e-05 | BQ92: 5.238733921e-06 | BR92: 5.336560816e-06 | BS92: -1.516235144e-05 | BT92: 2.285863487e-05 | BU92: -2.734449096e-05 | BV92: 2.798989456e-05 | BW92: -2.470420065e-05 | BX92: 1.794887517e-05 | BY92: -8.672683509e-06 | BZ92: -1.821560774e-06 | CA92: 1.205997226e-05 | CB92: -2.060459648e-05 | CC92: 2.625536636e-05 | CD92: -2.821864805e-05 | CE92: 2.621870449e-05 | CF92: -2.05364218e-05 | CG92: 1.19698597e-05 | CH92: -1.72216637e-06 | CI92: -8.767400106e-06 | CJ92: 1.802561129e-05 | CK92: -2.475217894e-05 | CL92: 2.800237661e-05 | CM92: -2.731972371e-05 | CN92: 2.28000968e-05 | CO92: -1.507826405e-05 | CP92: 5.238733921e-06 | CQ92: 5.336560816e-06 | CR92: -1.516235144e-05 | CS92: 2.285863487e-05 | CT92: -2.734449096e-05 | CU92: 2.798989456e-05 | CV92: -2.470420065e-05 | CW92: 1.794887517e-05 | CX92: -8.672683509e-06 | CY92: -1.821560774e-06 | CZ92: 1.205997226e-05 | DA92: -2.060459648e-05 | DB92: 2.625536636e-05 | DC92: -2.821864805e-05 | DD92: 2.621870449e-05 | DE92: -2.05364218e-05 | DF92: 1.19698597e-05 | DG92: -1.72216637e-06 | DH92: -8.767400106e-06 | DI92: 1.802561129e-05 | DJ92: -2.475217894e-05 | DK92: 2.800237661e-05 | DL92: -2.731972371e-05 | DM92: 2.28000968e-05 | DN92: -1.507826405e-05 | DO92: 5.238733921e-06 | DP92: 5.336560816e-06 | DQ92: -1.516235144e-05 | DR92: 2.285863487e-05 | DS92: -2.734449096e-05 | DT92: 2.798989456e-05 | DU92: -2.470420065e-05 | DV92: 1.794887517e-05 | DW92: -8.672683509e-06 | DX92: -1.821560774e-06 | DY92: 1.205997226e-05 | DZ92: -2.060459648e-05 | EA92: 2.625536636e-05 | EB92: -2.821864805e-05 | EC92: 2.621870449e-05 | ED92: -2.05364218e-05 | EE92: 1.19698597e-05 | EF92: -1.72216637e-06 | EG92: -8.767400106e-06 | EH92: 1.802561129e-05 | EI92: -2.475217894e-05 | EJ92: 2.800237661e-05 | EK92: -2.731972371e-05 | EL92: 2.28000968e-05 | EM92: -1.507826405e-05 | EN92: 5.238733921e-06 | EO92: 5.336560816e-06 | EP92: -1.516235144e-05 | EQ92: 2.285863487e-05 | ER92: -2.734449096e-05 | ES92: 2.798989456e-05 | ET92: -2.470420065e-05 | EU92: 1.794887517e-05 | EV92: -8.672683509e-06 | EW92: -1.821560774e-06 | EX92: 1.205997226e-05 | EY92: -2.060459648e-05 | EZ92: 2.625536636e-05 | FA92: -2.821864805e-05 | FB92: 2.621870449e-05 | FC92: -2.05364218e-05 | FD92: 1.19698597e-05 | FE92: -1.72216637e-06 | FF92: -8.767400106e-06 | FG92: 1.802561129e-05 | FH92: -2.475217894e-05 | FI92: 2.800237661e-05
B93: 23 | C93: 11500000 | D93: 0 | E93: -0.002531361654 | F93: -51.93291606 | G93: 1.388233243e-05 | H93: -1.650953428e-06 | I93: -97.08975878 | M93: 72256631.03 | N93: 0.04816127206 | O93: 0.002330619238 | P93: 0.04807293445 | Q93: 0.002312007026 | R93: 0.007087267501 | S93: 5.122936062e-05 | T93: 58417070.76 | U93: 1e+30 | V93: -4605961093 | W93: 1e+30 | X93: 21.38281592 | Y93: -179.8011705 | Z93: 0.04827648742 | AA93: 0.04808333418 | AB93: 0.00715746887 | AC93: 1e+15 | AD93: 1e+15 | AE93: 0.005522781535 | AF93: 83.21796493 | AG93: 0.0006521997463 | AH93: 0.005484136338 | AM93: 23 | AN93: 1661.272522 | AO93: 10438.0831 | AP93: -0.0679384534 | AQ93: 0.004626744562 | AR93: -0.6794471625 | AS93: 0.4616494467 | AT93: -0.9580292672 | AU93: 0.9178210768 | AV93: -9.580302066e+10 | AW93: 1.000000009e+30 | AX93: -3.19343437e+13 | AY93: 1.001019802e+30 | AZ93: 0.7237046482 | BA93: 17.19944645 | BB93: 0.06802017761 | BC93: 0.6794478984 | BD93: 0.9580297891 | BE93: 1.000000005e+15 | BF93: 1.000509771e+15 | BG93: 0.05809000486 | BK93: V(t) | BL93: 23 | BM93: 1.388233243e-05 | BN93: -1.385676885e-05 | BO93: 1.296053352e-05 | BP93: -1.124994021e-05 | BQ93: 8.832471776e-06 | BR93: -5.860026658e-06 | BS93: 2.519374514e-06 | BT93: 9.79579196e-07 | BU93: -4.416982343e-06 | BV93: 7.576850245e-06 | BW93: -1.026063678e-05 | BX93: 1.229970977e-05 | BY93: -1.356594676e-05 | BZ93: 1.397978542e-05 | CA93: -1.351522275e-05 | CB93: 1.220144893e-05 | CC93: -1.01210132e-05 | CD93: 7.404636992e-06 | CE93: -4.223000204e-06 | CF93: 7.760167834e-07 | CG93: 2.719726626e-06 | CH93: -6.044579609e-06 | CI93: 8.989629425e-06 | CJ93: -1.136982776e-05 | CK93: 1.303561801e-05 | CL93: -1.388233243e-05 | CM93: 1.385676885e-05 | CN93: -1.296053352e-05 | CO93: 1.124994021e-05 | CP93: -8.832471776e-06 | CQ93: 5.860026658e-06 | CR93: -2.519374514e-06 | CS93: -9.79579196e-07 | CT93: 4.416982343e-06 | CU93: -7.576850245e-06 | CV93: 1.026063678e-05 | CW93: -1.229970977e-05 | CX93: 1.356594676e-05 | CY93: -1.397978542e-05 | CZ93: 1.351522275e-05 | DA93: -1.220144893e-05 | DB93: 1.01210132e-05 | DC93: -7.404636992e-06 | DD93: 4.223000204e-06 | DE93: -7.760167834e-07 | DF93: -2.719726626e-06 | DG93: 6.044579609e-06 | DH93: -8.989629425e-06 | DI93: 1.136982776e-05 | DJ93: -1.303561801e-05 | DK93: 1.388233243e-05 | DL93: -1.385676885e-05 | DM93: 1.296053352e-05 | DN93: -1.124994021e-05 | DO93: 8.832471776e-06 | DP93: -5.860026658e-06 | DQ93: 2.519374514e-06 | DR93: 9.79579196e-07 | DS93: -4.416982343e-06 | DT93: 7.576850245e-06 | DU93: -1.026063678e-05 | DV93: 1.229970977e-05 | DW93: -1.356594676e-05 | DX93: 1.397978542e-05 | DY93: -1.351522275e-05 | DZ93: 1.220144893e-05 | EA93: -1.01210132e-05 | EB93: 7.404636992e-06 | EC93: -4.223000204e-06 | ED93: 7.760167834e-07 | EE93: 2.719726626e-06 | EF93: -6.044579609e-06 | EG93: 8.989629425e-06 | EH93: -1.136982776e-05 | EI93: 1.303561801e-05 | EJ93: -1.388233243e-05 | EK93: 1.385676885e-05 | EL93: -1.296053352e-05 | EM93: 1.124994021e-05 | EN93: -8.832471776e-06 | EO93: 5.860026658e-06 | EP93: -2.519374514e-06 | EQ93: -9.79579196e-07 | ER93: 4.416982343e-06 | ES93: -7.576850245e-06 | ET93: 1.026063678e-05 | EU93: -1.229970977e-05 | EV93: 1.356594676e-05 | EW93: -1.397978542e-05 | EX93: 1.351522275e-05 | EY93: -1.220144893e-05 | EZ93: 1.01210132e-05 | FA93: -7.404636992e-06 | FB93: 4.223000204e-06 | FC93: -7.760167834e-07 | FD93: -2.719726626e-06 | FE93: 6.044579609e-06 | FF93: -8.989629425e-06 | FG93: 1.136982776e-05 | FH93: -1.303561801e-05 | FI93: 1.388233243e-05
B94: 24 | C94: 12000000 | D94: 0 | E94: -3.96131763e-17 | F94: -328.0432067 | G94: 2.269395762e-19 | H94: -2.582661265e-20 | I94: -372.8259094 | M94: 75398223.69 | N94: 0.05025607614 | O94: 0.0025367843 | P94: 0.05017141925 | Q94: 0.00251817131 | R94: 0.007407193249 | S94: 5.586651183e-05 | T94: 62135311.76 | U94: 1e+30 | V94: -4413430819 | W94: 1e+30 | X94: 19.61092403 | Y94: -172.3220481 | Z94: 0.05036649978 | AA94: 0.0501813841 | AB94: 0.007474390399 | AC94: 1e+15 | AD94: 1e+15 | AE94: 0.005765870214 | AF94: 83.50744878 | AG94: 0.0006519702549 | AH94: 0.005728891176 | AM94: 24 | AN94: 1700.046975 | AO94: 10681.71018 | AP94: -0.06638860075 | AQ94: 0.004418557421 | AR94: -0.6639500978 | AS94: 0.4408307323 | AT94: -0.9361786105 | AU94: 0.8764313907 | AV94: -9.361795718e+10 | AW94: 1.000000009e+30 | AX94: -3.120598929e+13 | AY94: 1.000973814e+30 | AZ94: 0.7578034637 | BA94: 17.59925408 | BB94: 0.06647223045 | BC94: 0.6639508508 | BD94: 0.9361791446 | BE94: 1000000004382161 | BF94: 1000486788402212 | BG94: 0.05676798861 | BK94: V(t) | BL94: 24 | BM94: 2.269395762e-19 | BN94: -2.283870227e-19 | BO94: 2.262326695e-19 | BP94: -2.205104919e-19 | BQ94: 2.113107321e-19 | BR94: -1.987784759e-19 | BS94: 1.831113643e-19 | BT94: -1.645564771e-19 | BU94: 1.43406436e-19 | BV94: -1.199947898e-19 | BW94: 9.469075399e-20 | BX94: -6.789338845e-20 | BY94: 4.002530362e-20 | BZ94: -1.152599584e-20 | CA94: -1.715508378e-20 | CB94: 4.556561748e-20 | CC94: -7.325755417e-20 | CD94: 9.979417547e-20 | CE94: -1.24756983e-19 | CF94: 1.477522984e-19 | CG94: -1.684174718e-19 | CH94: 1.86426601e-19 | CI94: -2.014956714e-19 | CJ94: 2.133870347e-19 | CK94: -2.21913157e-19 | CL94: 2.269395762e-19 | CM94: -2.283870227e-19 | CN94: 2.262326695e-19 | CO94: -2.205104919e-19 | CP94: 2.113107321e-19 | CQ94: -1.987784759e-19 | CR94: 1.831113643e-19 | CS94: -1.645564771e-19 | CT94: 1.43406436e-19 | CU94: -1.199947898e-19 | CV94: 9.469075399e-20 | CW94: -6.789338845e-20 | CX94: 4.002530362e-20 | CY94: -1.152599584e-20 | CZ94: -1.715508378e-20 | DA94: 4.556561748e-20 | DB94: -7.325755417e-20 | DC94: 9.979417547e-20 | DD94: -1.24756983e-19 | DE94: 1.477522984e-19 | DF94: -1.684174718e-19 | DG94: 1.86426601e-19 | DH94: -2.014956714e-19 | DI94: 2.133870347e-19 | DJ94: -2.21913157e-19 | DK94: 2.269395762e-19 | DL94: -2.283870227e-19 | DM94: 2.262326695e-19 | DN94: -2.205104919e-19 | DO94: 2.113107321e-19 | DP94: -1.987784759e-19 | DQ94: 1.831113643e-19 | DR94: -1.645564771e-19 | DS94: 1.43406436e-19 | DT94: -1.199947898e-19 | DU94: 9.469075399e-20 | DV94: -6.789338845e-20 | DW94: 4.002530362e-20 | DX94: -1.152599584e-20 | DY94: -1.715508378e-20 | DZ94: 4.556561748e-20 | EA94: -7.325755417e-20 | EB94: 9.979417547e-20 | EC94: -1.24756983e-19 | ED94: 1.477522984e-19 | EE94: -1.684174718e-19 | EF94: 1.86426601e-19 | EG94: -2.014956714e-19 | EH94: 2.133870347e-19 | EI94: -2.21913157e-19 | EJ94: 2.269395762e-19 | EK94: -2.283870227e-19 | EL94: 2.262326695e-19 | EM94: -2.205104919e-19 | EN94: 2.113107321e-19 | EO94: -1.987784759e-19 | EP94: 1.831113643e-19 | EQ94: -1.645564771e-19 | ER94: 1.43406436e-19 | ES94: -1.199947898e-19 | ET94: 9.469075399e-20 | EU94: -6.789338845e-20 | EV94: 4.002530362e-20 | EW94: -1.152599584e-20 | EX94: -1.715508378e-20 | EY94: 4.556561748e-20 | EZ94: -7.325755417e-20 | FA94: 9.979417547e-20 | FB94: -1.24756983e-19 | FC94: 1.477522984e-19 | FD94: -1.684174718e-19 | FE94: 1.86426601e-19 | FF94: -2.014956714e-19 | FG94: 2.133870347e-19 | FH94: -2.21913157e-19 | FI94: 2.269395762e-19
B95: 25 | C95: 12500000 | D95: 0 | E95: 0.002142544504 | F95: -53.38140297 | G95: -1.279827028e-05 | H95: 1.396441949e-06 | I95: -97.80557541 | M95: 78539816.34 | N95: 0.05235084749 | O95: 0.002751722344 | P95: 0.05226957688 | Q95: 0.002733108668 | R95: 0.00772665768 | S95: 6.07012389e-05 | T95: 65807420.89 | U95: 1e+30 | V95: -4236277834 | W95: 1e+30 | X95: 18.0513746 | Y95: -165.4392946 | Z95: 0.05245686175 | AA95: 0.0522791418 | AB95: 0.00779109998 | AC95: 1e+15 | AD95: 1000000000008973 | AE95: 0.006008850212 | AF95: 83.77298964 | AG95: 0.0006517680014 | AH95: 0.005973397638 | AM95: 25 | AN95: 1739.726432 | AO95: 10931.02356 | AP95: -0.06487408944 | AQ95: 0.004219758592 | AR95: -0.6488064805 | AS95: 0.4209508492 | AT95: -0.9148263196 | AU95: 0.836908195 | AV95: -9.148273034e+10 | AW95: 1.000000008e+30 | AX95: -3.049424709e+13 | AY95: 1.000929899e+30 | AZ95: 0.7935050527 | BA95: 18.00827678 | BB95: 0.06495966896 | BC95: 0.6488072512 | BD95: 0.9148268662 | BE95: 1000000004184545 | BF95: 1.000464842e+15 | BG95: 0.05547619209 | BK95: V(t) | BL95: 25 | BM95: -1.279827028e-05 | BN95: 1.279827028e-05 | BO95: -1.279827028e-05 | BP95: 1.279827028e-05 | BQ95: -1.279827028e-05 | BR95: 1.279827028e-05 | BS95: -1.279827028e-05 | BT95: 1.279827028e-05 | BU95: -1.279827028e-05 | BV95: 1.279827028e-05 | BW95: -1.279827028e-05 | BX95: 1.279827028e-05 | BY95: -1.279827028e-05 | BZ95: 1.279827028e-05 | CA95: -1.279827028e-05 | CB95: 1.279827028e-05 | CC95: -1.279827028e-05 | CD95: 1.279827028e-05 | CE95: -1.279827028e-05 | CF95: 1.279827028e-05 | CG95: -1.279827028e-05 | CH95: 1.279827028e-05 | CI95: -1.279827028e-05 | CJ95: 1.279827028e-05 | CK95: -1.279827028e-05 | CL95: 1.279827028e-05 | CM95: -1.279827028e-05 | CN95: 1.279827028e-05 | CO95: -1.279827028e-05 | CP95: 1.279827028e-05 | CQ95: -1.279827028e-05 | CR95: 1.279827028e-05 | CS95: -1.279827028e-05 | CT95: 1.279827028e-05 | CU95: -1.279827028e-05 | CV95: 1.279827028e-05 | CW95: -1.279827028e-05 | CX95: 1.279827028e-05 | CY95: -1.279827028e-05 | CZ95: 1.279827028e-05 | DA95: -1.279827028e-05 | DB95: 1.279827028e-05 | DC95: -1.279827028e-05 | DD95: 1.279827028e-05 | DE95: -1.279827028e-05 | DF95: 1.279827028e-05 | DG95: -1.279827028e-05 | DH95: 1.279827028e-05 | DI95: -1.279827028e-05 | DJ95: 1.279827028e-05 | DK95: -1.279827028e-05 | DL95: 1.279827028e-05 | DM95: -1.279827028e-05 | DN95: 1.279827028e-05 | DO95: -1.279827028e-05 | DP95: 1.279827028e-05 | DQ95: -1.279827028e-05 | DR95: 1.279827028e-05 | DS95: -1.279827028e-05 | DT95: 1.279827028e-05 | DU95: -1.279827028e-05 | DV95: 1.279827028e-05 | DW95: -1.279827028e-05 | DX95: 1.279827028e-05 | DY95: -1.279827028e-05 | DZ95: 1.279827028e-05 | EA95: -1.279827028e-05 | EB95: 1.279827028e-05 | EC95: -1.279827028e-05 | ED95: 1.279827028e-05 | EE95: -1.279827028e-05 | EF95: 1.279827028e-05 | EG95: -1.279827028e-05 | EH95: 1.279827028e-05 | EI95: -1.279827028e-05 | EJ95: 1.279827028e-05 | EK95: -1.279827028e-05 | EL95: 1.279827028e-05 | EM95: -1.279827028e-05 | EN95: 1.279827028e-05 | EO95: -1.279827028e-05 | EP95: 1.279827028e-05 | EQ95: -1.279827028e-05 | ER95: 1.279827028e-05 | ES95: -1.279827028e-05 | ET95: 1.279827028e-05 | EU95: -1.279827028e-05 | EV95: 1.279827028e-05 | EW95: -1.279827028e-05 | EX95: 1.279827028e-05 | EY95: -1.279827028e-05 | EZ95: 1.279827028e-05 | FA95: -1.279827028e-05 | FB95: 1.279827028e-05 | FC95: -1.279827028e-05 | FD95: 1.279827028e-05 | FE95: -1.279827028e-05 | FF95: 1.279827028e-05 | FG95: -1.279827028e-05 | FH95: 1.279827028e-05 | FI95: -1.279827028e-05
B96: 26 | C96: 13000000 | D96: 0 | E96: 0.003826810411 | F96: -48.34326106 | G96: -2.37938998e-05 | H96: 2.493506925e-06 | I96: -92.42325228 | M96: 81681408.99 | N96: 0.0544455899 | O96: 0.002975433371 | P96: 0.05436744509 | Q96: 0.002956819085 | R96: 0.00804571402 | S96: 6.573351409e-05 | T96: 69438721.06 | U96: 1e+30 | V96: -4072727836 | W96: 1e+30 | X96: 16.67142618 | Y96: -159.0844765 | Z96: 0.05454753314 | AA96: 0.05437664099 | AB96: 0.008107620742 | AC96: 1e+15 | AD96: 1e+15 | AE96: 0.006251733249 | AF96: 84.01746484 | AG96: 0.0006515888319 | AH96: 0.006217684506 | AM96: 26 | AN96: 1780.332016 | AO96: 11186.15597 | AP96: -0.06339411324 | AQ96: 0.004029924704 | AR96: -0.6340082493 | AS96: 0.4019674602 | AT96: -0.8939610279 | AU96: 0.7991673194 | AV96: -8.939620347e+10 | AW96: 1.000000008e+30 | AX96: -2.979873822e+13 | AY96: 1.000887965e+30 | AZ96: 0.8308843796 | BA96: 18.42672132 | BB96: 0.06348168794 | BC96: 0.6340090379 | BD96: 0.8939615872 | BE96: 1.000000004e+15 | BF96: 1.000443884e+15 | BG96: 0.05421392763 | BK96: V(t) | BL96: 26 | BM96: -2.37938998e-05 | BN96: 2.329375851e-05 | BO96: -2.242626073e-05 | BP96: 2.120508742e-05 | BQ96: -1.964949721e-05 | BR96: 1.77840227e-05 | BS96: -1.563808353e-05 | BT96: 1.324552243e-05 | BU96: -1.064407154e-05 | BV96: 7.874757278e-06 | BW96: -4.98125339e-06 | BX96: 2.009192161e-06 | BY96: 9.94555229e-07 | BZ96: -3.982617889e-06 | CA96: 6.907872286e-06 | CB96: -9.72418541e-06 | CC96: 1.238714232e-05 | CD96: -1.48547466e-05 | CE96: 1.708808265e-05 | CF96: -1.905192943e-05 | CG96: 2.07153159e-05 | CH96: -2.205200946e-05 | CI96: 2.304092966e-05 | CJ96: -2.366648064e-05 | CK96: 2.391879708e-05 | CL96: -2.37938998e-05 | CM96: 2.329375851e-05 | CN96: -2.242626073e-05 | CO96: 2.120508742e-05 | CP96: -1.964949721e-05 | CQ96: 1.77840227e-05 | CR96: -1.563808353e-05 | CS96: 1.324552243e-05 | CT96: -1.064407154e-05 | CU96: 7.874757278e-06 | CV96: -4.98125339e-06 | CW96: 2.009192161e-06 | CX96: 9.94555229e-07 | CY96: -3.982617889e-06 | CZ96: 6.907872286e-06 | DA96: -9.72418541e-06 | DB96: 1.238714232e-05 | DC96: -1.48547466e-05 | DD96: 1.708808265e-05 | DE96: -1.905192943e-05 | DF96: 2.07153159e-05 | DG96: -2.205200946e-05 | DH96: 2.304092966e-05 | DI96: -2.366648064e-05 | DJ96: 2.391879708e-05 | DK96: -2.37938998e-05 | DL96: 2.329375851e-05 | DM96: -2.242626073e-05 | DN96: 2.120508742e-05 | DO96: -1.964949721e-05 | DP96: 1.77840227e-05 | DQ96: -1.563808353e-05 | DR96: 1.324552243e-05 | DS96: -1.064407154e-05 | DT96: 7.874757278e-06 | DU96: -4.98125339e-06 | DV96: 2.009192161e-06 | DW96: 9.94555229e-07 | DX96: -3.982617889e-06 | DY96: 6.907872286e-06 | DZ96: -9.72418541e-06 | EA96: 1.238714232e-05 | EB96: -1.48547466e-05 | EC96: 1.708808265e-05 | ED96: -1.905192943e-05 | EE96: 2.07153159e-05 | EF96: -2.205200946e-05 | EG96: 2.304092966e-05 | EH96: -2.366648064e-05 | EI96: 2.391879708e-05 | EJ96: -2.37938998e-05 | EK96: 2.329375851e-05 | EL96: -2.242626073e-05 | EM96: 2.120508742e-05 | EN96: -1.964949721e-05 | EO96: 1.77840227e-05 | EP96: -1.563808353e-05 | EQ96: 1.324552243e-05 | ER96: -1.064407154e-05 | ES96: 7.874757278e-06 | ET96: -4.98125339e-06 | EU96: 2.009192161e-06 | EV96: 9.94555229e-07 | EW96: -3.982617889e-06 | EX96: 6.907872286e-06 | EY96: -9.72418541e-06 | EZ96: 1.238714232e-05 | FA96: -1.48547466e-05 | FB96: 1.708808265e-05 | FC96: -1.905192943e-05 | FD96: 2.07153159e-05 | FE96: -2.205200946e-05 | FF96: 2.304092966e-05 | FG96: -2.366648064e-05 | FH96: 2.391879708e-05 | FI96: -2.37938998e-05
B97: 27 | C97: 13500000 | D97: 0 | E97: 0.005018467457 | F97: -45.98857776 | G97: -3.242821396e-05 | H97: 3.269177025e-06 | I97: -89.73762394 | M97: 84823001.65 | N97: 0.05654030659 | O97: 0.00320791738 | P97: 0.05646505603 | Q97: 0.003189302552 | R97: 0.008364407614 | S97: 7.096331474e-05 | T97: 73033746.6 | U97: 1e+30 | V97: -3921269381 | W97: 1e+30 | X97: 15.44443211 | Y97: -153.1992135 | Z97: 0.05663847968 | AA97: 0.05647391037 | AB97: 0.008423972622 | AC97: 1e+15 | AD97: 1e+15 | AE97: 0.006494529457 | AF97: 84.2433052 | AG97: 0.0006514293564 | AH97: 0.006461776277 | AM97: 27 | AN97: 1821.885343 | AO97: 11447.24322 | AP97: -0.06194788429 | AQ97: 0.00384865148 | AR97: -0.6195475264 | AS97: 0.3838401375 | AT97: -0.8735716279 | AU97: 0.7631283891 | AV97: -8.735726582e+10 | AW97: 1.000000008e+30 | AX97: -2.911909242e+13 | AY97: 1.000847922e+30 | AZ97: 0.8700198786 | BA97: 18.85479871 | BB97: 0.06203750059 | BC97: 0.6195483334 | BD97: 0.8735722003 | BE97: 1.000000004e+15 | BF97: 1.000423871e+15 | BG97: 0.05298052325 | BK97: V(t) | BL97: 27 | BM97: -3.242821396e-05 | BN97: 3.059641072e-05 | BO97: -2.684212247e-05 | BP97: 2.140124495e-05 | BQ97: -1.46156485e-05 | BR97: 6.911697098e-06 | BS97: 1.226541649e-06 | BT97: -9.287712274e-06 | BU97: 1.676530178e-05 | BV97: -2.318946571e-05 | BW97: 2.815655023e-05 | BX97: -3.135445515e-05 | BY97: 3.258224434e-05 | BZ97: -3.176277128e-05 | CA97: 2.894752649e-05 | CB97: -2.431340215e-05 | CC97: 1.815157733e-05 | CD97: -1.084922216e-05 | CE97: 2.865170449e-06 | CF97: 5.298910453e-06 | CG97: -1.313004132e-05 | CH97: 2.013616341e-05 | CI97: -2.587705629e-05 | CJ97: 2.999199856e-05 | CK97: -3.222243325e-05 | CL97: 3.242821396e-05 | CM97: -3.059641072e-05 | CN97: 2.684212247e-05 | CO97: -2.140124495e-05 | CP97: 1.46156485e-05 | CQ97: -6.911697098e-06 | CR97: -1.226541649e-06 | CS97: 9.287712274e-06 | CT97: -1.676530178e-05 | CU97: 2.318946571e-05 | CV97: -2.815655023e-05 | CW97: 3.135445515e-05 | CX97: -3.258224434e-05 | CY97: 3.176277128e-05 | CZ97: -2.894752649e-05 | DA97: 2.431340215e-05 | DB97: -1.815157733e-05 | DC97: 1.084922216e-05 | DD97: -2.865170449e-06 | DE97: -5.298910453e-06 | DF97: 1.313004132e-05 | DG97: -2.013616341e-05 | DH97: 2.587705629e-05 | DI97: -2.999199856e-05 | DJ97: 3.222243325e-05 | DK97: -3.242821396e-05 | DL97: 3.059641072e-05 | DM97: -2.684212247e-05 | DN97: 2.140124495e-05 | DO97: -1.46156485e-05 | DP97: 6.911697098e-06 | DQ97: 1.226541649e-06 | DR97: -9.287712274e-06 | DS97: 1.676530178e-05 | DT97: -2.318946571e-05 | DU97: 2.815655023e-05 | DV97: -3.135445515e-05 | DW97: 3.258224434e-05 | DX97: -3.176277128e-05 | DY97: 2.894752649e-05 | DZ97: -2.431340215e-05 | EA97: 1.815157733e-05 | EB97: -1.084922216e-05 | EC97: 2.865170449e-06 | ED97: 5.298910453e-06 | EE97: -1.313004132e-05 | EF97: 2.013616341e-05 | EG97: -2.587705629e-05 | EH97: 2.999199856e-05 | EI97: -3.222243325e-05 | EJ97: 3.242821396e-05 | EK97: -3.059641072e-05 | EL97: 2.684212247e-05 | EM97: -2.140124495e-05 | EN97: 1.46156485e-05 | EO97: -6.911697098e-06 | EP97: -1.226541649e-06 | EQ97: 9.287712274e-06 | ER97: -1.676530178e-05 | ES97: 2.318946571e-05 | ET97: -2.815655023e-05 | EU97: 3.135445515e-05 | EV97: -3.258224434e-05 | EW97: 3.176277128e-05 | EX97: -2.894752649e-05 | EY97: 2.431340215e-05 | EZ97: -1.815157733e-05 | FA97: 1.084922216e-05 | FB97: -2.865170449e-06 | FC97: -5.298910453e-06 | FD97: 1.313004132e-05 | FE97: -2.013616341e-05 | FF97: 2.587705629e-05 | FG97: -2.999199856e-05 | FH97: 3.222243325e-05 | FI97: -3.242821396e-05
B98: 28 | C98: 14000000 | D98: 0 | E98: 0.005715157554 | F98: -44.85943585 | G98: -3.832409734e-05 | H98: 3.722206596e-06 | I98: -88.28978565 | M98: 87964594.3 | N98: 0.05863500031 | O98: 0.003449174372 | P98: 0.05856243726 | Q98: 0.003430559058 | R98: 0.008682777328 | S98: 7.639062212e-05 | T98: 76596384.08 | U98: 1e+30 | V98: -3780606948 | W98: 1e+30 | X98: 14.3485246 | Y98: -147.7334047 | Z98: 0.05872967199 | AA98: 0.05857097454 | AB98: 0.008740172889 | AC98: 1000000000000003 | AD98: 1e+15 | AE98: 0.006737247628 | AF98: 84.45257891 | AG98: 0.0006512867862 | AH98: 0.006705693933 | AM98: 28 | AN98: 1864.408534 | AO98: 11714.42431 | AP98: -0.06053463272 | AQ98: 0.00367555287 | AR98: -0.6054166138 | AS98: 0.3665302762 | AT98: -0.8536472655 | AU98: 0.728714654 | AV98: -8.536483198e+10 | AW98: 1.000000007e+30 | AX98: -2.84549479e+13 | AY98: 1.000809684e+30 | AZ98: 0.9109936116 | BA98: 19.29272427 | BB98: 0.06062633809 | BC98: 0.6054174397 | BD98: 0.8536478513 | BE98: 1.000000004e+15 | BF98: 1.00040476e+15 | BG98: 0.05177532235 | BK98: V(t) | BL98: 28 | BM98: -3.832409734e-05 | BN98: 3.426260891e-05 | BO98: -2.538903888e-05 | BP98: 1.294965379e-05 | BQ98: 1.308471689e-06 | BR98: -1.538282621e-05 | BS98: 2.72967085e-05 | BT98: -3.537684921e-05 | BU98: 3.848841657e-05 | BV98: -3.619440021e-05 | BW98: 2.88169879e-05 | BX98: -1.739231527e-05 | BY98: 3.524943656e-06 | BZ98: 1.083749582e-05 | CA98: -2.367784122e-05 | CB98: 3.319270418e-05 | CC98: -3.804575048e-05 | CD98: 3.755538419e-05 | CE98: -3.17904758e-05 | CF98: 2.156068955e-05 | CG98: -8.302768533e-06 | CH98: -6.121251654e-06 | CI98: 1.968556024e-05 | CJ98: -3.048509039e-05 | CK98: 3.700308019e-05 | CL98: -3.832409734e-05 | CM98: 3.426260891e-05 | CN98: -2.538903888e-05 | CO98: 1.294965379e-05 | CP98: 1.308471689e-06 | CQ98: -1.538282621e-05 | CR98: 2.72967085e-05 | CS98: -3.537684921e-05 | CT98: 3.848841657e-05 | CU98: -3.619440021e-05 | CV98: 2.88169879e-05 | CW98: -1.739231527e-05 | CX98: 3.524943656e-06 | CY98: 1.083749582e-05 | CZ98: -2.367784122e-05 | DA98: 3.319270418e-05 | DB98: -3.804575048e-05 | DC98: 3.755538419e-05 | DD98: -3.17904758e-05 | DE98: 2.156068955e-05 | DF98: -8.302768533e-06 | DG98: -6.121251654e-06 | DH98: 1.968556024e-05 | DI98: -3.048509039e-05 | DJ98: 3.700308019e-05 | DK98: -3.832409734e-05 | DL98: 3.426260891e-05 | DM98: -2.538903888e-05 | DN98: 1.294965379e-05 | DO98: 1.308471689e-06 | DP98: -1.538282621e-05 | DQ98: 2.72967085e-05 | DR98: -3.537684921e-05 | DS98: 3.848841657e-05 | DT98: -3.619440021e-05 | DU98: 2.88169879e-05 | DV98: -1.739231527e-05 | DW98: 3.524943656e-06 | DX98: 1.083749582e-05 | DY98: -2.367784122e-05 | DZ98: 3.319270418e-05 | EA98: -3.804575048e-05 | EB98: 3.755538419e-05 | EC98: -3.17904758e-05 | ED98: 2.156068955e-05 | EE98: -8.302768533e-06 | EF98: -6.121251654e-06 | EG98: 1.968556024e-05 | EH98: -3.048509039e-05 | EI98: 3.700308019e-05 | EJ98: -3.832409734e-05 | EK98: 3.426260891e-05 | EL98: -2.538903888e-05 | EM98: 1.294965379e-05 | EN98: 1.308471689e-06 | EO98: -1.538282621e-05 | EP98: 2.72967085e-05 | EQ98: -3.537684921e-05 | ER98: 3.848841657e-05 | ES98: -3.619440021e-05 | ET98: 2.88169879e-05 | EU98: -1.739231527e-05 | EV98: 3.524943656e-06 | EW98: 1.083749582e-05 | EX98: -2.367784122e-05 | EY98: 3.319270418e-05 | EZ98: -3.804575048e-05 | FA98: 3.755538419e-05 | FB98: -3.17904758e-05 | FC98: 2.156068955e-05 | FD98: -8.302768533e-06 | FE98: -6.121251654e-06 | FF98: 1.968556024e-05 | FG98: -3.048509039e-05 | FH98: 3.700308019e-05 | FI98: -3.832409734e-05
B99: 29 | C99: 14500000 | D99: 0 | E99: 0.005942393687 | F99: -44.52077159 | G99: -4.129640079e-05 | H99: 3.869442002e-06 | I99: -87.64379326 | M99: 91106186.95 | N99: 0.06072967343 | O99: 0.003699204346 | P99: 0.06065961256 | Q99: 0.003680588596 | R99: 0.009000856666 | S99: 8.201542072e-05 | T99: 80129983.98 | U99: 1e+30 | V99: -3649623705 | W99: 1e+30 | X99: 13.36561935 | Y99: -142.6438161 | Z99: 0.06082108471 | AA99: 0.06066785471 | AB99: 0.009056236565 | AC99: 1e+15 | AD99: 1e+15 | AE99: 0.006979895431 | AF99: 84.64705709 | AG99: 0.0006511588101 | AH99: 0.00694945555 | AM99: 29 | AN99: 1907.924225 | AO99: 11987.84146 | AP99: -0.05915360619 | AQ99: 0.003510260237 | AR99: -0.591607989 | AS99: 0.3500010126 | AT99: -0.8341773342 | AU99: 0.6958528249 | AV99: -8.341784131e+10 | AW99: 1.000000007e+30 | AX99: -2.78059511e+13 | AY99: 1.000773171e+30 | AZ99: 0.9538914319 | BA99: 19.74071765 | BB99: 0.0592474492 | BC99: 0.5916088341 | BD99: 0.8341779336 | BE99: 1.000000003e+15 | BF99: 1.000386511e+15 | BG99: 0.05059768334 | BK99: V(t) | BL99: 29 | BM99: -4.129640079e-05 | BN99: 3.432419397e-05 | BO99: -1.886064014e-05 | BP99: -1.268784082e-06 | BQ99: 2.108432807e-05 | BR99: -3.568389099e-05 | BS99: 4.145573601e-05 | BT99: -3.69719858e-05 | BU99: 2.334186025e-05 | BV99: -3.937270321e-06 | BW99: -1.644134768e-05 | BX99: 3.275259592e-05 | BY99: -4.096128951e-05 | BZ99: 3.903670732e-05 | CA99: -2.745496527e-05 | CB99: 9.081231619e-06 | CC99: 1.153907741e-05 | CD99: -2.930477286e-05 | CE99: 3.982085901e-05 | CF99: -4.048579665e-05 | CG99: 3.11350891e-05 | CH99: -1.408197647e-05 | CI99: -6.454829002e-06 | CJ99: 2.539479602e-05 | CK99: -3.805242977e-05 | CL99: 4.129640079e-05 | CM99: -3.432419397e-05 | CN99: 1.886064014e-05 | CO99: 1.268784082e-06 | CP99: -2.108432807e-05 | CQ99: 3.568389099e-05 | CR99: -4.145573601e-05 | CS99: 3.69719858e-05 | CT99: -2.334186025e-05 | CU99: 3.937270321e-06 | CV99: 1.644134768e-05 | CW99: -3.275259592e-05 | CX99: 4.096128951e-05 | CY99: -3.903670732e-05 | CZ99: 2.745496527e-05 | DA99: -9.081231619e-06 | DB99: -1.153907741e-05 | DC99: 2.930477286e-05 | DD99: -3.982085901e-05 | DE99: 4.048579665e-05 | DF99: -3.11350891e-05 | DG99: 1.408197647e-05 | DH99: 6.454829002e-06 | DI99: -2.539479602e-05 | DJ99: 3.805242977e-05 | DK99: -4.129640079e-05 | DL99: 3.432419397e-05 | DM99: -1.886064014e-05 | DN99: -1.268784082e-06 | DO99: 2.108432807e-05 | DP99: -3.568389099e-05 | DQ99: 4.145573601e-05 | DR99: -3.69719858e-05 | DS99: 2.334186025e-05 | DT99: -3.937270321e-06 | DU99: -1.644134768e-05 | DV99: 3.275259592e-05 | DW99: -4.096128951e-05 | DX99: 3.903670732e-05 | DY99: -2.745496527e-05 | DZ99: 9.081231619e-06 | EA99: 1.153907741e-05 | EB99: -2.930477286e-05 | EC99: 3.982085901e-05 | ED99: -4.048579665e-05 | EE99: 3.11350891e-05 | EF99: -1.408197647e-05 | EG99: -6.454829002e-06 | EH99: 2.539479602e-05 | EI99: -3.805242977e-05 | EJ99: 4.129640079e-05 | EK99: -3.432419397e-05 | EL99: 1.886064014e-05 | EM99: 1.268784082e-06 | EN99: -2.108432807e-05 | EO99: 3.568389099e-05 | EP99: -4.145573601e-05 | EQ99: 3.69719858e-05 | ER99: -2.334186025e-05 | ES99: 3.937270321e-06 | ET99: 1.644134768e-05 | EU99: -3.275259592e-05 | EV99: 4.096128951e-05 | EW99: -3.903670732e-05 | EX99: 2.745496527e-05 | EY99: -9.081231619e-06 | EZ99: -1.153907741e-05 | FA99: 2.930477286e-05 | FB99: -3.982085901e-05 | FC99: 4.048579665e-05 | FD99: -3.11350891e-05 | FE99: 1.408197647e-05 | FF99: 6.454829002e-06 | FG99: -2.539479602e-05 | FH99: 3.805242977e-05 | FI99: -4.129640079e-05
B100: 30 | C100: 15000000 | D100: 0 | E100: 0.005748719639 | F100: -44.80857742 | G100: -4.135098175e-05 | H100: 3.742666549e-06 | I100: -87.63485097 | M100: 94247779.61 | N100: 0.06282432802 | O100: 0.003958007302 | P100: 0.06275660251 | Q100: 0.003939391158 | R100: 0.009318674665 | S100: 8.783769752e-05 | T100: 83637450.07 | U100: 1e+30 | V100: -3527351735 | W100: 1e+30 | X100: 12.48065453 | Y100: -137.8929464 | Z100: 0.06291269587 | AA100: 0.06276456929 | AB100: 0.009372176776 | AC100: 1e+15 | AD100: 1e+15 | AE100: 0.007222479575 | AF100: 84.82826556 | AG100: 0.0006510434991 | AH100: 0.00719307678 | AM100: 30 | AN100: 1952.455581 | AO100: 12267.64022 | AP100: -0.05780406952 | AQ100: 0.003352421565 | AR100: -0.5781143011 | AS100: 0.3342171451 | AT100: -0.8151514694 | AU100: 0.664472918 | AV100: -8.151525734e+10 | AW100: 1.000000007e+30 | AX100: -2.717175654e+13 | AY100: 1.000738304e+30 | AZ100: 0.9988031553 | BA100: 20.1990029 | BB100: 0.05790009987 | BC100: 0.578115166 | BD100: 0.8151520827 | BE100: 1.000000003e+15 | BF100: 1.000369084e+15 | BG100: 0.0494469793 | BK100: V(t) | BL100: 30 | BM100: -4.135098175e-05 | BN100: 3.125376277e-05 | BO100: -9.218668686e-06 | BP100: -1.633764351e-05 | BQ100: 3.565353118e-05 | BR100: -4.135098175e-05 | BS100: 3.125376277e-05 | BT100: -9.218668686e-06 | BU100: -1.633764351e-05 | BV100: 3.565353118e-05 | BW100: -4.135098175e-05 | BX100: 3.125376277e-05 | BY100: -9.218668686e-06 | BZ100: -1.633764351e-05 | CA100: 3.565353118e-05 | CB100: -4.135098175e-05 | CC100: 3.125376277e-05 | CD100: -9.218668686e-06 | CE100: -1.633764351e-05 | CF100: 3.565353118e-05 | CG100: -4.135098175e-05 | CH100: 3.125376277e-05 | CI100: -9.218668686e-06 | CJ100: -1.633764351e-05 | CK100: 3.565353118e-05 | CL100: -4.135098175e-05 | CM100: 3.125376277e-05 | CN100: -9.218668686e-06 | CO100: -1.633764351e-05 | CP100: 3.565353118e-05 | CQ100: -4.135098175e-05 | CR100: 3.125376277e-05 | CS100: -9.218668686e-06 | CT100: -1.633764351e-05 | CU100: 3.565353118e-05 | CV100: -4.135098175e-05 | CW100: 3.125376277e-05 | CX100: -9.218668686e-06 | CY100: -1.633764351e-05 | CZ100: 3.565353118e-05 | DA100: -4.135098175e-05 | DB100: 3.125376277e-05 | DC100: -9.218668686e-06 | DD100: -1.633764351e-05 | DE100: 3.565353118e-05 | DF100: -4.135098175e-05 | DG100: 3.125376277e-05 | DH100: -9.218668686e-06 | DI100: -1.633764351e-05 | DJ100: 3.565353118e-05 | DK100: -4.135098175e-05 | DL100: 3.125376277e-05 | DM100: -9.218668686e-06 | DN100: -1.633764351e-05 | DO100: 3.565353118e-05 | DP100: -4.135098175e-05 | DQ100: 3.125376277e-05 | DR100: -9.218668686e-06 | DS100: -1.633764351e-05 | DT100: 3.565353118e-05 | DU100: -4.135098175e-05 | DV100: 3.125376277e-05 | DW100: -9.218668686e-06 | DX100: -1.633764351e-05 | DY100: 3.565353118e-05 | DZ100: -4.135098175e-05 | EA100: 3.125376277e-05 | EB100: -9.218668686e-06 | EC100: -1.633764351e-05 | ED100: 3.565353118e-05 | EE100: -4.135098175e-05 | EF100: 3.125376277e-05 | EG100: -9.218668686e-06 | EH100: -1.633764351e-05 | EI100: 3.565353118e-05 | EJ100: -4.135098175e-05 | EK100: 3.125376277e-05 | EL100: -9.218668686e-06 | EM100: -1.633764351e-05 | EN100: 3.565353118e-05 | EO100: -4.135098175e-05 | EP100: 3.125376277e-05 | EQ100: -9.218668686e-06 | ER100: -1.633764351e-05 | ES100: 3.565353118e-05 | ET100: -4.135098175e-05 | EU100: 3.125376277e-05 | EV100: -9.218668686e-06 | EW100: -1.633764351e-05 | EX100: 3.565353118e-05 | EY100: -4.135098175e-05 | EZ100: 3.125376277e-05 | FA100: -9.218668686e-06 | FB100: -1.633764351e-05 | FC100: 3.565353118e-05 | FD100: -4.135098175e-05 | FE100: 3.125376277e-05 | FF100: -9.218668686e-06 | FG100: -1.633764351e-05 | FH100: 3.565353118e-05 | FI100: -4.135098175e-05
B101: 31 | C101: 15500000 | D101: 0 | E101: 0.00520036742 | F101: -45.67931942 | G101: -3.867290286e-05 | H101: 3.385123182e-06 | I101: -88.21871625 | M101: 97389372.26 | N101: 0.06491896586 | O101: 0.00422558324 | P101: 0.06485342505 | Q101: 0.00420696674 | R101: 0.009636256618 | S101: 9.38574416e-05 | T101: 87121311.42 | U101: 1e+30 | V101: -3412948011 | W101: 1e+30 | X101: 11.68100288 | Y101: -133.4481098 | Z101: 0.0650044863 | AA101: 0.06486113428 | AB101: 0.009688005037 | AC101: 1e+15 | AD101: 1e+15 | AE101: 0.007465005954 | AF101: 84.9975261 | AG101: 0.0006509392333 | AH101: 0.007436571253 | AM101: 31 | AN101: 1998.026309 | AO101: 12553.96955 | AP101: -0.05648530431 | AQ101: 0.003201700714 | AR101: -0.5649283669 | AS101: 0.3191450597 | AT101: -0.7965595427 | AU101: 0.634508105 | AV101: -7.965606725e+10 | AW101: 1.000000006e+30 | AX101: -2.65520266e+13 | AY101: 1.00070501e+30 | AZ101: 1.045822738 | BA101: 20.66780854 | BB101: 0.05658357283 | BC101: 0.564929252 | BD101: 0.7965601704 | BE101: 1.000000003e+15 | BF101: 1.000352443e+15 | BG101: 0.04832259764 | BK101: V(t) | BL101: 31 | BM101: -3.867290286e-05 | BN101: 2.587405664e-05 | BO101: 9.501517517e-07 | BP101: -2.725931828e-05 | BQ101: 3.879222391e-05 | BR101: -2.929731016e-05 | BS101: 3.921416034e-06 | BT101: 2.358013163e-05 | BU101: -3.829976841e-05 | BV101: 3.225852759e-05 | BW101: -8.731140747e-06 | BX101: -1.952907222e-05 | BY101: 3.720330268e-05 | BZ101: -3.471100877e-05 | CA101: 1.340317015e-05 | CB101: 1.517002767e-05 | CC101: -3.552011865e-05 | CD101: 3.66160766e-05 | CE101: -1.786382356e-05 | CF101: -1.057174272e-05 | CG101: 3.327676112e-05 | CH101: -3.794368704e-05 | CI101: 2.20427538e-05 | CJ101: 5.806735077e-06 | CK101: -3.05086092e-05 | CL101: 3.867290286e-05 | CM101: -2.587405664e-05 | CN101: -9.501517517e-07 | CO101: 2.725931828e-05 | CP101: -3.879222391e-05 | CQ101: 2.929731016e-05 | CR101: -3.921416034e-06 | CS101: -2.358013163e-05 | CT101: 3.829976841e-05 | CU101: -3.225852759e-05 | CV101: 8.731140747e-06 | CW101: 1.952907222e-05 | CX101: -3.720330268e-05 | CY101: 3.471100877e-05 | CZ101: -1.340317015e-05 | DA101: -1.517002767e-05 | DB101: 3.552011865e-05 | DC101: -3.66160766e-05 | DD101: 1.786382356e-05 | DE101: 1.057174272e-05 | DF101: -3.327676112e-05 | DG101: 3.794368704e-05 | DH101: -2.20427538e-05 | DI101: -5.806735077e-06 | DJ101: 3.05086092e-05 | DK101: -3.867290286e-05 | DL101: 2.587405664e-05 | DM101: 9.501517517e-07 | DN101: -2.725931828e-05 | DO101: 3.879222391e-05 | DP101: -2.929731016e-05 | DQ101: 3.921416034e-06 | DR101: 2.358013163e-05 | DS101: -3.829976841e-05 | DT101: 3.225852759e-05 | DU101: -8.731140747e-06 | DV101: -1.952907222e-05 | DW101: 3.720330268e-05 | DX101: -3.471100877e-05 | DY101: 1.340317015e-05 | DZ101: 1.517002767e-05 | EA101: -3.552011865e-05 | EB101: 3.66160766e-05 | EC101: -1.786382356e-05 | ED101: -1.057174272e-05 | EE101: 3.327676112e-05 | EF101: -3.794368704e-05 | EG101: 2.20427538e-05 | EH101: 5.806735077e-06 | EI101: -3.05086092e-05 | EJ101: 3.867290286e-05 | EK101: -2.587405664e-05 | EL101: -9.501517517e-07 | EM101: 2.725931828e-05 | EN101: =Re_H*COS(NH_*Rad_+NH_*Ofs_)+Im_H*SIN(NH_*Rad_+NH_*Ofs_) -> -3.879222391e-05 | EO101: 2.929731016e-05 | EP101: -3.921416034e-06 | EQ101: -2.358013163e-05 | ER101: 3.829976841e-05 | ES101: -3.225852759e-05 | ET101: 8.731140747e-06 | EU101: 1.952907222e-05 | EV101: -3.720330268e-05 | EW101: 3.471100877e-05 | EX101: -1.340317015e-05 | EY101: -1.517002767e-05 | EZ101: 3.552011865e-05 | FA101: -3.66160766e-05 | FB101: 1.786382356e-05 | FC101: 1.057174272e-05 | FD101: -3.327676112e-05 | FE101: 3.794368704e-05 | FF101: -2.20427538e-05 | FG101: -5.806735077e-06 | FH101: 3.05086092e-05 | FI101: -3.867290286e-05
B102: 32 | C102: 16000000 | D102: 0 | E102: 0.004375667502 | F102: -47.17911373 | G102: -3.360491151e-05 | H102: 2.847879758e-06 | I102: -89.44086586 | M102: 100530964.9 | N102: 0.06701358854 | O102: 0.00450193216 | P102: 0.06695009587 | Q102: 0.004483315337 | R102: 0.009953624652 | S102: 0.0001000746437 | T102: 90583780.97 | U102: 1e+30 | V102: -3305674885 | W102: 1e+30 | X102: 10.95601324 | Y102: -129.2806884 | Z102: 0.06709643925 | AA102: 0.06695756371 | AB102: 0.01000373149 | AC102: 1e+15 | AD102: 1e+15 | AE102: 0.007707479767 | AF102: 85.15598964 | AG102: 0.0006508446441 | AH102: 0.007679950886 | AM102: 32 | AN102: 2044.660667 | AO102: 12846.98186 | AP102: -0.05519660851 | AQ102: 0.003057776702 | AR102: -0.552043167 | AS102: 0.3047526582 | AT102: -0.7783916569 | AU102: 0.6058945716 | AV102: -7.783928132e+10 | AW102: 1.000000006e+30 | AX102: -2.594643139e+13 | AY102: 1.000673217e+30 | AZ102: 1.095048464 | BA102: 21.14736758 | BB102: 0.05529716722 | BC102: 0.5520440727 | BD102: 0.7783922993 | BE102: 1.000000003e+15 | BF102: 1.000336552e+15 | BG102: 0.04722393979 | BK102: V(t) | BL102: 32 | BM102: -3.360491151e-05 | BN102: 1.92262477e-05 | BO102: 9.094368473e-06 | BP102: -3.082018498e-05 | BQ102: 3.019668207e-05 | BR102: -7.67599415e-06 | BS102: -2.041095644e-05 | BT102: 3.369686073e-05 | BU102: -2.254741837e-05 | BV102: -4.95232997e-06 | BW102: 2.886088623e-05 | BX102: -3.184091252e-05 | BY102: 1.173143677e-05 | BZ102: 1.688511406e-05 | CA102: -3.325739032e-05 | CB102: 2.551300278e-05 | CC102: 7.321902654e-07 | CD102: -2.644643407e-05 | CE102: 3.298299277e-05 | CF102: -1.560186762e-05 | CG102: -1.309298335e-05 | CH102: 3.2293431e-05 | CI102: -2.80762319e-05 | CJ102: 3.499496517e-06 | CK102: 2.361490584e-05 | CL102: -3.360491151e-05 | CM102: 1.92262477e-05 | CN102: 9.094368473e-06 | CO102: -3.082018498e-05 | CP102: 3.019668207e-05 | CQ102: -7.67599415e-06 | CR102: -2.041095644e-05 | CS102: 3.369686073e-05 | CT102: -2.254741837e-05 | CU102: -4.95232997e-06 | CV102: 2.886088623e-05 | CW102: -3.184091252e-05 | CX102: 1.173143677e-05 | CY102: 1.688511406e-05 | CZ102: -3.325739032e-05 | DA102: 2.551300278e-05 | DB102: 7.321902654e-07 | DC102: -2.644643407e-05 | DD102: 3.298299277e-05 | DE102: -1.560186762e-05 | DF102: -1.309298335e-05 | DG102: =Re_H*COS(NH_*Rad_+NH_*Ofs_)+Im_H*SIN(NH_*Rad_+NH_*Ofs_) -> 3.2293431e-05 | DH102: -2.80762319e-05 | DI102: 3.499496517e-06 | DJ102: 2.361490584e-05 | DK102: -3.360491151e-05 | DL102: 1.92262477e-05 | DM102: 9.094368473e-06 | DN102: -3.082018498e-05 | DO102: 3.019668207e-05 | DP102: -7.67599415e-06 | DQ102: -2.041095644e-05 | DR102: 3.369686073e-05 | DS102: -2.254741837e-05 | DT102: -4.95232997e-06 | DU102: 2.886088623e-05 | DV102: -3.184091252e-05 | DW102: 1.173143677e-05 | DX102: 1.688511406e-05 | DY102: =Re_H*COS(NH_*Rad_+NH_*Ofs_)+Im_H*SIN(NH_*Rad_+NH_*Ofs_) -> -3.325739032e-05 | DZ102: 2.551300278e-05 | EA102: 7.321902654e-07 | EB102: -2.644643407e-05 | EC102: 3.298299277e-05 | ED102: -1.560186762e-05 | EE102: -1.309298335e-05 | EF102: 3.2293431e-05 | EG102: -2.80762319e-05 | EH102: 3.499496517e-06 | EI102: 2.361490584e-05 | EJ102: -3.360491151e-05 | EK102: 1.92262477e-05 | EL102: 9.094368473e-06 | EM102: -3.082018498e-05 | EN102: 3.019668207e-05 | EO102: -7.67599415e-06 | EP102: -2.041095644e-05 | EQ102: 3.369686073e-05 | ER102: -2.254741837e-05 | ES102: -4.95232997e-06 | ET102: 2.886088623e-05 | EU102: -3.184091252e-05 | EV102: 1.173143677e-05 | EW102: 1.688511406e-05 | EX102: -3.325739032e-05 | EY102: 2.551300278e-05 | EZ102: 7.321902654e-07 | FA102: -2.644643407e-05 | FB102: 3.298299277e-05 | FC102: -1.560186762e-05 | FD102: -1.309298335e-05 | FE102: =Re_H*COS(NH_*Rad_+NH_*Ofs_)+Im_H*SIN(NH_*Rad_+NH_*Ofs_) -> 3.2293431e-05 | FF102: =Re_H*COS(NH_*Rad_+NH_*Ofs_)+Im_H*SIN(NH_*Rad_+NH_*Ofs_) -> -2.80762319e-05 | FG102: =Re_H*COS(NH_*Rad_+NH_*Ofs_)+Im_H*SIN(NH_*Rad_+NH_*Ofs_) -> 3.499496517e-06 | FH102: =Re_H*COS(NH_*Rad_+NH_*Ofs_)+Im_H*SIN(NH_*Rad_+NH_*Ofs_) -> 2.361490584e-05 | FI102: =Re_H*COS(NH_*Rad_+NH_*Ofs_)+Im_H*SIN(NH_*Rad_+NH_*Ofs_) -> -3.360491151e-05
B103: 33 | C103: 16500000 | D103: 0 | E103: =-delta_I/2*2*(-1)^NH_*m_^2/NH_^2/(m_-1)/PI()/PI()*SIN(NH_*(m_-1)*PI()/m_) -> 0.00335946995 | F103: =IF(SQRT(Re_H_^2+Im_H_^2)>1E-20, 20*LOG(SQRT(Re_H_^2+Im_H_^2)), -200) -> -49.47458478 | G103: =Re_H_*AG103-Im_H_*AH103 -> -2.661784015e-05 | H103: =Im_H_*AG103+Re_H_*AH103 -> 2.186203856e-06 | I103: =IF(SQRT(Re_H^2+Im_H^2)>1E-20, 20*LOG(SQRT(Re_H^2+Im_H^2)), -200) -> -91.46734533 | M103: =2*PI()*C103 -> 103672557.6 | N103: =M103*L_1/N_1-1/(M103*C_1*N_1) -> 0.06910819742 | O103: =(R_1/N_1)^2+N103^2 -> 0.004787054062 | P103: =M103*L_2/N_2-1/(M103*C_2*N_2) -> 0.06904662878 | Q103: =(R_2/N_2)^2+P103^2 -> 0.004768436945 | R103: =M103*L_3/N_3-1/(M103*C_3*N_3) -> 0.01027079822 | S103: =(R_3/N_3)^2+R103^2 -> 0.000106489296 | T103: =M103*L_4/N_4-1/(M103*C_4*N_4) -> 94026803.44 | U103: =(R_4/N_4)^2+T103^2 -> 1e+30 | V103: =M103*L_5/N_5-1/(M103*C_5*N_5) -> -3204884120 | W103: =(R_5/N_5)^2+V103^2 -> 1e+30 | X103: =R_1/N_1/O103+R_2/N_2/Q103+R_3/N_3/S103+R_4/N_4/U103+R_5/N_5/W103 -> 10.29664999 | Y103: -125.3655201 | Z103: 0.06918853996 | AA103: 0.06905386988 | AB103: 0.0103193651 | AC103: 1e+15 | AD103: 1e+15 | AE103: 0.007949905616 | AF103: 85.3046631 | AG103: 0.0006507585685 | AH103: 0.007923226147 | AM103: 33 | AN103: 2092.38348 | AO103: 13146.83314 | AP103: -0.05393729611 | AQ103: 0.002920343023 | AR103: -0.5394518421 | AS103: 0.2910092899 | AT103: -0.7606381407 | AU103: 0.578571381 | AV103: -7.606393239e+10 | AW103: 1.000000006e+30 | AX103: -2.535464851e+13 | AY103: 1.000642858e+30 | AZ103: 1.146583137 | BA103: 21.63791761 | BB103: 0.05404019821 | BC103: 0.5394527689 | BD103: 0.760638798 | BE103: 1.000000003e+15 | BF103: 1.000321377e+15 | BG103: 0.04615042088 | BK103: V(t) | BL103: 33 | BM103: -2.661784015e-05 | BN103: 1.241667901e-05 | BO103: 1.331146151e-05 | BP103: -2.668195453e-05 | BQ103: 1.528235085e-05 | BR103: 1.030456838e-05 | BS103: -2.632527855e-05 | BT103: 1.790701088e-05 | BU103: 7.135166054e-06 | BV103: -2.55534372e-05 | BW103: 2.024926665e-05 | BX103: 3.853237894e-06 | BY103: -2.437860287e-05 | BZ103: 2.227217939e-05 | CA103: 5.105418702e-07 | CB103: =Re_H*COS(NH_*Rad_+NH_*Ofs_)+Im_H*SIN(NH_*Rad_+NH_*Ofs_) -> -2.281930342e-05 | CC103: 2.394384656e-05 | CD103: -2.840205704e-06 | CE103: -2.090012992e-05 | CF103: 2.523790497e-05 | CG103: -6.146161538e-06 | CH103: -1.865134889e-05 | CI103: 2.613394653e-05 | CJ103: -9.355188732e-06 | CK103: -1.610842494e-05 | CL103: 2.661784015e-05 | CM103: -1.241667901e-05 | CN103: -1.331146151e-05 | CO103: 2.668195453e-05 | CP103: -1.528235085e-05 | CQ103: -1.030456838e-05 | CR103: =Re_H*COS(NH_*Rad_+NH_*Ofs_)+Im_H*SIN(NH_*Rad_+NH_*Ofs_) -> 2.632527855e-05 | CS103: -1.790701088e-05 | CT103: -7.135166054e-06 | CU103: 2.55534372e-05 | CV103: -2.024926665e-05 | CW103: -3.853237894e-06 | CX103: 2.437860287e-05 | CY103: -2.227217939e-05 | CZ103: -5.105418702e-07 | DA103: 2.281930342e-05 | DB103: -2.394384656e-05 | DC103: 2.840205704e-06 | DD103: 2.090012992e-05 | DE103: -2.523790497e-05 | DF103: 6.146161538e-06 | DG103: 1.865134889e-05 | DH103: -2.613394653e-05 | DI103: 9.355188732e-06 | DJ103: 1.610842494e-05 | DK103: -2.661784015e-05 | DL103: 1.241667901e-05 | DM103: 1.331146151e-05 | DN103: -2.668195453e-05 | DO103: 1.528235085e-05 | DP103: 1.030456838e-05 | DQ103: -2.632527855e-05 | DR103: 1.790701088e-05 | DS103: 7.135166054e-06 | DT103: -2.55534372e-05 | DU103: 2.024926665e-05 | DV103: 3.853237894e-06 | DW103: =Re_H*COS(NH_*Rad_+NH_*Ofs_)+Im_H*SIN(NH_*Rad_+NH_*Ofs_) -> -2.437860287e-05 | DX103: 2.227217939e-05 | DY103: 5.105418702e-07 | DZ103: -2.281930342e-05 | EA103: 2.394384656e-05 | EB103: -2.840205704e-06 | EC103: -2.090012992e-05 | ED103: 2.523790497e-05 | EE103: -6.146161538e-06 | EF103: -1.865134889e-05 | EG103: 2.613394653e-05 | EH103: -9.355188732e-06 | EI103: -1.610842494e-05 | EJ103: 2.661784015e-05 | EK103: -1.241667901e-05 | EL103: -1.331146151e-05 | EM103: =Re_H*COS(NH_*Rad_+NH_*Ofs_)+Im_H*SIN(NH_*Rad_+NH_*Ofs_) -> 2.668195453e-05 | EN103: -1.528235085e-05 | EO103: -1.030456838e-05 | EP103: 2.632527855e-05 | EQ103: -1.790701088e-05 | ER103: -7.135166054e-06 | ES103: 2.55534372e-05 | ET103: -2.024926665e-05 | EU103: -3.853237894e-06 | EV103: 2.437860287e-05 | EW103: -2.227217939e-05 | EX103: -5.105418702e-07 | EY103: 2.281930342e-05 | EZ103: -2.394384656e-05 | FA103: 2.840205704e-06 | FB103: 2.090012992e-05 | FC103: -2.523790497e-05 | FD103: =Re_H*COS(NH_*Rad_+NH_*Ofs_)+Im_H*SIN(NH_*Rad_+NH_*Ofs_) -> 6.146161538e-06 | FE103: 1.865134889e-05 | FF103: -2.613394653e-05 | FG103: 9.355188732e-06 | FH103: 1.610842494e-05 | FI103: -2.661784015e-05
B104: 34 | C104: =NH_*f_ -> 17000000 | D104: 0 | E104: 0.002237823389 | F104: -53.00348383 | G104: -1.827497495e-05 | H104: 1.456106953e-06 | I104: -94.73538004 | M104: 106814150.2 | N104: 0.07120279373 | O104: 0.005080948945 | P104: 0.07114303592 | Q104: 0.005062331561 | R104: 0.01058779447 | S104: 0.0001131013917 | T104: 97452094.75 | U104: 1e+30 | V104: -3110003744 | W104: 1e+30 | X104: 9.69520705 | Y104: -121.6803928 | Z104: 0.07128077543 | AA104: 0.07115006367 | AB104: 0.01063491381 | AC104: 1e+15 | AD104: 1e+15 | AE104: 0.008192287582 | AF104: 85.44443138 | AG104: 0.0006506800136 | AH104: 0.008166406269 | AM104: 34 | AN104: 2141.220155 | AO104: 13453.68302 | AP104: -0.05270669671 | AQ104: 0.00278910699 | AR104: -0.5271476892 | AS104: 0.2778856863 | AT104: -0.7432895429 | AU104: 0.5524803446 | AV104: -7.432907538e+10 | AW104: 1.000000006e+30 | AX104: -2.477636294e+13 | AY104: 1.000613868e+30 | AZ104: 1.200534282 | BA104: 22.13970077 | BB104: 0.05281199665 | BC104: 0.5271486377 | BD104: 0.7432902156 | BE104: 1.000000003e+15 | BF104: 1.000306887e+15 | BG104: 0.0451014694 | BK104: V(t) | BL104: 34 | BM104: =Re_H*COS(NH_*Rad_+NH_*Ofs_)+Im_H*SIN(NH_*Rad_+NH_*Ofs_) -> -1.827497495e-05 | BN104: 6.463580926e-06 | BO104: 1.277085714e-05 | BP104: -1.733871394e-05 | BQ104: 1.994073535e-06 | BR104: 1.56406435e-05 | BS104: -1.531299775e-05 | BT104: -2.60072883e-06 | BU104: 1.752767071e-05 | BV104: -1.232510961e-05 | BW104: -7.032117839e-06 | BX104: 1.831336991e-05 | BY104: -8.562789494e-06 | BZ104: -1.102165302e-05 | CA104: 1.794837272e-05 | CB104: -4.262437826e-06 | CC104: -1.431865721e-05 | CD104: 1.645561327e-05 | CE104: 3.057384871e-07 | CF104: -1.67159675e-05 | CG104: 1.392888712e-05 | CH104: 4.854704127e-06 | CI104: -1.806295208e-05 | CJ104: 1.052695776e-05 | CK104: 9.098630852e-06 | CL104: -1.827497495e-05 | CM104: 6.463580926e-06 | CN104: 1.277085714e-05 | CO104: -1.733871394e-05 | CP104: 1.994073535e-06 | CQ104: 1.56406435e-05 | CR104: -1.531299775e-05 | CS104: -2.60072883e-06 | CT104: 1.752767071e-05 | CU104: -1.232510961e-05 | CV104: -7.032117839e-06 | CW104: 1.831336991e-05 | CX104: -8.562789494e-06 | CY104: -1.102165302e-05 | CZ104: 1.794837272e-05 | DA104: -4.262437826e-06 | DB104: -1.431865721e-05 | DC104: 1.645561327e-05 | DD104: 3.057384871e-07 | DE104: -1.67159675e-05 | DF104: 1.392888712e-05 | DG104: 4.854704127e-06 | DH104: -1.806295208e-05 | DI104: 1.052695776e-05 | DJ104: 9.098630852e-06 | DK104: -1.827497495e-05 | DL104: 6.463580926e-06 | DM104: 1.277085714e-05 | DN104: -1.733871394e-05 | DO104: 1.994073535e-06 | DP104: 1.56406435e-05 | DQ104: -1.531299775e-05 | DR104: -2.60072883e-06 | DS104: 1.752767071e-05 | DT104: -1.232510961e-05 | DU104: -7.032117839e-06 | DV104: 1.831336991e-05 | DW104: -8.562789494e-06 | DX104: -1.102165302e-05 | DY104: 1.794837272e-05 | DZ104: -4.262437826e-06 | EA104: -1.431865721e-05 | EB104: 1.645561327e-05 | EC104: 3.057384871e-07 | ED104: -1.67159675e-05 | EE104: 1.392888712e-05 | EF104: 4.854704127e-06 | EG104: -1.806295208e-05 | EH104: 1.052695776e-05 | EI104: 9.098630852e-06 | EJ104: -1.827497495e-05 | EK104: 6.463580926e-06 | EL104: 1.277085714e-05 | EM104: -1.733871394e-05 | EN104: 1.994073535e-06 | EO104: 1.56406435e-05 | EP104: -1.531299775e-05 | EQ104: -2.60072883e-06 | ER104: 1.752767071e-05 | ES104: -1.232510961e-05 | ET104: -7.032117839e-06 | EU104: 1.831336991e-05 | EV104: -8.562789494e-06 | EW104: -1.102165302e-05 | EX104: 1.794837272e-05 | EY104: -4.262437826e-06 | EZ104: -1.431865721e-05 | FA104: 1.645561327e-05 | FB104: 3.057384871e-07 | FC104: -1.67159675e-05 | FD104: 1.392888712e-05 | FE104: 4.854704127e-06 | FF104: -1.806295208e-05 | FG104: 1.052695776e-05 | FH104: 9.098630852e-06 | FI104: -1.827497495e-05
B105: 35 | C105: 17500000 | D105: 0 | E105: 0.001093134951 | F105: -59.22652439 | G105: -9.192717743e-06 | H105: 7.112024831e-07 | I105: -100.7052044 | M105: 109955742.9 | N105: 0.07329737854 | O105: 0.005383616811 | P105: 0.0732393281 | Q105: 0.005364999181 | R105: 0.01090462861 | S105: 0.000119910925 | T105: 100861174.7 | U105: 1e+30 | V105: -3020527151 | W105: 1e+30 | X105: 9.145079451 | Y105: -118.2056252 | Z105: 0.07337313412 | AA105: 0.07324615472 | AB105: 0.0109503847 | AC105: 1e+15 | AD105: 1e+15 | AE105: 0.008434629307 | AF105: 85.57607532 | AG105: 0.0006506081271 | AH105: 0.008409499427 | AM105: 35 | AN105: 2191.196688 | AO105: 13767.69483 | AP105: -0.05150415523 | AQ105: 0.002663789118 | AR105: -0.5151241585 | AS105: 0.2653538987 | AT105: -0.7263366284 | AU105: 0.5275658977 | AV105: -7.263378675e+10 | AW105: 1.000000005e+30 | AX105: -2.421126684e+13 | AY105: 1.000586185e+30 | AZ105: 1.257014358 | BA105: 22.65296389 | BB105: 0.05161190868 | BC105: 0.5151251292 | BD105: 0.7263373168 | BE105: 1.000000003e+15 | BF105: 1.00029305e+15 | BG105: 0.04407652693 | BK105: V(t) | BL105: 35 | BM105: -9.192717743e-06 | BN105: 2.164312251e-06 | BO105: 7.855099209e-06 | BP105: -7.019030547e-06 | BQ105: -3.517099763e-06 | BR105: 9.192717743e-06 | BS105: -2.164312251e-06 | BT105: -7.855099209e-06 | BU105: 7.019030547e-06 | BV105: 3.517099763e-06 | BW105: -9.192717743e-06 | BX105: 2.164312251e-06 | BY105: 7.855099209e-06 | BZ105: -7.019030547e-06 | CA105: -3.517099763e-06 | CB105: 9.192717743e-06 | CC105: -2.164312251e-06 | CD105: -7.855099209e-06 | CE105: 7.019030547e-06 | CF105: 3.517099763e-06 | CG105: -9.192717743e-06 | CH105: 2.164312251e-06 | CI105: 7.855099209e-06 | CJ105: -7.019030547e-06 | CK105: -3.517099763e-06 | CL105: 9.192717743e-06 | CM105: -2.164312251e-06 | CN105: -7.855099209e-06 | CO105: 7.019030547e-06 | CP105: 3.517099763e-06 | CQ105: -9.192717743e-06 | CR105: 2.164312251e-06 | CS105: 7.855099209e-06 | CT105: -7.019030547e-06 | CU105: -3.517099763e-06 | CV105: 9.192717743e-06 | CW105: -2.164312251e-06 | CX105: -7.855099209e-06 | CY105: 7.019030547e-06 | CZ105: 3.517099763e-06 | DA105: -9.192717743e-06 | DB105: 2.164312251e-06 | DC105: 7.855099209e-06 | DD105: -7.019030547e-06 | DE105: -3.517099763e-06 | DF105: 9.192717743e-06 | DG105: -2.164312251e-06 | DH105: -7.855099209e-06 | DI105: 7.019030547e-06 | DJ105: 3.517099763e-06 | DK105: -9.192717743e-06 | DL105: 2.164312251e-06 | DM105: 7.855099209e-06 | DN105: -7.019030547e-06 | DO105: -3.517099763e-06 | DP105: 9.192717743e-06 | DQ105: -2.164312251e-06 | DR105: -7.855099209e-06 | DS105: 7.019030547e-06 | DT105: 3.517099763e-06 | DU105: -9.192717743e-06 | DV105: 2.164312251e-06 | DW105: 7.855099209e-06 | DX105: -7.019030547e-06 | DY105: -3.517099763e-06 | DZ105: 9.192717743e-06 | EA105: -2.164312251e-06 | EB105: -7.855099209e-06 | EC105: 7.019030547e-06 | ED105: 3.517099763e-06 | EE105: -9.192717743e-06 | EF105: 2.164312251e-06 | EG105: 7.855099209e-06 | EH105: -7.019030547e-06 | EI105: -3.517099763e-06 | EJ105: 9.192717743e-06 | EK105: -2.164312251e-06 | EL105: -7.855099209e-06 | EM105: 7.019030547e-06 | EN105: 3.517099763e-06 | EO105: -9.192717743e-06 | EP105: 2.164312251e-06 | EQ105: 7.855099209e-06 | ER105: -7.019030547e-06 | ES105: -3.517099763e-06 | ET105: 9.192717743e-06 | EU105: -2.164312251e-06 | EV105: -7.855099209e-06 | EW105: 7.019030547e-06 | EX105: 3.517099763e-06 | EY105: -9.192717743e-06 | EZ105: 2.164312251e-06 | FA105: 7.855099209e-06 | FB105: -7.019030547e-06 | FC105: -3.517099763e-06 | FD105: 9.192717743e-06 | FE105: -2.164312251e-06 | FF105: -7.855099209e-06 | FG105: 7.019030547e-06 | FH105: 3.517099763e-06 | FI105: -9.192717743e-06
B106: 36 | C106: 18000000 | D106: 0 | E106: -5.868936121e-17 | F106: -324.6288123 | G106: 5.078104539e-19 | H106: -3.817990465e-20 | I106: -365.8614864 | M106: 113097335.5 | N106: 0.07539195281 | O106: 0.005695057659 | P106: 0.07533551488 | Q106: 0.005676439803 | R106: 0.01122131414 | S106: 0.000126917891 | T106: 104255394.2 | U106: 1e+30 | V106: -2936004027 | W106: 1e+30 | X106: 8.640579391 | Y106: -114.9237166 | Z106: 0.0754656058 | AA106: 0.07534215157 | AB106: 0.01126578408 | AC106: 1e+15 | AD106: 1e+15 | AE106: 0.008676934038 | AF106: 85.70028668 | AG106: 0.0006505421743 | AH106: 0.008652512883 | AM106: 36 | AN106: 2242.339683 | AO106: 14089.03575 | AP106: -0.05032903151 | AQ106: 0.002544122523 | AR106: -0.5033748493 | AS106: 0.2533872389 | AT106: -0.7097703723 | AU106: 0.5037749813 | AV106: -7.097716403e+10 | AW106: 1.000000005e+30 | AX106: -2.365905937e+13 | AY106: 1.000559751e+30 | AZ106: 1.316140977 | BA106: 23.17795842 | BB106: 0.05043929543 | BC106: 0.5033758426 | BD106: 0.7097710767 | BE106: 1.000000003e+15 | BF106: 1.000279836e+15 | BG106: 0.04307504784 | BK106: V(t) | BL106: 36 | BM106: 5.078104539e-19 | BN106: -5.765055685e-20 | BO106: -4.862051797e-19 | BP106: 2.398620883e-19 | BQ106: 3.963138328e-19 | BR106: -3.883857023e-19 | BS106: -2.507613859e-19 | BT106: 4.823616986e-19 | BU106: 6.999024755e-20 | BV106: -5.085914277e-19 | BW106: 1.206108131e-19 | BX106: 4.633910023e-19 | BY106: -2.942724434e-19 | BZ106: -3.531086877e-19 | CA106: 4.266043836e-19 | CB106: 1.932333073e-19 | CC106: -4.990210059e-19 | CD106: -6.218883102e-21 | CE106: 5.013516109e-19 | CF106: -1.816689647e-19 | CG106: -4.33268872e-19 | CH106: 3.440419464e-19 | CI106: 3.043348077e-19 | CJ106: -4.58095259e-19 | CK106: -1.32657824e-19 | CL106: 5.078104539e-19 | CM106: -5.765055685e-20 | CN106: -4.862051797e-19 | CO106: 2.398620883e-19 | CP106: 3.963138328e-19 | CQ106: -3.883857023e-19 | CR106: -2.507613859e-19 | CS106: 4.823616986e-19 | CT106: 6.999024755e-20 | CU106: -5.085914277e-19 | CV106: 1.206108131e-19 | CW106: 4.633910023e-19 | CX106: -2.942724434e-19 | CY106: -3.531086877e-19 | CZ106: 4.266043836e-19 | DA106: 1.932333073e-19 | DB106: -4.990210059e-19 | DC106: -6.218883102e-21 | DD106: 5.013516109e-19 | DE106: -1.816689647e-19 | DF106: -4.33268872e-19 | DG106: 3.440419464e-19 | DH106: 3.043348077e-19 | DI106: -4.58095259e-19 | DJ106: -1.32657824e-19 | DK106: 5.078104539e-19 | DL106: -5.765055685e-20 | DM106: -4.862051797e-19 | DN106: 2.398620883e-19 | DO106: 3.963138328e-19 | DP106: -3.883857023e-19 | DQ106: -2.507613859e-19 | DR106: 4.823616986e-19 | DS106: 6.999024755e-20 | DT106: -5.085914277e-19 | DU106: 1.206108131e-19 | DV106: 4.633910023e-19 | DW106: -2.942724434e-19 | DX106: -3.531086877e-19 | DY106: 4.266043836e-19 | DZ106: 1.932333073e-19 | EA106: -4.990210059e-19 | EB106: -6.218883102e-21 | EC106: 5.013516109e-19 | ED106: -1.816689647e-19 | EE106: -4.33268872e-19 | EF106: 3.440419464e-19 | EG106: 3.043348077e-19 | EH106: -4.58095259e-19 | EI106: -1.32657824e-19 | EJ106: 5.078104539e-19 | EK106: -5.765055685e-20 | EL106: -4.862051797e-19 | EM106: 2.398620883e-19 | EN106: 3.963138328e-19 | EO106: -3.883857023e-19 | EP106: -2.507613859e-19 | EQ106: 4.823616986e-19 | ER106: 6.999024755e-20 | ES106: -5.085914277e-19 | ET106: 1.206108131e-19 | EU106: 4.633910023e-19 | EV106: -2.942724434e-19 | EW106: -3.531086877e-19 | EX106: 4.266043836e-19 | EY106: 1.932333073e-19 | EZ106: -4.990210059e-19 | FA106: -6.218883102e-21 | FB106: 5.013516109e-19 | FC106: -1.816689647e-19 | FD106: -4.33268872e-19 | FE106: 3.440419464e-19 | FF106: 3.043348077e-19 | FG106: -4.58095259e-19 | FH106: -1.32657824e-19 | FI106: 5.078104539e-19
B107: 37 | C107: 18500000 | D107: 0 | E107: -0.0009781521657 | F107: -60.19187158 | G107: 8.701106728e-06 | H107: -6.362699065e-07 | I107: -101.185349 | M107: 116238928.2 | N107: 0.07748651739 | O107: 0.006015271489 | P107: 0.07743160482 | Q107: 0.005996653425 | R107: 0.01153786312 | S107: 0.0001341222854 | T107: 107635958.3 | U107: 1e+30 | V107: -2856032739 | W107: 1e+30 | X107: 8.176787296 | Y107: -111.8190539 | Z107: 0.07755818131 | AA107: 0.07743806186 | AB107: 0.01158111762 | AC107: 1e+15 | AD107: 1e+15 | AE107: 0.008919204691 | AF107: 85.81768049 | AG107: 0.000650481519 | AH107: 0.008895453114 | AM107: 37 | AN107: 2294.676367 | AO107: 14417.87684 | AP107: -0.04918069996 | AQ107: 0.00242985236 | AR107: -0.4918935069 | AS107: 0.2419602221 | AT107: -0.6935819557 | AU107: 0.4810569293 | AV107: -6.935832533e+10 | AW107: 1.000000005e+30 | AX107: -2.311944658e+13 | AY107: 1.000534509e+30 | AZ107: 1.378037128 | BA107: 23.71494056 | BB107: 0.04929353264 | BC107: 0.4918945233 | BD107: 0.6935826766 | BE107: 1.000000002e+15 | BF107: 1.000267219e+15 | BG107: 0.04209649897 | BK107: V(t) | BL107: 37 | BM107: 8.701106728e-06 | BN107: 8.866736126e-08 | BO107: -8.712241668e-06 | BP107: 1.005425e-06 | BQ107: 8.585979352e-06 | BR107: -2.083661208e-06 | BS107: -8.324311012e-06 | BT107: 3.129036835e-06 | BU107: 7.931363315e-06 | BV107: -4.125065681e-06 | BW107: -7.413333281e-06 | BX107: 5.056039777e-06 | BY107: 6.778390552e-06 | BZ107: -5.907277106e-06 | CA107: -6.036548555e-06 | CB107: 6.665353146e-06 | CC107: 5.199506581e-06 | CD107: -7.318312585e-06 | CE107: -4.280465283e-06 | CF107: 7.855857863e-06 | CG107: 3.29391849e-06 | CH107: -8.269511569e-06 | CI107: -2.255424634e-06 | CJ107: 8.552750138e-06 | CK107: 1.181361385e-06 | CL107: -8.701106728e-06 | CM107: -8.866736126e-08 | CN107: 8.712241668e-06 | CO107: -1.005425e-06 | CP107: -8.585979352e-06 | CQ107: 2.083661208e-06 | CR107: 8.324311012e-06 | CS107: -3.129036835e-06 | CT107: -7.931363315e-06 | CU107: 4.125065681e-06 | CV107: 7.413333281e-06 | CW107: -5.056039777e-06 | CX107: -6.778390552e-06 | CY107: 5.907277106e-06 | CZ107: 6.036548555e-06 | DA107: -6.665353146e-06 | DB107: -5.199506581e-06 | DC107: 7.318312585e-06 | DD107: 4.280465283e-06 | DE107: -7.855857863e-06 | DF107: -3.29391849e-06 | DG107: 8.269511569e-06 | DH107: 2.255424634e-06 | DI107: -8.552750138e-06 | DJ107: -1.181361385e-06 | DK107: 8.701106728e-06 | DL107: 8.866736126e-08 | DM107: -8.712241668e-06 | DN107: 1.005425e-06 | DO107: 8.585979352e-06 | DP107: -2.083661208e-06 | DQ107: -8.324311012e-06 | DR107: 3.129036835e-06 | DS107: 7.931363315e-06 | DT107: -4.125065681e-06 | DU107: -7.413333281e-06 | DV107: 5.056039777e-06 | DW107: 6.778390552e-06 | DX107: -5.907277106e-06 | DY107: -6.036548555e-06 | DZ107: 6.665353146e-06 | EA107: 5.199506581e-06 | EB107: -7.318312585e-06 | EC107: -4.280465283e-06 | ED107: 7.855857863e-06 | EE107: 3.29391849e-06 | EF107: -8.269511569e-06 | EG107: -2.255424634e-06 | EH107: 8.552750138e-06 | EI107: 1.181361385e-06 | EJ107: -8.701106728e-06 | EK107: -8.866736126e-08 | EL107: 8.712241668e-06 | EM107: -1.005425e-06 | EN107: -8.585979352e-06 | EO107: 2.083661208e-06 | EP107: 8.324311012e-06 | EQ107: -3.129036835e-06 | ER107: -7.931363315e-06 | ES107: 4.125065681e-06 | ET107: 7.413333281e-06 | EU107: -5.056039777e-06 | EV107: -6.778390552e-06 | EW107: 5.907277106e-06 | EX107: 6.036548555e-06 | EY107: -6.665353146e-06 | EZ107: -5.199506581e-06 | FA107: 7.318312585e-06 | FB107: 4.280465283e-06 | FC107: -7.855857863e-06 | FD107: -3.29391849e-06 | FE107: 8.269511569e-06 | FF107: 2.255424634e-06 | FG107: -8.552750138e-06 | FH107: -1.181361385e-06 | FI107: 8.701106728e-06
B108: 38 | C108: 19000000 | D108: 0 | E108: -0.001791498503 | F108: -54.93567101 | G108: 1.637129719e-05 | H108: -1.165236503e-06 | I108: -95.6963925 | M108: 119380520.8 | N108: 0.07958107306 | O108: 0.0063442583 | P108: 0.07952760555 | Q108: 0.006325640045 | R108: 0.01185428632 | S108: 0.0001415241043 | T108: 111003944.9 | U108: 1e+30 | V108: -2780253932 | W108: 1e+30 | X108: 7.749430371 | Y108: -108.8776633 | Z108: 0.07965085248 | AA108: 0.07953389243 | AB108: 0.01189639039 | AC108: 1e+15 | AD108: 1000000000003865 | AE108: 0.00916144388 | AF108: 85.92880548 | AG108: 0.0006504256082 | AH108: 0.009138325913 | AM108: 38 | AN108: 2348.234601 | AO108: 14754.39314 | AP108: -0.0480585493 | AQ108: 0.002320735272 | AR108: -0.4806740193 | AS108: 0.2310485129 | AT108: -0.677762761 | AU108: 0.4593633601 | AV108: -6.777640889e+10 | AW108: 1.000000005e+30 | AX108: -2.259214121e+13 | AY108: 1.000510405e+30 | AZ108: 1.442831419 | BA108: 24.26417121 | BB108: 0.04817401033 | BC108: 0.4806750595 | BD108: 0.6777634987 | BE108: 1.000000002e+15 | BF108: 1.00025517e+15 | BG108: 0.04114035937 | BK108: V(t) | BL108: 38 | BM108: 1.637129719e-05 | BN108: 2.190899431e-06 | BO108: -1.609616176e-05 | BP108: -4.21227215e-06 | BQ108: 1.556718025e-05 | BR108: 6.167214821e-06 | BS108: -1.4792695e-05 | BT108: -8.02489683e-06 | BU108: 1.378492012e-05 | BV108: 9.756021422e-06 | BW108: -1.255974881e-05 | BX108: -1.133328773e-05 | BY108: 1.113650277e-05 | BZ108: 1.273182132e-05 | CA108: -9.537627415e-06 | CB108: -1.392956648e-05 | CC108: 7.788337983e-06 | CD108: 1.490763405e-05 | CE108: -5.916221809e-06 | CF108: -1.565059934e-05 | CG108: 3.950803282e-06 | CH108: 1.614674532e-05 | CI108: -1.923078228e-06 | CJ108: -1.638824748e-05 | CK108: -1.349749191e-07 | CL108: 1.637129719e-05 | CM108: 2.190899431e-06 | CN108: -1.609616176e-05 | CO108: -4.21227215e-06 | CP108: 1.556718025e-05 | CQ108: 6.167214821e-06 | CR108: -1.4792695e-05 | CS108: -8.02489683e-06 | CT108: 1.378492012e-05 | CU108: 9.756021422e-06 | CV108: -1.255974881e-05 | CW108: -1.133328773e-05 | CX108: 1.113650277e-05 | CY108: 1.273182132e-05 | CZ108: -9.537627415e-06 | DA108: -1.392956648e-05 | DB108: 7.788337983e-06 | DC108: 1.490763405e-05 | DD108: -5.916221809e-06 | DE108: -1.565059934e-05 | DF108: 3.950803282e-06 | DG108: 1.614674532e-05 | DH108: -1.923078228e-06 | DI108: -1.638824748e-05 | DJ108: -1.349749191e-07 | DK108: 1.637129719e-05 | DL108: 2.190899431e-06 | DM108: -1.609616176e-05 | DN108: -4.21227215e-06 | DO108: 1.556718025e-05 | DP108: 6.167214821e-06 | DQ108: -1.4792695e-05 | DR108: -8.02489683e-06 | DS108: 1.378492012e-05 | DT108: 9.756021422e-06 | DU108: -1.255974881e-05 | DV108: -1.133328773e-05 | DW108: 1.113650277e-05 | DX108: 1.273182132e-05 | DY108: -9.537627415e-06 | DZ108: -1.392956648e-05 | EA108: 7.788337983e-06 | EB108: 1.490763405e-05 | EC108: -5.916221809e-06 | ED108: -1.565059934e-05 | EE108: 3.950803282e-06 | EF108: 1.614674532e-05 | EG108: -1.923078228e-06 | EH108: -1.638824748e-05 | EI108: -1.349749191e-07 | EJ108: 1.637129719e-05 | EK108: 2.190899431e-06 | EL108: -1.609616176e-05 | EM108: -4.21227215e-06 | EN108: 1.556718025e-05 | EO108: 6.167214821e-06 | EP108: -1.4792695e-05 | EQ108: -8.02489683e-06 | ER108: 1.378492012e-05 | ES108: 9.756021422e-06 | ET108: -1.255974881e-05 | EU108: -1.133328773e-05 | EV108: 1.113650277e-05 | EW108: 1.273182132e-05 | EX108: -9.537627415e-06 | EY108: -1.392956648e-05 | EZ108: 7.788337983e-06 | FA108: 1.490763405e-05 | FB108: -5.916221809e-06 | FC108: -1.565059934e-05 | FD108: 3.950803282e-06 | FE108: 1.614674532e-05 | FF108: -1.923078228e-06 | FG108: -1.638824748e-05 | FH108: -1.349749191e-07 | FI108: 1.637129719e-05
B109: 39 | C109: 19500000 | D109: 0 | E109: -0.00240530097 | F109: -52.37661147 | G109: 2.256445667e-05 | H109: -1.564345115e-06 | I109: -92.91067868 | M109: 122522113.5 | N109: 0.08167562049 | O109: 0.006682018093 | P109: 0.08162352394 | Q109: 0.006663399661 | R109: 0.01217059343 | S109: 0.0001491233444 | T109: 114360321.5 | U109: 1e+30 | V109: -2708345106 | W109: 1e+30 | X109: 7.354783018 | Y109: -106.0870016 | Z109: 0.08174361194 | AA109: 0.0816296494 | AB109: 0.01221160696 | AC109: 1e+15 | AD109: 1e+15 | AE109: 0.009403653965 | AF109: 86.03415281 | AG109: 0.0006503739592 | AH109: 0.009381136478 | AM109: 39 | AN109: 2403.042894 | AO109: 15098.76381 | AP109: -0.04696198215 | AQ109: 0.002216538879 | AR109: -0.4697104141 | AS109: 0.2206288731 | AT109: -0.6623043668 | AU109: 0.4386480743 | AV109: -6.623057257e+10 | AW109: 1.000000004e+30 | AX109: -2.207686256e+13 | AY109: 1.000487388e+30 | AZ109: 1.510658324 | BA109: 24.82591607 | BB109: 0.04708013253 | BC109: 0.4697114786 | BD109: 0.6623051218 | BE109: 1.000000002e+15 | BF109: 1000243664244005 | BG109: 0.04020612002 | BK109: V(t) | BL109: 39 | BM109: 2.256445667e-05 | BN109: 5.764793817e-06 | BO109: -2.040402739e-05 | BP109: -1.341146077e-05 | BQ109: 1.537791309e-05 | BR109: 1.917452791e-05 | BS109: -8.192016597e-06 | BT109: -2.224458958e-05 | BU109: -1.4442428e-07 | BV109: 2.219046476e-05 | BW109: 8.460581196e-06 | BX109: -1.901975511e-05 | BY109: -1.558847463e-05 | BZ109: 1.317777737e-05 | CA109: 2.052701312e-05 | CB109: -5.485019965e-06 | CC109: -2.258259362e-05 | CD109: -2.978092195e-06 | CE109: 2.146651596e-05 | CF109: 1.102294016e-05 | CG109: -1.733552993e-05 | CH109: -1.751964893e-05 | CI109: 1.076982023e-05 | CJ109: 2.155577508e-05 | CK109: -2.691521292e-06 | CL109: -2.256445667e-05 | CM109: -5.764793817e-06 | CN109: 2.040402739e-05 | CO109: 1.341146077e-05 | CP109: -1.537791309e-05 | CQ109: -1.917452791e-05 | CR109: 8.192016597e-06 | CS109: 2.224458958e-05 | CT109: 1.4442428e-07 | CU109: -2.219046476e-05 | CV109: -8.460581196e-06 | CW109: 1.901975511e-05 | CX109: 1.558847463e-05 | CY109: -1.317777737e-05 | CZ109: -2.052701312e-05 | DA109: 5.485019965e-06 | DB109: 2.258259362e-05 | DC109: 2.978092195e-06 | DD109: -2.146651596e-05 | DE109: -1.102294016e-05 | DF109: 1.733552993e-05 | DG109: 1.751964893e-05 | DH109: -1.076982023e-05 | DI109: -2.155577508e-05 | DJ109: 2.691521292e-06 | DK109: 2.256445667e-05 | DL109: 5.764793817e-06 | DM109: -2.040402739e-05 | DN109: -1.341146077e-05 | DO109: 1.537791309e-05 | DP109: 1.917452791e-05 | DQ109: -8.192016597e-06 | DR109: -2.224458958e-05 | DS109: -1.4442428e-07 | DT109: 2.219046476e-05 | DU109: 8.460581196e-06 | DV109: -1.901975511e-05 | DW109: -1.558847463e-05 | DX109: 1.317777737e-05 | DY109: 2.052701312e-05 | DZ109: -5.485019965e-06 | EA109: -2.258259362e-05 | EB109: -2.978092195e-06 | EC109: 2.146651596e-05 | ED109: 1.102294016e-05 | EE109: -1.733552993e-05 | EF109: -1.751964893e-05 | EG109: 1.076982023e-05 | EH109: 2.155577508e-05 | EI109: -2.691521292e-06 | EJ109: -2.256445667e-05 | EK109: -5.764793817e-06 | EL109: 2.040402739e-05 | EM109: 1.341146077e-05 | EN109: -1.537791309e-05 | EO109: -1.917452791e-05 | EP109: 8.192016597e-06 | EQ109: 2.224458958e-05 | ER109: 1.4442428e-07 | ES109: -2.219046476e-05 | ET109: -8.460581196e-06 | EU109: 1.901975511e-05 | EV109: 1.558847463e-05 | EW109: -1.317777737e-05 | EX109: -2.052701312e-05 | EY109: 5.485019965e-06 | EZ109: 2.258259362e-05 | FA109: 2.978092195e-06 | FB109: -2.146651596e-05 | FC109: -1.102294016e-05 | FD109: 1.733552993e-05 | FE109: 1.751964893e-05 | FF109: -1.076982023e-05 | FG109: -2.155577508e-05 | FH109: 2.691521292e-06 | FI109: 2.256445667e-05
B110: 40 | C110: 20000000 | D110: 0 | E110: -0.002800427201 | F110: -51.05551425 | G110: 2.695100189e-05 | H110: -1.821191038e-06 | I110: -91.36871581 | M110: 125663706.1 | N110: 0.0837701603 | O110: 0.007028550868 | P110: 0.08371936617 | Q110: 0.007009932272 | R110: 0.01248679314 | S110: 0.000156920003 | T110: 117705959 | U110: 1e+30 | V110: -2640016014 | W110: 1e+30 | X110: 6.989584713 | Y110: -103.4357774 | Z110: 0.0838364531 | AA110: 0.08372533829 | AB110: 0.01252677145 | AC110: 1e+15 | AD110: 1e+15 | AE110: 0.009645837075 | AF110: 86.13416341 | AG110: 0.0006503261492 | AH110: 0.009623889483 | AM110: 40 | AN110: 2459.130425 | AO110: 15451.17216 | AP110: -0.04589041477 | AQ110: 0.002117041279 | AR110: -0.4589968547 | AS110: 0.2106791127 | AT110: -0.6471985442 | AU110: 0.4188669556 | AV110: -6.471999348e+10 | AW110: 1.000000004e+30 | AX110: -2.157333631e+13 | AY110: 1.000465409e+30 | AZ110: 1.581658435 | BA110: 25.40044557 | BB110: 0.04601131686 | BC110: 0.4589979441 | BD110: 0.6471993167 | BE110: 1.000000002e+15 | BF110: 1.000232677e+15 | BG110: 0.03929328355 | BK110: V(t) | BL110: 40 | BM110: 2.695100189e-05 | BN110: 1.00603732e-05 | BO110: -2.073334931e-05 | BP110: -2.287428778e-05 | BQ110: 6.596261996e-06 | BR110: 2.695100189e-05 | BS110: 1.00603732e-05 | BT110: -2.073334931e-05 | BU110: -2.287428778e-05 | BV110: 6.596261996e-06 | BW110: 2.695100189e-05 | BX110: 1.00603732e-05 | BY110: -2.073334931e-05 | BZ110: -2.287428778e-05 | CA110: 6.596261996e-06 | CB110: 2.695100189e-05 | CC110: 1.00603732e-05 | CD110: -2.073334931e-05 | CE110: -2.287428778e-05 | CF110: 6.596261996e-06 | CG110: 2.695100189e-05 | CH110: 1.00603732e-05 | CI110: -2.073334931e-05 | CJ110: -2.287428778e-05 | CK110: 6.596261996e-06 | CL110: 2.695100189e-05 | CM110: 1.00603732e-05 | CN110: -2.073334931e-05 | CO110: -2.287428778e-05 | CP110: 6.596261996e-06 | CQ110: 2.695100189e-05 | CR110: 1.00603732e-05 | CS110: -2.073334931e-05 | CT110: -2.287428778e-05 | CU110: 6.596261996e-06 | CV110: 2.695100189e-05 | CW110: 1.00603732e-05 | CX110: -2.073334931e-05 | CY110: -2.287428778e-05 | CZ110: 6.596261996e-06 | DA110: 2.695100189e-05 | DB110: 1.00603732e-05 | DC110: -2.073334931e-05 | DD110: -2.287428778e-05 | DE110: 6.596261996e-06 | DF110: 2.695100189e-05 | DG110: 1.00603732e-05 | DH110: -2.073334931e-05 | DI110: -2.287428778e-05 | DJ110: 6.596261996e-06 | DK110: 2.695100189e-05 | DL110: 1.00603732e-05 | DM110: -2.073334931e-05 | DN110: -2.287428778e-05 | DO110: 6.596261996e-06 | DP110: 2.695100189e-05 | DQ110: 1.00603732e-05 | DR110: -2.073334931e-05 | DS110: -2.287428778e-05 | DT110: 6.596261996e-06 | DU110: 2.695100189e-05 | DV110: 1.00603732e-05 | DW110: -2.073334931e-05 | DX110: -2.287428778e-05 | DY110: 6.596261996e-06 | DZ110: 2.695100189e-05 | EA110: 1.00603732e-05 | EB110: -2.073334931e-05 | EC110: -2.287428778e-05 | ED110: 6.596261996e-06 | EE110: 2.695100189e-05 | EF110: 1.00603732e-05 | EG110: -2.073334931e-05 | EH110: -2.287428778e-05 | EI110: 6.596261996e-06 | EJ110: 2.695100189e-05 | EK110: 1.00603732e-05 | EL110: -2.073334931e-05 | EM110: -2.287428778e-05 | EN110: 6.596261996e-06 | EO110: 2.695100189e-05 | EP110: 1.00603732e-05 | EQ110: -2.073334931e-05 | ER110: -2.287428778e-05 | ES110: 6.596261996e-06 | ET110: 2.695100189e-05 | EU110: 1.00603732e-05 | EV110: -2.073334931e-05 | EW110: -2.287428778e-05 | EX110: 6.596261996e-06 | EY110: 2.695100189e-05 | EZ110: 1.00603732e-05 | FA110: -2.073334931e-05 | FB110: -2.287428778e-05 | FC110: 6.596261996e-06 | FD110: 2.695100189e-05 | FE110: 1.00603732e-05 | FF110: -2.073334931e-05 | FG110: -2.287428778e-05 | FH110: 6.596261996e-06 | FI110: 2.695100189e-05
B111: 41 | C111: 20500000 | D111: 0 | E111: -0.002972964361 | F111: -50.53620594 | G111: 2.93330179e-05 | H111: -1.933264636e-06 | I111: -90.63404105 | M111: 128805298.8 | N111: 0.08586469306 | O111: 0.007383856625 | P111: 0.08581513781 | Q111: 0.007365237877 | R111: 0.01280289332 | S111: 0.0001649140774 | T111: 121041643 | U111: 1e+30 | V111: -2575004724 | W111: 1e+30 | X111: 6.650971936 | Y111: -100.913799 | Z111: 0.08592936998 | AA111: 0.08582096409 | AB111: 0.01284188761 | AC111: 1e+15 | AD111: 1e+15 | AE111: 0.009887995139 | AF111: 86.22923433 | AG111: 0.0006502818068 | AH111: 0.009866589149 | AM111: 41 | AN111: 2516.527051 | AO111: 15811.80579 | AP111: -0.04484327672 | AQ111: 0.002022030578 | AR111: -0.448527638 | AS111: 0.2011780421 | AT111: -0.6324372515 | AU111: 0.3999778771 | AV111: -6.324386746e+10 | AW111: 1.000000004e+30 | AX111: -2.108129442e+13 | AY111: 1.000444421e+30 | AZ111: 1.655978736 | BA111: 25.98803497 | BB111: 0.04496699432 | BC111: 0.4485287528 | BD111: 0.6324380421 | BE111: 1.000000002e+15 | BF111: 1.000222186e+15 | BG111: 0.038401364 | BK111: V(t) | BL111: 41 | BM111: 2.93330179e-05 | BN111: 1.423866173e-05 | BO111: -1.72079633e-05 | BP111: -2.889225057e-05 | BQ111: -7.39548066e-06 | BR111: 2.259456554e-05 | BS111: 2.663607688e-05 | BT111: 8.761434658e-08 | BU111: -2.656146813e-05 | BV111: -2.270626051e-05 | BW111: 7.225757099e-06 | BX111: 2.885941599e-05 | BY111: 1.734972629e-05 | BZ111: -1.408510765e-05 | CA111: -2.934402061e-05 | CB111: -1.090304496e-05 | CC111: 2.005943909e-05 | CD111: 2.798483249e-05 | CE111: 3.771285214e-06 | CF111: -2.477336219e-05 | CG111: -2.486725442e-05 | CH111: 3.597438251e-06 | CI111: 2.793068384e-05 | CJ111: 2.018717531e-05 | CK111: -1.074012144e-05 | CL111: -2.93330179e-05 | CM111: -1.423866173e-05 | CN111: 1.72079633e-05 | CO111: 2.889225057e-05 | CP111: 7.39548066e-06 | CQ111: -2.259456554e-05 | CR111: -2.663607688e-05 | CS111: -8.761434658e-08 | CT111: 2.656146813e-05 | CU111: 2.270626051e-05 | CV111: -7.225757099e-06 | CW111: -2.885941599e-05 | CX111: -1.734972629e-05 | CY111: 1.408510765e-05 | CZ111: 2.934402061e-05 | DA111: 1.090304496e-05 | DB111: -2.005943909e-05 | DC111: -2.798483249e-05 | DD111: -3.771285214e-06 | DE111: 2.477336219e-05 | DF111: 2.486725442e-05 | DG111: -3.597438251e-06 | DH111: -2.793068384e-05 | DI111: -2.018717531e-05 | DJ111: 1.074012144e-05 | DK111: 2.93330179e-05 | DL111: 1.423866173e-05 | DM111: -1.72079633e-05 | DN111: -2.889225057e-05 | DO111: -7.39548066e-06 | DP111: 2.259456554e-05 | DQ111: 2.663607688e-05 | DR111: 8.761434658e-08 | DS111: -2.656146813e-05 | DT111: -2.270626051e-05 | DU111: 7.225757099e-06 | DV111: 2.885941599e-05 | DW111: 1.734972629e-05 | DX111: -1.408510765e-05 | DY111: -2.934402061e-05 | DZ111: -1.090304496e-05 | EA111: 2.005943909e-05 | EB111: 2.798483249e-05 | EC111: 3.771285214e-06 | ED111: -2.477336219e-05 | EE111: -2.486725442e-05 | EF111: 3.597438251e-06 | EG111: 2.793068384e-05 | EH111: 2.018717531e-05 | EI111: -1.074012144e-05 | EJ111: -2.93330179e-05 | EK111: -1.423866173e-05 | EL111: 1.72079633e-05 | EM111: 2.889225057e-05 | EN111: 7.39548066e-06 | EO111: -2.259456554e-05 | EP111: -2.663607688e-05 | EQ111: -8.761434658e-08 | ER111: 2.656146813e-05 | ES111: 2.270626051e-05 | ET111: -7.225757099e-06 | EU111: -2.885941599e-05 | EV111: -1.734972629e-05 | EW111: 1.408510765e-05 | EX111: 2.934402061e-05 | EY111: 1.090304496e-05 | EZ111: -2.005943909e-05 | FA111: -2.798483249e-05 | FB111: -3.771285214e-06 | FC111: 2.477336219e-05 | FD111: 2.486725442e-05 | FE111: -3.597438251e-06 | FF111: -2.793068384e-05 | FG111: -2.018717531e-05 | FH111: 1.074012144e-05 | FI111: 2.93330179e-05
B112: 42 | C112: 21000000 | D112: 0 | E112: -0.002933020224 | F112: -50.65369885 | G112: 2.965060329e-05 | H112: -1.907168843e-06 | I112: -90.54139856 | M112: 131946891.5 | N112: 0.08795921926 | O112: 0.007747935364 | P112: 0.0879108439 | Q112: 0.007729316475 | R112: 0.01311890108 | S112: 0.0001731055655 | T112: 124368084.6 | U112: 1e+30 | V112: -2513074249 | W112: 1e+30 | X112: 6.336421462 | Y112: -98.51184375 | Z112: 0.08802235718 | AA112: 0.08791653129 | AB112: 0.01315695882 | AC112: 1e+15 | AD112: 1e+15 | AE112: 0.01013012991 | AF112: 86.31972404 | AG112: 0.0006502406043 | AH112: 0.01010923929 | AM112: 42 | AN112: 2575.263327 | AO112: 16180.8567 | AP112: -0.04382001056 | AQ112: 0.001931304437 | AR112: -0.4382971908 | AS112: 0.1921054275 | AT112: -0.6180126309 | AU112: 0.381940612 | AV112: -6.180140872e+10 | AW112: 1.000000004e+30 | AX112: -2.060047497e+13 | AY112: 1.00042438e+30 | AZ112: 1.733772875 | BA112: 26.58896429 | BB112: 0.04394660894 | BC112: 0.4382983316 | BD112: 0.61801344 | BE112: 1.000000002e+15 | BF112: 1.000212167e+15 | BG112: 0.03752988653 | BK112: V(t) | BL112: 42 | BM112: 2.965060329e-05 | BN112: 1.749786364e-05 | BO112: -1.08989549e-05 | BP112: -2.917776779e-05 | BQ112: -2.03695047e-05 | BR112: 7.348714955e-06 | BS112: 2.824478146e-05 | BT112: 2.29199065e-05 | BU112: -3.682581384e-06 | BV112: -2.686635806e-05 | BW112: -2.510884768e-05 | BX112: -4.162869572e-08 | BY112: 2.506423613e-05 | BZ112: 2.690180733e-05 | CA112: 3.765182266e-06 | CB112: -2.286683624e-05 | CC112: -2.827050941e-05 | CD112: -7.429356662e-06 | CE112: 2.030881267e-05 | CF112: 2.919336867e-05 | CG112: 1.097636567e-05 | CH112: -1.7430507e-05 | CI112: -2.965583107e-05 | CJ112: -1.435027083e-05 | CK112: 1.427731182e-05 | CL112: 2.965060329e-05 | CM112: 1.749786364e-05 | CN112: -1.08989549e-05 | CO112: -2.917776779e-05 | CP112: -2.03695047e-05 | CQ112: 7.348714955e-06 | CR112: 2.824478146e-05 | CS112: 2.29199065e-05 | CT112: -3.682581384e-06 | CU112: -2.686635806e-05 | CV112: -2.510884768e-05 | CW112: -4.162869572e-08 | CX112: 2.506423613e-05 | CY112: 2.690180733e-05 | CZ112: 3.765182266e-06 | DA112: -2.286683624e-05 | DB112: -2.827050941e-05 | DC112: -7.429356662e-06 | DD112: 2.030881267e-05 | DE112: 2.919336867e-05 | DF112: 1.097636567e-05 | DG112: -1.7430507e-05 | DH112: -2.965583107e-05 | DI112: -1.435027083e-05 | DJ112: 1.427731182e-05 | DK112: 2.965060329e-05 | DL112: 1.749786364e-05 | DM112: -1.08989549e-05 | DN112: -2.917776779e-05 | DO112: -2.03695047e-05 | DP112: 7.348714955e-06 | DQ112: 2.824478146e-05 | DR112: 2.29199065e-05 | DS112: -3.682581384e-06 | DT112: -2.686635806e-05 | DU112: -2.510884768e-05 | DV112: -4.162869572e-08 | DW112: 2.506423613e-05 | DX112: 2.690180733e-05 | DY112: 3.765182266e-06 | DZ112: -2.286683624e-05 | EA112: -2.827050941e-05 | EB112: -7.429356662e-06 | EC112: 2.030881267e-05 | ED112: 2.919336867e-05 | EE112: 1.097636567e-05 | EF112: -1.7430507e-05 | EG112: -2.965583107e-05 | EH112: -1.435027083e-05 | EI112: 1.427731182e-05 | EJ112: 2.965060329e-05 | EK112: 1.749786364e-05 | EL112: -1.08989549e-05 | EM112: -2.917776779e-05 | EN112: -2.03695047e-05 | EO112: 7.348714955e-06 | EP112: 2.824478146e-05 | EQ112: 2.29199065e-05 | ER112: -3.682581384e-06 | ES112: -2.686635806e-05 | ET112: -2.510884768e-05 | EU112: -4.162869572e-08 | EV112: 2.506423613e-05 | EW112: 2.690180733e-05 | EX112: 3.765182266e-06 | EY112: -2.286683624e-05 | EZ112: -2.827050941e-05 | FA112: -7.429356662e-06 | FB112: 2.030881267e-05 | FC112: 2.919336867e-05 | FD112: 1.097636567e-05 | FE112: -1.7430507e-05 | FF112: -2.965583107e-05 | FG112: -1.435027083e-05 | FH112: 1.427731182e-05 | FI112: 2.965060329e-05
B113: 43 | C113: 21500000 | D113: 0 | E113: -0.002702841044 | F113: -51.36358989 | G113: 2.797938715e-05 | H113: -1.757393333e-06 | I113: -91.04613627 | M113: 135088484.1 | N113: 0.09005373936 | O113: 0.008120787084 | P113: 0.09000648901 | Q113: 0.008102168064 | R113: 0.01343482286 | S113: 0.0001814944652 | T113: 127685928.6 | U113: 1e+30 | V113: -2454009649 | W113: 1e+30 | X113: 6.043702893 | Y113: -96.22154577 | Z113: 0.09011540981 | AA113: 0.09001204399 | AB113: 0.01347198817 | AC113: 1e+15 | AD113: 1e+15 | AE113: 0.01037224297 | AF113: 86.40595702 | AG113: 0.0006502022517 | AH113: 0.01035184337 | AM113: 43 | AN113: 2635.370519 | AO113: 16558.52133 | AP113: -0.04282007158 | AQ113: 0.001844669641 | AR113: -0.4283000669 | AS113: 0.1834419473 | AT113: -0.6039170035 | AU113: 0.3647167471 | AV113: -6.039184938e+10 | AW113: 1.000000004e+30 | AX113: -2.013062198e+13 | AY113: 1.000405242e+30 | AZ113: 1.815201459 | BA113: 27.20351838 | BB113: 0.04294961747 | BC113: 0.4283012343 | BD113: 0.6039178314 | BE113: 1.000000002e+15 | BF113: 1.0002026e+15 | BG113: 0.03667838716 | BK113: V(t) | BL113: 43 | BM113: 2.797938715e-05 | BN113: 1.918882742e-05 | BO113: -3.516549279e-06 | BP113: -2.367189317e-05 | BQ113: -2.666151589e-05 | BR113: -1.03174865e-05 | BS113: 1.350828907e-05 | BT113: 2.753850153e-05 | BU113: 2.159911397e-05 | BV113: -2.914736299e-09 | BW113: -2.160282981e-05 | BX113: -2.75374092e-05 | BY113: -1.350318067e-05 | BZ113: 1.032290661e-05 | CA113: 2.66633173e-05 | CB113: 2.366876958e-05 | CC113: 3.510765774e-06 | CD113: -1.919307692e-05 | CE113: -2.797902111e-05 | CF113: -1.647592161e-05 | CG113: 6.97472574e-06 | CH113: 2.536763662e-05 | CI113: 2.536515456e-05 | CJ113: 6.969079411e-06 | CK113: -1.648063775e-05 | CL113: -2.797938715e-05 | CM113: -1.918882742e-05 | CN113: 3.516549279e-06 | CO113: 2.367189317e-05 | CP113: 2.666151589e-05 | CQ113: 1.03174865e-05 | CR113: -1.350828907e-05 | CS113: -2.753850153e-05 | CT113: -2.159911397e-05 | CU113: 2.914736298e-09 | CV113: 2.160282981e-05 | CW113: 2.75374092e-05 | CX113: 1.350318067e-05 | CY113: -1.032290661e-05 | CZ113: -2.66633173e-05 | DA113: -2.366876958e-05 | DB113: -3.510765774e-06 | DC113: 1.919307692e-05 | DD113: 2.797902111e-05 | DE113: 1.647592161e-05 | DF113: -6.97472574e-06 | DG113: -2.536763662e-05 | DH113: -2.536515456e-05 | DI113: -6.969079411e-06 | DJ113: 1.648063775e-05 | DK113: 2.797938715e-05 | DL113: 1.918882742e-05 | DM113: -3.516549279e-06 | DN113: -2.367189317e-05 | DO113: -2.666151589e-05 | DP113: -1.03174865e-05 | DQ113: 1.350828907e-05 | DR113: 2.753850153e-05 | DS113: 2.159911397e-05 | DT113: -2.9147363e-09 | DU113: -2.160282981e-05 | DV113: -2.75374092e-05 | DW113: -1.350318067e-05 | DX113: 1.032290661e-05 | DY113: 2.66633173e-05 | DZ113: 2.366876958e-05 | EA113: 3.510765774e-06 | EB113: -1.919307692e-05 | EC113: -2.797902111e-05 | ED113: -1.647592161e-05 | EE113: 6.97472574e-06 | EF113: 2.536763662e-05 | EG113: 2.536515456e-05 | EH113: 6.969079411e-06 | EI113: -1.648063775e-05 | EJ113: -2.797938715e-05 | EK113: -1.918882742e-05 | EL113: 3.516549279e-06 | EM113: 2.367189317e-05 | EN113: 2.666151589e-05 | EO113: 1.03174865e-05 | EP113: -1.350828907e-05 | EQ113: -2.753850153e-05 | ER113: -2.159911397e-05 | ES113: 2.914736299e-09 | ET113: 2.160282981e-05 | EU113: 2.75374092e-05 | EV113: 1.350318067e-05 | EW113: -1.032290661e-05 | EX113: -2.66633173e-05 | EY113: -2.366876958e-05 | EZ113: -3.510765774e-06 | FA113: 1.919307692e-05 | FB113: 2.797902111e-05 | FC113: 1.647592161e-05 | FD113: -6.97472574e-06 | FE113: -2.536763662e-05 | FF113: -2.536515456e-05 | FG113: -6.969079411e-06 | FH113: 1.648063775e-05 | FI113: 2.797938715e-05
B114: 44 | C114: 22000000 | D114: 0 | E114: -0.002314402646 | F114: -52.71122166 | G114: 2.451971788e-05 | H114: -1.50474705e-06 | I114: -92.19336522 | M114: 138230076.8 | N114: 0.09214825379 | O114: 0.008502411787 | P114: 0.0921020773 | Q114: 0.008483792643 | R114: 0.01375066452 | S114: 0.0001900807747 | T114: 130995761.2 | U114: 1e+30 | V114: -2397615524 | W114: 1e+30 | X114: 5.770838753 | Y114: -94.03529862 | Z114: 0.0922085234 | AA114: 0.0921075059 | AB114: 0.01378697845 | AC114: 1e+15 | AD114: 1e+15 | AE114: 0.01061433577 | AF114: 86.48822771 | AG114: 0.0006501664922 | AH114: 0.01059440453 | AM114: 44 | AN114: 2696.880626 | AO114: 16945.00073 | AP114: -0.04184292745 | AQ114: 0.001761941689 | AR114: -0.4185309445 | AS114: 0.1751691515 | AT114: -0.5901428656 | AU114: 0.3482696018 | AV114: -5.901443907e+10 | AW114: 1.000000003e+30 | AX114: -1.967148534e+13 | AY114: 1.000386967e+30 | AZ114: 1.900432348 | BA114: 27.83198685 | BB114: 0.04197548915 | BC114: 0.4185321392 | BD114: 0.5901437129 | BE114: 1000000001741352 | BF114: 1.000193465e+15 | BG114: 0.03584641258 | BK114: V(t) | BL114: 44 | BM114: 2.451971788e-05 | BN114: 1.890417533e-05 | BO114: 3.0413836e-06 | BP114: -1.447002887e-05 | BQ114: -2.413777777e-05 | BR114: -2.072133659e-05 | BS114: -6.072630812e-06 | BT114: 1.186782189e-05 | BU114: 2.337517048e-05 | BV114: 2.221170999e-05 | BW114: 9.00810901e-06 | BX114: -9.078452272e-06 | BY114: -2.224392279e-05 | BZ114: -2.335179146e-05 | CA114: -1.180152395e-05 | CB114: 6.145910036e-06 | CC114: 2.076187515e-05 | CD114: 2.412360123e-05 | CE114: 1.44088218e-05 | CF114: -3.116443128e-06 | CG114: -1.895240034e-05 | CH114: -2.45149674e-05 | CI114: -1.678888393e-05 | CJ114: 3.782804948e-08 | CK114: 1.684403485e-05 | CL114: 2.451971788e-05 | CM114: 1.890417533e-05 | CN114: 3.0413836e-06 | CO114: -1.447002887e-05 | CP114: -2.413777777e-05 | CQ114: -2.072133659e-05 | CR114: -6.072630812e-06 | CS114: 1.186782189e-05 | CT114: 2.337517048e-05 | CU114: 2.221170999e-05 | CV114: 9.00810901e-06 | CW114: -9.078452272e-06 | CX114: -2.224392279e-05 | CY114: -2.335179146e-05 | CZ114: -1.180152395e-05 | DA114: 6.145910036e-06 | DB114: 2.076187515e-05 | DC114: 2.412360123e-05 | DD114: 1.44088218e-05 | DE114: -3.116443128e-06 | DF114: -1.895240034e-05 | DG114: -2.45149674e-05 | DH114: -1.678888393e-05 | DI114: 3.782804948e-08 | DJ114: 1.684403485e-05 | DK114: 2.451971788e-05 | DL114: 1.890417533e-05 | DM114: 3.0413836e-06 | DN114: -1.447002887e-05 | DO114: -2.413777777e-05 | DP114: -2.072133659e-05 | DQ114: -6.072630812e-06 | DR114: 1.186782189e-05 | DS114: 2.337517048e-05 | DT114: 2.221170999e-05 | DU114: 9.00810901e-06 | DV114: -9.078452272e-06 | DW114: -2.224392279e-05 | DX114: -2.335179146e-05 | DY114: -1.180152395e-05 | DZ114: 6.145910036e-06 | EA114: 2.076187515e-05 | EB114: 2.412360123e-05 | EC114: 1.44088218e-05 | ED114: -3.116443128e-06 | EE114: -1.895240034e-05 | EF114: -2.45149674e-05 | EG114: -1.678888393e-05 | EH114: 3.782804948e-08 | EI114: 1.684403485e-05 | EJ114: 2.451971788e-05 | EK114: 1.890417533e-05 | EL114: 3.0413836e-06 | EM114: -1.447002887e-05 | EN114: -2.413777777e-05 | EO114: -2.072133659e-05 | EP114: -6.072630812e-06 | EQ114: 1.186782189e-05 | ER114: 2.337517048e-05 | ES114: 2.221170999e-05 | ET114: 9.00810901e-06 | EU114: -9.078452272e-06 | EV114: -2.224392279e-05 | EW114: -2.335179146e-05 | EX114: -1.180152395e-05 | EY114: 6.145910036e-06 | EZ114: 2.076187515e-05 | FA114: 2.412360123e-05 | FB114: 1.44088218e-05 | FC114: -3.116443128e-06 | FD114: -1.895240034e-05 | FE114: -2.45149674e-05 | FF114: -1.678888393e-05 | FG114: 3.782804948e-08 | FH114: 1.684403485e-05 | FI114: 2.451971788e-05
B115: 45 | C115: 22500000 | D115: 0 | E115: -0.001806648284 | F115: -54.86252774 | G115: 1.957851312e-05 | H115: -1.174561844e-06 | I115: -94.14880329 | M115: 141371669.4 | N115: 0.0942427629 | O115: 0.008892809471 | P115: 0.09419761256 | Q115: 0.008874190213 | R115: 0.01406643141 | S115: 0.0001988644926 | T115: 134298116.4 | U115: 1e+30 | V115: -2343713842 | W115: 1e+30 | X115: 5.516070788 | Y115: -91.94617113 | Z115: 0.09430169389 | AA115: 0.09420292041 | AB115: 0.01410193223 | AC115: 1000000000000009 | AD115: 1e+15 | AE115: 0.01085640965 | AF115: 86.56680395 | AG115: 0.0006501330968 | AH115: 0.01083692564 | AM115: 45 | AN115: 2759.826392 | AO115: 17340.50064 | AP115: -0.04088805802 | AQ115: 0.001682944399 | AR115: -0.4089846232 | AS115: 0.167269422 | AT115: -0.5766828847 | AU115: 0.3325641495 | AV115: -5.766844453e+10 | AW115: 1.000000003e+30 | AX115: -1.922282062e+13 | AY115: 1.000369517e+30 | AZ115: 1.989640968 | BA115: 28.47466408 | BB115: 0.04102370534 | BC115: 0.4089858457 | BD115: 0.5766837517 | BE115: 1.000000002e+15 | BF115: 1.000184741e+15 | BG115: 0.03503351985 | BK115: V(t) | BL115: 45 | BM115: 1.957851312e-05 | BN115: 1.652973997e-05 | BO115: 7.167167975e-06 | BP115: -4.933018584e-06 | BQ115: -1.514895971e-05 | BR115: -1.957851312e-05 | BS115: -1.652973997e-05 | BT115: -7.167167975e-06 | BU115: 4.933018584e-06 | BV115: 1.514895971e-05 | BW115: 1.957851312e-05 | BX115: 1.652973997e-05 | BY115: 7.167167975e-06 | BZ115: -4.933018584e-06 | CA115: -1.514895971e-05 | CB115: -1.957851312e-05 | CC115: -1.652973997e-05 | CD115: -7.167167975e-06 | CE115: 4.933018584e-06 | CF115: 1.514895971e-05 | CG115: 1.957851312e-05 | CH115: 1.652973997e-05 | CI115: 7.167167975e-06 | CJ115: -4.933018584e-06 | CK115: -1.514895971e-05 | CL115: -1.957851312e-05 | CM115: -1.652973997e-05 | CN115: -7.167167975e-06 | CO115: 4.933018584e-06 | CP115: 1.514895971e-05 | CQ115: 1.957851312e-05 | CR115: 1.652973997e-05 | CS115: 7.167167975e-06 | CT115: -4.933018584e-06 | CU115: -1.514895971e-05 | CV115: -1.957851312e-05 | CW115: -1.652973997e-05 | CX115: -7.167167975e-06 | CY115: 4.933018584e-06 | CZ115: 1.514895971e-05 | DA115: 1.957851312e-05 | DB115: 1.652973997e-05 | DC115: 7.167167975e-06 | DD115: -4.933018584e-06 | DE115: -1.514895971e-05 | DF115: -1.957851312e-05 | DG115: -1.652973997e-05 | DH115: -7.167167975e-06 | DI115: 4.933018584e-06 | DJ115: 1.514895971e-05 | DK115: 1.957851312e-05 | DL115: 1.652973997e-05 | DM115: 7.167167975e-06 | DN115: -4.933018584e-06 | DO115: -1.514895971e-05 | DP115: -1.957851312e-05 | DQ115: -1.652973997e-05 | DR115: -7.167167975e-06 | DS115: 4.933018584e-06 | DT115: 1.514895971e-05 | DU115: 1.957851312e-05 | DV115: 1.652973997e-05 | DW115: 7.167167975e-06 | DX115: -4.933018584e-06 | DY115: -1.514895971e-05 | DZ115: -1.957851312e-05 | EA115: -1.652973997e-05 | EB115: -7.167167975e-06 | EC115: 4.933018584e-06 | ED115: 1.514895971e-05 | EE115: 1.957851312e-05 | EF115: 1.652973997e-05 | EG115: 7.167167975e-06 | EH115: -4.933018584e-06 | EI115: -1.514895971e-05 | EJ115: -1.957851312e-05 | EK115: -1.652973997e-05 | EL115: -7.167167975e-06 | EM115: 4.933018584e-06 | EN115: 1.514895971e-05 | EO115: 1.957851312e-05 | EP115: 1.652973997e-05 | EQ115: 7.167167975e-06 | ER115: -4.933018584e-06 | ES115: -1.514895971e-05 | ET115: -1.957851312e-05 | EU115: -1.652973997e-05 | EV115: -7.167167975e-06 | EW115: 4.933018584e-06 | EX115: 1.514895971e-05 | EY115: 1.957851312e-05 | EZ115: 1.652973997e-05 | FA115: 7.167167975e-06 | FB115: -4.933018584e-06 | FC115: -1.514895971e-05 | FD115: -1.957851312e-05 | FE115: -1.652973997e-05 | FF115: -7.167167975e-06 | FG115: 4.933018584e-06 | FH115: 1.514895971e-05 | FI115: 1.957851312e-05
B116: 46 | C116: 23000000 | D116: 0 | E116: -0.001222553799 | F116: -58.25464041 | G116: 1.354517395e-05 | H116: -7.947845003e-07 | I116: -97.34938145 | M116: 144513262.1 | N116: 0.09633726706 | O116: 0.009291980137 | P116: 0.09629309826 | Q116: 0.009273360772 | R116: 0.01438212841 | S116: 0.0002078456175 | T116: 137593481.9 | U116: 1e+30 | V116: -2292142052 | W116: 1e+30 | X116: 5.277831404 | Y116: -89.94783416 | Z116: 0.09639491759 | AA116: 0.0962982906 | AB116: 0.01441685186 | AC116: 1e+15 | AD116: 1000000000002627 | AE116: 0.01109846581 | AF116: 86.64192988 | AG116: 0.0006501018616 | AH116: 0.01107940932 | AM116: 46 | AN116: 2824.241326 | AO116: 17745.2316 | AP116: -0.03995495495 | AQ116: 0.001607509536 | AR116: -0.3996560209 | AS116: 0.159725935 | AT116: -0.5635298955 | AU116: 0.3175669431 | AV116: -5.635314925e+10 | AW116: 1.000000003e+30 | AX116: -1.8784389e+13 | AY116: 1.000352853e+30 | AZ116: 2.083010636 | BA116: 29.13184922 | BB116: 0.04009375932 | BC116: 0.399657272 | BD116: 0.5635307827 | BE116: 1.000000002e+15 | BF116: 1.000176411e+15 | BG116: 0.03423927618 | BK116: V(t) | BL116: 46 | BM116: 1.354517395e-05 | BN116: 1.225261677e-05 | BO116: 7.928925892e-06 | BP116: 1.643724684e-06 | BQ116: -5.048112051e-06 | BR116: -1.049111331e-05 | BS116: -1.333875329e-05 | BT116: -1.288656392e-05 | BU116: -9.246410802e-06 | BV116: -3.318819182e-06 | BW116: 3.429803963e-06 | BX116: 9.329939431e-06 | BY116: 1.292197253e-05 | BZ116: 1.331728227e-05 | CA116: 1.041807429e-05 | CB116: 4.94157392e-06 | CC116: -1.757405819e-06 | CD116: -8.021626837e-06 | CE116: -1.230140454e-05 | CF116: -1.353797912e-05 | CG116: -1.142543852e-05 | CH116: -6.486397084e-06 | CI116: 5.729233462e-08 | CJ116: 6.586808395e-06 | CK116: 1.148683606e-05 | CL116: 1.354517395e-05 | CM116: 1.225261677e-05 | CN116: 7.928925892e-06 | CO116: 1.643724684e-06 | CP116: -5.048112051e-06 | CQ116: -1.049111331e-05 | CR116: -1.333875329e-05 | CS116: -1.288656392e-05 | CT116: -9.246410802e-06 | CU116: -3.318819182e-06 | CV116: 3.429803963e-06 | CW116: 9.329939431e-06 | CX116: 1.292197253e-05 | CY116: 1.331728227e-05 | CZ116: 1.041807429e-05 | DA116: 4.94157392e-06 | DB116: -1.757405819e-06 | DC116: -8.021626837e-06 | DD116: -1.230140454e-05 | DE116: -1.353797912e-05 | DF116: -1.142543852e-05 | DG116: -6.486397084e-06 | DH116: 5.729233462e-08 | DI116: 6.586808395e-06 | DJ116: 1.148683606e-05 | DK116: 1.354517395e-05 | DL116: 1.225261677e-05 | DM116: 7.928925892e-06 | DN116: 1.643724684e-06 | DO116: -5.048112051e-06 | DP116: -1.049111331e-05 | DQ116: -1.333875329e-05 | DR116: -1.288656392e-05 | DS116: -9.246410802e-06 | DT116: -3.318819182e-06 | DU116: 3.429803963e-06 | DV116: 9.329939431e-06 | DW116: 1.292197253e-05 | DX116: 1.331728227e-05 | DY116: 1.041807429e-05 | DZ116: 4.94157392e-06 | EA116: -1.757405819e-06 | EB116: -8.021626837e-06 | EC116: -1.230140454e-05 | ED116: -1.353797912e-05 | EE116: -1.142543852e-05 | EF116: -6.486397084e-06 | EG116: 5.729233462e-08 | EH116: 6.586808395e-06 | EI116: 1.148683606e-05 | EJ116: 1.354517395e-05 | EK116: 1.225261677e-05 | EL116: 7.928925892e-06 | EM116: 1.643724684e-06 | EN116: -5.048112051e-06 | EO116: -1.049111331e-05 | EP116: -1.333875329e-05 | EQ116: -1.288656392e-05 | ER116: -9.246410802e-06 | ES116: -3.318819182e-06 | ET116: 3.429803963e-06 | EU116: 9.329939431e-06 | EV116: 1.292197253e-05 | EW116: 1.331728227e-05 | EX116: 1.041807429e-05 | EY116: 4.94157392e-06 | EZ116: -1.757405819e-06 | FA116: -8.021626837e-06 | FB116: -1.230140454e-05 | FC116: -1.353797912e-05 | FD116: -1.142543852e-05 | FE116: -6.486397084e-06 | FF116: 5.729233462e-08 | FG116: 6.586808395e-06 | FH116: 1.148683606e-05 | FI116: 1.354517395e-05
B117: 47 | C117: 23500000 | D117: 0 | E117: -0.0006061975169 | F117: -64.34771694 | G117: 6.863282175e-06 | H117: -3.940723984e-07 | I117: -103.2550688 | M117: 147654854.7 | N117: 0.09843176658 | O117: 0.009699923784 | P117: 0.09838853754 | Q117: 0.009681304319 | R117: 0.01469775996 | S117: 0.000217024148 | T117: 140882303.9 | U117: 1e+30 | V117: -2242751438 | W117: 1e+30 | X117: 5.054719352 | Y117: -88.03449663 | Z117: 0.09848819109 | AA117: 0.0983936193 | AB117: 0.01473173948 | AC117: 1e+15 | AD117: 1000000000002515 | AE117: 0.01134050536 | AF117: 86.71382854 | AG117: 0.0006500726041 | AH117: 0.01132185795 | AM117: 47 | AN117: 2890.159718 | AO117: 18159.40907 | AP117: -0.03904312153 | AQ117: 0.00153547645 | AR117: -0.3905401717 | AS117: 0.1525226257 | AT117: -0.5506768961 | AU117: 0.3032460438 | AV117: -5.506785304e+10 | AW117: 1.000000003e+30 | AX117: -1.835595706e+13 | AY117: 1.000336941e+30 | AZ117: 2.180732896 | BA117: 29.80384608 | BB117: 0.03918515599 | BC117: 0.390541452 | BD117: 0.550677804 | BE117: 1.000000002e+15 | BF117: 1.000168456e+15 | BG117: 0.03346325872 | BK117: V(t) | BL117: 47 | BM117: 6.863282175e-06 | BN117: 6.526386108e-06 | BO117: 5.272878507e-06 | BP117: 3.278810789e-06 | BQ117: 8.2424384e-07 | BR117: -1.746085707e-06 | BS117: -4.071182705e-06 | BT117: -5.824494192e-06 | BU117: -6.759772778e-06 | BV117: -6.745661365e-06 | BW117: -5.784141861e-06 | BX117: -4.010256822e-06 | BY117: -1.673143129e-06 | BZ117: 8.989585436e-07 | CA117: 3.34480416e-06 | CB117: 5.320881973e-06 | CC117: 6.549657725e-06 | CD117: 6.858553513e-06 | CE117: 6.204185843e-06 | CF117: 4.678458709e-06 | CG117: 2.495655952e-06 | CH117: -3.765426694e-08 | CI117: -2.565676056e-06 | CJ117: -4.733356267e-06 | CK117: -6.236250657e-06 | CL117: -6.863282175e-06 | CM117: -6.526386108e-06 | CN117: -5.272878507e-06 | CO117: -3.278810789e-06 | CP117: -8.2424384e-07 | CQ117: 1.746085707e-06 | CR117: 4.071182705e-06 | CS117: 5.824494192e-06 | CT117: 6.759772778e-06 | CU117: 6.745661365e-06 | CV117: 5.784141861e-06 | CW117: 4.010256822e-06 | CX117: 1.673143129e-06 | CY117: -8.989585436e-07 | CZ117: -3.34480416e-06 | DA117: -5.320881973e-06 | DB117: -6.549657725e-06 | DC117: -6.858553513e-06 | DD117: -6.204185843e-06 | DE117: -4.678458709e-06 | DF117: -2.495655952e-06 | DG117: 3.765426694e-08 | DH117: 2.565676056e-06 | DI117: 4.733356267e-06 | DJ117: 6.236250657e-06 | DK117: 6.863282175e-06 | DL117: 6.526386108e-06 | DM117: 5.272878507e-06 | DN117: 3.278810789e-06 | DO117: 8.2424384e-07 | DP117: -1.746085707e-06 | DQ117: -4.071182705e-06 | DR117: -5.824494192e-06 | DS117: -6.759772778e-06 | DT117: -6.745661365e-06 | DU117: -5.784141861e-06 | DV117: -4.010256822e-06 | DW117: -1.673143129e-06 | DX117: 8.989585436e-07 | DY117: 3.34480416e-06 | DZ117: 5.320881973e-06 | EA117: 6.549657725e-06 | EB117: 6.858553513e-06 | EC117: 6.204185843e-06 | ED117: 4.678458709e-06 | EE117: 2.495655952e-06 | EF117: -3.765426694e-08 | EG117: -2.565676056e-06 | EH117: -4.733356267e-06 | EI117: -6.236250657e-06 | EJ117: -6.863282175e-06 | EK117: -6.526386108e-06 | EL117: -5.272878507e-06 | EM117: -3.278810789e-06 | EN117: -8.2424384e-07 | EO117: =Re_H*COS(NH_*Rad_+NH_*Ofs_)+Im_H*SIN(NH_*Rad_+NH_*Ofs_) -> 1.746085707e-06 | EP117: 4.071182705e-06 | EQ117: 5.824494192e-06 | ER117: 6.759772778e-06 | ES117: 6.745661365e-06 | ET117: 5.784141861e-06 | EU117: 4.010256822e-06 | EV117: 1.673143129e-06 | EW117: -8.989585436e-07 | EX117: -3.34480416e-06 | EY117: -5.320881973e-06 | EZ117: -6.549657725e-06 | FA117: -6.858553513e-06 | FB117: -6.204185843e-06 | FC117: -4.678458709e-06 | FD117: -2.495655952e-06 | FE117: 3.765426694e-08 | FF117: 2.565676056e-06 | FG117: 4.733356267e-06 | FH117: 6.236250657e-06 | FI117: 6.863282175e-06
B118: 48 | C118: 24000000 | D118: 0 | E118: -1.980658815e-17 | F118: -334.0638066 | G118: 2.29048807e-19 | H118: -1.287517678e-20 | I118: -372.7877384 | M118: 150796447.4 | N118: 0.1005262618 | O118: 0.01011664041 | P118: 0.1004839333 | Q118: 0.01009802085 | R118: 0.01501333018 | S118: 0.000226400083 | T118: 144164991.4 | U118: 1e+30 | V118: -2195405676 | W118: 1e+30 | X118: 4.845478964 | Y118: -86.20084955 | Z118: 0.1005815113 | AA118: 0.1004889091 | AB118: 0.01504659706 | AC118: 1e+15 | AD118: 1e+15 | AE118: 0.01158252933 | AF118: 86.7827041 | AG118: 0.0006500451606 | AH118: 0.01156427373 | AM118: 48 | AN118: 2957.616659 | AO118: 18583.25354 | AP118: -0.03815207234 | AQ118: 0.001466691735 | AR118: -0.381632223 | AS118: 0.1456441536 | AT118: -0.5381170443 | AU118: 0.2895709534 | AV118: -5.381187168e+10 | AW118: 1.000000003e+30 | AX118: -1.793729675e+13 | AY118: 1.000321747e+30 | AZ118: 2.283007862 | BA118: 30.49096316 | BB118: 0.0382974116 | BC118: 0.3816335331 | BD118: 0.5381179735 | BE118: 1.000000001e+15 | BF118: 1.00016086e+15 | BG118: 0.03270505431 | BK118: V(t) | BL118: 48 | BM118: 2.29048807e-19 | BN118: 2.250547438e-19 | BO118: 2.069196634e-19 | BP118: 1.757830595e-19 | BQ118: 1.336013594e-19 | BR118: 8.302499468e-20 | BS118: 2.723186414e-20 | BT118: -3.027234456e-20 | BU118: -8.587443053e-20 | BV118: -1.360807102e-19 | BW118: -1.777365384e-19 | BX118: -2.082245262e-19 | BY118: -2.256290012e-19 | BZ118: -2.288563763e-19 | CA118: -2.177038636e-19 | CB118: -1.928722164e-19 | CC118: -1.559216986e-19 | CD118: -1.09174047e-19 | CE118: -5.556658856e-20 | CF118: 1.532323035e-21 | CG118: 5.853495314e-20 | CH118: 1.118596169e-19 | CI118: 1.581557295e-19 | CJ118: 1.945143359e-19 | CK118: 2.186508913e-19 | CL118: 2.29048807e-19 | CM118: 2.250547438e-19 | CN118: 2.069196634e-19 | CO118: 1.757830595e-19 | CP118: 1.336013594e-19 | CQ118: 8.302499468e-20 | CR118: 2.723186414e-20 | CS118: -3.027234456e-20 | CT118: -8.587443053e-20 | CU118: -1.360807102e-19 | CV118: -1.777365384e-19 | CW118: -2.082245262e-19 | CX118: -2.256290012e-19 | CY118: -2.288563763e-19 | CZ118: -2.177038636e-19 | DA118: -1.928722164e-19 | DB118: -1.559216986e-19 | DC118: -1.09174047e-19 | DD118: -5.556658856e-20 | DE118: 1.532323035e-21 | DF118: 5.853495314e-20 | DG118: =Re_H*COS(NH_*Rad_+NH_*Ofs_)+Im_H*SIN(NH_*Rad_+NH_*Ofs_) -> 1.118596169e-19 | DH118: 1.581557295e-19 | DI118: 1.945143359e-19 | DJ118: 2.186508913e-19 | DK118: 2.29048807e-19 | DL118: 2.250547438e-19 | DM118: 2.069196634e-19 | DN118: 1.757830595e-19 | DO118: 1.336013594e-19 | DP118: 8.302499468e-20 | DQ118: 2.723186414e-20 | DR118: -3.027234456e-20 | DS118: -8.587443053e-20 | DT118: -1.360807102e-19 | DU118: -1.777365384e-19 | DV118: -2.082245262e-19 | DW118: -2.256290012e-19 | DX118: -2.288563763e-19 | DY118: -2.177038636e-19 | DZ118: -1.928722164e-19 | EA118: -1.559216986e-19 | EB118: -1.09174047e-19 | EC118: -5.556658856e-20 | ED118: 1.532323035e-21 | EE118: 5.853495314e-20 | EF118: 1.118596169e-19 | EG118: 1.581557295e-19 | EH118: 1.945143359e-19 | EI118: 2.186508913e-19 | EJ118: 2.29048807e-19 | EK118: 2.250547438e-19 | EL118: =Re_H*COS(NH_*Rad_+NH_*Ofs_)+Im_H*SIN(NH_*Rad_+NH_*Ofs_) -> 2.069196634e-19 | EM118: 1.757830595e-19 | EN118: 1.336013594e-19 | EO118: 8.302499468e-20 | EP118: 2.723186414e-20 | EQ118: -3.027234456e-20 | ER118: -8.587443053e-20 | ES118: -1.360807102e-19 | ET118: -1.777365384e-19 | EU118: -2.082245262e-19 | EV118: -2.256290012e-19 | EW118: -2.288563763e-19 | EX118: -2.177038636e-19 | EY118: -1.928722164e-19 | EZ118: -1.559216986e-19 | FA118: -1.09174047e-19 | FB118: =Re_H*COS(NH_*Rad_+NH_*Ofs_)+Im_H*SIN(NH_*Rad_+NH_*Ofs_) -> -5.556658856e-20 | FC118: 1.532323035e-21 | FD118: 5.853495314e-20 | FE118: 1.118596169e-19 | FF118: 1.581557295e-19 | FG118: 1.945143359e-19 | FH118: 2.186508913e-19 | FI118: 2.29048807e-19
B119: 49 | C119: 24500000 | D119: 0 | E119: 0.0005577219137 | F119: -65.07164582 | G119: -6.58483227e-06 | H119: 3.625300549e-07 | I119: -103.6159617 | M119: 153938040 | N119: 0.1026207528 | O119: 0.01054213002 | P119: 0.1025792882 | Q119: 0.01052351038 | R119: 0.0153288428 | S119: 0.0002359734216 | T119: 147441919.9 | U119: 1e+30 | V119: -2149979571 | W119: 1e+30 | X119: 4.648982355 | Y119: -84.44201691 | Z119: 0.1026748753 | AA119: 0.1025841624 | AB119: 0.01536142642 | AC119: 1e+15 | AD119: 1e+15 | AE119: 0.01182453865 | AF119: 86.8487438 | AG119: 0.0006500193842 | AH119: 0.01180665867 | AM119: 49 | AN119: 3026.648059 | AO119: 19016.99062 | AP119: -0.03728133305 | AQ119: 0.001401008905 | AR119: -0.3729274325 | AS119: 0.1390758699 | AT119: -0.5258436541 | AU119: 0.2765125485 | AV119: -5.258453656e+10 | AW119: 1.000000003e+30 | AX119: -1.752818519e+13 | AY119: 1.000307237e+30 | AZ119: 2.390044583 | BA119: 31.19351357 | BB119: 0.03743005351 | BC119: 0.3729287732 | BD119: 0.5258446049 | BE119: 1.000000001e+15 | BF119: 1.000153607e+15 | BG119: 0.03196425926 | BK119: V(t) | BL119: 49 | BM119: -6.58483227e-06 | BN119: -6.578345964e-06 | BO119: -6.468115214e-06 | BP119: -6.255878422e-06 | BQ119: -5.944982691e-06 | BR119: -5.540331031e-06 | BS119: -5.048305041e-06 | BT119: -4.476664265e-06 | BU119: -3.83442382e-06 | BV119: -3.13171222e-06 | BW119: -2.379611648e-06 | BX119: -1.589983178e-06 | BY119: -7.752797239e-07 | BZ119: 5.165035455e-08 | CA119: 8.77765876e-07 | CB119: =Re_H*COS(NH_*Rad_+NH_*Ofs_)+Im_H*SIN(NH_*Rad_+NH_*Ofs_) -> 1.690038505e-06 | CC119: 2.475658218e-06 | CD119: 3.222235321e-06 | CE119: 3.917995849e-06 | CF119: 4.551967241e-06 | CG119: 5.114151391e-06 | CH119: 5.595682319e-06 | CI119: 5.988965994e-06 | CJ119: 6.287800097e-06 | CK119: 6.487471836e-06 | CL119: 6.58483227e-06 | CM119: 6.578345964e-06 | CN119: 6.468115214e-06 | CO119: 6.255878422e-06 | CP119: 5.944982691e-06 | CQ119: 5.540331031e-06 | CR119: =Re_H*COS(NH_*Rad_+NH_*Ofs_)+Im_H*SIN(NH_*Rad_+NH_*Ofs_) -> 5.048305041e-06 | CS119: 4.476664265e-06 | CT119: 3.83442382e-06 | CU119: 3.13171222e-06 | CV119: 2.379611648e-06 | CW119: 1.589983178e-06 | CX119: 7.752797239e-07 | CY119: -5.165035455e-08 | CZ119: -8.77765876e-07 | DA119: -1.690038505e-06 | DB119: -2.475658218e-06 | DC119: -3.222235321e-06 | DD119: -3.917995849e-06 | DE119: -4.551967241e-06 | DF119: -5.114151391e-06 | DG119: -5.595682319e-06 | DH119: -5.988965994e-06 | DI119: -6.287800097e-06 | DJ119: -6.487471836e-06 | DK119: -6.58483227e-06 | DL119: -6.578345964e-06 | DM119: -6.468115214e-06 | DN119: -6.255878422e-06 | DO119: -5.944982691e-06 | DP119: -5.540331031e-06 | DQ119: -5.048305041e-06 | DR119: -4.476664265e-06 | DS119: -3.83442382e-06 | DT119: -3.13171222e-06 | DU119: -2.379611648e-06 | DV119: -1.589983178e-06 | DW119: =Re_H*COS(NH_*Rad_+NH_*Ofs_)+Im_H*SIN(NH_*Rad_+NH_*Ofs_) -> -7.752797239e-07 | DX119: 5.165035455e-08 | DY119: 8.77765876e-07 | DZ119: 1.690038505e-06 | EA119: 2.475658218e-06 | EB119: 3.222235321e-06 | EC119: 3.917995849e-06 | ED119: 4.551967241e-06 | EE119: 5.114151391e-06 | EF119: 5.595682319e-06 | EG119: 5.988965994e-06 | EH119: 6.287800097e-06 | EI119: 6.487471836e-06 | EJ119: 6.58483227e-06 | EK119: 6.578345964e-06 | EL119: 6.468115214e-06 | EM119: 6.255878422e-06 | EN119: 5.944982691e-06 | EO119: 5.540331031e-06 | EP119: 5.048305041e-06 | EQ119: 4.476664265e-06 | ER119: 3.83442382e-06 | ES119: 3.13171222e-06 | ET119: 2.379611648e-06 | EU119: 1.589983178e-06 | EV119: 7.752797239e-07 | EW119: -5.165035455e-08 | EX119: -8.77765876e-07 | EY119: -1.690038505e-06 | EZ119: -2.475658218e-06 | FA119: -3.222235321e-06 | FB119: -3.917995849e-06 | FC119: -4.551967241e-06 | FD119: -5.114151391e-06 | FE119: =Re_H*COS(NH_*Rad_+NH_*Ofs_)+Im_H*SIN(NH_*Rad_+NH_*Ofs_) -> -5.595682319e-06 | FF119: -5.988965994e-06 | FG119: -6.287800097e-06 | FH119: -6.487471836e-06 | FI119: -6.58483227e-06
B120: 50 | C120: =NH_*f_ -> 25000000 | D120: 0 | E120: 0.001034769535 | F120: -59.70312732 | G120: -1.246795327e-05 | H120: 6.725951714e-07 | I120: -98.07147637 | M120: 157079632.7 | N120: 0.1047152401 | O120: 0.01097639262 | P120: 0.1046746048 | Q120: 0.01095777289 | R120: 0.01564430129 | S120: 0.0002457441629 | T120: 150713435 | U120: 1e+30 | V120: -2106357945 | W120: 1e+30 | X120: 4.464214109 | Y120: -82.75351246 | Z120: 0.1047682806 | AA120: 0.1046793814 | AB120: 0.01567622923 | AC120: 1e+15 | AD120: 1e+15 | AE120: 0.01206653419 | AF120: 86.91211973 | AG120: 0.0006499951425 | AH120: 0.01204901463 | AM120: 50 | AN120: 3097.290667 | AO120: 19460.85121 | AP120: -0.03643044013 | AQ120: 0.001338288079 | AR120: -0.3644211664 | AS120: 0.1328037865 | AT120: -0.5138501918 | AU120: 0.2640430196 | AV120: -5.138519432e+10 | AW120: 1.000000003e+30 | AX120: -1.712840459e+13 | AY120: 1.000293382e+30 | AZ120: 2.502061414 | BA120: 31.91181491 | BB120: 0.03658261991 | BC120: 0.3644225384 | BD120: 0.5138511648 | BE120: 1.000000001e+15 | BF120: 1.00014668e+15 | BG120: 0.03124047917 | BK120: V(t) | BL120: 50 | BM120: =Re_H*COS(NH_*Rad_+NH_*Ofs_)+Im_H*SIN(NH_*Rad_+NH_*Ofs_) -> -1.246795327e-05 | BN120: -1.246795327e-05 | BO120: -1.246795327e-05 | BP120: -1.246795327e-05 | BQ120: -1.246795327e-05 | BR120: -1.246795327e-05 | BS120: -1.246795327e-05 | BT120: -1.246795327e-05 | BU120: -1.246795327e-05 | BV120: -1.246795327e-05 | BW120: -1.246795327e-05 | BX120: -1.246795327e-05 | BY120: -1.246795327e-05 | BZ120: -1.246795327e-05 | CA120: -1.246795327e-05 | CB120: -1.246795327e-05 | CC120: -1.246795327e-05 | CD120: -1.246795327e-05 | CE120: -1.246795327e-05 | CF120: -1.246795327e-05 | CG120: -1.246795327e-05 | CH120: -1.246795327e-05 | CI120: -1.246795327e-05 | CJ120: -1.246795327e-05 | CK120: -1.246795327e-05 | CL120: -1.246795327e-05 | CM120: -1.246795327e-05 | CN120: -1.246795327e-05 | CO120: -1.246795327e-05 | CP120: -1.246795327e-05 | CQ120: -1.246795327e-05 | CR120: -1.246795327e-05 | CS120: -1.246795327e-05 | CT120: -1.246795327e-05 | CU120: -1.246795327e-05 | CV120: -1.246795327e-05 | CW120: -1.246795327e-05 | CX120: -1.246795327e-05 | CY120: -1.246795327e-05 | CZ120: -1.246795327e-05 | DA120: -1.246795327e-05 | DB120: -1.246795327e-05 | DC120: -1.246795327e-05 | DD120: -1.246795327e-05 | DE120: -1.246795327e-05 | DF120: -1.246795327e-05 | DG120: -1.246795327e-05 | DH120: -1.246795327e-05 | DI120: -1.246795327e-05 | DJ120: -1.246795327e-05 | DK120: -1.246795327e-05 | DL120: -1.246795327e-05 | DM120: -1.246795327e-05 | DN120: -1.246795327e-05 | DO120: -1.246795327e-05 | DP120: -1.246795327e-05 | DQ120: -1.246795327e-05 | DR120: -1.246795327e-05 | DS120: -1.246795327e-05 | DT120: -1.246795327e-05 | DU120: -1.246795327e-05 | DV120: -1.246795327e-05 | DW120: -1.246795327e-05 | DX120: -1.246795327e-05 | DY120: -1.246795327e-05 | DZ120: -1.246795327e-05 | EA120: -1.246795327e-05 | EB120: -1.246795327e-05 | EC120: -1.246795327e-05 | ED120: -1.246795327e-05 | EE120: -1.246795327e-05 | EF120: -1.246795327e-05 | EG120: -1.246795327e-05 | EH120: -1.246795327e-05 | EI120: -1.246795327e-05 | EJ120: -1.246795327e-05 | EK120: -1.246795327e-05 | EL120: -1.246795327e-05 | EM120: -1.246795327e-05 | EN120: -1.246795327e-05 | EO120: -1.246795327e-05 | EP120: -1.246795327e-05 | EQ120: -1.246795327e-05 | ER120: -1.246795327e-05 | ES120: -1.246795327e-05 | ET120: -1.246795327e-05 | EU120: -1.246795327e-05 | EV120: -1.246795327e-05 | EW120: -1.246795327e-05 | EX120: -1.246795327e-05 | EY120: -1.246795327e-05 | EZ120: -1.246795327e-05 | FA120: -1.246795327e-05 | FB120: -1.246795327e-05 | FC120: -1.246795327e-05 | FD120: -1.246795327e-05 | FE120: -1.246795327e-05 | FF120: -1.246795327e-05 | FG120: -1.246795327e-05 | FH120: -1.246795327e-05 | FI120: -1.246795327e-05
B121: 51 | C121: 25500000 | D121: 0 | E121: 0.001406560083 | F121: -57.03683423 | G121: -1.728851287e-05 | H121: 9.142251147e-07 | I121: -95.23271982 | M121: 160221225.3 | N121: 0.1068097237 | O121: 0.01141942819 | P121: 0.1067698852 | Q121: 0.01140080838 | R121: 0.01595970883 | S121: 0.0002557123059 | T121: 153979855 | U121: 1e+30 | V121: -2064434650 | W121: 1e+30 | X121: 4.290258077 | Y121: -81.13120149 | Z121: 0.1068617246 | AA121: 0.1067745681 | AB121: 0.01599100703 | AC121: 1e+15 | AD121: 1000000000002131 | AE121: 0.01230851675 | AF121: 86.97299025 | AG121: 0.0006499723159 | AH121: 0.01229134331 | AM121: 51 | AN121: 3169.582089 | AO121: 19915.07161 | AP121: -0.03559894061 | AQ121: 0.001278395684 | AR121: -0.3561088965 | AS121: 0.1268145462 | AT121: -0.5021302727 | AU121: 0.2521358108 | AV121: -5.021320651e+10 | AW121: 1.000000003e+30 | AX121: -1.673774214e+13 | AY121: 1.000280152e+30 | AZ121: 2.6192864 | BA121: 32.64618928 | BB121: 0.03575465961 | BC121: 0.3561103006 | BD121: 0.5021312685 | BE121: 1.000000001e+15 | BF121: 1000140066196694 | BG121: 0.03053332867 | BK121: V(t) | BL121: 51 | BM121: -1.728851287e-05 | BN121: -1.703760499e-05 | BO121: -1.651800391e-05 | BP121: -1.573790403e-05 | BQ121: -1.470960801e-05 | BR121: -1.344933268e-05 | BS121: -1.197695334e-05 | BT121: -1.031569029e-05 | BU121: -8.491742648e-06 | BV121: -6.533875147e-06 | BW121: -4.472964532e-06 | BX121: -2.341512595e-06 | BY121: -1.731336049e-07 | BZ121: 1.997975805e-06 | CA121: 4.137575944e-06 | CB121: 6.211924038e-06 | CC121: 8.188306379e-06 | CD121: 1.003555424e-05 | CE121: 1.172453541e-05 | CF121: 1.322861366e-05 | CG121: 1.452406876e-05 | CH121: 1.559047063e-05 | CI121: 1.641100146e-05 | CJ121: 1.697272099e-05 | CK121: 1.726677057e-05 | CL121: 1.728851287e-05 | CM121: 1.703760499e-05 | CN121: 1.651800391e-05 | CO121: 1.573790403e-05 | CP121: 1.470960801e-05 | CQ121: 1.344933268e-05 | CR121: 1.197695334e-05 | CS121: 1.031569029e-05 | CT121: 8.491742648e-06 | CU121: 6.533875147e-06 | CV121: 4.472964532e-06 | CW121: 2.341512595e-06 | CX121: 1.731336049e-07 | CY121: -1.997975805e-06 | CZ121: -4.137575944e-06 | DA121: -6.211924038e-06 | DB121: -8.188306379e-06 | DC121: -1.003555424e-05 | DD121: -1.172453541e-05 | DE121: -1.322861366e-05 | DF121: -1.452406876e-05 | DG121: -1.559047063e-05 | DH121: -1.641100146e-05 | DI121: -1.697272099e-05 | DJ121: -1.726677057e-05 | DK121: -1.728851287e-05 | DL121: -1.703760499e-05 | DM121: -1.651800391e-05 | DN121: -1.573790403e-05 | DO121: -1.470960801e-05 | DP121: -1.344933268e-05 | DQ121: -1.197695334e-05 | DR121: -1.031569029e-05 | DS121: -8.491742648e-06 | DT121: -6.533875147e-06 | DU121: -4.472964532e-06 | DV121: -2.341512595e-06 | DW121: -1.731336049e-07 | DX121: 1.997975805e-06 | DY121: 4.137575944e-06 | DZ121: 6.211924038e-06 | EA121: 8.188306379e-06 | EB121: 1.003555424e-05 | EC121: 1.172453541e-05 | ED121: 1.322861366e-05 | EE121: 1.452406876e-05 | EF121: 1.559047063e-05 | EG121: 1.641100146e-05 | EH121: 1.697272099e-05 | EI121: 1.726677057e-05 | EJ121: 1.728851287e-05 | EK121: 1.703760499e-05 | EL121: 1.651800391e-05 | EM121: 1.573790403e-05 | EN121: 1.470960801e-05 | EO121: 1.344933268e-05 | EP121: 1.197695334e-05 | EQ121: 1.031569029e-05 | ER121: 8.491742648e-06 | ES121: 6.533875147e-06 | ET121: 4.472964532e-06 | EU121: 2.341512595e-06 | EV121: 1.731336049e-07 | EW121: -1.997975805e-06 | EX121: -4.137575944e-06 | EY121: -6.211924038e-06 | EZ121: -8.188306379e-06 | FA121: -1.003555424e-05 | FB121: -1.172453541e-05 | FC121: -1.322861366e-05 | FD121: -1.452406876e-05 | FE121: -1.559047063e-05 | FF121: -1.641100146e-05 | FG121: -1.697272099e-05 | FH121: -1.726677057e-05 | FI121: -1.728851287e-05
B122: 52 | C122: 26000000 | D122: 0 | E122: 0.001657057516 | F122: -55.61324834 | G122: -2.076897279e-05 | H122: 1.077005852e-06 | I122: -93.64003674 | M122: 163362818 | N122: 0.1089042039 | O122: 0.01187123675 | P122: 0.1088651315 | Q122: 0.01185261686 | R122: 0.01627506836 | S122: 0.0002658778501 | T122: 157241474 | U122: 1e+30 | V122: -2024111707 | W122: 1e+30 | X122: 4.126285936 | Y122: -79.57126712 | Z122: 0.1089552052 | AA122: 0.1088697243 | AB122: 0.01630576125 | AC122: 1e+15 | AD122: 1e+15 | AE122: 0.01255048706 | AF122: 87.03150143 | AG122: 0.0006499507964 | AH122: 0.01253364629 | AM122: 52 | AN122: 3243.560807 | AO122: 20379.89361 | AP122: -0.03478639185 | AQ122: 0.001221204169 | AR122: -0.3479861978 | AS122: 0.1210953939 | AT122: -0.490677658 | AU122: 0.2407655641 | AV122: -4.906794922e+10 | AW122: 1.000000002e+30 | AX122: -1.635598987e+13 | AY122: 1.000267518e+30 | AZ122: 2.741957681 | BA122: 33.39696308 | BB122: 0.03494573177 | BC122: 0.3479876347 | BD122: 0.490678677 | BE122: 1.000000001e+15 | BF122: 1.00013375e+15 | BG122: 0.02984243124 | BK122: V(t) | BL122: 52 | BM122: -2.076897279e-05 | BN122: -1.984863685e-05 | BO122: -1.768113807e-05 | BP122: -1.440266835e-05 | BQ122: -1.021922601e-05 | BR122: -5.393672114e-06 | BS122: -2.292139647e-07 | BT122: 4.949646541e-06 | BU122: 9.817502551e-06 | BV122: 1.406848877e-05 | BW122: 1.74355001e-05 | BX122: 1.970697483e-05 | BY122: 2.074018786e-05 | BZ122: 2.047021861e-05 | CA122: 1.891403024e-05 | CB122: 1.616940379e-05 | CC122: 1.240879423e-05 | CD122: 7.86849449e-06 | CE122: 2.833788306e-06 | CF122: -2.378975218e-06 | CG122: -7.442258981e-06 | CH122: -1.203791824e-05 | CI122: -1.587719083e-05 | CJ122: -1.871884112e-05 | CK122: -2.038431778e-05 | CL122: -2.076897279e-05 | CM122: -1.984863685e-05 | CN122: -1.768113807e-05 | CO122: -1.440266835e-05 | CP122: -1.021922601e-05 | CQ122: -5.393672114e-06 | CR122: -2.292139647e-07 | CS122: 4.949646541e-06 | CT122: 9.817502551e-06 | CU122: 1.406848877e-05 | CV122: 1.74355001e-05 | CW122: 1.970697483e-05 | CX122: 2.074018786e-05 | CY122: 2.047021861e-05 | CZ122: 1.891403024e-05 | DA122: 1.616940379e-05 | DB122: 1.240879423e-05 | DC122: 7.86849449e-06 | DD122: 2.833788306e-06 | DE122: -2.378975218e-06 | DF122: -7.442258981e-06 | DG122: -1.203791824e-05 | DH122: -1.587719083e-05 | DI122: -1.871884112e-05 | DJ122: -2.038431778e-05 | DK122: -2.076897279e-05 | DL122: -1.984863685e-05 | DM122: -1.768113807e-05 | DN122: -1.440266835e-05 | DO122: -1.021922601e-05 | DP122: -5.393672114e-06 | DQ122: -2.292139647e-07 | DR122: 4.949646541e-06 | DS122: 9.817502551e-06 | DT122: 1.406848877e-05 | DU122: 1.74355001e-05 | DV122: 1.970697483e-05 | DW122: 2.074018786e-05 | DX122: 2.047021861e-05 | DY122: 1.891403024e-05 | DZ122: 1.616940379e-05 | EA122: 1.240879423e-05 | EB122: 7.86849449e-06 | EC122: 2.833788306e-06 | ED122: -2.378975218e-06 | EE122: -7.442258981e-06 | EF122: -1.203791824e-05 | EG122: -1.587719083e-05 | EH122: -1.871884112e-05 | EI122: -2.038431778e-05 | EJ122: -2.076897279e-05 | EK122: -1.984863685e-05 | EL122: -1.768113807e-05 | EM122: -1.440266835e-05 | EN122: -1.021922601e-05 | EO122: -5.393672114e-06 | EP122: -2.292139647e-07 | EQ122: 4.949646541e-06 | ER122: 9.817502551e-06 | ES122: 1.406848877e-05 | ET122: 1.74355001e-05 | EU122: 1.970697483e-05 | EV122: 2.074018786e-05 | EW122: 2.047021861e-05 | EX122: 1.891403024e-05 | EY122: 1.616940379e-05 | EZ122: 1.240879423e-05 | FA122: 7.86849449e-06 | FB122: 2.833788306e-06 | FC122: -2.378975218e-06 | FD122: -7.442258981e-06 | FE122: -1.203791824e-05 | FF122: -1.587719083e-05 | FG122: -1.871884112e-05 | FH122: -2.038431778e-05 | FI122: -2.076897279e-05
B123: 53 | C123: 26500000 | D123: 0 | E123: 0.001779121784 | F123: -54.99588645 | G123: -2.272992653e-05 | H123: 1.156305485e-06 | I123: -92.85681473 | M123: 166504410.6 | N123: 0.110998681 | O123: 0.01233181829 | P123: 0.1109603458 | Q123: 0.01231319833 | R123: 0.01659038259 | S123: 0.0002762407946 | T123: 160498563.7 | U123: 1e+30 | V123: -1985298529 | W123: 1e+30 | X123: 3.971547274 | Y123: -78.07018029 | Z123: 0.1110487203 | AA123: 0.1109648518 | AB123: 0.01662049321 | AC123: 1e+15 | AD123: 1e+15 | AE123: 0.01279244582 | AF123: 87.08778813 | AG123: 0.0006499304859 | AH123: 0.01277592503 | AM123: 53 | AN123: 3319.266205 | AO123: 20855.56465 | AP123: -0.03399236129 | AQ123: 0.001166591737 | AR123: -0.3400487463 | AS123: 0.1156341499 | AT123: -0.4794862509 | AU123: 0.2299080648 | AV123: -4.794881279e+10 | AW123: 1.000000002e+30 | AX123: -1.598294455e+13 | AY123: 1.000255455e+30 | AZ123: 2.870323899 | BA123: 34.16446697 | BB123: 0.03415540568 | BC123: 0.3400502167 | BD123: 0.4794872937 | BE123: 1.000000001e+15 | BF123: 1000127719102128 | BG123: 0.02916741901 | BK123: V(t) | BL123: 53 | BM123: -2.272992653e-05 | BN123: -2.070808677e-05 | BO123: -1.577785777e-05 | BP123: -8.631675529e-06 | BQ123: -2.732001148e-07 | BR123: 8.123645444e-06 | BS123: 1.537954914e-05 | BT123: 2.047544087e-05 | BU123: 2.269561777e-05 | BV123: 2.172826261e-05 | BW123: 1.770923753e-05 | BX123: 1.120300267e-05 | BY123: 3.123339377e-06 | BZ123: -5.394987649e-06 | CA123: -1.315560469e-05 | CB123: -1.906855615e-05 | CC123: -2.230338557e-05 | CD123: -2.240577076e-05 | CE123: -1.936133204e-05 | CF123: -1.359765176e-05 | CG123: -5.924221711e-06 | CH123: 2.581247676e-06 | CI123: 1.07241885e-05 | CJ123: 1.736094891e-05 | CK123: 2.155941565e-05 | CL123: 2.272992653e-05 | CM123: 2.070808677e-05 | CN123: 1.577785777e-05 | CO123: 8.631675529e-06 | CP123: 2.732001147e-07 | CQ123: -8.123645444e-06 | CR123: -1.537954914e-05 | CS123: -2.047544087e-05 | CT123: -2.269561777e-05 | CU123: -2.172826261e-05 | CV123: -1.770923753e-05 | CW123: -1.120300267e-05 | CX123: -3.123339377e-06 | CY123: 5.394987649e-06 | CZ123: 1.315560469e-05 | DA123: 1.906855615e-05 | DB123: 2.230338557e-05 | DC123: 2.240577076e-05 | DD123: 1.936133204e-05 | DE123: 1.359765176e-05 | DF123: 5.924221711e-06 | DG123: -2.581247676e-06 | DH123: -1.07241885e-05 | DI123: -1.736094891e-05 | DJ123: -2.155941565e-05 | DK123: -2.272992653e-05 | DL123: -2.070808677e-05 | DM123: -1.577785777e-05 | DN123: -8.631675529e-06 | DO123: -2.732001148e-07 | DP123: 8.123645444e-06 | DQ123: 1.537954914e-05 | DR123: 2.047544087e-05 | DS123: 2.269561777e-05 | DT123: 2.172826261e-05 | DU123: 1.770923753e-05 | DV123: 1.120300267e-05 | DW123: 3.123339377e-06 | DX123: -5.394987649e-06 | DY123: -1.315560469e-05 | DZ123: -1.906855615e-05 | EA123: -2.230338557e-05 | EB123: -2.240577076e-05 | EC123: -1.936133204e-05 | ED123: -1.359765176e-05 | EE123: -5.924221711e-06 | EF123: 2.581247676e-06 | EG123: 1.07241885e-05 | EH123: 1.736094891e-05 | EI123: 2.155941565e-05 | EJ123: 2.272992653e-05 | EK123: 2.070808677e-05 | EL123: 1.577785777e-05 | EM123: 8.631675529e-06 | EN123: 2.732001148e-07 | EO123: -8.123645444e-06 | EP123: -1.537954914e-05 | EQ123: -2.047544087e-05 | ER123: -2.269561777e-05 | ES123: -2.172826261e-05 | ET123: -1.770923753e-05 | EU123: -1.120300267e-05 | EV123: -3.123339377e-06 | EW123: 5.394987649e-06 | EX123: 1.315560469e-05 | EY123: 1.906855615e-05 | EZ123: 2.230338557e-05 | FA123: 2.240577076e-05 | FB123: 1.936133204e-05 | FC123: 1.359765176e-05 | FD123: 5.924221711e-06 | FE123: -2.581247676e-06 | FF123: -1.07241885e-05 | FG123: -1.736094891e-05 | FH123: -2.155941565e-05 | FI123: -2.272992653e-05
B124: 54 | C124: 27000000 | D124: 0 | E124: 0.001774296185 | F124: -55.01947763 | G124: -2.309810864e-05 | H124: 1.153135132e-06 | I124: -92.71766097 | M124: 169646003.3 | N124: 0.1130931549 | O124: 0.01280117281 | P124: 0.1130555297 | Q124: 0.01278255279 | R124: 0.01690565405 | S124: 0.000286801139 | T124: 163751375.8 | U124: 1e+30 | V124: -1947911240 | W124: 1e+30 | X124: 3.825360944 | Y124: -76.62467322 | Z124: 0.113142268 | AA124: 0.1130599522 | AB124: 0.01693520413 | AC124: 1e+15 | AD124: 1e+15 | AE124: 0.01303439365 | AF124: 87.14197514 | AG124: 0.0006499112955 | AH124: 0.01301818086 | AM124: 54 | AN124: 3396.738582 | AO124: 21342.33795 | AP124: -0.03321642625 | AQ124: 0.001114442084 | AR124: -0.3322923165 | AS124: 0.1104191836 | AT124: -0.4685500938 | AU124: 0.2195401904 | AV124: -4.685520147e+10 | AW124: 1.000000002e+30 | AX124: -1.56184076e+13 | AY124: 1.000243935e+30 | AZ124: 3.004644627 | BA124: 34.9490357 | BB124: 0.03338326053 | BC124: 0.3322938212 | BD124: 0.468551161 | BE124: 1000000001097705 | BF124: 1.00012196e+15 | BG124: 0.02850793258 | BK124: V(t) | BL124: 54 | BM124: -2.309810864e-05 | BN124: -1.968549981e-05 | BO124: -1.140296133e-05 | BP124: -2.994825584e-07 | BQ124: 1.08780842e-05 | BR124: 1.936455825e-05 | BS124: 2.306049931e-05 | BT124: 2.105158093e-05 | BU124: 1.383478268e-05 | BV124: 3.195444023e-06 | BW124: -8.23440479e-06 | BX124: -1.762717187e-05 | BY124: -2.265921213e-05 | BZ124: -2.208566604e-05 | CA124: -1.604842124e-05 | CB124: -6.041011427e-06 | CC124: 5.460863901e-06 | CD124: 1.561179446e-05 | CE124: 2.190057564e-05 | CF124: 2.2771447e-05 | CG124: 1.800896661e-05 | CH124: 8.791308472e-06 | CI124: -2.601201925e-06 | CJ124: -1.335020972e-05 | CK124: -2.079655399e-05 | CL124: -2.309810864e-05 | CM124: -1.968549981e-05 | CN124: -1.140296133e-05 | CO124: -2.994825584e-07 | CP124: 1.08780842e-05 | CQ124: 1.936455825e-05 | CR124: 2.306049931e-05 | CS124: 2.105158093e-05 | CT124: 1.383478268e-05 | CU124: 3.195444023e-06 | CV124: -8.23440479e-06 | CW124: -1.762717187e-05 | CX124: -2.265921213e-05 | CY124: -2.208566604e-05 | CZ124: -1.604842124e-05 | DA124: -6.041011427e-06 | DB124: 5.460863901e-06 | DC124: 1.561179446e-05 | DD124: 2.190057564e-05 | DE124: 2.2771447e-05 | DF124: 1.800896661e-05 | DG124: 8.791308472e-06 | DH124: -2.601201925e-06 | DI124: -1.335020972e-05 | DJ124: -2.079655399e-05 | DK124: -2.309810864e-05 | DL124: -1.968549981e-05 | DM124: -1.140296133e-05 | DN124: -2.994825584e-07 | DO124: 1.08780842e-05 | DP124: 1.936455825e-05 | DQ124: 2.306049931e-05 | DR124: 2.105158093e-05 | DS124: 1.383478268e-05 | DT124: 3.195444023e-06 | DU124: -8.23440479e-06 | DV124: -1.762717187e-05 | DW124: -2.265921213e-05 | DX124: -2.208566604e-05 | DY124: -1.604842124e-05 | DZ124: -6.041011427e-06 | EA124: 5.460863901e-06 | EB124: 1.561179446e-05 | EC124: 2.190057564e-05 | ED124: 2.2771447e-05 | EE124: 1.800896661e-05 | EF124: 8.791308472e-06 | EG124: -2.601201925e-06 | EH124: -1.335020972e-05 | EI124: -2.079655399e-05 | EJ124: -2.309810864e-05 | EK124: -1.968549981e-05 | EL124: -1.140296133e-05 | EM124: -2.994825584e-07 | EN124: 1.08780842e-05 | EO124: 1.936455825e-05 | EP124: 2.306049931e-05 | EQ124: 2.105158093e-05 | ER124: 1.383478268e-05 | ES124: 3.195444023e-06 | ET124: -8.23440479e-06 | EU124: -1.762717187e-05 | EV124: -2.265921213e-05 | EW124: -2.208566604e-05 | EX124: -1.604842124e-05 | EY124: -6.041011427e-06 | EZ124: 5.460863901e-06 | FA124: 1.561179446e-05 | FB124: 2.190057564e-05 | FC124: 2.2771447e-05 | FD124: 1.800896661e-05 | FE124: 8.791308472e-06 | FF124: -2.601201925e-06 | FG124: -1.335020972e-05 | FH124: -2.079655399e-05 | FI124: -2.309810864e-05
B125: 55 | C125: 27500000 | D125: 0 | E125: 0.001652083666 | F125: -55.63935925 | G125: -2.190731512e-05 | H125: 1.073677849e-06 | I125: -93.17779773 | M125: 172787595.9 | N125: 0.1151876261 | O125: 0.01327930031 | P125: 0.1151506849 | Q125: 0.01326068023 | R125: 0.01722088507 | S125: 0.0002975588826 | T125: 167000143.5 | U125: 1e+30 | V125: -1911872066 | W125: 1e+30 | X125: 3.687107531 | Y125: -75.2317156 | Z125: 0.1152358465 | AA125: 0.1151550269 | AB125: 0.01724989515 | AC125: 1000000000000014 | AD125: 1e+15 | AE125: 0.01327633114 | AF125: 87.19417804 | AG125: 0.0006498931444 | AH125: 0.01326041505 | AM125: 55 | AN125: 3476.019182 | AO125: 21840.47265 | AP125: -0.03245817366 | AQ125: 0.001064644148 | AR125: -0.3247127794 | AS125: 0.1054393891 | AT125: -0.457863365 | AU125: 0.209639861 | AV125: -4.578653306e+10 | AW125: 1.000000002e+30 | AX125: -1.526218496e+13 | AY125: 1.000232934e+30 | AZ125: 3.14519081 | BA125: 35.75100798 | BB125: 0.03262888518 | BC125: 0.3247143192 | BD125: 0.457864457 | BE125: 1.000000001e+15 | BF125: 1000116460363441 | BG125: 0.02786362078 | BK125: V(t) | BL125: 55 | BM125: -2.190731512e-05 | BN125: -1.709229823e-05 | BO125: -5.748604359e-06 | BP125: 7.790860988e-06 | BQ125: 1.835448224e-05 | BR125: 2.190731512e-05 | BS125: 1.709229823e-05 | BT125: 5.748604359e-06 | BU125: -7.790860988e-06 | BV125: -1.835448224e-05 | BW125: -2.190731512e-05 | BX125: -1.709229823e-05 | BY125: -5.748604359e-06 | BZ125: 7.790860988e-06 | CA125: 1.835448224e-05 | CB125: 2.190731512e-05 | CC125: 1.709229823e-05 | CD125: 5.748604359e-06 | CE125: -7.790860988e-06 | CF125: -1.835448224e-05 | CG125: -2.190731512e-05 | CH125: -1.709229823e-05 | CI125: -5.748604359e-06 | CJ125: 7.790860988e-06 | CK125: 1.835448224e-05 | CL125: 2.190731512e-05 | CM125: 1.709229823e-05 | CN125: 5.748604359e-06 | CO125: -7.790860988e-06 | CP125: -1.835448224e-05 | CQ125: -2.190731512e-05 | CR125: -1.709229823e-05 | CS125: -5.748604359e-06 | CT125: 7.790860988e-06 | CU125: 1.835448224e-05 | CV125: 2.190731512e-05 | CW125: 1.709229823e-05 | CX125: 5.748604359e-06 | CY125: -7.790860988e-06 | CZ125: -1.835448224e-05 | DA125: -2.190731512e-05 | DB125: -1.709229823e-05 | DC125: -5.748604359e-06 | DD125: 7.790860988e-06 | DE125: 1.835448224e-05 | DF125: 2.190731512e-05 | DG125: 1.709229823e-05 | DH125: 5.748604359e-06 | DI125: -7.790860988e-06 | DJ125: -1.835448224e-05 | DK125: -2.190731512e-05 | DL125: -1.709229823e-05 | DM125: -5.748604359e-06 | DN125: 7.790860988e-06 | DO125: 1.835448224e-05 | DP125: 2.190731512e-05 | DQ125: 1.709229823e-05 | DR125: 5.748604359e-06 | DS125: -7.790860988e-06 | DT125: -1.835448224e-05 | DU125: -2.190731512e-05 | DV125: -1.709229823e-05 | DW125: -5.748604359e-06 | DX125: 7.790860988e-06 | DY125: 1.835448224e-05 | DZ125: 2.190731512e-05 | EA125: 1.709229823e-05 | EB125: 5.748604359e-06 | EC125: -7.790860988e-06 | ED125: -1.835448224e-05 | EE125: -2.190731512e-05 | EF125: -1.709229823e-05 | EG125: -5.748604359e-06 | EH125: 7.790860988e-06 | EI125: 1.835448224e-05 | EJ125: 2.190731512e-05 | EK125: 1.709229823e-05 | EL125: 5.748604359e-06 | EM125: -7.790860988e-06 | EN125: -1.835448224e-05 | EO125: -2.190731512e-05 | EP125: -1.709229823e-05 | EQ125: -5.748604359e-06 | ER125: 7.790860988e-06 | ES125: 1.835448224e-05 | ET125: 2.190731512e-05 | EU125: 1.709229823e-05 | EV125: 5.748604359e-06 | EW125: -7.790860988e-06 | EX125: -1.835448224e-05 | EY125: -2.190731512e-05 | EZ125: -1.709229823e-05 | FA125: -5.748604359e-06 | FB125: 7.790860988e-06 | FC125: 1.835448224e-05 | FD125: 2.190731512e-05 | FE125: 1.709229823e-05 | FF125: 5.748604359e-06 | FG125: -7.790860988e-06 | FH125: -1.835448224e-05 | FI125: -2.190731512e-05
B126: 56 | C126: 28000000 | D126: 0 | E126: 0.001428789388 | F126: -56.90063568 | G126: -1.929241268e-05 | H126: 9.285358736e-07 | I126: -94.28222052 | M126: 175929188.6 | N126: 0.1172820945 | O126: 0.01376620079 | P126: 0.1172458129 | Q126: 0.01374758065 | R126: 0.01753607781 | S126: 0.0003085140249 | T126: 170245083.5 | U126: 1e+30 | V126: -1877108785 | W126: 1e+30 | X126: 3.556222745 | Y126: -73.88849344 | Z126: 0.1173294541 | AA126: 0.1172500774 | AB126: 0.01756456731 | AC126: 1e+15 | AD126: 1e+15 | AE126: 0.01351825884 | AF126: 87.24450409 | AG126: 0.0006498759587 | AH126: 0.01350262876 | AM126: 56 | AN126: 3557.150207 | AO126: 22350.23391 | AP126: -0.03171719987 | AQ126: 0.001017091879 | AR126: -0.3173061001 | AS126: 0.1006841612 | AT126: -0.4474203753 | AU126: 0.2001859923 | AV126: -4.474223868e+10 | AW126: 1.000000002e+30 | AX126: -1.491408701e+13 | AY126: 1.00022243e+30 | AZ126: 3.292245218 | BA126: 36.57072631 | BB126: 0.03189187794 | BC126: 0.3173076758 | BD126: 0.4474214928 | BE126: 1000000001000934 | BF126: 1.000111209e+15 | BG126: 0.02723414052 | BK126: V(t) | BL126: 56 | BM126: -1.929241268e-05 | BN126: -1.342793705e-05 | BO126: -2.846769953e-07 | BP126: 1.301289585e-05 | BQ126: 1.925666265e-05 | BR126: 1.506211003e-05 | BS126: 2.7029487e-06 | BT126: -1.112138042e-05 | BU126: -1.891722355e-05 | BV126: -1.645874454e-05 | BW126: -5.078593289e-06 | BX126: 9.054474183e-06 | BY126: 1.827944852e-05 | BZ126: 1.759581482e-05 | CA126: 7.374145428e-06 | CB126: -6.844773475e-06 | CC126: -1.735339568e-05 | CD126: -1.845538858e-05 | CE126: -9.553402888e-06 | CF126: 4.527126601e-06 | CG126: 1.615366942e-05 | CH126: 1.902390985e-05 | CI126: 1.158199748e-05 | CJ126: -2.138084236e-06 | CK126: -1.469919014e-05 | CL126: -1.929241268e-05 | CM126: -1.342793705e-05 | CN126: -2.846769953e-07 | CO126: 1.301289585e-05 | CP126: 1.925666265e-05 | CQ126: 1.506211003e-05 | CR126: 2.7029487e-06 | CS126: -1.112138042e-05 | CT126: -1.891722355e-05 | CU126: -1.645874454e-05 | CV126: -5.078593289e-06 | CW126: 9.054474183e-06 | CX126: 1.827944852e-05 | CY126: 1.759581482e-05 | CZ126: 7.374145428e-06 | DA126: -6.844773475e-06 | DB126: -1.735339568e-05 | DC126: -1.845538858e-05 | DD126: -9.553402888e-06 | DE126: 4.527126601e-06 | DF126: 1.615366942e-05 | DG126: 1.902390985e-05 | DH126: 1.158199748e-05 | DI126: -2.138084236e-06 | DJ126: -1.469919014e-05 | DK126: -1.929241268e-05 | DL126: -1.342793705e-05 | DM126: -2.846769953e-07 | DN126: 1.301289585e-05 | DO126: 1.925666265e-05 | DP126: 1.506211003e-05 | DQ126: 2.7029487e-06 | DR126: -1.112138042e-05 | DS126: -1.891722355e-05 | DT126: -1.645874454e-05 | DU126: -5.078593289e-06 | DV126: 9.054474183e-06 | DW126: 1.827944852e-05 | DX126: 1.759581482e-05 | DY126: 7.374145428e-06 | DZ126: -6.844773475e-06 | EA126: -1.735339568e-05 | EB126: -1.845538858e-05 | EC126: -9.553402888e-06 | ED126: 4.527126601e-06 | EE126: 1.615366942e-05 | EF126: 1.902390985e-05 | EG126: 1.158199748e-05 | EH126: -2.138084236e-06 | EI126: -1.469919014e-05 | EJ126: -1.929241268e-05 | EK126: -1.342793705e-05 | EL126: -2.846769953e-07 | EM126: 1.301289585e-05 | EN126: 1.925666265e-05 | EO126: 1.506211003e-05 | EP126: 2.7029487e-06 | EQ126: -1.112138042e-05 | ER126: -1.891722355e-05 | ES126: -1.645874454e-05 | ET126: -5.078593289e-06 | EU126: 9.054474183e-06 | EV126: 1.827944852e-05 | EW126: 1.759581482e-05 | EX126: 7.374145428e-06 | EY126: -6.844773475e-06 | EZ126: -1.735339568e-05 | FA126: -1.845538858e-05 | FB126: -9.553402888e-06 | FC126: 4.527126601e-06 | FD126: 1.615366942e-05 | FE126: 1.902390985e-05 | FF126: 1.158199748e-05 | FG126: -2.138084236e-06 | FH126: -1.469919014e-05 | FI126: -1.929241268e-05
B127: 57 | C127: 28500000 | D127: 0 | E127: 0.001126027324 | F127: -58.96902142 | G127: -1.547704632e-05 | H127: 7.317597466e-07 | I127: -96.19654084 | M127: 179070781.3 | N127: 0.1193765603 | O127: 0.01426187426 | P127: 0.1193409153 | Q127: 0.01424325406 | R127: 0.01785123429 | S127: 0.0003196665655 | T127: 173486397.3 | U127: 1e+30 | V127: -1843554245 | W127: 1e+30 | X127: 3.432191639 | Y127: -72.59239011 | Z127: 0.1194230893 | AA127: 0.1193451049 | AB127: 0.01787922161 | AC127: 1e+15 | AD127: 1e+15 | AE127: 0.01376017727 | AF127: 87.29305291 | AG127: 0.0006498596712 | AH127: 0.01374482305 | AM127: 57 | AN127: 3640.174847 | AO127: 22871.89312 | AP127: -0.03099311043 | AQ127: 0.0009716840053 | AR127: -0.3100683357 | AS127: 0.09614337279 | AT127: -0.4372155657 | AU127: 0.1911584509 | AV127: -4.372176242e+10 | AW127: 1.000000002e+30 | AX127: -1.457392843e+13 | AY127: 1.000212399e+30 | AZ127: 3.446102913 | BA127: 37.40853677 | BB127: 0.03117184636 | BC127: 0.3100699482 | BD127: 0.4372167093 | BE127: 1.000000001e+15 | BF127: 1000106194056311 | BG127: 0.02661915662 | BK127: V(t) | BL127: 57 | BM127: -1.547704632e-05 | BN127: -9.301610042e-06 | BO127: 3.618907556e-06 | BP127: 1.391516703e-05 | BQ127: 1.412081501e-05 | BR127: 4.086725461e-06 | BS127: -8.910861316e-06 | BT127: -1.544671901e-05 | BU127: -1.07813572e-05 | BV127: 1.702127565e-06 | BW127: 1.295131109e-05 | BX127: 1.48088252e-05 | BY127: 5.927689805e-06 | BZ127: -7.251921834e-06 | CA127: -1.51727877e-05 | CB127: -1.209107591e-05 | CC127: -2.414959935e-07 | CD127: 1.178320523e-05 | CE127: 1.526329138e-05 | CF127: 7.675170939e-06 | CG127: -5.478615212e-06 | CH127: -1.465957247e-05 | CI127: -1.321011113e-05 | CJ127: -2.181311016e-06 | CK127: 1.042927119e-05 | CL127: 1.547704632e-05 | CM127: 9.301610042e-06 | CN127: -3.618907556e-06 | CO127: -1.391516703e-05 | CP127: -1.412081501e-05 | CQ127: -4.086725461e-06 | CR127: 8.910861316e-06 | CS127: 1.544671901e-05 | CT127: 1.07813572e-05 | CU127: -1.702127565e-06 | CV127: -1.295131109e-05 | CW127: -1.48088252e-05 | CX127: -5.927689805e-06 | CY127: 7.251921834e-06 | CZ127: 1.51727877e-05 | DA127: 1.209107591e-05 | DB127: 2.414959935e-07 | DC127: -1.178320523e-05 | DD127: -1.526329138e-05 | DE127: -7.675170939e-06 | DF127: 5.478615212e-06 | DG127: 1.465957247e-05 | DH127: 1.321011113e-05 | DI127: 2.181311016e-06 | DJ127: -1.042927119e-05 | DK127: -1.547704632e-05 | DL127: -9.301610042e-06 | DM127: 3.618907556e-06 | DN127: 1.391516703e-05 | DO127: 1.412081501e-05 | DP127: 4.086725461e-06 | DQ127: -8.910861316e-06 | DR127: -1.544671901e-05 | DS127: -1.07813572e-05 | DT127: 1.702127565e-06 | DU127: 1.295131109e-05 | DV127: 1.48088252e-05 | DW127: 5.927689805e-06 | DX127: -7.251921834e-06 | DY127: -1.51727877e-05 | DZ127: -1.209107591e-05 | EA127: -2.414959935e-07 | EB127: 1.178320523e-05 | EC127: 1.526329138e-05 | ED127: 7.675170939e-06 | EE127: -5.478615212e-06 | EF127: -1.465957247e-05 | EG127: -1.321011113e-05 | EH127: -2.181311016e-06 | EI127: 1.042927119e-05 | EJ127: 1.547704632e-05 | EK127: 9.301610042e-06 | EL127: -3.618907556e-06 | EM127: -1.391516703e-05 | EN127: -1.412081501e-05 | EO127: -4.086725461e-06 | EP127: 8.910861316e-06 | EQ127: 1.544671901e-05 | ER127: 1.07813572e-05 | ES127: -1.702127565e-06 | ET127: -1.295131109e-05 | EU127: -1.48088252e-05 | EV127: -5.927689805e-06 | EW127: 7.251921834e-06 | EX127: 1.51727877e-05 | EY127: 1.209107591e-05 | EZ127: 2.414959935e-07 | FA127: -1.178320523e-05 | FB127: -1.526329138e-05 | FC127: -7.675170939e-06 | FD127: 5.478615212e-06 | FE127: 1.465957247e-05 | FF127: 1.321011113e-05 | FG127: 2.181311016e-06 | FH127: -1.042927119e-05 | FI127: -1.547704632e-05
B128: 58 | C128: 29000000 | D128: 0 | E128: 0.0007690023299 | F128: -62.28144689 | G128: -1.075603478e-05 | H128: 4.997317195e-07 | I128: -99.35759153 | M128: 182212373.9 | N128: 0.1214710237 | O128: 0.0147663207 | P128: 0.1214359932 | Q128: 0.01474770045 | R128: 0.01816635638 | S128: 0.000331016504 | T128: 176724272.4 | U128: 1e+30 | V128: -1811145925 | W128: 1e+30 | X128: 3.314543511 | Y128: -71.34096934 | Z128: 0.1215167507 | AA128: 0.1214401106 | AB128: 0.01819385896 | AC128: 1e+15 | AD128: 1e+15 | AE128: 0.01400208688 | AF128: 87.3399172 | AG128: 0.0006498442203 | AH128: 0.01398699895 | AM128: 58 | AN128: 3725.137301 | AO128: 23405.72796 | AP128: -0.03028551988 | AQ128: 0.0009283238258 | AR128: -0.3029956332 | AS128: 0.09180735375 | AT128: -0.4272435036 | AU128: 0.1825380114 | AV128: -4.272456102e+10 | AW128: 1.000000002e+30 | AX128: -1.424152814e+13 | AY128: 1.000202821e+30 | AZ128: 3.607071732 | BA128: 38.26478883 | BB128: 0.03046840701 | BC128: 0.3029972834 | BD128: 0.4272446739 | BE128: 1.000000001e+15 | BF128: 1.000101405e+15 | BG128: 0.02601834158 | BK128: V(t) | BL128: 58 | BM128: -1.075603478e-05 | BN128: -5.341434196e-06 | BO128: 5.031867647e-06 | BP128: 1.073385322e-05 | BQ128: 6.471104695e-06 | BR128: -3.799070647e-06 | BS128: -1.054239239e-05 | BT128: -7.498722007e-06 | BU128: 2.506360033e-06 | BV128: 1.018467173e-05 | BW128: 8.408079993e-06 | BX128: -1.174122625e-06 | BY128: -9.666332719e-06 | BZ128: -9.184837535e-06 | CA128: -1.766313987e-07 | CB128: 8.995549863e-06 | CC128: 9.816744703e-06 | CD128: 1.52459984e-06 | CE128: -8.182901811e-06 | CF128: -1.029383594e-05 | CG128: -2.84852443e-06 | CH128: 7.24120451e-06 | CI128: 1.060858724e-05 | CJ128: 4.127526089e-06 | CK128: -6.185309088e-06 | CL128: -1.075603478e-05 | CM128: -5.341434196e-06 | CN128: 5.031867647e-06 | CO128: 1.073385322e-05 | CP128: 6.471104695e-06 | CQ128: -3.799070647e-06 | CR128: -1.054239239e-05 | CS128: -7.498722007e-06 | CT128: 2.506360033e-06 | CU128: 1.018467173e-05 | CV128: 8.408079993e-06 | CW128: -1.174122625e-06 | CX128: -9.666332719e-06 | CY128: -9.184837535e-06 | CZ128: -1.766313987e-07 | DA128: 8.995549863e-06 | DB128: 9.816744703e-06 | DC128: 1.52459984e-06 | DD128: -8.182901811e-06 | DE128: -1.029383594e-05 | DF128: -2.84852443e-06 | DG128: 7.24120451e-06 | DH128: 1.060858724e-05 | DI128: 4.127526089e-06 | DJ128: -6.185309088e-06 | DK128: -1.075603478e-05 | DL128: -5.341434196e-06 | DM128: 5.031867647e-06 | DN128: 1.073385322e-05 | DO128: 6.471104695e-06 | DP128: -3.799070647e-06 | DQ128: -1.054239239e-05 | DR128: -7.498722007e-06 | DS128: 2.506360033e-06 | DT128: 1.018467173e-05 | DU128: 8.408079993e-06 | DV128: -1.174122625e-06 | DW128: -9.666332719e-06 | DX128: -9.184837535e-06 | DY128: -1.766313987e-07 | DZ128: 8.995549863e-06 | EA128: 9.816744703e-06 | EB128: 1.52459984e-06 | EC128: -8.182901811e-06 | ED128: -1.029383594e-05 | EE128: -2.84852443e-06 | EF128: 7.24120451e-06 | EG128: 1.060858724e-05 | EH128: 4.127526089e-06 | EI128: -6.185309088e-06 | EJ128: -1.075603478e-05 | EK128: -5.341434196e-06 | EL128: 5.031867647e-06 | EM128: 1.073385322e-05 | EN128: 6.471104695e-06 | EO128: -3.799070647e-06 | EP128: -1.054239239e-05 | EQ128: -7.498722007e-06 | ER128: 2.506360033e-06 | ES128: 1.018467173e-05 | ET128: 8.408079993e-06 | EU128: -1.174122625e-06 | EV128: -9.666332719e-06 | EW128: -9.184837535e-06 | EX128: -1.766313987e-07 | EY128: 8.995549863e-06 | EZ128: 9.816744703e-06 | FA128: 1.52459984e-06 | FB128: -8.182901811e-06 | FC128: -1.029383594e-05 | FD128: -2.84852443e-06 | FE128: 7.24120451e-06 | FF128: 1.060858724e-05 | FG128: 4.127526089e-06 | FH128: -6.185309088e-06 | FI128: -1.075603478e-05
B129: 59 | C129: 29500000 | D129: 0 | E129: 0.0003846855257 | F129: -68.29788309 | G129: -5.473750885e-06 | H129: 2.499800219e-07 | I129: -105.225251 | M129: 185353966.6 | N129: 0.1235654847 | O129: 0.01527954013 | P129: 0.123531048 | Q129: 0.01526091983 | R129: 0.01848144583 | S129: 0.0003425638399 | T129: 179958883.7 | U129: 1e+30 | V129: -1779825542 | W129: 1e+30 | X129: 3.202847418 | Y129: -70.13195995 | Z129: 0.123610437 | AA129: 0.1235350955 | AB129: 0.01850848022 | AC129: 1e+15 | AD129: 1e+15 | AE129: 0.01424398814 | AF129: 87.3851833 | AG129: 0.0006498295497 | AH129: 0.01422915737 | AM129: 59 | AN129: 3812.082796 | AO129: 23952.02261 | AP129: -0.02959405155 | AQ129: 0.0008869189982 | AR129: -0.2960842276 | AS129: 0.08766686985 | AT129: -0.4174988806 | AU129: 0.1743063153 | AV129: -4.175010363e+10 | AW129: 1.000000002e+30 | AX129: -1.391670919e+13 | AY129: 1.000193675e+30 | AZ129: 3.775472779 | BA129: 39.13983513 | BB129: 0.02978118531 | BC129: 0.2960859163 | BD129: 0.4175000783 | BE129: 1.000000001e+15 | BF129: 1000096832709090 | BG129: 0.02543137545 | BK129: V(t) | BL129: 59 | BM129: -5.473750885e-06 | BN129: -2.104421087e-06 | BO129: 3.681713045e-06 | BP129: 5.239615432e-06 | BQ129: 7.80126448e-07 | BR129: -4.575292059e-06 | BS129: -4.676255671e-06 | BT129: 5.931864053e-07 | BU129: 5.181388646e-06 | BV129: 3.819069569e-06 | BW129: -1.929227175e-06 | BX129: -5.461919528e-06 | BY129: -2.72191728e-06 | BZ129: 3.144047506e-06 | CA129: 5.399257919e-06 | CB129: 1.453736918e-06 | CC129: -4.16131577e-06 | CD129: -4.997341078e-06 | CE129: -9.421291836e-08 | CF129: 4.917113259e-06 | CG129: 4.281422918e-06 | CH129: -1.271230825e-06 | CI129: -5.363950438e-06 | CJ129: -3.29648721e-06 | CK129: 2.55679846e-06 | CL129: 5.473750885e-06 | CM129: 2.104421087e-06 | CN129: -3.681713045e-06 | CO129: -5.239615432e-06 | CP129: -7.80126448e-07 | CQ129: 4.575292059e-06 | CR129: 4.676255671e-06 | CS129: -5.931864053e-07 | CT129: -5.181388646e-06 | CU129: -3.819069569e-06 | CV129: 1.929227175e-06 | CW129: 5.461919528e-06 | CX129: 2.72191728e-06 | CY129: -3.144047506e-06 | CZ129: -5.399257919e-06 | DA129: -1.453736918e-06 | DB129: 4.16131577e-06 | DC129: 4.997341078e-06 | DD129: 9.421291836e-08 | DE129: -4.917113259e-06 | DF129: -4.281422918e-06 | DG129: 1.271230825e-06 | DH129: 5.363950438e-06 | DI129: 3.29648721e-06 | DJ129: -2.55679846e-06 | DK129: -5.473750885e-06 | DL129: -2.104421087e-06 | DM129: 3.681713045e-06 | DN129: 5.239615432e-06 | DO129: 7.80126448e-07 | DP129: -4.575292059e-06 | DQ129: -4.676255671e-06 | DR129: 5.931864053e-07 | DS129: 5.181388646e-06 | DT129: 3.819069569e-06 | DU129: -1.929227175e-06 | DV129: -5.461919528e-06 | DW129: -2.72191728e-06 | DX129: 3.144047506e-06 | DY129: 5.399257919e-06 | DZ129: 1.453736918e-06 | EA129: -4.16131577e-06 | EB129: -4.997341078e-06 | EC129: -9.421291836e-08 | ED129: 4.917113259e-06 | EE129: 4.281422918e-06 | EF129: -1.271230825e-06 | EG129: -5.363950438e-06 | EH129: -3.29648721e-06 | EI129: 2.55679846e-06 | EJ129: 5.473750885e-06 | EK129: 2.104421087e-06 | EL129: -3.681713045e-06 | EM129: -5.239615432e-06 | EN129: -7.80126448e-07 | EO129: 4.575292059e-06 | EP129: 4.676255671e-06 | EQ129: -5.931864053e-07 | ER129: -5.181388646e-06 | ES129: -3.819069569e-06 | ET129: 1.929227175e-06 | EU129: 5.461919528e-06 | EV129: 2.72191728e-06 | EW129: -3.144047506e-06 | EX129: -5.399257919e-06 | EY129: -1.453736918e-06 | EZ129: 4.16131577e-06 | FA129: 4.997341078e-06 | FB129: 9.421291836e-08 | FC129: -4.917113259e-06 | FD129: -4.281422918e-06 | FE129: 1.271230825e-06 | FF129: 5.363950438e-06 | FG129: 3.29648721e-06 | FH129: -2.55679846e-06 | FI129: -5.473750885e-06
B130: 60 | C130: 30000000 | D130: 0 | E130: -3.521361673e-17 | F130: -329.0657873 | G130: 5.095867839e-19 | H130: -2.288235775e-20 | I130: -365.8468888 | M130: 188495559.2 | N130: 0.1256599436 | O130: 0.01580153254 | P130: 0.1256260809 | Q130: 0.01578291219 | R130: 0.01879650427 | S130: 0.0003543085729 | T130: 183190394.4 | U130: 1e+30 | V130: -1749538701 | W130: 1e+30 | X130: 3.096708209 | Y130: -68.96324208 | Z130: 0.1257041469 | AA130: 0.1256300609 | AB130: 0.01882308617 | AC130: 1e+15 | AD130: 1e+15 | AE130: 0.01448588144 | AF130: 87.42893174 | AG130: 0.0006498156077 | AH130: 0.01447129921 | AM130: 60 | AN130: 3901.057617 | AO130: 24511.0679 | AP130: -0.02891833733 | AQ130: 0.0008473813449 | AR130: -0.2893304397 | AS130: 0.08371310332 | AT130: -0.4079765092 | AU130: 0.1664458321 | AV130: -4.079787152e+10 | AW130: 1.000000002e+30 | AX130: -1.359929868e+13 | AY130: 1.000184941e+30 | AZ130: 3.951640938 | BA130: 40.03403116 | BB130: 0.02910981527 | BC130: 0.2893321678 | BD130: 0.4079777348 | BE130: 1.000000001e+15 | BF130: 1.000092466e+15 | BG130: 0.02485794565 | BK130: V(t) | BL130: 60 | BM130: 5.095867839e-19 | BN130: 1.357085609e-19 | BO130: -4.257142807e-19 | BP130: -3.988144559e-19 | BQ130: 1.792333918e-19 | BR130: 5.095867839e-19 | BS130: 1.357085609e-19 | BT130: -4.257142807e-19 | BU130: -3.988144559e-19 | BV130: 1.792333918e-19 | BW130: 5.095867839e-19 | BX130: 1.357085609e-19 | BY130: -4.257142807e-19 | BZ130: -3.988144559e-19 | CA130: 1.792333918e-19 | CB130: 5.095867839e-19 | CC130: 1.357085609e-19 | CD130: -4.257142807e-19 | CE130: -3.988144559e-19 | CF130: 1.792333918e-19 | CG130: 5.095867839e-19 | CH130: 1.357085609e-19 | CI130: -4.257142807e-19 | CJ130: -3.988144559e-19 | CK130: 1.792333918e-19 | CL130: 5.095867839e-19 | CM130: 1.357085609e-19 | CN130: -4.257142807e-19 | CO130: -3.988144559e-19 | CP130: 1.792333918e-19 | CQ130: 5.095867839e-19 | CR130: 1.357085609e-19 | CS130: -4.257142807e-19 | CT130: -3.988144559e-19 | CU130: 1.792333918e-19 | CV130: 5.095867839e-19 | CW130: 1.357085609e-19 | CX130: -4.257142807e-19 | CY130: -3.988144559e-19 | CZ130: 1.792333918e-19 | DA130: 5.095867839e-19 | DB130: 1.357085609e-19 | DC130: -4.257142807e-19 | DD130: -3.988144559e-19 | DE130: 1.792333918e-19 | DF130: 5.095867839e-19 | DG130: 1.357085609e-19 | DH130: -4.257142807e-19 | DI130: -3.988144559e-19 | DJ130: 1.792333918e-19 | DK130: 5.095867839e-19 | DL130: 1.357085609e-19 | DM130: -4.257142807e-19 | DN130: -3.988144559e-19 | DO130: 1.792333918e-19 | DP130: 5.095867839e-19 | DQ130: 1.357085609e-19 | DR130: -4.257142807e-19 | DS130: -3.988144559e-19 | DT130: 1.792333918e-19 | DU130: 5.095867839e-19 | DV130: 1.357085609e-19 | DW130: -4.257142807e-19 | DX130: -3.988144559e-19 | DY130: 1.792333918e-19 | DZ130: 5.095867839e-19 | EA130: 1.357085609e-19 | EB130: -4.257142807e-19 | EC130: -3.988144559e-19 | ED130: 1.792333918e-19 | EE130: 5.095867839e-19 | EF130: 1.357085609e-19 | EG130: -4.257142807e-19 | EH130: -3.988144559e-19 | EI130: 1.792333918e-19 | EJ130: 5.095867839e-19 | EK130: 1.357085609e-19 | EL130: -4.257142807e-19 | EM130: -3.988144559e-19 | EN130: 1.792333918e-19 | EO130: 5.095867839e-19 | EP130: 1.357085609e-19 | EQ130: -4.257142807e-19 | ER130: -3.988144559e-19 | ES130: 1.792333918e-19 | ET130: 5.095867839e-19 | EU130: 1.357085609e-19 | EV130: -4.257142807e-19 | EW130: -3.988144559e-19 | EX130: 1.792333918e-19 | EY130: 5.095867839e-19 | EZ130: 1.357085609e-19 | FA130: -4.257142807e-19 | FB130: -3.988144559e-19 | FC130: 1.792333918e-19 | FD130: 5.095867839e-19 | FE130: 1.357085609e-19 | FF130: -4.257142807e-19 | FG130: -3.988144559e-19 | FH130: 1.792333918e-19 | FI130: 5.095867839e-19
B131: 61 | C131: 30500000 | D131: 0 | E131: -0.0003598737745 | F131: -68.87699602 | G131: 5.294975888e-06 | H131: -2.338468232e-07 | I131: -105.5142578 | M131: 191637151.9 | N131: 0.1277544004 | O131: 0.01633229793 | P131: 0.1277210928 | Q131: 0.01631367754 | R131: 0.01911153324 | S131: 0.0003662507027 | T131: 186418957 | U131: 1e+30 | V131: -1720234570 | W131: 1e+30 | X131: 2.995763016 | Y131: -67.83283483 | Z131: 0.1277978792 | AA131: 0.1277250075 | AB131: 0.01913767757 | AC131: 1e+15 | AD131: 1e+15 | AE131: 0.01472776719 | AF131: 87.47123774 | AG131: 0.0006498023468 | AH131: 0.01471342527 | AM131: 61 | AN131: 3992.10913 | AO131: 25083.16143 | AP131: -0.02825801751 | AQ131: 0.0008096266646 | AR131: -0.2827306741 | AS131: 0.07993763405 | AT131: -0.3986713203 | AU131: 0.1589398216 | AV131: -3.986735778e+10 | AW131: 1.000000002e+30 | AX131: -1.328912762e+13 | AY131: 1.000176601e+30 | AZ131: 4.135925394 | BA131: 40.94773506 | BB131: 0.02845393935 | BC131: 0.2827324425 | BD131: 0.3986725744 | BE131: 1.000000001e+15 | BF131: 1000088296558273 | BG131: 0.02429774679 | BK131: V(t) | BL131: 61 | BM131: 5.294975888e-06 | BN131: 7.624747895e-07 | BO131: -5.009228831e-06 | BP131: -2.639746556e-06 | BQ131: 4.019950471e-06 | BR131: 4.146273764e-06 | BS131: -2.466082014e-06 | BT131: -5.070469143e-06 | BU131: 5.658596668e-07 | BV131: 5.2825322e-06 | BW131: 1.413835989e-06 | BX131: -4.752679307e-06 | BY131: -3.194962582e-06 | BZ131: 3.55532673e-06 | CA131: 4.527366175e-06 | CB131: -1.858639079e-06 | CC131: -5.223914643e-06 | CD131: -9.908890698e-08 | CE131: 5.186779824e-06 | CF131: 2.042900151e-06 | CG131: -4.421177192e-06 | CH131: -3.699792139e-06 | CI131: 3.034633363e-06 | CJ131: 4.837059317e-06 | CK131: -1.221884296e-06 | CL131: -5.294975888e-06 | CM131: -7.624747895e-07 | CN131: 5.009228831e-06 | CO131: 2.639746556e-06 | CP131: -4.019950471e-06 | CQ131: -4.146273764e-06 | CR131: 2.466082014e-06 | CS131: 5.070469143e-06 | CT131: -5.658596668e-07 | CU131: -5.2825322e-06 | CV131: -1.413835989e-06 | CW131: 4.752679307e-06 | CX131: 3.194962582e-06 | CY131: -3.55532673e-06 | CZ131: -4.527366175e-06 | DA131: 1.858639079e-06 | DB131: 5.223914643e-06 | DC131: 9.908890698e-08 | DD131: -5.186779824e-06 | DE131: -2.042900151e-06 | DF131: 4.421177192e-06 | DG131: 3.699792139e-06 | DH131: -3.034633363e-06 | DI131: -4.837059317e-06 | DJ131: 1.221884296e-06 | DK131: 5.294975888e-06 | DL131: 7.624747895e-07 | DM131: -5.009228831e-06 | DN131: -2.639746556e-06 | DO131: 4.019950471e-06 | DP131: 4.146273764e-06 | DQ131: -2.466082014e-06 | DR131: -5.070469143e-06 | DS131: 5.658596668e-07 | DT131: 5.2825322e-06 | DU131: 1.413835989e-06 | DV131: -4.752679307e-06 | DW131: -3.194962582e-06 | DX131: 3.55532673e-06 | DY131: 4.527366175e-06 | DZ131: -1.858639079e-06 | EA131: -5.223914643e-06 | EB131: -9.908890698e-08 | EC131: 5.186779824e-06 | ED131: 2.042900151e-06 | EE131: -4.421177192e-06 | EF131: -3.699792139e-06 | EG131: 3.034633363e-06 | EH131: 4.837059317e-06 | EI131: -1.221884296e-06 | EJ131: -5.294975888e-06 | EK131: -7.624747895e-07 | EL131: 5.009228831e-06 | EM131: 2.639746556e-06 | EN131: -4.019950471e-06 | EO131: -4.146273764e-06 | EP131: 2.466082014e-06 | EQ131: 5.070469143e-06 | ER131: -5.658596668e-07 | ES131: -5.2825322e-06 | ET131: -1.413835989e-06 | EU131: 4.752679307e-06 | EV131: 3.194962582e-06 | EW131: -3.55532673e-06 | EX131: -4.527366175e-06 | EY131: 1.858639079e-06 | EZ131: 5.223914643e-06 | FA131: 9.908890698e-08 | FB131: -5.186779824e-06 | FC131: -2.042900151e-06 | FD131: 4.421177192e-06 | FE131: 3.699792139e-06 | FF131: -3.034633363e-06 | FG131: -4.837059317e-06 | FH131: 1.221884296e-06 | FI131: 5.294975888e-06
B132: 62 | C132: 31000000 | D132: 0 | E132: -0.000672977065 | F132: -63.43999473 | G132: 1.006473294e-05 | H132: -4.372935808e-07 | I132: -99.93576428 | M132: 194778744.5 | N132: 0.1298488552 | O132: 0.01687183631 | P132: 0.1298160848 | Q132: 0.01685321587 | R132: 0.01942653415 | S132: 0.000378390229 | T132: 189644714.1 | U132: 1e+30 | V132: -1691865600 | W132: 1e+30 | X132: 2.899678133 | Y132: -66.73888502 | Z132: 0.1298916329 | AA132: 0.1298199363 | AB132: 0.01945225511 | AC132: 1000000000000018 | AD132: 1e+15 | AE132: 0.01496964573 | AF132: 87.51217158 | AG132: 0.0006497897233 | AH132: 0.01495553632 | AM132: 62 | AN132: 4085.285804 | AO132: 25668.60774 | AP132: -0.02761274058 | AQ132: 0.0007735745534 | AR132: -0.2762814174 | AS132: 0.07633242163 | AT132: -0.3895783602 | AU132: 0.1517722988 | AV132: -3.895806704e+10 | AW132: 1.000000002e+30 | AX132: -1.29860309e+13 | AY132: 1.000168637e+30 | AZ132: 4.328690164 | BA132: 41.8813072 | BB132: 0.02781320826 | BC132: 0.2762832272 | BD132: 0.3895796437 | BE132: 1.000000001e+15 | BF132: 1.000084315e+15 | BG132: 0.02375048051 | BK132: V(t) | BL132: 62 | BM132: 1.006473294e-05 | BN132: 1.955391282e-07 | BO132: -1.004017693e-05 | BP132: -1.45639498e-06 | BQ132: 9.857281336e-06 | BR132: 2.694282612e-06 | BS132: -9.518930526e-06 | BT132: -3.889679798e-06 | BU132: 9.030460495e-06 | BV132: 5.02373441e-06 | BW132: -8.399574708e-06 | BX132: -6.07856173e-06 | BY132: 7.63622261e-06 | BZ132: 7.0375265e-06 | CA132: -6.75244272e-06 | CB132: -7.885505273e-06 | CC132: 5.762172774e-06 | CD132: 8.609124917e-06 | CE132: -4.681029922e-06 | CF132: -9.196973518e-06 | CG132: 3.526064431e-06 | CH132: 9.639780353e-06 | CI132: -2.315490798e-06 | CJ132: -9.930562094e-06 | CK132: 1.068400492e-06 | CL132: 1.006473294e-05 | CM132: 1.955391282e-07 | CN132: -1.004017693e-05 | CO132: -1.45639498e-06 | CP132: 9.857281336e-06 | CQ132: 2.694282612e-06 | CR132: -9.518930526e-06 | CS132: -3.889679798e-06 | CT132: 9.030460495e-06 | CU132: 5.02373441e-06 | CV132: -8.399574708e-06 | CW132: -6.07856173e-06 | CX132: 7.63622261e-06 | CY132: 7.0375265e-06 | CZ132: -6.75244272e-06 | DA132: -7.885505273e-06 | DB132: 5.762172774e-06 | DC132: 8.609124917e-06 | DD132: -4.681029922e-06 | DE132: -9.196973518e-06 | DF132: 3.526064431e-06 | DG132: 9.639780353e-06 | DH132: -2.315490798e-06 | DI132: -9.930562094e-06 | DJ132: 1.068400492e-06 | DK132: 1.006473294e-05 | DL132: 1.955391282e-07 | DM132: -1.004017693e-05 | DN132: -1.45639498e-06 | DO132: 9.857281336e-06 | DP132: 2.694282612e-06 | DQ132: -9.518930526e-06 | DR132: -3.889679798e-06 | DS132: 9.030460495e-06 | DT132: 5.02373441e-06 | DU132: -8.399574708e-06 | DV132: -6.07856173e-06 | DW132: 7.63622261e-06 | DX132: 7.0375265e-06 | DY132: -6.75244272e-06 | DZ132: -7.885505273e-06 | EA132: 5.762172774e-06 | EB132: 8.609124917e-06 | EC132: -4.681029922e-06 | ED132: -9.196973518e-06 | EE132: 3.526064431e-06 | EF132: 9.639780353e-06 | EG132: -2.315490798e-06 | EH132: -9.930562094e-06 | EI132: 1.068400492e-06 | EJ132: 1.006473294e-05 | EK132: 1.955391282e-07 | EL132: -1.004017693e-05 | EM132: -1.45639498e-06 | EN132: 9.857281336e-06 | EO132: 2.694282612e-06 | EP132: -9.518930526e-06 | EQ132: -3.889679798e-06 | ER132: 9.030460495e-06 | ES132: 5.02373441e-06 | ET132: -8.399574708e-06 | EU132: -6.07856173e-06 | EV132: 7.63622261e-06 | EW132: 7.0375265e-06 | EX132: -6.75244272e-06 | EY132: -7.885505273e-06 | EZ132: 5.762172774e-06 | FA132: 8.609124917e-06 | FB132: -4.681029922e-06 | FC132: -9.196973518e-06 | FD132: 3.526064431e-06 | FE132: 9.639780353e-06 | FF132: -2.315490798e-06 | FG132: -9.930562094e-06 | FH132: 1.068400492e-06 | FI132: 1.006473294e-05
B133: 63 | C133: 31500000 | D133: 0 | E133: -0.0009217593288 | F133: -60.70764917 | G133: 1.400856006e-05 | H133: -5.989386539e-07 | I133: -97.06419839 | M133: 197920337.2 | N133: 0.1319433081 | O133: 0.01742014766 | P133: 0.1319110578 | Q133: 0.01740152718 | R133: 0.01974150834 | S133: 0.0003907271515 | T133: 192867799.3 | U133: 1e+30 | V133: -1664387258 | W133: 1e+30 | X133: 2.808146251 | Y133: -65.67965712 | Z133: 0.131985407 | AA133: 0.1319148482 | AB133: 0.01976681946 | AC133: 1e+15 | AD133: 1e+15 | AE133: 0.01521151742 | AF133: 87.55179908 | AG133: 0.000649777697 | AH133: 0.01519763307 | AM133: 63 | AN133: 4180.637241 | AO133: 26267.71849 | AP133: -0.02698216303 | AQ133: 0.000739148233 | AR133: -0.2699792366 | AS133: 0.07288978822 | AT133: -0.3806927885 | AU133: 0.1449279992 | AV133: -3.806951526e+10 | AW133: 1.000000001e+30 | AX133: -1.268984717e+13 | AY133: 1.000161032e+30 | AZ133: 4.530314649 | BA133: 42.83510995 | BB133: 0.02718728072 | BC133: 0.2699810886 | BD133: 0.3806941019 | BE133: 1000000000724644 | BF133: 1.000080513e+15 | BG133: 0.02321585533 | BK133: V(t) | BL133: 63 | BM133: 1.400856006e-05 | BN133: -1.477361549e-06 | BO133: -1.382303146e-05 | BP133: 3.213272203e-06 | BQ133: 1.34195054e-05 | BR133: -4.898507635e-06 | BS133: -1.280434572e-05 | BT133: 6.506490675e-06 | BU133: 1.198725386e-05 | BV133: -8.011862471e-06 | BW133: -1.098111585e-05 | BX133: 9.390882409e-06 | BY133: 9.801799078e-06 | BZ133: -1.062180252e-05 | CA133: -8.46790208e-06 | CB133: 1.168521046e-05 | CC133: 7.000461209e-06 | CD133: -1.256433566e-05 | CE133: -5.422618882e-06 | CF133: 1.324531377e-05 | CG133: 3.759258616e-06 | CH133: -1.371740537e-05 | CI133: -2.036612596e-06 | CJ133: 1.39731653e-05 | CK133: 2.818479788e-07 | CL133: -1.400856006e-05 | CM133: 1.477361549e-06 | CN133: 1.382303146e-05 | CO133: -3.213272203e-06 | CP133: -1.34195054e-05 | CQ133: 4.898507635e-06 | CR133: 1.280434572e-05 | CS133: -6.506490675e-06 | CT133: -1.198725386e-05 | CU133: 8.011862471e-06 | CV133: 1.098111585e-05 | CW133: -9.390882409e-06 | CX133: -9.801799078e-06 | CY133: 1.062180252e-05 | CZ133: 8.46790208e-06 | DA133: -1.168521046e-05 | DB133: -7.000461209e-06 | DC133: 1.256433566e-05 | DD133: 5.422618882e-06 | DE133: -1.324531377e-05 | DF133: -3.759258616e-06 | DG133: 1.371740537e-05 | DH133: 2.036612596e-06 | DI133: -1.39731653e-05 | DJ133: -2.818479788e-07 | DK133: 1.400856006e-05 | DL133: -1.477361549e-06 | DM133: -1.382303146e-05 | DN133: 3.213272203e-06 | DO133: 1.34195054e-05 | DP133: -4.898507635e-06 | DQ133: -1.280434572e-05 | DR133: 6.506490675e-06 | DS133: 1.198725386e-05 | DT133: -8.011862471e-06 | DU133: -1.098111585e-05 | DV133: 9.390882409e-06 | DW133: 9.801799078e-06 | DX133: -1.062180252e-05 | DY133: -8.46790208e-06 | DZ133: 1.168521046e-05 | EA133: 7.000461209e-06 | EB133: -1.256433566e-05 | EC133: -5.422618882e-06 | ED133: 1.324531377e-05 | EE133: 3.759258616e-06 | EF133: -1.371740537e-05 | EG133: -2.036612596e-06 | EH133: 1.39731653e-05 | EI133: 2.818479788e-07 | EJ133: -1.400856006e-05 | EK133: 1.477361549e-06 | EL133: 1.382303146e-05 | EM133: -3.213272203e-06 | EN133: -1.34195054e-05 | EO133: 4.898507635e-06 | EP133: 1.280434572e-05 | EQ133: -6.506490675e-06 | ER133: -1.198725386e-05 | ES133: 8.011862471e-06 | ET133: 1.098111585e-05 | EU133: -9.390882409e-06 | EV133: -9.801799078e-06 | EW133: 1.062180252e-05 | EX133: 8.46790208e-06 | EY133: -1.168521046e-05 | EZ133: -7.000461209e-06 | FA133: 1.256433566e-05 | FB133: =Re_H*COS(NH_*Rad_+NH_*Ofs_)+Im_H*SIN(NH_*Rad_+NH_*Ofs_) -> 5.422618882e-06 | FC133: -1.324531377e-05 | FD133: -3.759258616e-06 | FE133: 1.371740537e-05 | FF133: 2.036612596e-06 | FG133: -1.39731653e-05 | FH133: -2.818479788e-07 | FI133: 1.400856006e-05
B134: 64 | C134: 32000000 | D134: 0 | E134: -0.001093916876 | F134: -59.22031356 | G134: 1.688976611e-05 | H134: -7.107902451e-07 | I134: -95.43984244 | M134: 201061929.8 | N134: 0.1340377592 | O134: 0.017977232 | P134: 0.1340060129 | Q134: 0.01795861148 | R134: 0.02005645706 | S134: 0.0004032614699 | T134: 196088337.9 | U134: 1e+30 | V134: -1637757798 | W134: 1e+30 | X134: 2.720883988 | Y134: -64.65352397 | Z134: 0.1340792005 | AA134: 0.134009744 | AB134: 0.02008137122 | AC134: 1e+15 | AD134: 1e+15 | AE134: 0.01545338256 | AF134: 87.59018189 | AG134: 0.0006497662309 | AH134: 0.0154397162 | AM134: 64 | AN134: 4278.214202 | AO134: 26880.81261 | AP134: -0.02636594919 | AQ134: 0.0007062743876 | AR134: -0.2638207767 | AS134: 0.06960240223 | AT134: -0.3720098751 | AU134: 0.1383923472 | AV134: -3.720122943e+10 | AW134: 1.000000001e+30 | AX134: -1.240041877e+13 | AY134: 1.00015377e+30 | AZ134: 4.741194192 | BA134: 43.80950719 | BB134: 0.02657582337 | BC134: 0.2638226719 | BD134: 0.3720112191 | BE134: 1.000000001e+15 | BF134: 1.000076882e+15 | BG134: 0.02269358649 | BK134: V(t) | BL134: 64 | BM134: 1.688976611e-05 | BN134: -3.863026772e-06 | BO134: -1.544204804e-05 | BP134: 9.650129293e-06 | BQ134: 1.182554021e-05 | BR134: -1.408189983e-05 | BS134: -6.548170405e-06 | BT134: 1.653590939e-05 | BU134: 3.511295256e-07 | BV134: -1.666749961e-05 | BW134: 5.895226452e-06 | BX134: 1.445818905e-05 | BY134: -1.131361539e-05 | BZ134: -1.02182688e-05 | CA134: 1.514304067e-05 | CB134: 4.543223063e-06 | CC134: -1.684567089e-05 | CD134: 1.769904851e-06 | CE134: 1.61823767e-05 | CF134: -7.834454889e-06 | CG134: -1.324631579e-05 | CH134: 1.279867902e-05 | CI134: 8.449849187e-06 | CJ134: -1.596536672e-05 | CK134: -2.46662638e-06 | CL134: 1.688976611e-05 | CM134: -3.863026772e-06 | CN134: -1.544204804e-05 | CO134: 9.650129293e-06 | CP134: 1.182554021e-05 | CQ134: -1.408189983e-05 | CR134: -6.548170405e-06 | CS134: 1.653590939e-05 | CT134: 3.511295256e-07 | CU134: -1.666749961e-05 | CV134: 5.895226452e-06 | CW134: 1.445818905e-05 | CX134: -1.131361539e-05 | CY134: -1.02182688e-05 | CZ134: 1.514304067e-05 | DA134: 4.543223063e-06 | DB134: -1.684567089e-05 | DC134: 1.769904851e-06 | DD134: 1.61823767e-05 | DE134: -7.834454889e-06 | DF134: -1.324631579e-05 | DG134: =Re_H*COS(NH_*Rad_+NH_*Ofs_)+Im_H*SIN(NH_*Rad_+NH_*Ofs_) -> 1.279867902e-05 | DH134: 8.449849187e-06 | DI134: -1.596536672e-05 | DJ134: -2.46662638e-06 | DK134: 1.688976611e-05 | DL134: -3.863026772e-06 | DM134: -1.544204804e-05 | DN134: 9.650129293e-06 | DO134: 1.182554021e-05 | DP134: -1.408189983e-05 | DQ134: -6.548170405e-06 | DR134: 1.653590939e-05 | DS134: 3.511295256e-07 | DT134: -1.666749961e-05 | DU134: 5.895226452e-06 | DV134: 1.445818905e-05 | DW134: -1.131361539e-05 | DX134: -1.02182688e-05 | DY134: 1.514304067e-05 | DZ134: 4.543223063e-06 | EA134: -1.684567089e-05 | EB134: 1.769904851e-06 | EC134: 1.61823767e-05 | ED134: -7.834454889e-06 | EE134: -1.324631579e-05 | EF134: 1.279867902e-05 | EG134: 8.449849187e-06 | EH134: -1.596536672e-05 | EI134: -2.46662638e-06 | EJ134: 1.688976611e-05 | EK134: -3.863026772e-06 | EL134: =Re_H*COS(NH_*Rad_+NH_*Ofs_)+Im_H*SIN(NH_*Rad_+NH_*Ofs_) -> -1.544204804e-05 | EM134: 9.650129293e-06 | EN134: 1.182554021e-05 | EO134: -1.408189983e-05 | EP134: -6.548170405e-06 | EQ134: 1.653590939e-05 | ER134: 3.511295255e-07 | ES134: -1.666749961e-05 | ET134: 5.895226452e-06 | EU134: 1.445818905e-05 | EV134: -1.131361539e-05 | EW134: -1.02182688e-05 | EX134: 1.514304067e-05 | EY134: 4.543223063e-06 | EZ134: -1.684567089e-05 | FA134: 1.769904851e-06 | FB134: 1.61823767e-05 | FC134: -7.834454889e-06 | FD134: -1.324631579e-05 | FE134: 1.279867902e-05 | FF134: 8.449849187e-06 | FG134: -1.596536672e-05 | FH134: -2.46662638e-06 | FI134: 1.688976611e-05
B135: 65 | C135: 32500000 | D135: 0 | E135: =-delta_I/2*2*(-1)^NH_*m_^2/NH_^2/(m_-1)/PI()/PI()*SIN(NH_*(m_-1)*PI()/m_) -> -0.001182852803 | F135: =IF(SQRT(Re_H_^2+Im_H_^2)>1E-20, 20*LOG(SQRT(Re_H_^2+Im_H_^2)), -200) -> -58.54138594 | G135: =Re_H_*AG135-Im_H_*AH135 -> 1.854924491e-05 | H135: =Im_H_*AG135+Re_H_*AH135 -> -7.685648665e-07 | I135: =IF(SQRT(Re_H^2+Im_H^2)>1E-20, 20*LOG(SQRT(Re_H^2+Im_H^2)), -200) -> -94.62602591 | M135: =2*PI()*C135 -> 204203522.5 | N135: =M135*L_1/N_1-1/(M135*C_1*N_1) -> 0.1361322086 | O135: =(R_1/N_1)^2+N135^2 -> 0.01854308932 | P135: =M135*L_2/N_2-1/(M135*C_2*N_2) -> 0.1361009506 | Q135: =(R_2/N_2)^2+P135^2 -> 0.01852446876 | R135: =M135*L_3/N_3-1/(M135*C_3*N_3) -> 0.0203713815 | S135: =(R_3/N_3)^2+R135^2 -> 0.0004159931841 | T135: =M135*L_4/N_4-1/(M135*C_4*N_4) -> 199306447.3 | U135: =(R_4/N_4)^2+T135^2 -> 1e+30 | V135: =M135*L_5/N_5-1/(M135*C_5*N_5) -> -1611938038 | W135: =(R_5/N_5)^2+V135^2 -> 1e+30 | X135: =R_1/N_1/O135+R_2/N_2/Q135+R_3/N_3/S135+R_4/N_4/U135+R_5/N_5/W135 -> 2.637629683 | Y135: -63.65895855 | Z135: 0.1361730124 | AA135: 0.1361046243 | AB135: 0.02039591096 | AC135: 1e+15 | AD135: 1e+15 | AE135: 0.01569524146 | AF135: 87.62737783 | AG135: 0.0006497552906 | AH135: 0.01568178633 | AM135: 65 | AN135: =F_min*incr_^(AM135-1) -> 4378.068629 | AO135: 27508.21648 | AP135: =$AO135*L_1/N_1-1/($AO135*C_1*N_1) -> -0.025763771 | AQ135: =(R_1/N_1)^2+AP135^2 -> 0.0006748830074 | AR135: =$AO135*L_2/N_2-1/($AO135*C_2*N_2) -> -0.2578027593 | AS135: =(R_2/N_2)^2+AR135^2 -> 0.06646326271 | AT135: =$AO135*L_3/N_3-1/($AO135*C_3*N_3) -> -0.3635249975 | AU135: =(R_3/N_3)^2+AT135^2 -> 0.1321514238 | AV135: =$AO135*L_4/N_4-1/($AO135*C_4*N_4) -> -3.635274733e+10 | AW135: =(R_4/N_4)^2+AV135^2 -> 1.000000001e+30 | AX135: =$AO135*L_5/N_5-1/($AO135*C_5*N_5) -> -1.211759161e+13 | AY135: =(R_5/N_5)^2+AX135^2 -> 1.000146836e+30 | AZ135: 4.961740649 | BA135: 44.80486396 | BB135: 0.02597851049 | BC135: 0.2578046988 | BD135: 0.363526373 | BE135: 1.000000001e+15 | BF135: 1.000073415e+15 | BG135: 0.02218339579 | BK135: V(t) | BL135: 65 | BM135: 1.854924491e-05 | BN135: -6.462980535e-06 | BO135: -1.455490327e-05 | BP135: 1.545840546e-05 | BQ135: 5.001083286e-06 | BR135: -1.854924491e-05 | BS135: 6.462980535e-06 | BT135: 1.455490327e-05 | BU135: -1.545840546e-05 | BV135: -5.001083286e-06 | BW135: 1.854924491e-05 | BX135: -6.462980535e-06 | BY135: -1.455490327e-05 | BZ135: 1.545840546e-05 | CA135: 5.001083286e-06 | CB135: =Re_H*COS(NH_*Rad_+NH_*Ofs_)+Im_H*SIN(NH_*Rad_+NH_*Ofs_) -> -1.854924491e-05 | CC135: 6.462980535e-06 | CD135: 1.455490327e-05 | CE135: -1.545840546e-05 | CF135: -5.001083286e-06 | CG135: 1.854924491e-05 | CH135: -6.462980535e-06 | CI135: -1.455490327e-05 | CJ135: 1.545840546e-05 | CK135: 5.001083286e-06 | CL135: -1.854924491e-05 | CM135: 6.462980535e-06 | CN135: 1.455490327e-05 | CO135: -1.545840546e-05 | CP135: -5.001083286e-06 | CQ135: 1.854924491e-05 | CR135: =Re_H*COS(NH_*Rad_+NH_*Ofs_)+Im_H*SIN(NH_*Rad_+NH_*Ofs_) -> -6.462980535e-06 | CS135: -1.455490327e-05 | CT135: 1.545840546e-05 | CU135: 5.001083286e-06 | CV135: -1.854924491e-05 | CW135: 6.462980535e-06 | CX135: 1.455490327e-05 | CY135: -1.545840546e-05 | CZ135: -5.001083286e-06 | DA135: 1.854924491e-05 | DB135: -6.462980535e-06 | DC135: -1.455490327e-05 | DD135: 1.545840546e-05 | DE135: 5.001083286e-06 | DF135: -1.854924491e-05 | DG135: 6.462980535e-06 | DH135: 1.455490327e-05 | DI135: -1.545840546e-05 | DJ135: -5.001083286e-06 | DK135: 1.854924491e-05 | DL135: -6.462980535e-06 | DM135: -1.455490327e-05 | DN135: 1.545840546e-05 | DO135: 5.001083286e-06 | DP135: -1.854924491e-05 | DQ135: 6.462980535e-06 | DR135: 1.455490327e-05 | DS135: -1.545840546e-05 | DT135: -5.001083286e-06 | DU135: 1.854924491e-05 | DV135: -6.462980535e-06 | DW135: =Re_H*COS(NH_*Rad_+NH_*Ofs_)+Im_H*SIN(NH_*Rad_+NH_*Ofs_) -> -1.455490327e-05 | DX135: 1.545840546e-05 | DY135: 5.001083286e-06 | DZ135: -1.854924491e-05 | EA135: 6.462980535e-06 | EB135: 1.455490327e-05 | EC135: -1.545840546e-05 | ED135: -5.001083286e-06 | EE135: 1.854924491e-05 | EF135: -6.462980535e-06 | EG135: -1.455490327e-05 | EH135: 1.545840546e-05 | EI135: 5.001083286e-06 | EJ135: -1.854924491e-05 | EK135: 6.462980535e-06 | EL135: 1.455490327e-05 | EM135: -1.545840546e-05 | EN135: -5.001083286e-06 | EO135: 1.854924491e-05 | EP135: -6.462980535e-06 | EQ135: -1.455490327e-05 | ER135: 1.545840546e-05 | ES135: 5.001083286e-06 | ET135: -1.854924491e-05 | EU135: 6.462980535e-06 | EV135: 1.455490327e-05 | EW135: -1.545840546e-05 | EX135: -5.001083286e-06 | EY135: 1.854924491e-05 | EZ135: -6.462980535e-06 | FA135: -1.455490327e-05 | FB135: 1.545840546e-05 | FC135: 5.001083286e-06 | FD135: -1.854924491e-05 | FE135: 6.462980535e-06 | FF135: 1.455490327e-05 | FG135: -1.545840546e-05 | FH135: -5.001083286e-06 | FI135: 1.854924491e-05
B136: 66 | C136: =NH_*f_ -> 33000000 | D136: 0 | E136: -0.001187751992 | F136: -58.50548465 | G136: 1.891357749e-05 | H136: -7.71735733e-07 | I136: -94.45730175 | M136: 207345115.1 | N136: 0.1382266563 | O136: 0.01911771962 | P136: 0.138195872 | Q136: 0.01909909903 | R136: 0.02068628274 | S136: 0.0004289222937 | T136: 202522238.1 | U136: 1e+30 | V136: -1586891176 | W136: 1e+30 | X136: 2.558141433 | Y136: =-N136/O136-P136/Q136-R136/S136-T136/U136-V136/W136 -> -62.69452634 | Z136: =SQRT(O136) -> 0.1382668421 | AA136: =SQRT(Q136) -> 0.13819949 | AB136: =SQRT(S136) -> 0.02071043925 | AC136: =SQRT(U136) -> 1e+15 | AD136: =SQRT(W136) -> 1e+15 | AE136: =1/SQRT(X136^2+Y136^2) -> 0.0159370944 | AF136: =-180/PI()*ATAN2(X136,Y136) -> 87.66344121 | AG136: =AE136*COS(PI()/180*AF136) -> 0.0006497448444 | AH136: =AE136*SIN(PI()/180*AF136) -> 0.01592384406 | AM136: 66 | AN136: 4480.25368 | AO136: =2*PI()*AN136 -> 28150.26409 | AP136: -0.02517530792 | AQ136: 0.00064490724 | AR136: -0.2519219808 | AS136: 0.0634656844 | AT136: -0.3552336391 | AU136: 0.1261919384 | AV136: -3.552361726e+10 | AW136: 1.000000001e+30 | AX136: -1.184121514e+13 | AY136: 1.000140214e+30 | AZ136: =R_1/N_1/AQ136+R_2/N_2/AS136+R_3/N_3/AU136+R_4/N_4/AW136+R_5/N_5/AY136 -> 5.192382971 | BA136: =-AP136/AQ136-AR136/AS136-AT136/AU136-AV136/AW136-AX136/AY136 -> 45.82154601 | BB136: =SQRT(AQ136) -> 0.02539502392 | BC136: =SQRT(AS136) -> 0.2519239655 | BD136: =SQRT(AU136) -> 0.3552350466 | BE136: =SQRT(AW136) -> 1.000000001e+15 | BF136: =SQRT(AY136) -> 1.000070105e+15 | BG136: =1/SQRT(AZ136^2+BA136^2) -> 0.02168501147 | BK136: V(t) | BL136: 66 | BM136: =Re_H*COS(NH_*Rad_+NH_*Ofs_)+Im_H*SIN(NH_*Rad_+NH_*Ofs_) -> 1.891357749e-05 | BN136: -8.751296995e-06 | BO136: -1.146133542e-05 | BP136: 1.851129555e-05 | BQ136: -4.302117186e-06 | BR136: -1.484779073e-05 | BS136: 1.694588083e-05 | BT136: 4.173804682e-07 | BU136: -1.730130475e-05 | BV136: 1.431569409e-05 | BW136: 5.110652572e-06 | BX136: -1.866771415e-05 | BY136: 1.078599964e-05 | BZ136: 9.48280358e-06 | CA136: -1.886116242e-05 | CB136: 6.578581168e-06 | CC136: 1.325911516e-05 | CD136: -1.786949449e-05 | CE136: 1.957806246e-06 | CF136: 1.620230778e-05 | CG136: -1.57550205e-05 | CH136: -2.785984843e-06 | CI136: 1.812744981e-05 | CJ136: -1.265060063e-05 | CK136: -7.354722258e-06 | CL136: 1.891357749e-05 | CM136: -8.751296995e-06 | CN136: -1.146133542e-05 | CO136: 1.851129555e-05 | CP136: -4.302117186e-06 | CQ136: -1.484779073e-05 | CR136: 1.694588083e-05 | CS136: 4.173804682e-07 | CT136: -1.730130475e-05 | CU136: 1.431569409e-05 | CV136: 5.110652572e-06 | CW136: -1.866771415e-05 | CX136: 1.078599964e-05 | CY136: 9.48280358e-06 | CZ136: -1.886116242e-05 | DA136: 6.578581168e-06 | DB136: 1.325911516e-05 | DC136: -1.786949449e-05 | DD136: 1.957806246e-06 | DE136: 1.620230778e-05 | DF136: -1.57550205e-05 | DG136: -2.785984843e-06 | DH136: 1.812744981e-05 | DI136: -1.265060063e-05 | DJ136: -7.354722258e-06 | DK136: 1.891357749e-05 | DL136: -8.751296995e-06 | DM136: -1.146133542e-05 | DN136: 1.851129555e-05 | DO136: -4.302117186e-06 | DP136: -1.484779073e-05 | DQ136: 1.694588083e-05 | DR136: 4.173804682e-07 | DS136: -1.730130475e-05 | DT136: 1.431569409e-05 | DU136: 5.110652572e-06 | DV136: -1.866771415e-05 | DW136: 1.078599964e-05 | DX136: 9.48280358e-06 | DY136: -1.886116242e-05 | DZ136: 6.578581168e-06 | EA136: 1.325911516e-05 | EB136: -1.786949449e-05 | EC136: 1.957806246e-06 | ED136: 1.620230778e-05 | EE136: -1.57550205e-05 | EF136: -2.785984843e-06 | EG136: 1.812744981e-05 | EH136: -1.265060063e-05 | EI136: -7.354722258e-06 | EJ136: 1.891357749e-05 | EK136: -8.751296995e-06 | EL136: -1.146133542e-05 | EM136: 1.851129555e-05 | EN136: -4.302117186e-06 | EO136: -1.484779073e-05 | EP136: 1.694588083e-05 | EQ136: 4.173804682e-07 | ER136: -1.730130475e-05 | ES136: 1.431569409e-05 | ET136: 5.110652572e-06 | EU136: -1.866771415e-05 | EV136: 1.078599964e-05 | EW136: 9.48280358e-06 | EX136: -1.886116242e-05 | EY136: 6.578581168e-06 | EZ136: 1.325911516e-05 | FA136: -1.786949449e-05 | FB136: 1.957806246e-06 | FC136: 1.620230778e-05 | FD136: -1.57550205e-05 | FE136: -2.785984843e-06 | FF136: 1.812744981e-05 | FG136: -1.265060063e-05 | FH136: -7.354722258e-06 | FI136: 1.891357749e-05
B137: 67 | C137: 33500000 | D137: 0 | E137: -0.001113288726 | F137: -59.06784378 | G137: 1.799730301e-05 | H137: -7.23342498e-07 | I137: -94.88884161 | M137: 210486707.8 | N137: 0.1403211024 | O137: 0.0197011229 | P137: 0.1402907776 | Q137: 0.01968250227 | R137: 0.02100116184 | S137: 0.0004420487987 | T137: 205735814 | U137: 1e+30 | V137: -1562582604 | W137: 1e+30 | X137: 2.482195325 | Y137: -61.75887842 | Z137: 0.1403606886 | AA137: 0.1402943416 | AB137: 0.02102495657 | AC137: 1e+15 | AD137: 1e+15 | AE137: 0.01617894165 | AF137: 87.69842305 | AG137: 0.0006497348632 | AH137: 0.01616588994 | AM137: 67 | AN137: 4584.823751 | AO137: 28807.29723 | AP137: -0.02460024667 | AQ137: 0.0006162832476 | AR137: -0.2461753105 | AS137: 0.06060328351 | AT137: -0.347131386 | AU137: 0.1205011991 | AV137: -3.471339786e+10 | AW137: 1.000000001e+30 | AX137: -1.157114222e+13 | AY137: 1.000133891e+30 | AZ137: 5.433567794 | BA137: 46.85991928 | BB137: 0.02482505282 | BC137: 0.2461773416 | BD137: 0.3471328264 | BE137: 1000000000602510 | BF137: 1.000066943e+15 | BG137: 0.02119816801 | BK137: V(t) | BL137: 67 | BM137: 1.799730301e-05 | BN137: -1.025417546e-05 | BO137: -7.008379066e-06 | BP137: 1.776473005e-05 | BQ137: -1.202925766e-05 | BR137: -4.873532887e-06 | BS137: 1.725199668e-05 | BT137: -1.361463129e-05 | BU137: -2.661828183e-06 | BV137: 1.646718902e-05 | BW137: -1.498529404e-05 | BX137: -4.081448593e-07 | BY137: 1.542268394e-05 | BZ137: -1.611962976e-05 | CA137: 1.851975153e-06 | CB137: 1.413495394e-05 | CC137: -1.699974928e-05 | CD137: 4.082888411e-06 | CE137: 1.262430726e-05 | CF137: -1.761177261e-05 | CG137: 6.249412079e-06 | CH137: 1.091456772e-05 | CI137: -1.794604776e-05 | CJ137: 8.317378786e-06 | CK137: 9.03269892e-06 | CL137: -1.799730301e-05 | CM137: 1.025417546e-05 | CN137: 7.008379066e-06 | CO137: -1.776473005e-05 | CP137: 1.202925766e-05 | CQ137: 4.873532887e-06 | CR137: -1.725199668e-05 | CS137: 1.361463129e-05 | CT137: 2.661828183e-06 | CU137: -1.646718902e-05 | CV137: 1.498529404e-05 | CW137: 4.081448593e-07 | CX137: -1.542268394e-05 | CY137: 1.611962976e-05 | CZ137: -1.851975153e-06 | DA137: -1.413495394e-05 | DB137: 1.699974928e-05 | DC137: -4.082888411e-06 | DD137: -1.262430726e-05 | DE137: 1.761177261e-05 | DF137: -6.249412079e-06 | DG137: -1.091456772e-05 | DH137: 1.794604776e-05 | DI137: -8.317378786e-06 | DJ137: -9.03269892e-06 | DK137: 1.799730301e-05 | DL137: -1.025417546e-05 | DM137: -7.008379066e-06 | DN137: 1.776473005e-05 | DO137: -1.202925766e-05 | DP137: -4.873532887e-06 | DQ137: 1.725199668e-05 | DR137: -1.361463129e-05 | DS137: -2.661828183e-06 | DT137: 1.646718902e-05 | DU137: -1.498529404e-05 | DV137: -4.081448593e-07 | DW137: 1.542268394e-05 | DX137: -1.611962976e-05 | DY137: 1.851975153e-06 | DZ137: 1.413495394e-05 | EA137: -1.699974928e-05 | EB137: 4.082888411e-06 | EC137: 1.262430726e-05 | ED137: -1.761177261e-05 | EE137: 6.249412079e-06 | EF137: 1.091456772e-05 | EG137: -1.794604776e-05 | EH137: 8.317378786e-06 | EI137: 9.03269892e-06 | EJ137: -1.799730301e-05 | EK137: 1.025417546e-05 | EL137: 7.008379066e-06 | EM137: -1.776473005e-05 | EN137: 1.202925766e-05 | EO137: 4.873532887e-06 | EP137: -1.725199668e-05 | EQ137: 1.361463129e-05 | ER137: 2.661828183e-06 | ES137: -1.646718902e-05 | ET137: 1.498529404e-05 | EU137: 4.081448593e-07 | EV137: -1.542268394e-05 | EW137: 1.611962976e-05 | EX137: -1.851975153e-06 | EY137: -1.413495394e-05 | EZ137: 1.699974928e-05 | FA137: -4.082888411e-06 | FB137: -1.262430726e-05 | FC137: 1.761177261e-05 | FD137: -6.249412079e-06 | FE137: -1.091456772e-05 | FF137: 1.794604776e-05 | FG137: -8.317378786e-06 | FH137: -9.03269892e-06 | FI137: 1.799730301e-05
B138: 68 | C138: 34000000 | D138: 0 | E138: -0.000969005952 | F138: -60.27347111 | G138: 1.589937649e-05 | H138: -6.295877018e-07 | I138: -95.96559363 | M138: 213628300.4 | N138: 0.1424155471 | O138: 0.02029329916 | P138: 0.1423856682 | Q138: 0.0202746785 | R138: 0.02131601977 | S138: 0.0004553726987 | T138: 208947272.7 | U138: 1e+30 | V138: -1538979749 | W138: 1e+30 | X138: 2.409583851 | Y138: -60.85074521 | Z138: 0.1424545512 | AA138: 0.1423891797 | AB138: 0.02133946341 | AC138: 1e+15 | AD138: 1e+15 | AE138: 0.01642078345 | AF138: 87.73237135 | AG138: 0.0006497253195 | AH138: 0.01640792449 | AM138: 68 | AN138: 4691.834511 | AO138: 29479.66566 | AP138: -0.02403828114 | AQ138: 0.0005889500712 | AR138: -0.2405596894 | AS138: 0.05786996416 | AT138: -0.3392139249 | AU138: 0.1150670869 | AV138: -3.392165781e+10 | AW138: 1.000000001e+30 | AX138: -1.130722909e+13 | AY138: 1.000127853e+30 | AZ138: 5.685760041 | BA138: 47.92034936 | BB138: 0.02426829354 | BC138: 0.2405617679 | BD138: 0.3392153989 | BE138: 1.000000001e+15 | BF138: 1.000063925e+15 | BG138: 0.02072260604 | BK138: V(t) | BL138: 68 | BM138: 1.589937649e-05 | BN138: -1.061974966e-05 | BO138: -2.360810095e-06 | BP138: 1.362942364e-05 | BQ138: -1.501463309e-05 | BR138: 5.511951021e-06 | BS138: 7.987733468e-06 | BT138: -1.569509689e-05 | BU138: 1.202112909e-05 | BV138: 3.699847556e-07 | BW138: -1.249280341e-05 | BX138: 1.555644043e-05 | BY138: -7.339293242e-06 | BZ138: -6.199957273e-06 | CA138: 1.524329624e-05 | CB138: -1.323292814e-05 | CC138: 1.626675464e-06 | CD138: 1.115916422e-05 | CE138: -1.585291342e-05 | CF138: 9.050890424e-06 | CG138: 4.314404048e-06 | CH138: -1.455109971e-05 | CI138: 1.423603601e-05 | CJ138: -3.59768204e-06 | CK138: -9.649538334e-06 | CL138: 1.589937649e-05 | CM138: -1.061974966e-05 | CN138: -2.360810095e-06 | CO138: 1.362942364e-05 | CP138: -1.501463309e-05 | CQ138: 5.511951021e-06 | CR138: 7.987733468e-06 | CS138: -1.569509689e-05 | CT138: 1.202112909e-05 | CU138: 3.699847556e-07 | CV138: -1.249280341e-05 | CW138: 1.555644043e-05 | CX138: -7.339293242e-06 | CY138: -6.199957273e-06 | CZ138: 1.524329624e-05 | DA138: -1.323292814e-05 | DB138: 1.626675464e-06 | DC138: 1.115916422e-05 | DD138: -1.585291342e-05 | DE138: 9.050890424e-06 | DF138: 4.314404048e-06 | DG138: -1.455109971e-05 | DH138: 1.423603601e-05 | DI138: -3.59768204e-06 | DJ138: -9.649538334e-06 | DK138: 1.589937649e-05 | DL138: -1.061974966e-05 | DM138: -2.360810095e-06 | DN138: 1.362942364e-05 | DO138: -1.501463309e-05 | DP138: 5.511951021e-06 | DQ138: 7.987733468e-06 | DR138: -1.569509689e-05 | DS138: 1.202112909e-05 | DT138: 3.699847556e-07 | DU138: -1.249280341e-05 | DV138: 1.555644043e-05 | DW138: -7.339293242e-06 | DX138: -6.199957273e-06 | DY138: 1.524329624e-05 | DZ138: -1.323292814e-05 | EA138: 1.626675464e-06 | EB138: 1.115916422e-05 | EC138: -1.585291342e-05 | ED138: 9.050890424e-06 | EE138: 4.314404048e-06 | EF138: -1.455109971e-05 | EG138: 1.423603601e-05 | EH138: -3.59768204e-06 | EI138: -9.649538334e-06 | EJ138: 1.589937649e-05 | EK138: -1.061974966e-05 | EL138: -2.360810095e-06 | EM138: 1.362942364e-05 | EN138: -1.501463309e-05 | EO138: 5.511951021e-06 | EP138: 7.987733468e-06 | EQ138: -1.569509689e-05 | ER138: 1.202112909e-05 | ES138: 3.699847556e-07 | ET138: -1.249280341e-05 | EU138: 1.555644043e-05 | EV138: -7.339293242e-06 | EW138: -6.199957273e-06 | EX138: 1.524329624e-05 | EY138: -1.323292814e-05 | EZ138: 1.626675464e-06 | FA138: 1.115916422e-05 | FB138: -1.585291342e-05 | FC138: 9.050890424e-06 | FD138: 4.314404048e-06 | FE138: -1.455109971e-05 | FF138: 1.423603601e-05 | FG138: -3.59768204e-06 | FH138: -9.649538334e-06 | FI138: 1.589937649e-05
B139: 69 | C139: 34500000 | D139: 0 | E139: -0.0007684231834 | F139: -62.28799082 | G139: 1.27942062e-05 | H139: -4.992569817e-07 | I139: -97.853125 | M139: 216769893.1 | N139: 0.1445099903 | O139: 0.02089424841 | P139: 0.1444805444 | Q139: 0.02087562772 | R139: 0.02163085744 | S139: 0.0004688939937 | T139: 212156706.3 | U139: 1e+30 | V139: -1516051929 | W139: 1e+30 | X139: 2.340114491 | Y139: -59.96893068 | Z139: 0.1445484293 | AA139: 0.1444840051 | AB139: 0.02165396023 | AC139: 1e+15 | AD139: 1e+15 | AE139: 0.01666262003 | AF139: 87.76533132 | AG139: 0.0006497161883 | AH139: 0.0166499482 | AM139: 69 | AN139: 4801.342924 | AO139: 30167.72731 | AP139: -0.02348911216 | AQ139: 0.0005628495009 | AR139: -0.2350721279 | AS139: 0.05525990532 | AT139: -0.3314770412 | AU139: 0.1098780289 | AV139: -3.314797563e+10 | AW139: 1.000000001e+30 | AX139: -1.104933526e+13 | AY139: 1.000122088e+30 | AZ139: 5.949443531 | BA139: 49.00320098 | BB139: 0.02372444943 | BC139: 0.2350742549 | BD139: 0.3314785496 | BE139: 1.000000001e+15 | BF139: 1.000061042e+15 | BG139: 0.02025807218 | BK139: V(t) | BL139: 69 | BM139: 1.27942062e-05 | BN139: -9.668339856e-06 | BO139: 1.301626667e-06 | BP139: 7.770649847e-06 | BQ139: -1.263074657e-05 | BR139: 1.064418614e-05 | BS139: -2.887808945e-06 | BT139: -6.433941892e-06 | BU139: 1.226809253e-05 | BV139: -1.145216725e-05 | BW139: 4.428448752e-06 | BX139: 4.99576683e-06 | BY139: -1.171196333e-05 | BZ139: 1.207954084e-05 | CA139: -5.899249276e-06 | CB139: -3.47880554e-06 | CC139: 1.097112948e-05 | CD139: -1.251641285e-05 | CE139: 7.277015115e-06 | CF139: 1.906981409e-06 | CG139: -1.005727436e-05 | CH139: 1.275589356e-05 | CI139: -8.540018079e-06 | CJ139: -3.050830423e-07 | CK139: 8.984810012e-06 | CL139: -1.27942062e-05 | CM139: 9.668339856e-06 | CN139: -1.301626667e-06 | CO139: -7.770649847e-06 | CP139: 1.263074657e-05 | CQ139: -1.064418614e-05 | CR139: 2.887808945e-06 | CS139: 6.433941892e-06 | CT139: -1.226809253e-05 | CU139: 1.145216725e-05 | CV139: -4.428448752e-06 | CW139: -4.99576683e-06 | CX139: 1.171196333e-05 | CY139: -1.207954084e-05 | CZ139: 5.899249276e-06 | DA139: 3.47880554e-06 | DB139: -1.097112948e-05 | DC139: 1.251641285e-05 | DD139: -7.277015115e-06 | DE139: -1.906981409e-06 | DF139: 1.005727436e-05 | DG139: -1.275589356e-05 | DH139: 8.540018079e-06 | DI139: 3.050830423e-07 | DJ139: -8.984810012e-06 | DK139: 1.27942062e-05 | DL139: -9.668339856e-06 | DM139: 1.301626667e-06 | DN139: 7.770649847e-06 | DO139: -1.263074657e-05 | DP139: 1.064418614e-05 | DQ139: -2.887808945e-06 | DR139: -6.433941892e-06 | DS139: 1.226809253e-05 | DT139: -1.145216725e-05 | DU139: 4.428448752e-06 | DV139: 4.99576683e-06 | DW139: -1.171196333e-05 | DX139: 1.207954084e-05 | DY139: -5.899249276e-06 | DZ139: -3.47880554e-06 | EA139: 1.097112948e-05 | EB139: -1.251641285e-05 | EC139: 7.277015115e-06 | ED139: 1.906981409e-06 | EE139: -1.005727436e-05 | EF139: 1.275589356e-05 | EG139: -8.540018079e-06 | EH139: -3.050830423e-07 | EI139: 8.984810012e-06 | EJ139: -1.27942062e-05 | EK139: 9.668339856e-06 | EL139: -1.301626667e-06 | EM139: -7.770649847e-06 | EN139: 1.263074657e-05 | EO139: -1.064418614e-05 | EP139: 2.887808945e-06 | EQ139: 6.433941892e-06 | ER139: -1.226809253e-05 | ES139: 1.145216725e-05 | ET139: -4.428448752e-06 | EU139: -4.99576683e-06 | EV139: 1.171196333e-05 | EW139: -1.207954084e-05 | EX139: 5.899249276e-06 | EY139: 3.47880554e-06 | EZ139: -1.097112948e-05 | FA139: 1.251641285e-05 | FB139: -7.277015115e-06 | FC139: -1.906981409e-06 | FD139: 1.005727436e-05 | FE139: -1.275589356e-05 | FF139: 8.540018079e-06 | FG139: 3.050830423e-07 | FH139: -8.984810012e-06 | FI139: 1.27942062e-05
B140: 70 | C140: 35000000 | D140: 0 | E140: -0.0005279436403 | F140: -65.54824875 | G140: 8.918003675e-06 | H140: -3.430089143e-07 | I140: -100.988227 | M140: 219911485.8 | N140: 0.1466044321 | O140: 0.02150397064 | P140: 0.1465754069 | Q140: 0.02148534992 | R140: 0.02194567573 | S140: 0.0004826126834 | T140: 215364201.7 | U140: 1e+30 | V140: -1493770214 | W140: 1e+30 | X140: 2.273608426 | Y140: -59.11230715 | Z140: 0.1466423221 | AA140: 0.1465788181 | AB140: 0.02196844745 | AC140: 1e+15 | AD140: 1e+15 | AE140: 0.01690445163 | AF140: 87.79734556 | AG140: 0.0006497074461 | AH140: 0.01689196155 | AM140: 70 | AN140: 4913.407286 | AO140: 30871.84847 | AP140: -0.02295244738 | AQ140: 0.0005379259518 | AR140: -0.2297097049 | AS140: 0.05276754851 | AT140: -0.3239166162 | AU140: 0.1049229743 | AV140: -3.239193947e+10 | AW140: 1.000000001e+30 | AX140: -1.079732344e+13 | AY140: 1.000116582e+30 | AZ140: 6.225121589 | BA140: 50.1088373 | BB140: 0.02319323073 | BC140: 0.2297118815 | BD140: 0.3239181598 | BE140: 1.000000001e+15 | BF140: 1000058289397950 | BG140: 0.0198043189 | BK140: V(t) | BL140: 70 | BM140: 8.918003675e-06 | BN140: -7.41643211e-06 | BO140: 3.082035555e-06 | BP140: 2.429593828e-06 | BQ140: -7.013200948e-06 | BR140: 8.918003675e-06 | BS140: -7.41643211e-06 | BT140: 3.082035555e-06 | BU140: 2.429593828e-06 | BV140: -7.013200948e-06 | BW140: 8.918003675e-06 | BX140: -7.41643211e-06 | BY140: 3.082035555e-06 | BZ140: 2.429593828e-06 | CA140: -7.013200948e-06 | CB140: 8.918003675e-06 | CC140: -7.41643211e-06 | CD140: 3.082035555e-06 | CE140: 2.429593828e-06 | CF140: -7.013200948e-06 | CG140: 8.918003675e-06 | CH140: -7.41643211e-06 | CI140: 3.082035555e-06 | CJ140: 2.429593828e-06 | CK140: -7.013200948e-06 | CL140: 8.918003675e-06 | CM140: -7.41643211e-06 | CN140: 3.082035555e-06 | CO140: 2.429593828e-06 | CP140: -7.013200948e-06 | CQ140: 8.918003675e-06 | CR140: -7.41643211e-06 | CS140: 3.082035555e-06 | CT140: 2.429593828e-06 | CU140: -7.013200948e-06 | CV140: 8.918003675e-06 | CW140: -7.41643211e-06 | CX140: 3.082035555e-06 | CY140: 2.429593828e-06 | CZ140: -7.013200948e-06 | DA140: 8.918003675e-06 | DB140: -7.41643211e-06 | DC140: 3.082035555e-06 | DD140: 2.429593828e-06 | DE140: -7.013200948e-06 | DF140: 8.918003675e-06 | DG140: -7.41643211e-06 | DH140: 3.082035555e-06 | DI140: 2.429593828e-06 | DJ140: -7.013200948e-06 | DK140: 8.918003675e-06 | DL140: -7.41643211e-06 | DM140: 3.082035555e-06 | DN140: 2.429593828e-06 | DO140: -7.013200948e-06 | DP140: 8.918003675e-06 | DQ140: -7.41643211e-06 | DR140: 3.082035555e-06 | DS140: 2.429593828e-06 | DT140: -7.013200948e-06 | DU140: 8.918003675e-06 | DV140: -7.41643211e-06 | DW140: 3.082035555e-06 | DX140: 2.429593828e-06 | DY140: -7.013200948e-06 | DZ140: 8.918003675e-06 | EA140: -7.41643211e-06 | EB140: 3.082035555e-06 | EC140: 2.429593828e-06 | ED140: -7.013200948e-06 | EE140: 8.918003675e-06 | EF140: -7.41643211e-06 | EG140: 3.082035555e-06 | EH140: 2.429593828e-06 | EI140: -7.013200948e-06 | EJ140: 8.918003675e-06 | EK140: -7.41643211e-06 | EL140: 3.082035555e-06 | EM140: 2.429593828e-06 | EN140: -7.013200948e-06 | EO140: 8.918003675e-06 | EP140: -7.41643211e-06 | EQ140: 3.082035555e-06 | ER140: 2.429593828e-06 | ES140: -7.013200948e-06 | ET140: 8.918003675e-06 | EU140: -7.41643211e-06 | EV140: 3.082035555e-06 | EW140: 2.429593828e-06 | EX140: -7.013200948e-06 | EY140: 8.918003675e-06 | EZ140: -7.41643211e-06 | FA140: 3.082035555e-06 | FB140: 2.429593828e-06 | FC140: -7.013200948e-06 | FD140: 8.918003675e-06 | FE140: -7.41643211e-06 | FF140: 3.082035555e-06 | FG140: 2.429593828e-06 | FH140: -7.013200948e-06 | FI140: 8.918003675e-06
B141: 71 | C141: 35500000 | D141: 0 | E141: -0.0002656398165 | F141: -71.51413657 | G141: 4.551463311e-06 | H141: -1.72585942e-07 | I141: -106.8307391 | M141: 223053078.4 | N141: 0.1486988727 | O141: 0.02212246584 | P141: 0.1486702563 | Q141: 0.0221038451 | R141: 0.02226047546 | S141: 0.0004965287678 | T141: 218569840.6 | U141: 1e+30 | V141: -1472107303 | W141: 1e+30 | X141: 2.209899388 | Y141: -58.27981043 | Z141: 0.1487362291 | AA141: 0.1486736194 | AB141: 0.02228292548 | AC141: 1e+15 | AD141: 1e+15 | AE141: 0.01714627845 | AF141: 87.82845424 | AG141: 0.0006496990712 | AH141: 0.01713396497 | AM141: 71 | AN141: 5028.087255 | AO141: 31592.40396 | AP141: -0.02242800112 | AQ141: 0.0005141263454 | AR141: -0.2244695656 | AS141: 0.05038758589 | AT141: -0.3165286252 | AU141: 0.1001913705 | AV141: -3.165314685e+10 | AW141: 1.000000001e+30 | AX141: -1.055105948e+13 | AY141: 1.000111325e+30 | AZ141: 6.513317669 | BA141: 51.23761931 | BB141: 0.02267435435 | BC141: 0.2244717931 | BD141: 0.3165302048 | BE141: 1.000000001e+15 | BF141: 1.000055661e+15 | BG141: 0.0193611044 | BK141: V(t) | BL141: 71 | BM141: 4.551463311e-06 | BN141: -4.071621615e-06 | BO141: 2.584515129e-06 | BP141: -4.58034129e-07 | BQ141: -1.781758395e-06 | BR141: 3.580767696e-06 | BS141: -4.493942909e-06 | BT141: 4.295376685e-06 | BU141: -3.034191657e-06 | BV141: 1.022388149e-06 | BW141: 1.242340527e-06 | BX141: -3.199730755e-06 | BY141: 4.365550343e-06 | BZ141: -4.4513911e-06 | CA141: 3.436017169e-06 | CB141: -1.570618497e-06 | CC141: -6.833302079e-07 | CD141: 2.768232149e-06 | CE141: -4.16831044e-06 | CF141: 4.537204417e-06 | CG141: -3.783654639e-06 | CH141: 2.094079253e-06 | CI141: 1.135433628e-07 | CJ141: -2.293076868e-06 | CK141: 3.905333791e-06 | CL141: -4.551463311e-06 | CM141: 4.071621615e-06 | CN141: -2.584515129e-06 | CO141: 4.58034129e-07 | CP141: 1.781758395e-06 | CQ141: -3.580767696e-06 | CR141: 4.493942909e-06 | CS141: -4.295376685e-06 | CT141: 3.034191657e-06 | CU141: -1.022388149e-06 | CV141: -1.242340527e-06 | CW141: 3.199730755e-06 | CX141: -4.365550343e-06 | CY141: 4.4513911e-06 | CZ141: -3.436017169e-06 | DA141: 1.570618497e-06 | DB141: 6.833302079e-07 | DC141: -2.768232149e-06 | DD141: 4.16831044e-06 | DE141: -4.537204417e-06 | DF141: 3.783654639e-06 | DG141: -2.094079253e-06 | DH141: -1.135433628e-07 | DI141: 2.293076868e-06 | DJ141: -3.905333791e-06 | DK141: 4.551463311e-06 | DL141: -4.071621615e-06 | DM141: 2.584515129e-06 | DN141: -4.58034129e-07 | DO141: -1.781758395e-06 | DP141: 3.580767696e-06 | DQ141: -4.493942909e-06 | DR141: 4.295376685e-06 | DS141: -3.034191657e-06 | DT141: 1.022388149e-06 | DU141: 1.242340527e-06 | DV141: -3.199730755e-06 | DW141: 4.365550343e-06 | DX141: -4.4513911e-06 | DY141: 3.436017169e-06 | DZ141: -1.570618497e-06 | EA141: -6.833302079e-07 | EB141: 2.768232149e-06 | EC141: -4.16831044e-06 | ED141: 4.537204417e-06 | EE141: -3.783654639e-06 | EF141: 2.094079253e-06 | EG141: 1.135433628e-07 | EH141: -2.293076868e-06 | EI141: 3.905333791e-06 | EJ141: -4.551463311e-06 | EK141: 4.071621615e-06 | EL141: -2.584515129e-06 | EM141: 4.58034129e-07 | EN141: 1.781758395e-06 | EO141: -3.580767696e-06 | EP141: 4.493942909e-06 | EQ141: -4.295376685e-06 | ER141: 3.034191657e-06 | ES141: -1.022388149e-06 | ET141: -1.242340527e-06 | EU141: 3.199730755e-06 | EV141: -4.365550343e-06 | EW141: 4.4513911e-06 | EX141: -3.436017169e-06 | EY141: 1.570618497e-06 | EZ141: 6.833302079e-07 | FA141: -2.768232149e-06 | FB141: 4.16831044e-06 | FC141: -4.537204417e-06 | FD141: 3.783654639e-06 | FE141: -2.094079253e-06 | FF141: -1.135433628e-07 | FG141: 2.293076868e-06 | FH141: -3.905333791e-06 | FI141: 4.551463311e-06
B142: 72 | C142: 36000000 | D142: 0 | E142: 2.93446806e-17 | F142: -330.6494123 | G142: -5.098919634e-19 | H142: 1.906497615e-20 | I142: -365.8443693 | M142: 226194671.1 | N142: 0.1507933119 | O142: 0.02274973403 | P142: 0.150765093 | Q142: 0.02273111326 | R142: 0.0225752574 | S142: 0.0005106422467 | T142: 221773700.4 | U142: 1e+30 | V142: -1451037413 | W142: 1e+30 | X142: 2.148832615 | Y142: -57.47043544 | Z142: 0.1508301496 | AA142: 0.1507684094 | AB142: 0.02259739469 | AC142: 1e+15 | AD142: 1e+15 | AE142: 0.01738810068 | AF142: 87.85869531 | AG142: 0.0006496910431 | AH142: 0.01737595887 | AM142: 72 | AN142: 5145.443878 | AO142: 32329.77738 | AP142: -0.0219154942 | AQ142: 0.000491399997 | AR142: -0.2193489206 | AS142: 0.04811494899 | AT142: -0.3093091351 | AU142: 0.09567314107 | AV142: -3.093120448e+10 | AW142: 1.000000001e+30 | AX142: -1.031041227e+13 | AY142: 1.000106305e+30 | AZ142: 6.814575973 | BA142: 52.38990507 | BB142: 0.02216754378 | BC142: 0.2193512001 | BD142: 0.3093107516 | BE142: 1e+15 | BF142: 1.000053151e+15 | BG142: 0.01892819245 | BK142: V(t) | BL142: 72 | BM142: -5.098919634e-19 | BN142: 4.811038437e-19 | BO142: -3.847461189e-19 | BP142: 2.343519451e-19 | BQ142: -5.104373706e-20 | BR142: -1.394334122e-19 | BS142: 3.10327553e-19 | BT142: -4.376371113e-19 | BU142: 5.034818378e-19 | BV142: -4.986140365e-19 | BW142: 4.237173755e-19 | BX142: -2.893108683e-19 | BY142: 1.142715094e-19 | BZ142: 7.681694338e-20 | CA142: -2.571166848e-19 | CB142: 4.013051518e-19 | CC142: -4.891315029e-19 | CD142: 5.08260788e-19 | CE142: -4.560063559e-19 | CF142: 3.397071862e-19 | CG142: -1.756971518e-19 | CH142: -1.298902551e-20 | CI142: 1.998509328e-19 | CJ142: -3.586443704e-19 | CK142: 4.670672721e-19 | CL142: -5.098919634e-19 | CM142: 4.811038437e-19 | CN142: -3.847461189e-19 | CO142: 2.343519451e-19 | CP142: -5.104373706e-20 | CQ142: -1.394334122e-19 | CR142: 3.10327553e-19 | CS142: -4.376371113e-19 | CT142: 5.034818378e-19 | CU142: -4.986140365e-19 | CV142: 4.237173755e-19 | CW142: -2.893108683e-19 | CX142: 1.142715094e-19 | CY142: 7.681694338e-20 | CZ142: -2.571166848e-19 | DA142: 4.013051518e-19 | DB142: -4.891315029e-19 | DC142: 5.08260788e-19 | DD142: -4.560063559e-19 | DE142: 3.397071862e-19 | DF142: -1.756971518e-19 | DG142: -1.298902551e-20 | DH142: 1.998509328e-19 | DI142: -3.586443704e-19 | DJ142: 4.670672721e-19 | DK142: -5.098919634e-19 | DL142: 4.811038437e-19 | DM142: -3.847461189e-19 | DN142: 2.343519451e-19 | DO142: -5.104373706e-20 | DP142: -1.394334122e-19 | DQ142: 3.10327553e-19 | DR142: -4.376371113e-19 | DS142: 5.034818378e-19 | DT142: -4.986140365e-19 | DU142: 4.237173755e-19 | DV142: -2.893108683e-19 | DW142: 1.142715094e-19 | DX142: 7.681694338e-20 | DY142: -2.571166848e-19 | DZ142: 4.013051518e-19 | EA142: -4.891315029e-19 | EB142: 5.08260788e-19 | EC142: -4.560063559e-19 | ED142: 3.397071862e-19 | EE142: -1.756971518e-19 | EF142: -1.298902551e-20 | EG142: 1.998509328e-19 | EH142: -3.586443704e-19 | EI142: 4.670672721e-19 | EJ142: -5.098919634e-19 | EK142: 4.811038437e-19 | EL142: -3.847461189e-19 | EM142: 2.343519451e-19 | EN142: -5.104373706e-20 | EO142: -1.394334122e-19 | EP142: 3.10327553e-19 | EQ142: -4.376371113e-19 | ER142: 5.034818378e-19 | ES142: -4.986140365e-19 | ET142: 4.237173755e-19 | EU142: -2.893108683e-19 | EV142: 1.142715094e-19 | EW142: 7.681694338e-20 | EX142: -2.571166848e-19 | EY142: 4.013051518e-19 | EZ142: -4.891315029e-19 | FA142: 5.08260788e-19 | FB142: -4.560063559e-19 | FC142: 3.397071862e-19 | FD142: -1.756971518e-19 | FE142: -1.298902551e-20 | FF142: 1.998509328e-19 | FG142: -3.586443704e-19 | FH142: 4.670672721e-19 | FI142: -5.098919634e-19
B143: 73 | C143: 36500000 | D143: 0 | E143: 0.000251283602 | F143: -71.99671703 | G143: -4.42710034e-06 | H143: 1.632547706e-07 | I143: -107.0717109 | M143: 229336263.7 | N143: 0.15288775 | O143: 0.02338577521 | P143: 0.1528599176 | Q143: 0.0233671544 | R143: 0.02289002228 | S143: 0.0005249531199 | T143: 224975854.3 | U143: 1e+30 | V143: -1430536174 | W143: 1e+30 | X143: 2.090263909 | Y143: -56.68323217 | Z143: 0.1529240831 | AA143: 0.1528631885 | AB143: 0.02291185544 | AC143: 1e+15 | AD143: 1e+15 | AE143: 0.01762991852 | AF143: 87.8881046 | AG143: 0.000649683343 | AH143: 0.01761794365 | AM143: 73 | AN143: 5265.53963 | AO143: 33084.36124 | AP143: -0.02141465378 | AQ143: 0.0004696985077 | AR143: -0.214345044 | AS143: 0.04594479788 | AT143: -0.3022543029 | AU143: 0.09135866361 | AV143: -3.022572805e+10 | AW143: 1.000000001e+30 | AX143: -1.007525371e+13 | AY143: 1.000101511e+30 | AZ143: 7.129462075 | BA143: 53.56604894 | BB143: 0.02167252887 | BC143: 0.2143473767 | BD143: 0.3022559571 | BE143: 1e+15 | BF143: 1.000050754e+15 | BG143: 0.01850535233 | BK143: V(t) | BL143: 73 | BM143: -4.42710034e-06 | BN143: 4.328614652e-06 | BO143: -3.958146187e-06 | BP143: 3.338972839e-06 | BQ143: -2.509999548e-06 | BR143: 1.523313754e-06 | BS143: -4.409125549e-07 | BT143: -6.691928017e-07 | BU143: 1.737250314e-06 | BV143: -2.696149999e-06 | BW143: 3.485640664e-06 | BX143: -4.056115707e-06 | BY143: 4.371730083e-06 | BZ143: -4.41265258e-06 | CA143: 4.176311886e-06 | CB143: -3.677558157e-06 | CC143: 2.947729924e-06 | CD143: -2.032684979e-06 | CE143: 9.899189612e-07 | CF143: 1.150473058e-07 | CG143: -1.212784727e-06 | CH143: 2.234318424e-06 | CI143: -3.115461677e-06 | CJ143: 3.800849016e-06 | CK143: -4.247415031e-06 | CL143: 4.42710034e-06 | CM143: -4.328614652e-06 | CN143: 3.958146187e-06 | CO143: -3.338972839e-06 | CP143: 2.509999548e-06 | CQ143: -1.523313754e-06 | CR143: 4.409125549e-07 | CS143: 6.691928017e-07 | CT143: -1.737250314e-06 | CU143: 2.696149999e-06 | CV143: -3.485640664e-06 | CW143: 4.056115707e-06 | CX143: -4.371730083e-06 | CY143: 4.41265258e-06 | CZ143: -4.176311886e-06 | DA143: 3.677558157e-06 | DB143: -2.947729924e-06 | DC143: 2.032684979e-06 | DD143: -9.899189612e-07 | DE143: -1.150473058e-07 | DF143: 1.212784727e-06 | DG143: -2.234318424e-06 | DH143: 3.115461677e-06 | DI143: -3.800849016e-06 | DJ143: 4.247415031e-06 | DK143: -4.42710034e-06 | DL143: 4.328614652e-06 | DM143: -3.958146187e-06 | DN143: 3.338972839e-06 | DO143: -2.509999548e-06 | DP143: 1.523313754e-06 | DQ143: -4.409125549e-07 | DR143: -6.691928017e-07 | DS143: 1.737250314e-06 | DT143: -2.696149999e-06 | DU143: 3.485640664e-06 | DV143: -4.056115707e-06 | DW143: 4.371730083e-06 | DX143: -4.41265258e-06 | DY143: 4.176311886e-06 | DZ143: -3.677558157e-06 | EA143: 2.947729924e-06 | EB143: -2.032684979e-06 | EC143: 9.899189612e-07 | ED143: 1.150473058e-07 | EE143: -1.212784727e-06 | EF143: 2.234318424e-06 | EG143: -3.115461677e-06 | EH143: 3.800849016e-06 | EI143: -4.247415031e-06 | EJ143: 4.42710034e-06 | EK143: -4.328614652e-06 | EL143: 3.958146187e-06 | EM143: -3.338972839e-06 | EN143: 2.509999548e-06 | EO143: -1.523313754e-06 | EP143: 4.409125549e-07 | EQ143: 6.691928017e-07 | ER143: -1.737250314e-06 | ES143: 2.696149999e-06 | ET143: -3.485640664e-06 | EU143: 4.056115707e-06 | EV143: -4.371730083e-06 | EW143: 4.41265258e-06 | EX143: -4.176311886e-06 | EY143: 3.677558157e-06 | EZ143: -2.947729924e-06 | FA143: 2.032684979e-06 | FB143: -9.899189612e-07 | FC143: -1.150473058e-07 | FD143: 1.212784727e-06 | FE143: -2.234318424e-06 | FF143: 3.115461677e-06 | FG143: -3.800849016e-06 | FH143: 4.247415031e-06 | FI143: -4.42710034e-06
B144: 74 | C144: 37000000 | D144: 0 | E144: 0.0004724112194 | F144: -66.51359593 | G144: -8.437226432e-06 | H144: 3.069142094e-07 | I144: -101.470263 | M144: 232477856.4 | N144: 0.1549821869 | O144: 0.02403058936 | P144: 0.1549547306 | Q144: 0.02401196853 | R144: 0.02320477079 | S144: 0.0005394613873 | T144: 228176371.4 | U144: 1e+30 | V144: -1410580531 | W144: 1e+30 | X144: 2.034058781 | Y144: -55.91730193 | Z144: 0.1550180291 | AA144: 0.1549579573 | AB144: 0.02322630809 | AC144: 1000000000000026 | AD144: 1e+15 | AE144: 0.01787173214 | AF144: 87.91671601 | AG144: 0.0006496759534 | AH144: 0.01785991967 | AM144: 74 | AN144: 5388.438443 | AO144: 33856.55725 | AP144: -0.02092521325 | AQ144: 0.0004489756608 | AR144: -0.2094552719 | AS144: 0.04387251092 | AT144: -0.2953603729 | AU144: 0.08723874985 | AV144: -2.953634199e+10 | AW144: 1.000000001e+30 | AX144: -9.845458614e+12 | AY144: 1.000096933e+30 | AZ144: 7.458563539 | BA144: 54.76640075 | BB144: 0.02118904577 | BC144: 0.209457659 | BD144: 0.2953620657 | BE144: 1e+15 | BF144: 1.000048465e+15 | BG144: 0.01809235861 | BK144: V(t) | BL144: 74 | BM144: -8.437226432e-06 | BN144: 8.409162932e-06 | BO144: -8.248481909e-06 | BP144: 7.957717399e-06 | BQ144: -7.541454932e-06 | BR144: 7.006259215e-06 | BS144: -6.360570605e-06 | BT144: 5.614571998e-06 | BU144: -4.780028235e-06 | BV144: 3.870100572e-06 | BW144: -2.899139112e-06 | BX144: 1.882456495e-06 | BY144: -8.360864153e-07 | BZ144: -2.234692468e-07 | CA144: 1.279500665e-06 | CB144: -2.315353594e-06 | CC144: 3.314692014e-06 | CD144: -4.26175576e-06 | CE144: 5.141609072e-06 | CF144: -5.940376138e-06 | CG144: 6.645459923e-06 | CH144: -7.245740836e-06 | CI144: 7.731752087e-06 | CJ144: -8.095828989e-06 | CK144: 8.332229831e-06 | CL144: -8.437226432e-06 | CM144: 8.409162932e-06 | CN144: -8.248481909e-06 | CO144: 7.957717399e-06 | CP144: -7.541454932e-06 | CQ144: 7.006259215e-06 | CR144: -6.360570605e-06 | CS144: 5.614571998e-06 | CT144: -4.780028235e-06 | CU144: 3.870100572e-06 | CV144: -2.899139112e-06 | CW144: 1.882456495e-06 | CX144: -8.360864153e-07 | CY144: -2.234692468e-07 | CZ144: 1.279500665e-06 | DA144: -2.315353594e-06 | DB144: 3.314692014e-06 | DC144: -4.26175576e-06 | DD144: 5.141609072e-06 | DE144: -5.940376138e-06 | DF144: 6.645459923e-06 | DG144: -7.245740836e-06 | DH144: 7.731752087e-06 | DI144: -8.095828989e-06 | DJ144: 8.332229831e-06 | DK144: -8.437226432e-06 | DL144: 8.409162932e-06 | DM144: -8.248481909e-06 | DN144: 7.957717399e-06 | DO144: -7.541454932e-06 | DP144: 7.006259215e-06 | DQ144: -6.360570605e-06 | DR144: 5.614571998e-06 | DS144: -4.780028235e-06 | DT144: 3.870100572e-06 | DU144: -2.899139112e-06 | DV144: 1.882456495e-06 | DW144: -8.360864153e-07 | DX144: -2.234692468e-07 | DY144: 1.279500665e-06 | DZ144: -2.315353594e-06 | EA144: 3.314692014e-06 | EB144: -4.26175576e-06 | EC144: 5.141609072e-06 | ED144: -5.940376138e-06 | EE144: 6.645459923e-06 | EF144: -7.245740836e-06 | EG144: 7.731752087e-06 | EH144: -8.095828989e-06 | EI144: 8.332229831e-06 | EJ144: -8.437226432e-06 | EK144: 8.409162932e-06 | EL144: -8.248481909e-06 | EM144: 7.957717399e-06 | EN144: -7.541454932e-06 | EO144: 7.006259215e-06 | EP144: -6.360570605e-06 | EQ144: 5.614571998e-06 | ER144: -4.780028235e-06 | ES144: 3.870100572e-06 | ET144: -2.899139112e-06 | EU144: 1.882456495e-06 | EV144: -8.360864153e-07 | EW144: -2.234692468e-07 | EX144: 1.279500665e-06 | EY144: -2.315353594e-06 | EZ144: 3.314692014e-06 | FA144: -4.26175576e-06 | FB144: 5.141609072e-06 | FC144: -5.940376138e-06 | FD144: 6.645459923e-06 | FE144: -7.245740836e-06 | FF144: 7.731752087e-06 | FG144: -8.095828989e-06 | FH144: 8.332229831e-06 | FI144: -8.437226432e-06
B145: 75 | C145: 37500000 | D145: 0 | E145: 0.0006503933824 | F145: -63.73647772 | G145: -1.17733477e-05 | H145: 4.225403257e-07 | I145: -98.57641022 | M145: 235619449 | N145: 0.1570766227 | O145: 0.0246841765 | P145: 0.1570495325 | Q145: 0.02466555564 | R145: 0.02351950358 | S145: 0.0005541670488 | T145: 231375317.2 | U145: 1e+30 | V145: -1391148660 | W145: 1e+30 | X145: 1.980091677 | Y145: -55.17179397 | Z145: 0.1571119871 | AA145: 0.1570527161 | AB145: 0.02354075294 | AC145: 1e+15 | AD145: 1e+15 | AE145: 0.01811354171 | AF145: 87.94456161 | AG145: 0.0006496688576 | AH145: 0.01810188729 | AM145: 75 | AN145: 5514.205739 | AO145: 34646.77648 | AP145: -0.02044691207 | AQ145: 0.0004291873241 | AR145: -0.2046770013 | AS145: 0.04189367487 | AT145: -0.2886236751 | AU145: 0.08330462586 | AV145: -2.886267934e+10 | AW145: 1.000000001e+30 | AX145: -9.620904657e+12 | AY145: 1.000092562e+30 | AZ145: 7.802490541 | BA145: 55.99130491 | BB145: 0.02071683673 | BC145: 0.2046794442 | BD145: 0.2886254075 | BE145: 1e+15 | BF145: 1.00004628e+15 | BG145: 0.01768899111 | BK145: V(t) | BL145: 75 | BM145: -1.17733477e-05 | BN145: 1.17733477e-05 | BO145: -1.17733477e-05 | BP145: 1.17733477e-05 | BQ145: -1.17733477e-05 | BR145: 1.17733477e-05 | BS145: -1.17733477e-05 | BT145: 1.17733477e-05 | BU145: -1.17733477e-05 | BV145: 1.17733477e-05 | BW145: -1.17733477e-05 | BX145: 1.17733477e-05 | BY145: -1.17733477e-05 | BZ145: 1.17733477e-05 | CA145: -1.17733477e-05 | CB145: 1.17733477e-05 | CC145: -1.17733477e-05 | CD145: 1.17733477e-05 | CE145: -1.17733477e-05 | CF145: 1.17733477e-05 | CG145: -1.17733477e-05 | CH145: 1.17733477e-05 | CI145: -1.17733477e-05 | CJ145: 1.17733477e-05 | CK145: -1.17733477e-05 | CL145: 1.17733477e-05 | CM145: -1.17733477e-05 | CN145: 1.17733477e-05 | CO145: -1.17733477e-05 | CP145: 1.17733477e-05 | CQ145: -1.17733477e-05 | CR145: 1.17733477e-05 | CS145: -1.17733477e-05 | CT145: 1.17733477e-05 | CU145: -1.17733477e-05 | CV145: 1.17733477e-05 | CW145: -1.17733477e-05 | CX145: 1.17733477e-05 | CY145: -1.17733477e-05 | CZ145: 1.17733477e-05 | DA145: -1.17733477e-05 | DB145: 1.17733477e-05 | DC145: -1.17733477e-05 | DD145: 1.17733477e-05 | DE145: -1.17733477e-05 | DF145: 1.17733477e-05 | DG145: -1.17733477e-05 | DH145: 1.17733477e-05 | DI145: -1.17733477e-05 | DJ145: 1.17733477e-05 | DK145: -1.17733477e-05 | DL145: 1.17733477e-05 | DM145: -1.17733477e-05 | DN145: 1.17733477e-05 | DO145: -1.17733477e-05 | DP145: 1.17733477e-05 | DQ145: -1.17733477e-05 | DR145: 1.17733477e-05 | DS145: -1.17733477e-05 | DT145: 1.17733477e-05 | DU145: -1.17733477e-05 | DV145: 1.17733477e-05 | DW145: -1.17733477e-05 | DX145: 1.17733477e-05 | DY145: -1.17733477e-05 | DZ145: 1.17733477e-05 | EA145: -1.17733477e-05 | EB145: 1.17733477e-05 | EC145: -1.17733477e-05 | ED145: 1.17733477e-05 | EE145: -1.17733477e-05 | EF145: 1.17733477e-05 | EG145: -1.17733477e-05 | EH145: 1.17733477e-05 | EI145: -1.17733477e-05 | EJ145: 1.17733477e-05 | EK145: -1.17733477e-05 | EL145: 1.17733477e-05 | EM145: -1.17733477e-05 | EN145: 1.17733477e-05 | EO145: -1.17733477e-05 | EP145: 1.17733477e-05 | EQ145: -1.17733477e-05 | ER145: 1.17733477e-05 | ES145: -1.17733477e-05 | ET145: 1.17733477e-05 | EU145: -1.17733477e-05 | EV145: 1.17733477e-05 | EW145: -1.17733477e-05 | EX145: 1.17733477e-05 | EY145: -1.17733477e-05 | EZ145: 1.17733477e-05 | FA145: -1.17733477e-05 | FB145: 1.17733477e-05 | FC145: -1.17733477e-05 | FD145: 1.17733477e-05 | FE145: -1.17733477e-05 | FF145: 1.17733477e-05 | FG145: -1.17733477e-05 | FH145: 1.17733477e-05 | FI145: -1.17733477e-05
B146: 76 | C146: 38000000 | D146: 0 | E146: 0.000775741607 | F146: -62.20565829 | G146: -1.423008522e-05 | H146: 5.039698752e-07 | I146: -96.93040613 | M146: 238761041.7 | N146: 0.1591710574 | O146: 0.02534653661 | P146: 0.1591443236 | Q146: 0.02532791574 | R146: 0.02383422129 | S146: 0.0005690701044 | T146: 234572753.7 | U146: 1e+30 | V146: -1372219888 | W146: 1e+30 | X146: 1.928245274 | Y146: -54.44590228 | Z146: 0.1592059566 | AA146: 0.1591474654 | AB146: 0.0238551903 | AC146: 1e+15 | AD146: 1e+15 | AE146: 0.01835534738 | AF146: 87.97167179 | AG146: 0.0006496620404 | AH146: 0.01834384684 | AM146: 76 | AN146: 5642.908471 | AO146: 35455.4396 | AP146: -0.0199794956 | AQ146: 0.0004102913555 | AR146: -0.2000076886 | AS146: 0.04000407551 | AT146: -0.2820406235 | AU146: 0.07954791332 | AV146: -2.820438145e+10 | AW146: 1.000000001e+30 | AX146: -9.401472299e+12 | AY146: 1.000088388e+30 | AZ146: 8.161876473 | BA146: 57.24109942 | BB146: 0.02025564996 | BC146: 0.2000101885 | BD146: 0.2820423963 | BE146: 1e+15 | BF146: 1000044192864188 | BG146: 0.01729503476 | BK146: V(t) | BL146: 76 | BM146: -1.423008522e-05 | BN146: 1.405471258e-05 | BO146: -1.365768872e-05 | BP146: 1.304527495e-05 | BQ146: -1.22271294e-05 | BR146: 1.121615472e-05 | BS146: -1.002829457e-05 | BT146: 8.682282235e-06 | BU146: -7.199345118e-06 | BV146: 5.602870029e-06 | BW146: -3.918034332e-06 | BX146: 2.171408893e-06 | BY146: -3.905390383e-07 | BZ146: -1.39648985e-06 | CA146: 3.161495259e-06 | CB146: -4.876641999e-06 | CC146: 6.514881182e-06 | CD146: -8.050376797e-06 | CE146: 9.458913161e-06 | CF146: -1.071827681e-05 | CG146: 1.180860684e-05 | CH146: -1.271270808e-05 | CI146: 1.341632232e-05 | CJ146: -1.390835314e-05 | CK146: 1.418104093e-05 | CL146: -1.423008522e-05 | CM146: 1.405471258e-05 | CN146: -1.365768872e-05 | CO146: 1.304527495e-05 | CP146: -1.22271294e-05 | CQ146: 1.121615472e-05 | CR146: -1.002829457e-05 | CS146: 8.682282235e-06 | CT146: -7.199345118e-06 | CU146: 5.602870029e-06 | CV146: -3.918034332e-06 | CW146: 2.171408893e-06 | CX146: -3.905390383e-07 | CY146: -1.39648985e-06 | CZ146: 3.161495259e-06 | DA146: -4.876641999e-06 | DB146: 6.514881182e-06 | DC146: -8.050376797e-06 | DD146: 9.458913161e-06 | DE146: -1.071827681e-05 | DF146: 1.180860684e-05 | DG146: -1.271270808e-05 | DH146: 1.341632232e-05 | DI146: -1.390835314e-05 | DJ146: 1.418104093e-05 | DK146: -1.423008522e-05 | DL146: 1.405471258e-05 | DM146: -1.365768872e-05 | DN146: 1.304527495e-05 | DO146: -1.22271294e-05 | DP146: 1.121615472e-05 | DQ146: -1.002829457e-05 | DR146: 8.682282235e-06 | DS146: -7.199345118e-06 | DT146: 5.602870029e-06 | DU146: -3.918034332e-06 | DV146: 2.171408893e-06 | DW146: -3.905390383e-07 | DX146: -1.39648985e-06 | DY146: 3.161495259e-06 | DZ146: -4.876641999e-06 | EA146: 6.514881182e-06 | EB146: -8.050376797e-06 | EC146: 9.458913161e-06 | ED146: -1.071827681e-05 | EE146: 1.180860684e-05 | EF146: -1.271270808e-05 | EG146: 1.341632232e-05 | EH146: -1.390835314e-05 | EI146: 1.418104093e-05 | EJ146: -1.423008522e-05 | EK146: 1.405471258e-05 | EL146: -1.365768872e-05 | EM146: 1.304527495e-05 | EN146: -1.22271294e-05 | EO146: 1.121615472e-05 | EP146: -1.002829457e-05 | EQ146: 8.682282235e-06 | ER146: -7.199345118e-06 | ES146: 5.602870029e-06 | ET146: -3.918034332e-06 | EU146: 2.171408893e-06 | EV146: -3.905390383e-07 | EW146: -1.39648985e-06 | EX146: 3.161495259e-06 | EY146: -4.876641999e-06 | EZ146: 6.514881182e-06 | FA146: -8.050376797e-06 | FB146: 9.458913161e-06 | FC146: -1.071827681e-05 | FD146: 1.180860684e-05 | FE146: -1.271270808e-05 | FF146: 1.341632232e-05 | FG146: -1.390835314e-05 | FH146: 1.418104093e-05 | FI146: -1.423008522e-05
B147: 77 | C147: 38500000 | D147: 0 | E147: 0.0008428998298 | F147: -61.48448068 | G147: -1.56659665e-05 | H147: 5.475944997e-07 | I147: -96.09555312 | M147: 241902634.3 | N147: 0.161265491 | O147: 0.02601766971 | P147: 0.1612391045 | Q147: 0.02599904881 | R147: 0.02414892449 | S147: 0.0005841705538 | T147: 237768739.7 | U147: 1e+30 | V147: -1353774612 | W147: 1e+30 | X147: 1.878409842 | Y147: -53.73886272 | Z147: 0.1612999371 | AA147: 0.1612422054 | AB147: 0.02416962047 | AC147: 1e+15 | AD147: 1e+15 | AE147: 0.01859714932 | AF147: 87.99807532 | AG147: 0.0006496554873 | AH147: 0.01858579862 | AM147: 77 | AN147: 5774.615152 | AO147: 36282.97708 | AP147: -0.01952271503 | AQ147: 0.0003922475131 | AR147: -0.1954448481 | AS147: 0.03819968866 | AT147: -0.2756077136 | AU147: 0.07596061178 | AV147: -2.75610979e+10 | AW147: 1.000000001e+30 | AX147: -9.187044725e+12 | AY147: 1.000084402e+30 | AZ147: 8.537378548 | BA147: 58.51611492 | BB147: 0.01980523954 | BC147: 0.1954474064 | BD147: 0.2756095277 | BE147: 1e+15 | BF147: 1.0000422e+15 | BG147: 0.01691027944 | BK147: V(t) | BL147: 77 | BM147: -1.56659665e-05 | BN147: 1.503761014e-05 | BO147: -1.346438543e-05 | BP147: 1.104514386e-05 | BQ147: -7.93189529e-06 | BR147: 4.320256563e-06 | BS147: -4.371602282e-07 | BT147: -3.473404492e-06 | BU147: 7.165722433e-06 | BV147: -1.040779168e-05 | BW147: 1.29959011e-05 | BX147: -1.476743026e-05 | BY147: 1.561106746e-05 | BZ147: -1.547380388e-05 | CA147: 1.43642643e-05 | CB147: -1.235216516e-05 | CC147: 9.563934054e-06 | CD147: -6.174765799e-06 | CE147: 2.397614301e-06 | CF147: 1.530188122e-06 | CG147: -5.361843198e-06 | CH147: 8.856593946e-06 | CI147: -1.179485232e-05 | CJ147: 1.399199675e-05 | CK147: -1.530997257e-05 | CL147: 1.56659665e-05 | CM147: -1.503761014e-05 | CN147: 1.346438543e-05 | CO147: -1.104514386e-05 | CP147: 7.93189529e-06 | CQ147: -4.320256563e-06 | CR147: 4.371602282e-07 | CS147: 3.473404492e-06 | CT147: -7.165722433e-06 | CU147: 1.040779168e-05 | CV147: -1.29959011e-05 | CW147: 1.476743026e-05 | CX147: -1.561106746e-05 | CY147: 1.547380388e-05 | CZ147: -1.43642643e-05 | DA147: 1.235216516e-05 | DB147: -9.563934054e-06 | DC147: 6.174765799e-06 | DD147: -2.397614301e-06 | DE147: -1.530188122e-06 | DF147: 5.361843198e-06 | DG147: -8.856593946e-06 | DH147: 1.179485232e-05 | DI147: -1.399199675e-05 | DJ147: 1.530997257e-05 | DK147: -1.56659665e-05 | DL147: 1.503761014e-05 | DM147: -1.346438543e-05 | DN147: 1.104514386e-05 | DO147: -7.93189529e-06 | DP147: 4.320256563e-06 | DQ147: -4.371602282e-07 | DR147: -3.473404492e-06 | DS147: 7.165722433e-06 | DT147: -1.040779168e-05 | DU147: 1.29959011e-05 | DV147: -1.476743026e-05 | DW147: 1.561106746e-05 | DX147: -1.547380388e-05 | DY147: 1.43642643e-05 | DZ147: -1.235216516e-05 | EA147: 9.563934054e-06 | EB147: -6.174765799e-06 | EC147: 2.397614301e-06 | ED147: 1.530188122e-06 | EE147: -5.361843198e-06 | EF147: 8.856593946e-06 | EG147: -1.179485232e-05 | EH147: 1.399199675e-05 | EI147: -1.530997257e-05 | EJ147: 1.56659665e-05 | EK147: -1.503761014e-05 | EL147: 1.346438543e-05 | EM147: -1.104514386e-05 | EN147: 7.93189529e-06 | EO147: -4.320256563e-06 | EP147: 4.371602282e-07 | EQ147: 3.473404492e-06 | ER147: -7.165722433e-06 | ES147: 1.040779168e-05 | ET147: -1.29959011e-05 | EU147: 1.476743026e-05 | EV147: -1.561106746e-05 | EW147: 1.547380388e-05 | EX147: -1.43642643e-05 | EY147: 1.235216516e-05 | EZ147: -9.563934054e-06 | FA147: 6.174765799e-06 | FB147: -2.397614301e-06 | FC147: -1.530188122e-06 | FD147: 5.361843198e-06 | FE147: -8.856593946e-06 | FF147: 1.179485232e-05 | FG147: -1.399199675e-05 | FH147: 1.530997257e-05 | FI147: -1.56659665e-05
B148: 78 | C148: 39000000 | D148: 0 | E148: 0.0008504023135 | F148: -61.40751134 | G148: -1.601115616e-05 | H148: 5.524631698e-07 | I148: -95.90637855 | M148: 245044227 | N148: 0.1633599237 | O148: 0.02669757579 | P148: 0.1633338755 | Q148: 0.02667895487 | R148: 0.02446361374 | S148: 0.0005994683971 | T148: 240963331 | U148: 1e+30 | V148: -1335794236 | W148: 1e+30 | X148: 1.83048266 | Y148: -53.04995033 | Z148: 0.1633939283 | AA148: 0.1633369366 | AB148: 0.02448404373 | AC148: 1e+15 | AD148: 1e+15 | AE148: 0.01883894765 | AF148: 88.02379951 | AG148: 0.0006496491849 | AH148: 0.01882774295 | AM148: 78 | AN148: 5909.395895 | AO148: 37129.82946 | AP148: -0.01907632719 | AQ148: 0.0003750173701 | AR148: -0.1909860509 | AS148: 0.03647667163 | AT148: -0.2693215208 | AU148: 0.07253508156 | AV148: -2.693248625e+10 | AW148: 1.000000001e+30 | AX148: -8.977507788e+12 | AY148: 1.000080596e+30 | AZ148: 8.929678386 | BA148: 59.81667351 | BB148: 0.01936536522 | BC148: 0.1909886688 | BD148: 0.2693233773 | BE148: 1e+15 | BF148: 1.000040297e+15 | BG148: 0.01653451994 | BK148: V(t) | BL148: 78 | BM148: -1.601115616e-05 | BN148: 1.468342126e-05 | BO148: -1.129344347e-05 | BP148: 6.317335107e-06 | BQ148: -4.539758038e-07 | BR148: -5.473143052e-06 | BS148: 1.063157523e-05 | BT148: -1.429683426e-05 | BU148: 1.595414541e-05 | BV148: -1.537074425e-05 | BW148: 1.262856773e-05 | BX148: -8.112746409e-06 | BY148: 2.457513962e-06 | BZ148: 3.542869018e-06 | CA148: -9.045666573e-06 | CB148: 1.327802714e-05 | CC148: -1.564552825e-05 | CD148: 1.581566142e-05 | CE148: -1.376453194e-05 | CF148: 9.780214854e-06 | CG148: -4.422295656e-06 | CH148: -1.556721824e-06 | CI148: 7.31710235e-06 | CJ148: -1.20498176e-05 | CK148: 1.509017177e-05 | CL148: -1.601115616e-05 | CM148: 1.468342126e-05 | CN148: -1.129344347e-05 | CO148: 6.317335107e-06 | CP148: -4.539758038e-07 | CQ148: -5.473143052e-06 | CR148: 1.063157523e-05 | CS148: -1.429683426e-05 | CT148: 1.595414541e-05 | CU148: -1.537074425e-05 | CV148: 1.262856773e-05 | CW148: -8.112746409e-06 | CX148: 2.457513962e-06 | CY148: 3.542869018e-06 | CZ148: -9.045666573e-06 | DA148: 1.327802714e-05 | DB148: -1.564552825e-05 | DC148: 1.581566142e-05 | DD148: -1.376453194e-05 | DE148: 9.780214854e-06 | DF148: -4.422295656e-06 | DG148: -1.556721824e-06 | DH148: 7.31710235e-06 | DI148: -1.20498176e-05 | DJ148: 1.509017177e-05 | DK148: -1.601115616e-05 | DL148: 1.468342126e-05 | DM148: -1.129344347e-05 | DN148: 6.317335107e-06 | DO148: -4.539758038e-07 | DP148: -5.473143052e-06 | DQ148: 1.063157523e-05 | DR148: -1.429683426e-05 | DS148: 1.595414541e-05 | DT148: -1.537074425e-05 | DU148: 1.262856773e-05 | DV148: -8.112746409e-06 | DW148: 2.457513962e-06 | DX148: 3.542869018e-06 | DY148: -9.045666573e-06 | DZ148: 1.327802714e-05 | EA148: -1.564552825e-05 | EB148: 1.581566142e-05 | EC148: -1.376453194e-05 | ED148: 9.780214854e-06 | EE148: -4.422295656e-06 | EF148: -1.556721824e-06 | EG148: 7.31710235e-06 | EH148: -1.20498176e-05 | EI148: 1.509017177e-05 | EJ148: -1.601115616e-05 | EK148: 1.468342126e-05 | EL148: -1.129344347e-05 | EM148: 6.317335107e-06 | EN148: -4.539758038e-07 | EO148: -5.473143052e-06 | EP148: 1.063157523e-05 | EQ148: -1.429683426e-05 | ER148: 1.595414541e-05 | ES148: -1.537074425e-05 | ET148: 1.262856773e-05 | EU148: -8.112746409e-06 | EV148: 2.457513962e-06 | EW148: 3.542869018e-06 | EX148: -9.045666573e-06 | EY148: 1.327802714e-05 | EZ148: -1.564552825e-05 | FA148: 1.581566142e-05 | FB148: -1.376453194e-05 | FC148: 9.780214854e-06 | FD148: -4.422295656e-06 | FE148: -1.556721824e-06 | FF148: 7.31710235e-06 | FG148: -1.20498176e-05 | FH148: 1.509017177e-05 | FI148: -1.601115616e-05
